Workbook

Sheet US mthly rpt
FS1: Legend: BLACK - Actual / RED - Estimated (Inventory from US Dept. of Energy; Supply and Demand prepared by IHS) / BLUE - Forecast
A2: United States | GQ2: FCST -->
A3: (Barrels per Day) | B3: 2005-01-15 | C3: 2005-02-15 | D3: 2005-03-15 | E3: 2005-04-15 | F3: 2005-05-15 | G3: 2005-06-15 | H3: 2005-07-15 | I3: 2005-08-15 | J3: 2005-09-15 | K3: 2005-10-15 | L3: 2005-11-15 | M3: 2005-12-15 | N3: 2006-01-15 | O3: 2006-02-15 | P3: 2006-03-15 | Q3: 2006-04-15 | R3: 2006-05-15 | S3: 2006-06-15 | T3: 2006-07-15 | U3: 2006-08-15 | V3: 2006-09-15 | W3: 2006-10-15 | X3: 2006-11-15 | Y3: 2006-12-15 | Z3: 2007-01-15 | AA3: 2007-02-15 | AB3: 2007-03-15 | AC3: 2007-04-15 | AD3: 2007-05-15 | AE3: 2007-06-15 | AF3: 2007-07-15 | AG3: 2007-08-15 | AH3: 2007-09-15 | AI3: 2007-10-15 | AJ3: 2007-11-15 | AK3: 2007-12-15 | AL3: 2008-01-15 | AM3: 2008-02-15 | AN3: 2008-03-15 | AO3: 2008-04-15 | AP3: 2008-05-15 | AQ3: 2008-06-15 | AR3: 2008-07-15 | AS3: 2008-08-15 | AT3: 2008-09-15 | AU3: 2008-10-15 | AV3: 2008-11-15 | AW3: 2008-12-15 | AX3: 2009-01-15 | AY3: 2009-02-15 | AZ3: 2009-03-15 | BA3: 2009-04-15 | BB3: 2009-05-15 | BC3: 2009-06-15 | BD3: 2009-07-15 | BE3: 2009-08-15 | BF3: 2009-09-15 | BG3: 2009-10-15 | BH3: 2009-11-15 | BI3: 2009-12-15 | BJ3: 2010-01-15 | BK3: 2010-02-15 | BL3: 2010-03-15 | BM3: 2010-04-15 | BN3: 2010-05-15 | BO3: 2010-06-15 | BP3: 2010-07-15 | BQ3: 2010-08-15 | BR3: 2010-09-15 | BS3: 2010-10-15 | BT3: 2010-11-15 | BU3: 2010-12-15 | BV3: 2011-01-15 | BW3: 2011-02-15 | BX3: 2011-03-15 | BY3: 2011-04-15 | BZ3: 2011-05-15 | CA3: 2011-06-15 | CB3: 2011-07-15 | CC3: 2011-08-15 | CD3: 2011-09-15 | CE3: 2011-10-15 | CF3: 2011-11-15 | CG3: 2011-12-15 | CH3: 2012-01-15 | CI3: 2012-02-15 | CJ3: 2012-03-15 | CK3: 2012-04-15 | CL3: 2012-05-15 | CM3: 2012-06-15 | CN3: 2012-07-15 | CO3: 2012-08-15 | CP3: 2012-09-15 | CQ3: 2012-10-15 | CR3: 2012-11-15 | CS3: 2012-12-15 | CT3: 2013-01-15 | CU3: 2013-02-15 | CV3: 2013-03-15 | CW3: 2013-04-15 | CX3: 2013-05-15 | CY3: 2013-06-15 | CZ3: 2013-07-15 | DA3: 2013-08-15 | DB3: 2013-09-15 | DC3: 2013-10-15 | DD3: 2013-11-15 | DE3: 2013-12-15 | DF3: 2014-01-15 | DG3: 2014-02-15 | DH3: 2014-03-15 | DI3: 2014-04-15 | DJ3: 2014-05-15 | DK3: 2014-06-15 | DL3: 2014-07-15 | DM3: 2014-08-15 | DN3: 2014-09-15 | DO3: 2014-10-15 | DP3: 2014-11-15 | DQ3: 2014-12-15 | DR3: 2015-01-15 | DS3: 2015-02-15 | DT3: 2015-03-15 | DU3: 2015-04-15 | DV3: 2015-05-15 | DW3: 2015-06-15 | DX3: 2015-07-15 | DY3: 2015-08-15 | DZ3: 2015-09-15 | EA3: 2015-10-15 | EB3: 2015-11-15 | EC3: 2015-12-15 | ED3: 2016-01-15 | EE3: 2016-02-15 | EF3: 2016-03-15 | EG3: 2016-04-15 | EH3: 2016-05-15 | EI3: 2016-06-15 | EJ3: 2016-07-15 | EK3: 2016-08-15 | EL3: 2016-09-15 | EM3: 2016-10-15 | EN3: 2016-11-15 | EO3: 2016-12-15 | EP3: 2017-01-15 | EQ3: 2017-02-15 | ER3: 2017-03-15 | ES3: 2017-04-15 | ET3: 2017-05-15 | EU3: 2017-06-15 | EV3: 2017-07-15 | EW3: 2017-08-15 | EX3: 2017-09-15 | EY3: 2017-10-15 | EZ3: 2017-11-15 | FA3: 2017-12-15 | FB3: 2018-01-15 | FC3: 2018-02-15 | FD3: 2018-03-15 | FE3: 2018-04-15 | FF3: 2018-05-15 | FG3: 2018-06-15 | FH3: 2018-07-15 | FI3: 2018-08-15 | FJ3: 2018-09-15 | FK3: 2018-10-15 | FL3: 2018-11-15 | FM3: 2018-12-15 | FN3: 2019-01-15 | FO3: 2019-02-15 | FP3: 2019-03-15 | FQ3: 2019-04-15 | FR3: 2019-05-15 | FS3: 2019-06-15 | FT3: 2019-07-15 | FU3: 2019-08-15 | FV3: 2019-09-15 | FW3: 2019-10-15 | FX3: 2019-11-15 | FY3: 2019-12-15 | FZ3: 2020-01-15 | GA3: 2020-02-15 | GB3: 2020-03-15 | GC3: 2020-04-15 | GD3: 2020-05-15 | GE3: 2020-06-15 | GF3: 2020-07-15 | GG3: 2020-08-15 | GH3: 2020-09-15 | GI3: 2020-10-15 | GJ3: 2020-11-15 | GK3: 2020-12-15 | GL3: 2021-01-15 | GM3: 2021-02-15 | GN3: 2021-03-15 | GO3: 2021-04-15 | GP3: 2021-05-15 | GQ3: 2021-06-15 | GR3: 2021-07-15 | GS3: 2021-08-15 | GT3: 2021-09-15 | GU3: 2021-10-15 | GV3: 2021-11-15 | GW3: 2021-12-15 | GX3: 2022-01-15 | GY3: 2022-02-15 | GZ3: 2022-03-15 | HA3: 2022-04-15 | HB3: 2022-05-15 | HC3: 2022-06-15
A4: SUPPLY
A5: Gas Processing | B5: ='PADD1 mthly rpt'!B5+'PADD2 mthly rpt'!B5+'PADD3 mthly rpt'!B5+'PADD4 mthly rpt'!B5+'PADD5 mthly rpt'!B5 -> 526612.9032 | C5: ='PADD1 mthly rpt'!C5+'PADD2 mthly rpt'!C5+'PADD3 mthly rpt'!C5+'PADD4 mthly rpt'!C5+'PADD5 mthly rpt'!C5 -> 540071.4286 | D5: ='PADD1 mthly rpt'!D5+'PADD2 mthly rpt'!D5+'PADD3 mthly rpt'!D5+'PADD4 mthly rpt'!D5+'PADD5 mthly rpt'!D5 -> 540064.5161 | E5: ='PADD1 mthly rpt'!E5+'PADD2 mthly rpt'!E5+'PADD3 mthly rpt'!E5+'PADD4 mthly rpt'!E5+'PADD5 mthly rpt'!E5 -> 531100 | F5: ='PADD1 mthly rpt'!F5+'PADD2 mthly rpt'!F5+'PADD3 mthly rpt'!F5+'PADD4 mthly rpt'!F5+'PADD5 mthly rpt'!F5 -> 530870.9677 | G5: ='PADD1 mthly rpt'!G5+'PADD2 mthly rpt'!G5+'PADD3 mthly rpt'!G5+'PADD4 mthly rpt'!G5+'PADD5 mthly rpt'!G5 -> 516466.6667 | H5: ='PADD1 mthly rpt'!H5+'PADD2 mthly rpt'!H5+'PADD3 mthly rpt'!H5+'PADD4 mthly rpt'!H5+'PADD5 mthly rpt'!H5 -> 505387.0968 | I5: ='PADD1 mthly rpt'!I5+'PADD2 mthly rpt'!I5+'PADD3 mthly rpt'!I5+'PADD4 mthly rpt'!I5+'PADD5 mthly rpt'!I5 -> 504935.4839 | J5: ='PADD1 mthly rpt'!J5+'PADD2 mthly rpt'!J5+'PADD3 mthly rpt'!J5+'PADD4 mthly rpt'!J5+'PADD5 mthly rpt'!J5 -> 437433.3333 | K5: ='PADD1 mthly rpt'!K5+'PADD2 mthly rpt'!K5+'PADD3 mthly rpt'!K5+'PADD4 mthly rpt'!K5+'PADD5 mthly rpt'!K5 -> 447806.4516 | L5: ='PADD1 mthly rpt'!L5+'PADD2 mthly rpt'!L5+'PADD3 mthly rpt'!L5+'PADD4 mthly rpt'!L5+'PADD5 mthly rpt'!L5 -> 469366.6667 | M5: ='PADD1 mthly rpt'!M5+'PADD2 mthly rpt'!M5+'PADD3 mthly rpt'!M5+'PADD4 mthly rpt'!M5+'PADD5 mthly rpt'!M5 -> 443774.1935 | N5: ='PADD1 mthly rpt'!N5+'PADD2 mthly rpt'!N5+'PADD3 mthly rpt'!N5+'PADD4 mthly rpt'!N5+'PADD5 mthly rpt'!N5 -> 489612.9032 | O5: ='PADD1 mthly rpt'!O5+'PADD2 mthly rpt'!O5+'PADD3 mthly rpt'!O5+'PADD4 mthly rpt'!O5+'PADD5 mthly rpt'!O5 -> 497285.7143 | P5: ='PADD1 mthly rpt'!P5+'PADD2 mthly rpt'!P5+'PADD3 mthly rpt'!P5+'PADD4 mthly rpt'!P5+'PADD5 mthly rpt'!P5 -> 499451.6129 | Q5: ='PADD1 mthly rpt'!Q5+'PADD2 mthly rpt'!Q5+'PADD3 mthly rpt'!Q5+'PADD4 mthly rpt'!Q5+'PADD5 mthly rpt'!Q5 -> 502300 | R5: ='PADD1 mthly rpt'!R5+'PADD2 mthly rpt'!R5+'PADD3 mthly rpt'!R5+'PADD4 mthly rpt'!R5+'PADD5 mthly rpt'!R5 -> 503774.1935 | S5: ='PADD1 mthly rpt'!S5+'PADD2 mthly rpt'!S5+'PADD3 mthly rpt'!S5+'PADD4 mthly rpt'!S5+'PADD5 mthly rpt'!S5 -> 501633.3333 | T5: ='PADD1 mthly rpt'!T5+'PADD2 mthly rpt'!T5+'PADD3 mthly rpt'!T5+'PADD4 mthly rpt'!T5+'PADD5 mthly rpt'!T5 -> 504806.4516 | U5: ='PADD1 mthly rpt'!U5+'PADD2 mthly rpt'!U5+'PADD3 mthly rpt'!U5+'PADD4 mthly rpt'!U5+'PADD5 mthly rpt'!U5 -> 498806.4516 | V5: ='PADD1 mthly rpt'!V5+'PADD2 mthly rpt'!V5+'PADD3 mthly rpt'!V5+'PADD4 mthly rpt'!V5+'PADD5 mthly rpt'!V5 -> 505333.3333 | W5: ='PADD1 mthly rpt'!W5+'PADD2 mthly rpt'!W5+'PADD3 mthly rpt'!W5+'PADD4 mthly rpt'!W5+'PADD5 mthly rpt'!W5 -> 501548.3871 | X5: ='PADD1 mthly rpt'!X5+'PADD2 mthly rpt'!X5+'PADD3 mthly rpt'!X5+'PADD4 mthly rpt'!X5+'PADD5 mthly rpt'!X5 -> 513800 | Y5: ='PADD1 mthly rpt'!Y5+'PADD2 mthly rpt'!Y5+'PADD3 mthly rpt'!Y5+'PADD4 mthly rpt'!Y5+'PADD5 mthly rpt'!Y5 -> 499580.6452 | Z5: ='PADD1 mthly rpt'!Z5+'PADD2 mthly rpt'!Z5+'PADD3 mthly rpt'!Z5+'PADD4 mthly rpt'!Z5+'PADD5 mthly rpt'!Z5 -> 481161.2903 | AA5: ='PADD1 mthly rpt'!AA5+'PADD2 mthly rpt'!AA5+'PADD3 mthly rpt'!AA5+'PADD4 mthly rpt'!AA5+'PADD5 mthly rpt'!AA5 -> 498107.1429 | AB5: ='PADD1 mthly rpt'!AB5+'PADD2 mthly rpt'!AB5+'PADD3 mthly rpt'!AB5+'PADD4 mthly rpt'!AB5+'PADD5 mthly rpt'!AB5 -> 509161.2903 | AC5: ='PADD1 mthly rpt'!AC5+'PADD2 mthly rpt'!AC5+'PADD3 mthly rpt'!AC5+'PADD4 mthly rpt'!AC5+'PADD5 mthly rpt'!AC5 -> 502100 | AD5: ='PADD1 mthly rpt'!AD5+'PADD2 mthly rpt'!AD5+'PADD3 mthly rpt'!AD5+'PADD4 mthly rpt'!AD5+'PADD5 mthly rpt'!AD5 -> 511032.2581 | AE5: ='PADD1 mthly rpt'!AE5+'PADD2 mthly rpt'!AE5+'PADD3 mthly rpt'!AE5+'PADD4 mthly rpt'!AE5+'PADD5 mthly rpt'!AE5 -> 502033.3333 | AF5: ='PADD1 mthly rpt'!AF5+'PADD2 mthly rpt'!AF5+'PADD3 mthly rpt'!AF5+'PADD4 mthly rpt'!AF5+'PADD5 mthly rpt'!AF5 -> 504838.7097 | AG5: ='PADD1 mthly rpt'!AG5+'PADD2 mthly rpt'!AG5+'PADD3 mthly rpt'!AG5+'PADD4 mthly rpt'!AG5+'PADD5 mthly rpt'!AG5 -> 500548.3871 | AH5: ='PADD1 mthly rpt'!AH5+'PADD2 mthly rpt'!AH5+'PADD3 mthly rpt'!AH5+'PADD4 mthly rpt'!AH5+'PADD5 mthly rpt'!AH5 -> 508366.6667 | AI5: ='PADD1 mthly rpt'!AI5+'PADD2 mthly rpt'!AI5+'PADD3 mthly rpt'!AI5+'PADD4 mthly rpt'!AI5+'PADD5 mthly rpt'!AI5 -> 519967.7419 | AJ5: ='PADD1 mthly rpt'!AJ5+'PADD2 mthly rpt'!AJ5+'PADD3 mthly rpt'!AJ5+'PADD4 mthly rpt'!AJ5+'PADD5 mthly rpt'!AJ5 -> 529466.6667 | AK5: ='PADD1 mthly rpt'!AK5+'PADD2 mthly rpt'!AK5+'PADD3 mthly rpt'!AK5+'PADD4 mthly rpt'!AK5+'PADD5 mthly rpt'!AK5 -> 518225.8065 | AL5: ='PADD1 mthly rpt'!AL5+'PADD2 mthly rpt'!AL5+'PADD3 mthly rpt'!AL5+'PADD4 mthly rpt'!AL5+'PADD5 mthly rpt'!AL5 -> 510548.3871 | AM5: ='PADD1 mthly rpt'!AM5+'PADD2 mthly rpt'!AM5+'PADD3 mthly rpt'!AM5+'PADD4 mthly rpt'!AM5+'PADD5 mthly rpt'!AM5 -> 524344.8276 | AN5: ='PADD1 mthly rpt'!AN5+'PADD2 mthly rpt'!AN5+'PADD3 mthly rpt'!AN5+'PADD4 mthly rpt'!AN5+'PADD5 mthly rpt'!AN5 -> 533612.9032 | AO5: ='PADD1 mthly rpt'!AO5+'PADD2 mthly rpt'!AO5+'PADD3 mthly rpt'!AO5+'PADD4 mthly rpt'!AO5+'PADD5 mthly rpt'!AO5 -> 533833.3333 | AP5: ='PADD1 mthly rpt'!AP5+'PADD2 mthly rpt'!AP5+'PADD3 mthly rpt'!AP5+'PADD4 mthly rpt'!AP5+'PADD5 mthly rpt'!AP5 -> 534677.4194 | AQ5: ='PADD1 mthly rpt'!AQ5+'PADD2 mthly rpt'!AQ5+'PADD3 mthly rpt'!AQ5+'PADD4 mthly rpt'!AQ5+'PADD5 mthly rpt'!AQ5 -> 522133.3333 | AR5: ='PADD1 mthly rpt'!AR5+'PADD2 mthly rpt'!AR5+'PADD3 mthly rpt'!AR5+'PADD4 mthly rpt'!AR5+'PADD5 mthly rpt'!AR5 -> 531935.4839 | AS5: ='PADD1 mthly rpt'!AS5+'PADD2 mthly rpt'!AS5+'PADD3 mthly rpt'!AS5+'PADD4 mthly rpt'!AS5+'PADD5 mthly rpt'!AS5 -> 518677.4194 | AT5: ='PADD1 mthly rpt'!AT5+'PADD2 mthly rpt'!AT5+'PADD3 mthly rpt'!AT5+'PADD4 mthly rpt'!AT5+'PADD5 mthly rpt'!AT5 -> 433666.6667 | AU5: ='PADD1 mthly rpt'!AU5+'PADD2 mthly rpt'!AU5+'PADD3 mthly rpt'!AU5+'PADD4 mthly rpt'!AU5+'PADD5 mthly rpt'!AU5 -> 499387.0968 | AV5: ='PADD1 mthly rpt'!AV5+'PADD2 mthly rpt'!AV5+'PADD3 mthly rpt'!AV5+'PADD4 mthly rpt'!AV5+'PADD5 mthly rpt'!AV5 -> 511900 | AW5: ='PADD1 mthly rpt'!AW5+'PADD2 mthly rpt'!AW5+'PADD3 mthly rpt'!AW5+'PADD4 mthly rpt'!AW5+'PADD5 mthly rpt'!AW5 -> 486903.2258 | AX5: ='PADD1 mthly rpt'!AX5+'PADD2 mthly rpt'!AX5+'PADD3 mthly rpt'!AX5+'PADD4 mthly rpt'!AX5+'PADD5 mthly rpt'!AX5 -> 520129.0323 | AY5: ='PADD1 mthly rpt'!AY5+'PADD2 mthly rpt'!AY5+'PADD3 mthly rpt'!AY5+'PADD4 mthly rpt'!AY5+'PADD5 mthly rpt'!AY5 -> 538750 | AZ5: ='PADD1 mthly rpt'!AZ5+'PADD2 mthly rpt'!AZ5+'PADD3 mthly rpt'!AZ5+'PADD4 mthly rpt'!AZ5+'PADD5 mthly rpt'!AZ5 -> 541967.7419 | BA5: ='PADD1 mthly rpt'!BA5+'PADD2 mthly rpt'!BA5+'PADD3 mthly rpt'!BA5+'PADD4 mthly rpt'!BA5+'PADD5 mthly rpt'!BA5 -> 545500 | BB5: ='PADD1 mthly rpt'!BB5+'PADD2 mthly rpt'!BB5+'PADD3 mthly rpt'!BB5+'PADD4 mthly rpt'!BB5+'PADD5 mthly rpt'!BB5 -> 549548.3871 | BC5: ='PADD1 mthly rpt'!BC5+'PADD2 mthly rpt'!BC5+'PADD3 mthly rpt'!BC5+'PADD4 mthly rpt'!BC5+'PADD5 mthly rpt'!BC5 -> 545200 | BD5: ='PADD1 mthly rpt'!BD5+'PADD2 mthly rpt'!BD5+'PADD3 mthly rpt'!BD5+'PADD4 mthly rpt'!BD5+'PADD5 mthly rpt'!BD5 -> 539322.5806 | BE5: ='PADD1 mthly rpt'!BE5+'PADD2 mthly rpt'!BE5+'PADD3 mthly rpt'!BE5+'PADD4 mthly rpt'!BE5+'PADD5 mthly rpt'!BE5 -> 549483.871 | BF5: ='PADD1 mthly rpt'!BF5+'PADD2 mthly rpt'!BF5+'PADD3 mthly rpt'!BF5+'PADD4 mthly rpt'!BF5+'PADD5 mthly rpt'!BF5 -> 556333.3333 | BG5: ='PADD1 mthly rpt'!BG5+'PADD2 mthly rpt'!BG5+'PADD3 mthly rpt'!BG5+'PADD4 mthly rpt'!BG5+'PADD5 mthly rpt'!BG5 -> 559806.4516 | BH5: ='PADD1 mthly rpt'!BH5+'PADD2 mthly rpt'!BH5+'PADD3 mthly rpt'!BH5+'PADD4 mthly rpt'!BH5+'PADD5 mthly rpt'!BH5 -> 558466.6667 | BI5: ='PADD1 mthly rpt'!BI5+'PADD2 mthly rpt'!BI5+'PADD3 mthly rpt'!BI5+'PADD4 mthly rpt'!BI5+'PADD5 mthly rpt'!BI5 -> 550967.7419 | BJ5: ='PADD1 mthly rpt'!BJ5+'PADD2 mthly rpt'!BJ5+'PADD3 mthly rpt'!BJ5+'PADD4 mthly rpt'!BJ5+'PADD5 mthly rpt'!BJ5 -> 564322.5806 | BK5: ='PADD1 mthly rpt'!BK5+'PADD2 mthly rpt'!BK5+'PADD3 mthly rpt'!BK5+'PADD4 mthly rpt'!BK5+'PADD5 mthly rpt'!BK5 -> 571964.2857 | BL5: ='PADD1 mthly rpt'!BL5+'PADD2 mthly rpt'!BL5+'PADD3 mthly rpt'!BL5+'PADD4 mthly rpt'!BL5+'PADD5 mthly rpt'!BL5 -> 582000 | BM5: ='PADD1 mthly rpt'!BM5+'PADD2 mthly rpt'!BM5+'PADD3 mthly rpt'!BM5+'PADD4 mthly rpt'!BM5+'PADD5 mthly rpt'!BM5 -> 583700 | BN5: ='PADD1 mthly rpt'!BN5+'PADD2 mthly rpt'!BN5+'PADD3 mthly rpt'!BN5+'PADD4 mthly rpt'!BN5+'PADD5 mthly rpt'!BN5 -> 589709.6774 | BO5: ='PADD1 mthly rpt'!BO5+'PADD2 mthly rpt'!BO5+'PADD3 mthly rpt'!BO5+'PADD4 mthly rpt'!BO5+'PADD5 mthly rpt'!BO5 -> 578366.6667 | BP5: ='PADD1 mthly rpt'!BP5+'PADD2 mthly rpt'!BP5+'PADD3 mthly rpt'!BP5+'PADD4 mthly rpt'!BP5+'PADD5 mthly rpt'!BP5 -> 568774.1935 | BQ5: ='PADD1 mthly rpt'!BQ5+'PADD2 mthly rpt'!BQ5+'PADD3 mthly rpt'!BQ5+'PADD4 mthly rpt'!BQ5+'PADD5 mthly rpt'!BQ5 -> 589935.4839 | BR5: ='PADD1 mthly rpt'!BR5+'PADD2 mthly rpt'!BR5+'PADD3 mthly rpt'!BR5+'PADD4 mthly rpt'!BR5+'PADD5 mthly rpt'!BR5 -> 593633.3333 | BS5: ='PADD1 mthly rpt'!BS5+'PADD2 mthly rpt'!BS5+'PADD3 mthly rpt'!BS5+'PADD4 mthly rpt'!BS5+'PADD5 mthly rpt'!BS5 -> 599903.2258 | BT5: ='PADD1 mthly rpt'!BT5+'PADD2 mthly rpt'!BT5+'PADD3 mthly rpt'!BT5+'PADD4 mthly rpt'!BT5+'PADD5 mthly rpt'!BT5 -> 604500 | BU5: ='PADD1 mthly rpt'!BU5+'PADD2 mthly rpt'!BU5+'PADD3 mthly rpt'!BU5+'PADD4 mthly rpt'!BU5+'PADD5 mthly rpt'!BU5 -> 600870.9677 | BV5: ='PADD1 mthly rpt'!BV5+'PADD2 mthly rpt'!BV5+'PADD3 mthly rpt'!BV5+'PADD4 mthly rpt'!BV5+'PADD5 mthly rpt'!BV5 -> 603483.871 | BW5: ='PADD1 mthly rpt'!BW5+'PADD2 mthly rpt'!BW5+'PADD3 mthly rpt'!BW5+'PADD4 mthly rpt'!BW5+'PADD5 mthly rpt'!BW5 -> 572178.5714 | BX5: ='PADD1 mthly rpt'!BX5+'PADD2 mthly rpt'!BX5+'PADD3 mthly rpt'!BX5+'PADD4 mthly rpt'!BX5+'PADD5 mthly rpt'!BX5 -> 621838.7097 | BY5: ='PADD1 mthly rpt'!BY5+'PADD2 mthly rpt'!BY5+'PADD3 mthly rpt'!BY5+'PADD4 mthly rpt'!BY5+'PADD5 mthly rpt'!BY5 -> 616400 | BZ5: ='PADD1 mthly rpt'!BZ5+'PADD2 mthly rpt'!BZ5+'PADD3 mthly rpt'!BZ5+'PADD4 mthly rpt'!BZ5+'PADD5 mthly rpt'!BZ5 -> 629677.4194 | CA5: ='PADD1 mthly rpt'!CA5+'PADD2 mthly rpt'!CA5+'PADD3 mthly rpt'!CA5+'PADD4 mthly rpt'!CA5+'PADD5 mthly rpt'!CA5 -> 619533.3333 | CB5: ='PADD1 mthly rpt'!CB5+'PADD2 mthly rpt'!CB5+'PADD3 mthly rpt'!CB5+'PADD4 mthly rpt'!CB5+'PADD5 mthly rpt'!CB5 -> 629483.871 | CC5: ='PADD1 mthly rpt'!CC5+'PADD2 mthly rpt'!CC5+'PADD3 mthly rpt'!CC5+'PADD4 mthly rpt'!CC5+'PADD5 mthly rpt'!CC5 -> 637612.9032 | CD5: ='PADD1 mthly rpt'!CD5+'PADD2 mthly rpt'!CD5+'PADD3 mthly rpt'!CD5+'PADD4 mthly rpt'!CD5+'PADD5 mthly rpt'!CD5 -> 623900 | CE5: ='PADD1 mthly rpt'!CE5+'PADD2 mthly rpt'!CE5+'PADD3 mthly rpt'!CE5+'PADD4 mthly rpt'!CE5+'PADD5 mthly rpt'!CE5 -> 660677.4194 | CF5: ='PADD1 mthly rpt'!CF5+'PADD2 mthly rpt'!CF5+'PADD3 mthly rpt'!CF5+'PADD4 mthly rpt'!CF5+'PADD5 mthly rpt'!CF5 -> 675000 | CG5: ='PADD1 mthly rpt'!CG5+'PADD2 mthly rpt'!CG5+'PADD3 mthly rpt'!CG5+'PADD4 mthly rpt'!CG5+'PADD5 mthly rpt'!CG5 -> 674032.2581 | CH5: ='PADD1 mthly rpt'!CH5+'PADD2 mthly rpt'!CH5+'PADD3 mthly rpt'!CH5+'PADD4 mthly rpt'!CH5+'PADD5 mthly rpt'!CH5 -> 682193.5484 | CI5: ='PADD1 mthly rpt'!CI5+'PADD2 mthly rpt'!CI5+'PADD3 mthly rpt'!CI5+'PADD4 mthly rpt'!CI5+'PADD5 mthly rpt'!CI5 -> 709182.266 | CJ5: ='PADD1 mthly rpt'!CJ5+'PADD2 mthly rpt'!CJ5+'PADD3 mthly rpt'!CJ5+'PADD4 mthly rpt'!CJ5+'PADD5 mthly rpt'!CJ5 -> 686290.3226 | CK5: ='PADD1 mthly rpt'!CK5+'PADD2 mthly rpt'!CK5+'PADD3 mthly rpt'!CK5+'PADD4 mthly rpt'!CK5+'PADD5 mthly rpt'!CK5 -> 688400 | CL5: ='PADD1 mthly rpt'!CL5+'PADD2 mthly rpt'!CL5+'PADD3 mthly rpt'!CL5+'PADD4 mthly rpt'!CL5+'PADD5 mthly rpt'!CL5 -> 702387.0968 | CM5: ='PADD1 mthly rpt'!CM5+'PADD2 mthly rpt'!CM5+'PADD3 mthly rpt'!CM5+'PADD4 mthly rpt'!CM5+'PADD5 mthly rpt'!CM5 -> 692600 | CN5: ='PADD1 mthly rpt'!CN5+'PADD2 mthly rpt'!CN5+'PADD3 mthly rpt'!CN5+'PADD4 mthly rpt'!CN5+'PADD5 mthly rpt'!CN5 -> 697677.4194 | CO5: ='PADD1 mthly rpt'!CO5+'PADD2 mthly rpt'!CO5+'PADD3 mthly rpt'!CO5+'PADD4 mthly rpt'!CO5+'PADD5 mthly rpt'!CO5 -> 710419.3548 | CP5: ='PADD1 mthly rpt'!CP5+'PADD2 mthly rpt'!CP5+'PADD3 mthly rpt'!CP5+'PADD4 mthly rpt'!CP5+'PADD5 mthly rpt'!CP5 -> 725700 | CQ5: ='PADD1 mthly rpt'!CQ5+'PADD2 mthly rpt'!CQ5+'PADD3 mthly rpt'!CQ5+'PADD4 mthly rpt'!CQ5+'PADD5 mthly rpt'!CQ5 -> 745677.4194 | CR5: ='PADD1 mthly rpt'!CR5+'PADD2 mthly rpt'!CR5+'PADD3 mthly rpt'!CR5+'PADD4 mthly rpt'!CR5+'PADD5 mthly rpt'!CR5 -> 765566.6667 | CS5: ='PADD1 mthly rpt'!CS5+'PADD2 mthly rpt'!CS5+'PADD3 mthly rpt'!CS5+'PADD4 mthly rpt'!CS5+'PADD5 mthly rpt'!CS5 -> 756741.9355 | CT5: ='PADD1 mthly rpt'!CT5+'PADD2 mthly rpt'!CT5+'PADD3 mthly rpt'!CT5+'PADD4 mthly rpt'!CT5+'PADD5 mthly rpt'!CT5 -> 746129.0323 | CU5: ='PADD1 mthly rpt'!CU5+'PADD2 mthly rpt'!CU5+'PADD3 mthly rpt'!CU5+'PADD4 mthly rpt'!CU5+'PADD5 mthly rpt'!CU5 -> 774571.4286 | CV5: ='PADD1 mthly rpt'!CV5+'PADD2 mthly rpt'!CV5+'PADD3 mthly rpt'!CV5+'PADD4 mthly rpt'!CV5+'PADD5 mthly rpt'!CV5 -> 770903.2258 | CW5: ='PADD1 mthly rpt'!CW5+'PADD2 mthly rpt'!CW5+'PADD3 mthly rpt'!CW5+'PADD4 mthly rpt'!CW5+'PADD5 mthly rpt'!CW5 -> 797666.6667 | CX5: ='PADD1 mthly rpt'!CX5+'PADD2 mthly rpt'!CX5+'PADD3 mthly rpt'!CX5+'PADD4 mthly rpt'!CX5+'PADD5 mthly rpt'!CX5 -> 814483.871 | CY5: ='PADD1 mthly rpt'!CY5+'PADD2 mthly rpt'!CY5+'PADD3 mthly rpt'!CY5+'PADD4 mthly rpt'!CY5+'PADD5 mthly rpt'!CY5 -> 819733.3333 | CZ5: ='PADD1 mthly rpt'!CZ5+'PADD2 mthly rpt'!CZ5+'PADD3 mthly rpt'!CZ5+'PADD4 mthly rpt'!CZ5+'PADD5 mthly rpt'!CZ5 -> 834806.4516 | DA5: ='PADD1 mthly rpt'!DA5+'PADD2 mthly rpt'!DA5+'PADD3 mthly rpt'!DA5+'PADD4 mthly rpt'!DA5+'PADD5 mthly rpt'!DA5 -> 853483.871 | DB5: ='PADD1 mthly rpt'!DB5+'PADD2 mthly rpt'!DB5+'PADD3 mthly rpt'!DB5+'PADD4 mthly rpt'!DB5+'PADD5 mthly rpt'!DB5 -> 875933.3333 | DC5: ='PADD1 mthly rpt'!DC5+'PADD2 mthly rpt'!DC5+'PADD3 mthly rpt'!DC5+'PADD4 mthly rpt'!DC5+'PADD5 mthly rpt'!DC5 -> 872967.7419 | DD5: ='PADD1 mthly rpt'!DD5+'PADD2 mthly rpt'!DD5+'PADD3 mthly rpt'!DD5+'PADD4 mthly rpt'!DD5+'PADD5 mthly rpt'!DD5 -> 869833.3333 | DE5: ='PADD1 mthly rpt'!DE5+'PADD2 mthly rpt'!DE5+'PADD3 mthly rpt'!DE5+'PADD4 mthly rpt'!DE5+'PADD5 mthly rpt'!DE5 -> 841580.6452 | DF5: ='PADD1 mthly rpt'!DF5+'PADD2 mthly rpt'!DF5+'PADD3 mthly rpt'!DF5+'PADD4 mthly rpt'!DF5+'PADD5 mthly rpt'!DF5 -> 851096.7742 | DG5: ='PADD1 mthly rpt'!DG5+'PADD2 mthly rpt'!DG5+'PADD3 mthly rpt'!DG5+'PADD4 mthly rpt'!DG5+'PADD5 mthly rpt'!DG5 -> 874857.1429 | DH5: ='PADD1 mthly rpt'!DH5+'PADD2 mthly rpt'!DH5+'PADD3 mthly rpt'!DH5+'PADD4 mthly rpt'!DH5+'PADD5 mthly rpt'!DH5 -> 904451.6129 | DI5: ='PADD1 mthly rpt'!DI5+'PADD2 mthly rpt'!DI5+'PADD3 mthly rpt'!DI5+'PADD4 mthly rpt'!DI5+'PADD5 mthly rpt'!DI5 -> 936666.6667 | DJ5: ='PADD1 mthly rpt'!DJ5+'PADD2 mthly rpt'!DJ5+'PADD3 mthly rpt'!DJ5+'PADD4 mthly rpt'!DJ5+'PADD5 mthly rpt'!DJ5 -> 958258.0645 | DK5: ='PADD1 mthly rpt'!DK5+'PADD2 mthly rpt'!DK5+'PADD3 mthly rpt'!DK5+'PADD4 mthly rpt'!DK5+'PADD5 mthly rpt'!DK5 -> 993800 | DL5: ='PADD1 mthly rpt'!DL5+'PADD2 mthly rpt'!DL5+'PADD3 mthly rpt'!DL5+'PADD4 mthly rpt'!DL5+'PADD5 mthly rpt'!DL5 -> 1016387.097 | DM5: ='PADD1 mthly rpt'!DM5+'PADD2 mthly rpt'!DM5+'PADD3 mthly rpt'!DM5+'PADD4 mthly rpt'!DM5+'PADD5 mthly rpt'!DM5 -> 1037903.226 | DN5: ='PADD1 mthly rpt'!DN5+'PADD2 mthly rpt'!DN5+'PADD3 mthly rpt'!DN5+'PADD4 mthly rpt'!DN5+'PADD5 mthly rpt'!DN5 -> 1049900 | DO5: ='PADD1 mthly rpt'!DO5+'PADD2 mthly rpt'!DO5+'PADD3 mthly rpt'!DO5+'PADD4 mthly rpt'!DO5+'PADD5 mthly rpt'!DO5 -> 1058967.742 | DP5: ='PADD1 mthly rpt'!DP5+'PADD2 mthly rpt'!DP5+'PADD3 mthly rpt'!DP5+'PADD4 mthly rpt'!DP5+'PADD5 mthly rpt'!DP5 -> 1049000 | DQ5: ='PADD1 mthly rpt'!DQ5+'PADD2 mthly rpt'!DQ5+'PADD3 mthly rpt'!DQ5+'PADD4 mthly rpt'!DQ5+'PADD5 mthly rpt'!DQ5 -> 1077870.968 | DR5: ='PADD1 mthly rpt'!DR5+'PADD2 mthly rpt'!DR5+'PADD3 mthly rpt'!DR5+'PADD4 mthly rpt'!DR5+'PADD5 mthly rpt'!DR5 -> 1062838.71 | DS5: ='PADD1 mthly rpt'!DS5+'PADD2 mthly rpt'!DS5+'PADD3 mthly rpt'!DS5+'PADD4 mthly rpt'!DS5+'PADD5 mthly rpt'!DS5 -> 1097285.714 | DT5: ='PADD1 mthly rpt'!DT5+'PADD2 mthly rpt'!DT5+'PADD3 mthly rpt'!DT5+'PADD4 mthly rpt'!DT5+'PADD5 mthly rpt'!DT5 -> 1122645.161 | DU5: ='PADD1 mthly rpt'!DU5+'PADD2 mthly rpt'!DU5+'PADD3 mthly rpt'!DU5+'PADD4 mthly rpt'!DU5+'PADD5 mthly rpt'!DU5 -> 1154000 | DV5: ='PADD1 mthly rpt'!DV5+'PADD2 mthly rpt'!DV5+'PADD3 mthly rpt'!DV5+'PADD4 mthly rpt'!DV5+'PADD5 mthly rpt'!DV5 -> 1147032.258 | DW5: ='PADD1 mthly rpt'!DW5+'PADD2 mthly rpt'!DW5+'PADD3 mthly rpt'!DW5+'PADD4 mthly rpt'!DW5+'PADD5 mthly rpt'!DW5 -> 1140566.667 | DX5: ='PADD1 mthly rpt'!DX5+'PADD2 mthly rpt'!DX5+'PADD3 mthly rpt'!DX5+'PADD4 mthly rpt'!DX5+'PADD5 mthly rpt'!DX5 -> 1151032.258 | DY5: ='PADD1 mthly rpt'!DY5+'PADD2 mthly rpt'!DY5+'PADD3 mthly rpt'!DY5+'PADD4 mthly rpt'!DY5+'PADD5 mthly rpt'!DY5 -> 1164806.452 | DZ5: ='PADD1 mthly rpt'!DZ5+'PADD2 mthly rpt'!DZ5+'PADD3 mthly rpt'!DZ5+'PADD4 mthly rpt'!DZ5+'PADD5 mthly rpt'!DZ5 -> 1175633.333 | EA5: ='PADD1 mthly rpt'!EA5+'PADD2 mthly rpt'!EA5+'PADD3 mthly rpt'!EA5+'PADD4 mthly rpt'!EA5+'PADD5 mthly rpt'!EA5 -> 1189580.645 | EB5: ='PADD1 mthly rpt'!EB5+'PADD2 mthly rpt'!EB5+'PADD3 mthly rpt'!EB5+'PADD4 mthly rpt'!EB5+'PADD5 mthly rpt'!EB5 -> 1174166.667 | EC5: ='PADD1 mthly rpt'!EC5+'PADD2 mthly rpt'!EC5+'PADD3 mthly rpt'!EC5+'PADD4 mthly rpt'!EC5+'PADD5 mthly rpt'!EC5 -> 1148419.355 | ED5: ='PADD1 mthly rpt'!ED5+'PADD2 mthly rpt'!ED5+'PADD3 mthly rpt'!ED5+'PADD4 mthly rpt'!ED5+'PADD5 mthly rpt'!ED5 -> 1126741.935 | EE5: ='PADD1 mthly rpt'!EE5+'PADD2 mthly rpt'!EE5+'PADD3 mthly rpt'!EE5+'PADD4 mthly rpt'!EE5+'PADD5 mthly rpt'!EE5 -> 1148655.172 | EF5: ='PADD1 mthly rpt'!EF5+'PADD2 mthly rpt'!EF5+'PADD3 mthly rpt'!EF5+'PADD4 mthly rpt'!EF5+'PADD5 mthly rpt'!EF5 -> 1176129.032 | EG5: ='PADD1 mthly rpt'!EG5+'PADD2 mthly rpt'!EG5+'PADD3 mthly rpt'!EG5+'PADD4 mthly rpt'!EG5+'PADD5 mthly rpt'!EG5 -> 1173333.333 | EH5: ='PADD1 mthly rpt'!EH5+'PADD2 mthly rpt'!EH5+'PADD3 mthly rpt'!EH5+'PADD4 mthly rpt'!EH5+'PADD5 mthly rpt'!EH5 -> 1166741.935 | EI5: ='PADD1 mthly rpt'!EI5+'PADD2 mthly rpt'!EI5+'PADD3 mthly rpt'!EI5+'PADD4 mthly rpt'!EI5+'PADD5 mthly rpt'!EI5 -> 1157200 | EJ5: ='PADD1 mthly rpt'!EJ5+'PADD2 mthly rpt'!EJ5+'PADD3 mthly rpt'!EJ5+'PADD4 mthly rpt'!EJ5+'PADD5 mthly rpt'!EJ5 -> 1168548.387 | EK5: ='PADD1 mthly rpt'!EK5+'PADD2 mthly rpt'!EK5+'PADD3 mthly rpt'!EK5+'PADD4 mthly rpt'!EK5+'PADD5 mthly rpt'!EK5 -> 1176483.871 | EL5: ='PADD1 mthly rpt'!EL5+'PADD2 mthly rpt'!EL5+'PADD3 mthly rpt'!EL5+'PADD4 mthly rpt'!EL5+'PADD5 mthly rpt'!EL5 -> 1162166.667 | EM5: ='PADD1 mthly rpt'!EM5+'PADD2 mthly rpt'!EM5+'PADD3 mthly rpt'!EM5+'PADD4 mthly rpt'!EM5+'PADD5 mthly rpt'!EM5 -> 1160000 | EN5: ='PADD1 mthly rpt'!EN5+'PADD2 mthly rpt'!EN5+'PADD3 mthly rpt'!EN5+'PADD4 mthly rpt'!EN5+'PADD5 mthly rpt'!EN5 -> 1175500 | EO5: ='PADD1 mthly rpt'!EO5+'PADD2 mthly rpt'!EO5+'PADD3 mthly rpt'!EO5+'PADD4 mthly rpt'!EO5+'PADD5 mthly rpt'!EO5 -> 1119774.194 | EP5: ='PADD1 mthly rpt'!EP5+'PADD2 mthly rpt'!EP5+'PADD3 mthly rpt'!EP5+'PADD4 mthly rpt'!EP5+'PADD5 mthly rpt'!EP5 -> 1128677.419 | EQ5: ='PADD1 mthly rpt'!EQ5+'PADD2 mthly rpt'!EQ5+'PADD3 mthly rpt'!EQ5+'PADD4 mthly rpt'!EQ5+'PADD5 mthly rpt'!EQ5 -> 1155134.236 | ER5: ='PADD1 mthly rpt'!ER5+'PADD2 mthly rpt'!ER5+'PADD3 mthly rpt'!ER5+'PADD4 mthly rpt'!ER5+'PADD5 mthly rpt'!ER5 -> 1186451.613 | ES5: ='PADD1 mthly rpt'!ES5+'PADD2 mthly rpt'!ES5+'PADD3 mthly rpt'!ES5+'PADD4 mthly rpt'!ES5+'PADD5 mthly rpt'!ES5 -> 1195200 | ET5: ='PADD1 mthly rpt'!ET5+'PADD2 mthly rpt'!ET5+'PADD3 mthly rpt'!ET5+'PADD4 mthly rpt'!ET5+'PADD5 mthly rpt'!ET5 -> 1210870.968 | EU5: ='PADD1 mthly rpt'!EU5+'PADD2 mthly rpt'!EU5+'PADD3 mthly rpt'!EU5+'PADD4 mthly rpt'!EU5+'PADD5 mthly rpt'!EU5 -> 1230866.667 | EV5: ='PADD1 mthly rpt'!EV5+'PADD2 mthly rpt'!EV5+'PADD3 mthly rpt'!EV5+'PADD4 mthly rpt'!EV5+'PADD5 mthly rpt'!EV5 -> 1251193.548 | EW5: ='PADD1 mthly rpt'!EW5+'PADD2 mthly rpt'!EW5+'PADD3 mthly rpt'!EW5+'PADD4 mthly rpt'!EW5+'PADD5 mthly rpt'!EW5 -> 1241935.484 | EX5: ='PADD1 mthly rpt'!EX5+'PADD2 mthly rpt'!EX5+'PADD3 mthly rpt'!EX5+'PADD4 mthly rpt'!EX5+'PADD5 mthly rpt'!EX5 -> 1248066.667 | EY5: ='PADD1 mthly rpt'!EY5+'PADD2 mthly rpt'!EY5+'PADD3 mthly rpt'!EY5+'PADD4 mthly rpt'!EY5+'PADD5 mthly rpt'!EY5 -> 1283709.677 | EZ5: ='PADD1 mthly rpt'!EZ5+'PADD2 mthly rpt'!EZ5+'PADD3 mthly rpt'!EZ5+'PADD4 mthly rpt'!EZ5+'PADD5 mthly rpt'!EZ5 -> 1314266.667 | FA5: ='PADD1 mthly rpt'!FA5+'PADD2 mthly rpt'!FA5+'PADD3 mthly rpt'!FA5+'PADD4 mthly rpt'!FA5+'PADD5 mthly rpt'!FA5 -> 1291903.226 | FB5: ='PADD1 mthly rpt'!FB5+'PADD2 mthly rpt'!FB5+'PADD3 mthly rpt'!FB5+'PADD4 mthly rpt'!FB5+'PADD5 mthly rpt'!FB5 -> 1249419.355 | FC5: ='PADD1 mthly rpt'!FC5+'PADD2 mthly rpt'!FC5+'PADD3 mthly rpt'!FC5+'PADD4 mthly rpt'!FC5+'PADD5 mthly rpt'!FC5 -> 1309857.143 | FD5: ='PADD1 mthly rpt'!FD5+'PADD2 mthly rpt'!FD5+'PADD3 mthly rpt'!FD5+'PADD4 mthly rpt'!FD5+'PADD5 mthly rpt'!FD5 -> 1349516.129 | FE5: ='PADD1 mthly rpt'!FE5+'PADD2 mthly rpt'!FE5+'PADD3 mthly rpt'!FE5+'PADD4 mthly rpt'!FE5+'PADD5 mthly rpt'!FE5 -> 1360333.333 | FF5: ='PADD1 mthly rpt'!FF5+'PADD2 mthly rpt'!FF5+'PADD3 mthly rpt'!FF5+'PADD4 mthly rpt'!FF5+'PADD5 mthly rpt'!FF5 -> 1383161.29 | FG5: ='PADD1 mthly rpt'!FG5+'PADD2 mthly rpt'!FG5+'PADD3 mthly rpt'!FG5+'PADD4 mthly rpt'!FG5+'PADD5 mthly rpt'!FG5 -> 1385400 | FH5: ='PADD1 mthly rpt'!FH5+'PADD2 mthly rpt'!FH5+'PADD3 mthly rpt'!FH5+'PADD4 mthly rpt'!FH5+'PADD5 mthly rpt'!FH5 -> 1414580.645 | FI5: ='PADD1 mthly rpt'!FI5+'PADD2 mthly rpt'!FI5+'PADD3 mthly rpt'!FI5+'PADD4 mthly rpt'!FI5+'PADD5 mthly rpt'!FI5 -> 1460870.968 | FJ5: ='PADD1 mthly rpt'!FJ5+'PADD2 mthly rpt'!FJ5+'PADD3 mthly rpt'!FJ5+'PADD4 mthly rpt'!FJ5+'PADD5 mthly rpt'!FJ5 -> 1472066.667 | FK5: ='PADD1 mthly rpt'!FK5+'PADD2 mthly rpt'!FK5+'PADD3 mthly rpt'!FK5+'PADD4 mthly rpt'!FK5+'PADD5 mthly rpt'!FK5 -> 1468709.677 | FL5: ='PADD1 mthly rpt'!FL5+'PADD2 mthly rpt'!FL5+'PADD3 mthly rpt'!FL5+'PADD4 mthly rpt'!FL5+'PADD5 mthly rpt'!FL5 -> 1474433.333 | FM5: ='PADD1 mthly rpt'!FM5+'PADD2 mthly rpt'!FM5+'PADD3 mthly rpt'!FM5+'PADD4 mthly rpt'!FM5+'PADD5 mthly rpt'!FM5 -> 1476387.097 | FN5: ='PADD1 mthly rpt'!FN5+'PADD2 mthly rpt'!FN5+'PADD3 mthly rpt'!FN5+'PADD4 mthly rpt'!FN5+'PADD5 mthly rpt'!FN5 -> 1486516.129 | FO5: ='PADD1 mthly rpt'!FO5+'PADD2 mthly rpt'!FO5+'PADD3 mthly rpt'!FO5+'PADD4 mthly rpt'!FO5+'PADD5 mthly rpt'!FO5 -> 1502428.571 | FP5: ='PADD1 mthly rpt'!FP5+'PADD2 mthly rpt'!FP5+'PADD3 mthly rpt'!FP5+'PADD4 mthly rpt'!FP5+'PADD5 mthly rpt'!FP5 -> 1522741.935 | FQ5: ='PADD1 mthly rpt'!FQ5+'PADD2 mthly rpt'!FQ5+'PADD3 mthly rpt'!FQ5+'PADD4 mthly rpt'!FQ5+'PADD5 mthly rpt'!FQ5 -> 1552500 | FR5: ='PADD1 mthly rpt'!FR5+'PADD2 mthly rpt'!FR5+'PADD3 mthly rpt'!FR5+'PADD4 mthly rpt'!FR5+'PADD5 mthly rpt'!FR5 -> 1562451.613 | FS5: ='PADD1 mthly rpt'!FS5+'PADD2 mthly rpt'!FS5+'PADD3 mthly rpt'!FS5+'PADD4 mthly rpt'!FS5+'PADD5 mthly rpt'!FS5 -> 1556366.667 | FT5: ='PADD1 mthly rpt'!FT5+'PADD2 mthly rpt'!FT5+'PADD3 mthly rpt'!FT5+'PADD4 mthly rpt'!FT5+'PADD5 mthly rpt'!FT5 -> 1577709.677 | FU5: ='PADD1 mthly rpt'!FU5+'PADD2 mthly rpt'!FU5+'PADD3 mthly rpt'!FU5+'PADD4 mthly rpt'!FU5+'PADD5 mthly rpt'!FU5 -> 1604806.452 | FV5: ='PADD1 mthly rpt'!FV5+'PADD2 mthly rpt'!FV5+'PADD3 mthly rpt'!FV5+'PADD4 mthly rpt'!FV5+'PADD5 mthly rpt'!FV5 -> 1661100 | FW5: ='PADD1 mthly rpt'!FW5+'PADD2 mthly rpt'!FW5+'PADD3 mthly rpt'!FW5+'PADD4 mthly rpt'!FW5+'PADD5 mthly rpt'!FW5 -> 1666000 | FX5: ='PADD1 mthly rpt'!FX5+'PADD2 mthly rpt'!FX5+'PADD3 mthly rpt'!FX5+'PADD4 mthly rpt'!FX5+'PADD5 mthly rpt'!FX5 -> 1682233.333 | FY5: ='PADD1 mthly rpt'!FY5+'PADD2 mthly rpt'!FY5+'PADD3 mthly rpt'!FY5+'PADD4 mthly rpt'!FY5+'PADD5 mthly rpt'!FY5 -> 1684419.355 | FZ5: ='PADD1 mthly rpt'!FZ5+'PADD2 mthly rpt'!FZ5+'PADD3 mthly rpt'!FZ5+'PADD4 mthly rpt'!FZ5+'PADD5 mthly rpt'!FZ5 -> 1732806.452 | GA5: ='PADD1 mthly rpt'!GA5+'PADD2 mthly rpt'!GA5+'PADD3 mthly rpt'!GA5+'PADD4 mthly rpt'!GA5+'PADD5 mthly rpt'!GA5 -> 1674896.552 | GB5: ='PADD1 mthly rpt'!GB5+'PADD2 mthly rpt'!GB5+'PADD3 mthly rpt'!GB5+'PADD4 mthly rpt'!GB5+'PADD5 mthly rpt'!GB5 -> 1760032.258 | GC5: ='PADD1 mthly rpt'!GC5+'PADD2 mthly rpt'!GC5+'PADD3 mthly rpt'!GC5+'PADD4 mthly rpt'!GC5+'PADD5 mthly rpt'!GC5 -> 1691400 | GD5: ='PADD1 mthly rpt'!GD5+'PADD2 mthly rpt'!GD5+'PADD3 mthly rpt'!GD5+'PADD4 mthly rpt'!GD5+'PADD5 mthly rpt'!GD5 -> 1530451.613 | GE5: ='PADD1 mthly rpt'!GE5+'PADD2 mthly rpt'!GE5+'PADD3 mthly rpt'!GE5+'PADD4 mthly rpt'!GE5+'PADD5 mthly rpt'!GE5 -> 1614366.667 | GF5: ='PADD1 mthly rpt'!GF5+'PADD2 mthly rpt'!GF5+'PADD3 mthly rpt'!GF5+'PADD4 mthly rpt'!GF5+'PADD5 mthly rpt'!GF5 -> 1671645.161 | GG5: ='PADD1 mthly rpt'!GG5+'PADD2 mthly rpt'!GG5+'PADD3 mthly rpt'!GG5+'PADD4 mthly rpt'!GG5+'PADD5 mthly rpt'!GG5 -> 1670709.677 | GH5: ='PADD1 mthly rpt'!GH5+'PADD2 mthly rpt'!GH5+'PADD3 mthly rpt'!GH5+'PADD4 mthly rpt'!GH5+'PADD5 mthly rpt'!GH5 -> 1692433.333 | GI5: ='PADD1 mthly rpt'!GI5+'PADD2 mthly rpt'!GI5+'PADD3 mthly rpt'!GI5+'PADD4 mthly rpt'!GI5+'PADD5 mthly rpt'!GI5 -> 1680935.484 | GJ5: ='PADD1 mthly rpt'!GJ5+'PADD2 mthly rpt'!GJ5+'PADD3 mthly rpt'!GJ5+'PADD4 mthly rpt'!GJ5+'PADD5 mthly rpt'!GJ5 -> 1715600 | GK5: ='PADD1 mthly rpt'!GK5+'PADD2 mthly rpt'!GK5+'PADD3 mthly rpt'!GK5+'PADD4 mthly rpt'!GK5+'PADD5 mthly rpt'!GK5 -> 1696322.581 | GL5: ='PADD1 mthly rpt'!GL5+'PADD2 mthly rpt'!GL5+'PADD3 mthly rpt'!GL5+'PADD4 mthly rpt'!GL5+'PADD5 mthly rpt'!GL5 -> 1707161.29 | GM5: ='PADD1 mthly rpt'!GM5+'PADD2 mthly rpt'!GM5+'PADD3 mthly rpt'!GM5+'PADD4 mthly rpt'!GM5+'PADD5 mthly rpt'!GM5 -> 1431392.857 | GN5: ='PADD1 mthly rpt'!GN5+'PADD2 mthly rpt'!GN5+'PADD3 mthly rpt'!GN5+'PADD4 mthly rpt'!GN5+'PADD5 mthly rpt'!GN5 -> 1693129.032 | GO5: ='PADD1 mthly rpt'!GO5+'PADD2 mthly rpt'!GO5+'PADD3 mthly rpt'!GO5+'PADD4 mthly rpt'!GO5+'PADD5 mthly rpt'!GO5 -> 1741300 | GP5: ='PADD1 mthly rpt'!GP5+'PADD2 mthly rpt'!GP5+'PADD3 mthly rpt'!GP5+'PADD4 mthly rpt'!GP5+'PADD5 mthly rpt'!GP5 -> 1753678.176 | GQ5: ='PADD1 mthly rpt'!GQ5+'PADD2 mthly rpt'!GQ5+'PADD3 mthly rpt'!GQ5+'PADD4 mthly rpt'!GQ5+'PADD5 mthly rpt'!GQ5 -> 1746699.49 | GR5: ='PADD1 mthly rpt'!GR5+'PADD2 mthly rpt'!GR5+'PADD3 mthly rpt'!GR5+'PADD4 mthly rpt'!GR5+'PADD5 mthly rpt'!GR5 -> 1800831.807 | GS5: ='PADD1 mthly rpt'!GS5+'PADD2 mthly rpt'!GS5+'PADD3 mthly rpt'!GS5+'PADD4 mthly rpt'!GS5+'PADD5 mthly rpt'!GS5 -> 1810085.879 | GT5: ='PADD1 mthly rpt'!GT5+'PADD2 mthly rpt'!GT5+'PADD3 mthly rpt'!GT5+'PADD4 mthly rpt'!GT5+'PADD5 mthly rpt'!GT5 -> 1811219.11 | GU5: ='PADD1 mthly rpt'!GU5+'PADD2 mthly rpt'!GU5+'PADD3 mthly rpt'!GU5+'PADD4 mthly rpt'!GU5+'PADD5 mthly rpt'!GU5 -> 1813391.442 | GV5: ='PADD1 mthly rpt'!GV5+'PADD2 mthly rpt'!GV5+'PADD3 mthly rpt'!GV5+'PADD4 mthly rpt'!GV5+'PADD5 mthly rpt'!GV5 -> 1819432.89 | GW5: ='PADD1 mthly rpt'!GW5+'PADD2 mthly rpt'!GW5+'PADD3 mthly rpt'!GW5+'PADD4 mthly rpt'!GW5+'PADD5 mthly rpt'!GW5 -> 1821419.732 | GX5: ='PADD1 mthly rpt'!GX5+'PADD2 mthly rpt'!GX5+'PADD3 mthly rpt'!GX5+'PADD4 mthly rpt'!GX5+'PADD5 mthly rpt'!GX5 -> 1820145.605 | GY5: ='PADD1 mthly rpt'!GY5+'PADD2 mthly rpt'!GY5+'PADD3 mthly rpt'!GY5+'PADD4 mthly rpt'!GY5+'PADD5 mthly rpt'!GY5 -> 1824733.98 | GZ5: ='PADD1 mthly rpt'!GZ5+'PADD2 mthly rpt'!GZ5+'PADD3 mthly rpt'!GZ5+'PADD4 mthly rpt'!GZ5+'PADD5 mthly rpt'!GZ5 -> 1836437.305 | HA5: ='PADD1 mthly rpt'!HA5+'PADD2 mthly rpt'!HA5+'PADD3 mthly rpt'!HA5+'PADD4 mthly rpt'!HA5+'PADD5 mthly rpt'!HA5 -> 1843817.456 | HB5: ='PADD1 mthly rpt'!HB5+'PADD2 mthly rpt'!HB5+'PADD3 mthly rpt'!HB5+'PADD4 mthly rpt'!HB5+'PADD5 mthly rpt'!HB5 -> 1852568.841 | HC5: ='PADD1 mthly rpt'!HC5+'PADD2 mthly rpt'!HC5+'PADD3 mthly rpt'!HC5+'PADD4 mthly rpt'!HC5+'PADD5 mthly rpt'!HC5 -> 1857763.135
A6: Refinery Production | B6: ='PADD1 mthly rpt'!B6+'PADD2 mthly rpt'!B6+'PADD3 mthly rpt'!B6+'PADD4 mthly rpt'!B6+'PADD5 mthly rpt'!B6 -> 560000 | C6: ='PADD1 mthly rpt'!C6+'PADD2 mthly rpt'!C6+'PADD3 mthly rpt'!C6+'PADD4 mthly rpt'!C6+'PADD5 mthly rpt'!C6 -> 578535.7143 | D6: ='PADD1 mthly rpt'!D6+'PADD2 mthly rpt'!D6+'PADD3 mthly rpt'!D6+'PADD4 mthly rpt'!D6+'PADD5 mthly rpt'!D6 -> 548935.4839 | E6: ='PADD1 mthly rpt'!E6+'PADD2 mthly rpt'!E6+'PADD3 mthly rpt'!E6+'PADD4 mthly rpt'!E6+'PADD5 mthly rpt'!E6 -> 585866.6667 | F6: ='PADD1 mthly rpt'!F6+'PADD2 mthly rpt'!F6+'PADD3 mthly rpt'!F6+'PADD4 mthly rpt'!F6+'PADD5 mthly rpt'!F6 -> 586645.1613 | G6: ='PADD1 mthly rpt'!G6+'PADD2 mthly rpt'!G6+'PADD3 mthly rpt'!G6+'PADD4 mthly rpt'!G6+'PADD5 mthly rpt'!G6 -> 576033.3333 | H6: ='PADD1 mthly rpt'!H6+'PADD2 mthly rpt'!H6+'PADD3 mthly rpt'!H6+'PADD4 mthly rpt'!H6+'PADD5 mthly rpt'!H6 -> 551709.6774 | I6: ='PADD1 mthly rpt'!I6+'PADD2 mthly rpt'!I6+'PADD3 mthly rpt'!I6+'PADD4 mthly rpt'!I6+'PADD5 mthly rpt'!I6 -> 539612.9032 | J6: ='PADD1 mthly rpt'!J6+'PADD2 mthly rpt'!J6+'PADD3 mthly rpt'!J6+'PADD4 mthly rpt'!J6+'PADD5 mthly rpt'!J6 -> 465600 | K6: ='PADD1 mthly rpt'!K6+'PADD2 mthly rpt'!K6+'PADD3 mthly rpt'!K6+'PADD4 mthly rpt'!K6+'PADD5 mthly rpt'!K6 -> 440903.2258 | L6: ='PADD1 mthly rpt'!L6+'PADD2 mthly rpt'!L6+'PADD3 mthly rpt'!L6+'PADD4 mthly rpt'!L6+'PADD5 mthly rpt'!L6 -> 513433.3333 | M6: ='PADD1 mthly rpt'!M6+'PADD2 mthly rpt'!M6+'PADD3 mthly rpt'!M6+'PADD4 mthly rpt'!M6+'PADD5 mthly rpt'!M6 -> 540870.9677 | N6: ='PADD1 mthly rpt'!N6+'PADD2 mthly rpt'!N6+'PADD3 mthly rpt'!N6+'PADD4 mthly rpt'!N6+'PADD5 mthly rpt'!N6 -> 528032.2581 | O6: ='PADD1 mthly rpt'!O6+'PADD2 mthly rpt'!O6+'PADD3 mthly rpt'!O6+'PADD4 mthly rpt'!O6+'PADD5 mthly rpt'!O6 -> 510142.8571 | P6: ='PADD1 mthly rpt'!P6+'PADD2 mthly rpt'!P6+'PADD3 mthly rpt'!P6+'PADD4 mthly rpt'!P6+'PADD5 mthly rpt'!P6 -> 485032.2581 | Q6: ='PADD1 mthly rpt'!Q6+'PADD2 mthly rpt'!Q6+'PADD3 mthly rpt'!Q6+'PADD4 mthly rpt'!Q6+'PADD5 mthly rpt'!Q6 -> 536933.3333 | R6: ='PADD1 mthly rpt'!R6+'PADD2 mthly rpt'!R6+'PADD3 mthly rpt'!R6+'PADD4 mthly rpt'!R6+'PADD5 mthly rpt'!R6 -> 567161.2903 | S6: ='PADD1 mthly rpt'!S6+'PADD2 mthly rpt'!S6+'PADD3 mthly rpt'!S6+'PADD4 mthly rpt'!S6+'PADD5 mthly rpt'!S6 -> 542900 | T6: ='PADD1 mthly rpt'!T6+'PADD2 mthly rpt'!T6+'PADD3 mthly rpt'!T6+'PADD4 mthly rpt'!T6+'PADD5 mthly rpt'!T6 -> 548516.129 | U6: ='PADD1 mthly rpt'!U6+'PADD2 mthly rpt'!U6+'PADD3 mthly rpt'!U6+'PADD4 mthly rpt'!U6+'PADD5 mthly rpt'!U6 -> 573935.4839 | V6: ='PADD1 mthly rpt'!V6+'PADD2 mthly rpt'!V6+'PADD3 mthly rpt'!V6+'PADD4 mthly rpt'!V6+'PADD5 mthly rpt'!V6 -> 559833.3333 | W6: ='PADD1 mthly rpt'!W6+'PADD2 mthly rpt'!W6+'PADD3 mthly rpt'!W6+'PADD4 mthly rpt'!W6+'PADD5 mthly rpt'!W6 -> 531193.5484 | X6: ='PADD1 mthly rpt'!X6+'PADD2 mthly rpt'!X6+'PADD3 mthly rpt'!X6+'PADD4 mthly rpt'!X6+'PADD5 mthly rpt'!X6 -> 548533.3333 | Y6: ='PADD1 mthly rpt'!Y6+'PADD2 mthly rpt'!Y6+'PADD3 mthly rpt'!Y6+'PADD4 mthly rpt'!Y6+'PADD5 mthly rpt'!Y6 -> 580967.7419 | Z6: ='PADD1 mthly rpt'!Z6+'PADD2 mthly rpt'!Z6+'PADD3 mthly rpt'!Z6+'PADD4 mthly rpt'!Z6+'PADD5 mthly rpt'!Z6 -> 574967.7419 | AA6: ='PADD1 mthly rpt'!AA6+'PADD2 mthly rpt'!AA6+'PADD3 mthly rpt'!AA6+'PADD4 mthly rpt'!AA6+'PADD5 mthly rpt'!AA6 -> 533928.5714 | AB6: ='PADD1 mthly rpt'!AB6+'PADD2 mthly rpt'!AB6+'PADD3 mthly rpt'!AB6+'PADD4 mthly rpt'!AB6+'PADD5 mthly rpt'!AB6 -> 562516.129 | AC6: ='PADD1 mthly rpt'!AC6+'PADD2 mthly rpt'!AC6+'PADD3 mthly rpt'!AC6+'PADD4 mthly rpt'!AC6+'PADD5 mthly rpt'!AC6 -> 562133.3333 | AD6: ='PADD1 mthly rpt'!AD6+'PADD2 mthly rpt'!AD6+'PADD3 mthly rpt'!AD6+'PADD4 mthly rpt'!AD6+'PADD5 mthly rpt'!AD6 -> 576322.5806 | AE6: ='PADD1 mthly rpt'!AE6+'PADD2 mthly rpt'!AE6+'PADD3 mthly rpt'!AE6+'PADD4 mthly rpt'!AE6+'PADD5 mthly rpt'!AE6 -> 568100 | AF6: ='PADD1 mthly rpt'!AF6+'PADD2 mthly rpt'!AF6+'PADD3 mthly rpt'!AF6+'PADD4 mthly rpt'!AF6+'PADD5 mthly rpt'!AF6 -> 562032.2581 | AG6: ='PADD1 mthly rpt'!AG6+'PADD2 mthly rpt'!AG6+'PADD3 mthly rpt'!AG6+'PADD4 mthly rpt'!AG6+'PADD5 mthly rpt'!AG6 -> 541580.6452 | AH6: ='PADD1 mthly rpt'!AH6+'PADD2 mthly rpt'!AH6+'PADD3 mthly rpt'!AH6+'PADD4 mthly rpt'!AH6+'PADD5 mthly rpt'!AH6 -> 560133.3333 | AI6: ='PADD1 mthly rpt'!AI6+'PADD2 mthly rpt'!AI6+'PADD3 mthly rpt'!AI6+'PADD4 mthly rpt'!AI6+'PADD5 mthly rpt'!AI6 -> 538709.6774 | AJ6: ='PADD1 mthly rpt'!AJ6+'PADD2 mthly rpt'!AJ6+'PADD3 mthly rpt'!AJ6+'PADD4 mthly rpt'!AJ6+'PADD5 mthly rpt'!AJ6 -> 567566.6667 | AK6: ='PADD1 mthly rpt'!AK6+'PADD2 mthly rpt'!AK6+'PADD3 mthly rpt'!AK6+'PADD4 mthly rpt'!AK6+'PADD5 mthly rpt'!AK6 -> 595193.5484 | AL6: ='PADD1 mthly rpt'!AL6+'PADD2 mthly rpt'!AL6+'PADD3 mthly rpt'!AL6+'PADD4 mthly rpt'!AL6+'PADD5 mthly rpt'!AL6 -> 569096.7742 | AM6: ='PADD1 mthly rpt'!AM6+'PADD2 mthly rpt'!AM6+'PADD3 mthly rpt'!AM6+'PADD4 mthly rpt'!AM6+'PADD5 mthly rpt'!AM6 -> 535344.8276 | AN6: ='PADD1 mthly rpt'!AN6+'PADD2 mthly rpt'!AN6+'PADD3 mthly rpt'!AN6+'PADD4 mthly rpt'!AN6+'PADD5 mthly rpt'!AN6 -> 526258.0645 | AO6: ='PADD1 mthly rpt'!AO6+'PADD2 mthly rpt'!AO6+'PADD3 mthly rpt'!AO6+'PADD4 mthly rpt'!AO6+'PADD5 mthly rpt'!AO6 -> 519900 | AP6: ='PADD1 mthly rpt'!AP6+'PADD2 mthly rpt'!AP6+'PADD3 mthly rpt'!AP6+'PADD4 mthly rpt'!AP6+'PADD5 mthly rpt'!AP6 -> 545806.4516 | AQ6: ='PADD1 mthly rpt'!AQ6+'PADD2 mthly rpt'!AQ6+'PADD3 mthly rpt'!AQ6+'PADD4 mthly rpt'!AQ6+'PADD5 mthly rpt'!AQ6 -> 544200 | AR6: ='PADD1 mthly rpt'!AR6+'PADD2 mthly rpt'!AR6+'PADD3 mthly rpt'!AR6+'PADD4 mthly rpt'!AR6+'PADD5 mthly rpt'!AR6 -> 534161.2903 | AS6: ='PADD1 mthly rpt'!AS6+'PADD2 mthly rpt'!AS6+'PADD3 mthly rpt'!AS6+'PADD4 mthly rpt'!AS6+'PADD5 mthly rpt'!AS6 -> 526387.0968 | AT6: ='PADD1 mthly rpt'!AT6+'PADD2 mthly rpt'!AT6+'PADD3 mthly rpt'!AT6+'PADD4 mthly rpt'!AT6+'PADD5 mthly rpt'!AT6 -> 420133.3333 | AU6: ='PADD1 mthly rpt'!AU6+'PADD2 mthly rpt'!AU6+'PADD3 mthly rpt'!AU6+'PADD4 mthly rpt'!AU6+'PADD5 mthly rpt'!AU6 -> 503451.6129 | AV6: ='PADD1 mthly rpt'!AV6+'PADD2 mthly rpt'!AV6+'PADD3 mthly rpt'!AV6+'PADD4 mthly rpt'!AV6+'PADD5 mthly rpt'!AV6 -> 514900 | AW6: ='PADD1 mthly rpt'!AW6+'PADD2 mthly rpt'!AW6+'PADD3 mthly rpt'!AW6+'PADD4 mthly rpt'!AW6+'PADD5 mthly rpt'!AW6 -> 489064.5161 | AX6: ='PADD1 mthly rpt'!AX6+'PADD2 mthly rpt'!AX6+'PADD3 mthly rpt'!AX6+'PADD4 mthly rpt'!AX6+'PADD5 mthly rpt'!AX6 -> 479064.5161 | AY6: ='PADD1 mthly rpt'!AY6+'PADD2 mthly rpt'!AY6+'PADD3 mthly rpt'!AY6+'PADD4 mthly rpt'!AY6+'PADD5 mthly rpt'!AY6 -> 482928.5714 | AZ6: ='PADD1 mthly rpt'!AZ6+'PADD2 mthly rpt'!AZ6+'PADD3 mthly rpt'!AZ6+'PADD4 mthly rpt'!AZ6+'PADD5 mthly rpt'!AZ6 -> 519290.3226 | BA6: ='PADD1 mthly rpt'!BA6+'PADD2 mthly rpt'!BA6+'PADD3 mthly rpt'!BA6+'PADD4 mthly rpt'!BA6+'PADD5 mthly rpt'!BA6 -> 542200 | BB6: ='PADD1 mthly rpt'!BB6+'PADD2 mthly rpt'!BB6+'PADD3 mthly rpt'!BB6+'PADD4 mthly rpt'!BB6+'PADD5 mthly rpt'!BB6 -> 553612.9032 | BC6: ='PADD1 mthly rpt'!BC6+'PADD2 mthly rpt'!BC6+'PADD3 mthly rpt'!BC6+'PADD4 mthly rpt'!BC6+'PADD5 mthly rpt'!BC6 -> 566433.3333 | BD6: ='PADD1 mthly rpt'!BD6+'PADD2 mthly rpt'!BD6+'PADD3 mthly rpt'!BD6+'PADD4 mthly rpt'!BD6+'PADD5 mthly rpt'!BD6 -> 553967.7419 | BE6: ='PADD1 mthly rpt'!BE6+'PADD2 mthly rpt'!BE6+'PADD3 mthly rpt'!BE6+'PADD4 mthly rpt'!BE6+'PADD5 mthly rpt'!BE6 -> 553838.7097 | BF6: ='PADD1 mthly rpt'!BF6+'PADD2 mthly rpt'!BF6+'PADD3 mthly rpt'!BF6+'PADD4 mthly rpt'!BF6+'PADD5 mthly rpt'!BF6 -> 559133.3333 | BG6: ='PADD1 mthly rpt'!BG6+'PADD2 mthly rpt'!BG6+'PADD3 mthly rpt'!BG6+'PADD4 mthly rpt'!BG6+'PADD5 mthly rpt'!BG6 -> 527096.7742 | BH6: ='PADD1 mthly rpt'!BH6+'PADD2 mthly rpt'!BH6+'PADD3 mthly rpt'!BH6+'PADD4 mthly rpt'!BH6+'PADD5 mthly rpt'!BH6 -> 550000 | BI6: ='PADD1 mthly rpt'!BI6+'PADD2 mthly rpt'!BI6+'PADD3 mthly rpt'!BI6+'PADD4 mthly rpt'!BI6+'PADD5 mthly rpt'!BI6 -> 553645.1613 | BJ6: ='PADD1 mthly rpt'!BJ6+'PADD2 mthly rpt'!BJ6+'PADD3 mthly rpt'!BJ6+'PADD4 mthly rpt'!BJ6+'PADD5 mthly rpt'!BJ6 -> 531419.3548 | BK6: ='PADD1 mthly rpt'!BK6+'PADD2 mthly rpt'!BK6+'PADD3 mthly rpt'!BK6+'PADD4 mthly rpt'!BK6+'PADD5 mthly rpt'!BK6 -> 561857.1429 | BL6: ='PADD1 mthly rpt'!BL6+'PADD2 mthly rpt'!BL6+'PADD3 mthly rpt'!BL6+'PADD4 mthly rpt'!BL6+'PADD5 mthly rpt'!BL6 -> 575064.5161 | BM6: ='PADD1 mthly rpt'!BM6+'PADD2 mthly rpt'!BM6+'PADD3 mthly rpt'!BM6+'PADD4 mthly rpt'!BM6+'PADD5 mthly rpt'!BM6 -> 584833.3333 | BN6: ='PADD1 mthly rpt'!BN6+'PADD2 mthly rpt'!BN6+'PADD3 mthly rpt'!BN6+'PADD4 mthly rpt'!BN6+'PADD5 mthly rpt'!BN6 -> 571225.8065 | BO6: ='PADD1 mthly rpt'!BO6+'PADD2 mthly rpt'!BO6+'PADD3 mthly rpt'!BO6+'PADD4 mthly rpt'!BO6+'PADD5 mthly rpt'!BO6 -> 571666.6667 | BP6: ='PADD1 mthly rpt'!BP6+'PADD2 mthly rpt'!BP6+'PADD3 mthly rpt'!BP6+'PADD4 mthly rpt'!BP6+'PADD5 mthly rpt'!BP6 -> 574129.0323 | BQ6: ='PADD1 mthly rpt'!BQ6+'PADD2 mthly rpt'!BQ6+'PADD3 mthly rpt'!BQ6+'PADD4 mthly rpt'!BQ6+'PADD5 mthly rpt'!BQ6 -> 552387.0968 | BR6: ='PADD1 mthly rpt'!BR6+'PADD2 mthly rpt'!BR6+'PADD3 mthly rpt'!BR6+'PADD4 mthly rpt'!BR6+'PADD5 mthly rpt'!BR6 -> 551000 | BS6: ='PADD1 mthly rpt'!BS6+'PADD2 mthly rpt'!BS6+'PADD3 mthly rpt'!BS6+'PADD4 mthly rpt'!BS6+'PADD5 mthly rpt'!BS6 -> 525967.7419 | BT6: ='PADD1 mthly rpt'!BT6+'PADD2 mthly rpt'!BT6+'PADD3 mthly rpt'!BT6+'PADD4 mthly rpt'!BT6+'PADD5 mthly rpt'!BT6 -> 543466.6667 | BU6: ='PADD1 mthly rpt'!BU6+'PADD2 mthly rpt'!BU6+'PADD3 mthly rpt'!BU6+'PADD4 mthly rpt'!BU6+'PADD5 mthly rpt'!BU6 -> 571806.4516 | BV6: ='PADD1 mthly rpt'!BV6+'PADD2 mthly rpt'!BV6+'PADD3 mthly rpt'!BV6+'PADD4 mthly rpt'!BV6+'PADD5 mthly rpt'!BV6 -> 560612.9032 | BW6: ='PADD1 mthly rpt'!BW6+'PADD2 mthly rpt'!BW6+'PADD3 mthly rpt'!BW6+'PADD4 mthly rpt'!BW6+'PADD5 mthly rpt'!BW6 -> 511750 | BX6: ='PADD1 mthly rpt'!BX6+'PADD2 mthly rpt'!BX6+'PADD3 mthly rpt'!BX6+'PADD4 mthly rpt'!BX6+'PADD5 mthly rpt'!BX6 -> 528161.2903 | BY6: ='PADD1 mthly rpt'!BY6+'PADD2 mthly rpt'!BY6+'PADD3 mthly rpt'!BY6+'PADD4 mthly rpt'!BY6+'PADD5 mthly rpt'!BY6 -> 542100 | BZ6: ='PADD1 mthly rpt'!BZ6+'PADD2 mthly rpt'!BZ6+'PADD3 mthly rpt'!BZ6+'PADD4 mthly rpt'!BZ6+'PADD5 mthly rpt'!BZ6 -> 563258.0645 | CA6: ='PADD1 mthly rpt'!CA6+'PADD2 mthly rpt'!CA6+'PADD3 mthly rpt'!CA6+'PADD4 mthly rpt'!CA6+'PADD5 mthly rpt'!CA6 -> 566966.6667 | CB6: ='PADD1 mthly rpt'!CB6+'PADD2 mthly rpt'!CB6+'PADD3 mthly rpt'!CB6+'PADD4 mthly rpt'!CB6+'PADD5 mthly rpt'!CB6 -> 557483.871 | CC6: ='PADD1 mthly rpt'!CC6+'PADD2 mthly rpt'!CC6+'PADD3 mthly rpt'!CC6+'PADD4 mthly rpt'!CC6+'PADD5 mthly rpt'!CC6 -> 552580.6452 | CD6: ='PADD1 mthly rpt'!CD6+'PADD2 mthly rpt'!CD6+'PADD3 mthly rpt'!CD6+'PADD4 mthly rpt'!CD6+'PADD5 mthly rpt'!CD6 -> 568966.6667 | CE6: ='PADD1 mthly rpt'!CE6+'PADD2 mthly rpt'!CE6+'PADD3 mthly rpt'!CE6+'PADD4 mthly rpt'!CE6+'PADD5 mthly rpt'!CE6 -> 539548.3871 | CF6: ='PADD1 mthly rpt'!CF6+'PADD2 mthly rpt'!CF6+'PADD3 mthly rpt'!CF6+'PADD4 mthly rpt'!CF6+'PADD5 mthly rpt'!CF6 -> 563933.3333 | CG6: ='PADD1 mthly rpt'!CG6+'PADD2 mthly rpt'!CG6+'PADD3 mthly rpt'!CG6+'PADD4 mthly rpt'!CG6+'PADD5 mthly rpt'!CG6 -> 566225.8065 | CH6: ='PADD1 mthly rpt'!CH6+'PADD2 mthly rpt'!CH6+'PADD3 mthly rpt'!CH6+'PADD4 mthly rpt'!CH6+'PADD5 mthly rpt'!CH6 -> 531096.7742 | CI6: ='PADD1 mthly rpt'!CI6+'PADD2 mthly rpt'!CI6+'PADD3 mthly rpt'!CI6+'PADD4 mthly rpt'!CI6+'PADD5 mthly rpt'!CI6 -> 556506.1576 | CJ6: ='PADD1 mthly rpt'!CJ6+'PADD2 mthly rpt'!CJ6+'PADD3 mthly rpt'!CJ6+'PADD4 mthly rpt'!CJ6+'PADD5 mthly rpt'!CJ6 -> 544580.6452 | CK6: ='PADD1 mthly rpt'!CK6+'PADD2 mthly rpt'!CK6+'PADD3 mthly rpt'!CK6+'PADD4 mthly rpt'!CK6+'PADD5 mthly rpt'!CK6 -> 558033.3333 | CL6: ='PADD1 mthly rpt'!CL6+'PADD2 mthly rpt'!CL6+'PADD3 mthly rpt'!CL6+'PADD4 mthly rpt'!CL6+'PADD5 mthly rpt'!CL6 -> 568483.871 | CM6: ='PADD1 mthly rpt'!CM6+'PADD2 mthly rpt'!CM6+'PADD3 mthly rpt'!CM6+'PADD4 mthly rpt'!CM6+'PADD5 mthly rpt'!CM6 -> 585400 | CN6: ='PADD1 mthly rpt'!CN6+'PADD2 mthly rpt'!CN6+'PADD3 mthly rpt'!CN6+'PADD4 mthly rpt'!CN6+'PADD5 mthly rpt'!CN6 -> 568580.6452 | CO6: ='PADD1 mthly rpt'!CO6+'PADD2 mthly rpt'!CO6+'PADD3 mthly rpt'!CO6+'PADD4 mthly rpt'!CO6+'PADD5 mthly rpt'!CO6 -> 543258.0645 | CP6: ='PADD1 mthly rpt'!CP6+'PADD2 mthly rpt'!CP6+'PADD3 mthly rpt'!CP6+'PADD4 mthly rpt'!CP6+'PADD5 mthly rpt'!CP6 -> 522066.6667 | CQ6: ='PADD1 mthly rpt'!CQ6+'PADD2 mthly rpt'!CQ6+'PADD3 mthly rpt'!CQ6+'PADD4 mthly rpt'!CQ6+'PADD5 mthly rpt'!CQ6 -> 540580.6452 | CR6: ='PADD1 mthly rpt'!CR6+'PADD2 mthly rpt'!CR6+'PADD3 mthly rpt'!CR6+'PADD4 mthly rpt'!CR6+'PADD5 mthly rpt'!CR6 -> 550133.3333 | CS6: ='PADD1 mthly rpt'!CS6+'PADD2 mthly rpt'!CS6+'PADD3 mthly rpt'!CS6+'PADD4 mthly rpt'!CS6+'PADD5 mthly rpt'!CS6 -> 578612.9032 | CT6: ='PADD1 mthly rpt'!CT6+'PADD2 mthly rpt'!CT6+'PADD3 mthly rpt'!CT6+'PADD4 mthly rpt'!CT6+'PADD5 mthly rpt'!CT6 -> 542677.4194 | CU6: ='PADD1 mthly rpt'!CU6+'PADD2 mthly rpt'!CU6+'PADD3 mthly rpt'!CU6+'PADD4 mthly rpt'!CU6+'PADD5 mthly rpt'!CU6 -> 535928.5714 | CV6: ='PADD1 mthly rpt'!CV6+'PADD2 mthly rpt'!CV6+'PADD3 mthly rpt'!CV6+'PADD4 mthly rpt'!CV6+'PADD5 mthly rpt'!CV6 -> 559322.5806 | CW6: ='PADD1 mthly rpt'!CW6+'PADD2 mthly rpt'!CW6+'PADD3 mthly rpt'!CW6+'PADD4 mthly rpt'!CW6+'PADD5 mthly rpt'!CW6 -> 561400 | CX6: ='PADD1 mthly rpt'!CX6+'PADD2 mthly rpt'!CX6+'PADD3 mthly rpt'!CX6+'PADD4 mthly rpt'!CX6+'PADD5 mthly rpt'!CX6 -> 574096.7742 | CY6: ='PADD1 mthly rpt'!CY6+'PADD2 mthly rpt'!CY6+'PADD3 mthly rpt'!CY6+'PADD4 mthly rpt'!CY6+'PADD5 mthly rpt'!CY6 -> 565566.6667 | CZ6: ='PADD1 mthly rpt'!CZ6+'PADD2 mthly rpt'!CZ6+'PADD3 mthly rpt'!CZ6+'PADD4 mthly rpt'!CZ6+'PADD5 mthly rpt'!CZ6 -> 575451.6129 | DA6: ='PADD1 mthly rpt'!DA6+'PADD2 mthly rpt'!DA6+'PADD3 mthly rpt'!DA6+'PADD4 mthly rpt'!DA6+'PADD5 mthly rpt'!DA6 -> 583612.9032 | DB6: ='PADD1 mthly rpt'!DB6+'PADD2 mthly rpt'!DB6+'PADD3 mthly rpt'!DB6+'PADD4 mthly rpt'!DB6+'PADD5 mthly rpt'!DB6 -> 573766.6667 | DC6: ='PADD1 mthly rpt'!DC6+'PADD2 mthly rpt'!DC6+'PADD3 mthly rpt'!DC6+'PADD4 mthly rpt'!DC6+'PADD5 mthly rpt'!DC6 -> 542258.0645 | DD6: ='PADD1 mthly rpt'!DD6+'PADD2 mthly rpt'!DD6+'PADD3 mthly rpt'!DD6+'PADD4 mthly rpt'!DD6+'PADD5 mthly rpt'!DD6 -> 557233.3333 | DE6: ='PADD1 mthly rpt'!DE6+'PADD2 mthly rpt'!DE6+'PADD3 mthly rpt'!DE6+'PADD4 mthly rpt'!DE6+'PADD5 mthly rpt'!DE6 -> 599774.1935 | DF6: ='PADD1 mthly rpt'!DF6+'PADD2 mthly rpt'!DF6+'PADD3 mthly rpt'!DF6+'PADD4 mthly rpt'!DF6+'PADD5 mthly rpt'!DF6 -> 583935.4839 | DG6: ='PADD1 mthly rpt'!DG6+'PADD2 mthly rpt'!DG6+'PADD3 mthly rpt'!DG6+'PADD4 mthly rpt'!DG6+'PADD5 mthly rpt'!DG6 -> 572214.2857 | DH6: ='PADD1 mthly rpt'!DH6+'PADD2 mthly rpt'!DH6+'PADD3 mthly rpt'!DH6+'PADD4 mthly rpt'!DH6+'PADD5 mthly rpt'!DH6 -> 564258.0645 | DI6: ='PADD1 mthly rpt'!DI6+'PADD2 mthly rpt'!DI6+'PADD3 mthly rpt'!DI6+'PADD4 mthly rpt'!DI6+'PADD5 mthly rpt'!DI6 -> 600300 | DJ6: ='PADD1 mthly rpt'!DJ6+'PADD2 mthly rpt'!DJ6+'PADD3 mthly rpt'!DJ6+'PADD4 mthly rpt'!DJ6+'PADD5 mthly rpt'!DJ6 -> 596225.8065 | DK6: ='PADD1 mthly rpt'!DK6+'PADD2 mthly rpt'!DK6+'PADD3 mthly rpt'!DK6+'PADD4 mthly rpt'!DK6+'PADD5 mthly rpt'!DK6 -> 596000 | DL6: ='PADD1 mthly rpt'!DL6+'PADD2 mthly rpt'!DL6+'PADD3 mthly rpt'!DL6+'PADD4 mthly rpt'!DL6+'PADD5 mthly rpt'!DL6 -> 612548.3871 | DM6: ='PADD1 mthly rpt'!DM6+'PADD2 mthly rpt'!DM6+'PADD3 mthly rpt'!DM6+'PADD4 mthly rpt'!DM6+'PADD5 mthly rpt'!DM6 -> 601903.2258 | DN6: ='PADD1 mthly rpt'!DN6+'PADD2 mthly rpt'!DN6+'PADD3 mthly rpt'!DN6+'PADD4 mthly rpt'!DN6+'PADD5 mthly rpt'!DN6 -> 551766.6667 | DO6: ='PADD1 mthly rpt'!DO6+'PADD2 mthly rpt'!DO6+'PADD3 mthly rpt'!DO6+'PADD4 mthly rpt'!DO6+'PADD5 mthly rpt'!DO6 -> 528838.7097 | DP6: ='PADD1 mthly rpt'!DP6+'PADD2 mthly rpt'!DP6+'PADD3 mthly rpt'!DP6+'PADD4 mthly rpt'!DP6+'PADD5 mthly rpt'!DP6 -> 603433.3333 | DQ6: ='PADD1 mthly rpt'!DQ6+'PADD2 mthly rpt'!DQ6+'PADD3 mthly rpt'!DQ6+'PADD4 mthly rpt'!DQ6+'PADD5 mthly rpt'!DQ6 -> 635225.8065 | DR6: ='PADD1 mthly rpt'!DR6+'PADD2 mthly rpt'!DR6+'PADD3 mthly rpt'!DR6+'PADD4 mthly rpt'!DR6+'PADD5 mthly rpt'!DR6 -> 561064.5161 | DS6: ='PADD1 mthly rpt'!DS6+'PADD2 mthly rpt'!DS6+'PADD3 mthly rpt'!DS6+'PADD4 mthly rpt'!DS6+'PADD5 mthly rpt'!DS6 -> 529071.4286 | DT6: ='PADD1 mthly rpt'!DT6+'PADD2 mthly rpt'!DT6+'PADD3 mthly rpt'!DT6+'PADD4 mthly rpt'!DT6+'PADD5 mthly rpt'!DT6 -> 535516.129 | DU6: ='PADD1 mthly rpt'!DU6+'PADD2 mthly rpt'!DU6+'PADD3 mthly rpt'!DU6+'PADD4 mthly rpt'!DU6+'PADD5 mthly rpt'!DU6 -> 589300 | DV6: ='PADD1 mthly rpt'!DV6+'PADD2 mthly rpt'!DV6+'PADD3 mthly rpt'!DV6+'PADD4 mthly rpt'!DV6+'PADD5 mthly rpt'!DV6 -> 581903.2258 | DW6: ='PADD1 mthly rpt'!DW6+'PADD2 mthly rpt'!DW6+'PADD3 mthly rpt'!DW6+'PADD4 mthly rpt'!DW6+'PADD5 mthly rpt'!DW6 -> 569366.6667 | DX6: ='PADD1 mthly rpt'!DX6+'PADD2 mthly rpt'!DX6+'PADD3 mthly rpt'!DX6+'PADD4 mthly rpt'!DX6+'PADD5 mthly rpt'!DX6 -> 580322.5806 | DY6: ='PADD1 mthly rpt'!DY6+'PADD2 mthly rpt'!DY6+'PADD3 mthly rpt'!DY6+'PADD4 mthly rpt'!DY6+'PADD5 mthly rpt'!DY6 -> 574032.2581 | DZ6: ='PADD1 mthly rpt'!DZ6+'PADD2 mthly rpt'!DZ6+'PADD3 mthly rpt'!DZ6+'PADD4 mthly rpt'!DZ6+'PADD5 mthly rpt'!DZ6 -> 529033.3333 | EA6: ='PADD1 mthly rpt'!EA6+'PADD2 mthly rpt'!EA6+'PADD3 mthly rpt'!EA6+'PADD4 mthly rpt'!EA6+'PADD5 mthly rpt'!EA6 -> 520129.0323 | EB6: ='PADD1 mthly rpt'!EB6+'PADD2 mthly rpt'!EB6+'PADD3 mthly rpt'!EB6+'PADD4 mthly rpt'!EB6+'PADD5 mthly rpt'!EB6 -> 559233.3333 | EC6: ='PADD1 mthly rpt'!EC6+'PADD2 mthly rpt'!EC6+'PADD3 mthly rpt'!EC6+'PADD4 mthly rpt'!EC6+'PADD5 mthly rpt'!EC6 -> 577580.6452 | ED6: ='PADD1 mthly rpt'!ED6+'PADD2 mthly rpt'!ED6+'PADD3 mthly rpt'!ED6+'PADD4 mthly rpt'!ED6+'PADD5 mthly rpt'!ED6 -> 580580.6452 | EE6: ='PADD1 mthly rpt'!EE6+'PADD2 mthly rpt'!EE6+'PADD3 mthly rpt'!EE6+'PADD4 mthly rpt'!EE6+'PADD5 mthly rpt'!EE6 -> 565586.2069 | EF6: ='PADD1 mthly rpt'!EF6+'PADD2 mthly rpt'!EF6+'PADD3 mthly rpt'!EF6+'PADD4 mthly rpt'!EF6+'PADD5 mthly rpt'!EF6 -> 585709.6774 | EG6: ='PADD1 mthly rpt'!EG6+'PADD2 mthly rpt'!EG6+'PADD3 mthly rpt'!EG6+'PADD4 mthly rpt'!EG6+'PADD5 mthly rpt'!EG6 -> 590966.6667 | EH6: ='PADD1 mthly rpt'!EH6+'PADD2 mthly rpt'!EH6+'PADD3 mthly rpt'!EH6+'PADD4 mthly rpt'!EH6+'PADD5 mthly rpt'!EH6 -> 609161.2903 | EI6: ='PADD1 mthly rpt'!EI6+'PADD2 mthly rpt'!EI6+'PADD3 mthly rpt'!EI6+'PADD4 mthly rpt'!EI6+'PADD5 mthly rpt'!EI6 -> 589666.6667 | EJ6: ='PADD1 mthly rpt'!EJ6+'PADD2 mthly rpt'!EJ6+'PADD3 mthly rpt'!EJ6+'PADD4 mthly rpt'!EJ6+'PADD5 mthly rpt'!EJ6 -> 584129.0323 | EK6: ='PADD1 mthly rpt'!EK6+'PADD2 mthly rpt'!EK6+'PADD3 mthly rpt'!EK6+'PADD4 mthly rpt'!EK6+'PADD5 mthly rpt'!EK6 -> 570709.6774 | EL6: ='PADD1 mthly rpt'!EL6+'PADD2 mthly rpt'!EL6+'PADD3 mthly rpt'!EL6+'PADD4 mthly rpt'!EL6+'PADD5 mthly rpt'!EL6 -> 575700 | EM6: ='PADD1 mthly rpt'!EM6+'PADD2 mthly rpt'!EM6+'PADD3 mthly rpt'!EM6+'PADD4 mthly rpt'!EM6+'PADD5 mthly rpt'!EM6 -> 556032.2581 | EN6: ='PADD1 mthly rpt'!EN6+'PADD2 mthly rpt'!EN6+'PADD3 mthly rpt'!EN6+'PADD4 mthly rpt'!EN6+'PADD5 mthly rpt'!EN6 -> 589733.3333 | EO6: ='PADD1 mthly rpt'!EO6+'PADD2 mthly rpt'!EO6+'PADD3 mthly rpt'!EO6+'PADD4 mthly rpt'!EO6+'PADD5 mthly rpt'!EO6 -> 594451.6129 | EP6: ='PADD1 mthly rpt'!EP6+'PADD2 mthly rpt'!EP6+'PADD3 mthly rpt'!EP6+'PADD4 mthly rpt'!EP6+'PADD5 mthly rpt'!EP6 -> 564064.5161 | EQ6: ='PADD1 mthly rpt'!EQ6+'PADD2 mthly rpt'!EQ6+'PADD3 mthly rpt'!EQ6+'PADD4 mthly rpt'!EQ6+'PADD5 mthly rpt'!EQ6 -> 529795.5665 | ER6: ='PADD1 mthly rpt'!ER6+'PADD2 mthly rpt'!ER6+'PADD3 mthly rpt'!ER6+'PADD4 mthly rpt'!ER6+'PADD5 mthly rpt'!ER6 -> 586451.6129 | ES6: ='PADD1 mthly rpt'!ES6+'PADD2 mthly rpt'!ES6+'PADD3 mthly rpt'!ES6+'PADD4 mthly rpt'!ES6+'PADD5 mthly rpt'!ES6 -> 600933.3333 | ET6: ='PADD1 mthly rpt'!ET6+'PADD2 mthly rpt'!ET6+'PADD3 mthly rpt'!ET6+'PADD4 mthly rpt'!ET6+'PADD5 mthly rpt'!ET6 -> 622096.7742 | EU6: ='PADD1 mthly rpt'!EU6+'PADD2 mthly rpt'!EU6+'PADD3 mthly rpt'!EU6+'PADD4 mthly rpt'!EU6+'PADD5 mthly rpt'!EU6 -> 615233.3333 | EV6: ='PADD1 mthly rpt'!EV6+'PADD2 mthly rpt'!EV6+'PADD3 mthly rpt'!EV6+'PADD4 mthly rpt'!EV6+'PADD5 mthly rpt'!EV6 -> 606774.1935 | EW6: ='PADD1 mthly rpt'!EW6+'PADD2 mthly rpt'!EW6+'PADD3 mthly rpt'!EW6+'PADD4 mthly rpt'!EW6+'PADD5 mthly rpt'!EW6 -> 588612.9032 | EX6: ='PADD1 mthly rpt'!EX6+'PADD2 mthly rpt'!EX6+'PADD3 mthly rpt'!EX6+'PADD4 mthly rpt'!EX6+'PADD5 mthly rpt'!EX6 -> 513333.3333 | EY6: ='PADD1 mthly rpt'!EY6+'PADD2 mthly rpt'!EY6+'PADD3 mthly rpt'!EY6+'PADD4 mthly rpt'!EY6+'PADD5 mthly rpt'!EY6 -> 594161.2903 | EZ6: ='PADD1 mthly rpt'!EZ6+'PADD2 mthly rpt'!EZ6+'PADD3 mthly rpt'!EZ6+'PADD4 mthly rpt'!EZ6+'PADD5 mthly rpt'!EZ6 -> 615900 | FA6: ='PADD1 mthly rpt'!FA6+'PADD2 mthly rpt'!FA6+'PADD3 mthly rpt'!FA6+'PADD4 mthly rpt'!FA6+'PADD5 mthly rpt'!FA6 -> 642096.7742 | FB6: ='PADD1 mthly rpt'!FB6+'PADD2 mthly rpt'!FB6+'PADD3 mthly rpt'!FB6+'PADD4 mthly rpt'!FB6+'PADD5 mthly rpt'!FB6 -> 599967.7419 | FC6: ='PADD1 mthly rpt'!FC6+'PADD2 mthly rpt'!FC6+'PADD3 mthly rpt'!FC6+'PADD4 mthly rpt'!FC6+'PADD5 mthly rpt'!FC6 -> 568392.8571 | FD6: ='PADD1 mthly rpt'!FD6+'PADD2 mthly rpt'!FD6+'PADD3 mthly rpt'!FD6+'PADD4 mthly rpt'!FD6+'PADD5 mthly rpt'!FD6 -> 571032.2581 | FE6: ='PADD1 mthly rpt'!FE6+'PADD2 mthly rpt'!FE6+'PADD3 mthly rpt'!FE6+'PADD4 mthly rpt'!FE6+'PADD5 mthly rpt'!FE6 -> 592766.6667 | FF6: ='PADD1 mthly rpt'!FF6+'PADD2 mthly rpt'!FF6+'PADD3 mthly rpt'!FF6+'PADD4 mthly rpt'!FF6+'PADD5 mthly rpt'!FF6 -> 591225.8065 | FG6: ='PADD1 mthly rpt'!FG6+'PADD2 mthly rpt'!FG6+'PADD3 mthly rpt'!FG6+'PADD4 mthly rpt'!FG6+'PADD5 mthly rpt'!FG6 -> 607100 | FH6: ='PADD1 mthly rpt'!FH6+'PADD2 mthly rpt'!FH6+'PADD3 mthly rpt'!FH6+'PADD4 mthly rpt'!FH6+'PADD5 mthly rpt'!FH6 -> 606516.129 | FI6: ='PADD1 mthly rpt'!FI6+'PADD2 mthly rpt'!FI6+'PADD3 mthly rpt'!FI6+'PADD4 mthly rpt'!FI6+'PADD5 mthly rpt'!FI6 -> 603580.6452 | FJ6: ='PADD1 mthly rpt'!FJ6+'PADD2 mthly rpt'!FJ6+'PADD3 mthly rpt'!FJ6+'PADD4 mthly rpt'!FJ6+'PADD5 mthly rpt'!FJ6 -> 590133.3333 | FK6: ='PADD1 mthly rpt'!FK6+'PADD2 mthly rpt'!FK6+'PADD3 mthly rpt'!FK6+'PADD4 mthly rpt'!FK6+'PADD5 mthly rpt'!FK6 -> 573774.1935 | FL6: ='PADD1 mthly rpt'!FL6+'PADD2 mthly rpt'!FL6+'PADD3 mthly rpt'!FL6+'PADD4 mthly rpt'!FL6+'PADD5 mthly rpt'!FL6 -> 608266.6667 | FM6: ='PADD1 mthly rpt'!FM6+'PADD2 mthly rpt'!FM6+'PADD3 mthly rpt'!FM6+'PADD4 mthly rpt'!FM6+'PADD5 mthly rpt'!FM6 -> 615709.6774 | FN6: ='PADD1 mthly rpt'!FN6+'PADD2 mthly rpt'!FN6+'PADD3 mthly rpt'!FN6+'PADD4 mthly rpt'!FN6+'PADD5 mthly rpt'!FN6 -> 588967.7419 | FO6: ='PADD1 mthly rpt'!FO6+'PADD2 mthly rpt'!FO6+'PADD3 mthly rpt'!FO6+'PADD4 mthly rpt'!FO6+'PADD5 mthly rpt'!FO6 -> 545357.1429 | FP6: ='PADD1 mthly rpt'!FP6+'PADD2 mthly rpt'!FP6+'PADD3 mthly rpt'!FP6+'PADD4 mthly rpt'!FP6+'PADD5 mthly rpt'!FP6 -> 549096.7742 | FQ6: ='PADD1 mthly rpt'!FQ6+'PADD2 mthly rpt'!FQ6+'PADD3 mthly rpt'!FQ6+'PADD4 mthly rpt'!FQ6+'PADD5 mthly rpt'!FQ6 -> 566733.3333 | FR6: ='PADD1 mthly rpt'!FR6+'PADD2 mthly rpt'!FR6+'PADD3 mthly rpt'!FR6+'PADD4 mthly rpt'!FR6+'PADD5 mthly rpt'!FR6 -> 577419.3548 | FS6: ='PADD1 mthly rpt'!FS6+'PADD2 mthly rpt'!FS6+'PADD3 mthly rpt'!FS6+'PADD4 mthly rpt'!FS6+'PADD5 mthly rpt'!FS6 -> 590566.6667 | FT6: ='PADD1 mthly rpt'!FT6+'PADD2 mthly rpt'!FT6+'PADD3 mthly rpt'!FT6+'PADD4 mthly rpt'!FT6+'PADD5 mthly rpt'!FT6 -> 578806.4516 | FU6: ='PADD1 mthly rpt'!FU6+'PADD2 mthly rpt'!FU6+'PADD3 mthly rpt'!FU6+'PADD4 mthly rpt'!FU6+'PADD5 mthly rpt'!FU6 -> 579064.5161 | FV6: ='PADD1 mthly rpt'!FV6+'PADD2 mthly rpt'!FV6+'PADD3 mthly rpt'!FV6+'PADD4 mthly rpt'!FV6+'PADD5 mthly rpt'!FV6 -> 553433.3333 | FW6: ='PADD1 mthly rpt'!FW6+'PADD2 mthly rpt'!FW6+'PADD3 mthly rpt'!FW6+'PADD4 mthly rpt'!FW6+'PADD5 mthly rpt'!FW6 -> 532677.4194 | FX6: ='PADD1 mthly rpt'!FX6+'PADD2 mthly rpt'!FX6+'PADD3 mthly rpt'!FX6+'PADD4 mthly rpt'!FX6+'PADD5 mthly rpt'!FX6 -> 581066.6667 | FY6: ='PADD1 mthly rpt'!FY6+'PADD2 mthly rpt'!FY6+'PADD3 mthly rpt'!FY6+'PADD4 mthly rpt'!FY6+'PADD5 mthly rpt'!FY6 -> 596032.2581 | FZ6: ='PADD1 mthly rpt'!FZ6+'PADD2 mthly rpt'!FZ6+'PADD3 mthly rpt'!FZ6+'PADD4 mthly rpt'!FZ6+'PADD5 mthly rpt'!FZ6 -> 565645.1613 | GA6: ='PADD1 mthly rpt'!GA6+'PADD2 mthly rpt'!GA6+'PADD3 mthly rpt'!GA6+'PADD4 mthly rpt'!GA6+'PADD5 mthly rpt'!GA6 -> 514344.8276 | GB6: ='PADD1 mthly rpt'!GB6+'PADD2 mthly rpt'!GB6+'PADD3 mthly rpt'!GB6+'PADD4 mthly rpt'!GB6+'PADD5 mthly rpt'!GB6 -> 524612.9032 | GC6: ='PADD1 mthly rpt'!GC6+'PADD2 mthly rpt'!GC6+'PADD3 mthly rpt'!GC6+'PADD4 mthly rpt'!GC6+'PADD5 mthly rpt'!GC6 -> 494266.6667 | GD6: ='PADD1 mthly rpt'!GD6+'PADD2 mthly rpt'!GD6+'PADD3 mthly rpt'!GD6+'PADD4 mthly rpt'!GD6+'PADD5 mthly rpt'!GD6 -> 492129.0323 | GE6: ='PADD1 mthly rpt'!GE6+'PADD2 mthly rpt'!GE6+'PADD3 mthly rpt'!GE6+'PADD4 mthly rpt'!GE6+'PADD5 mthly rpt'!GE6 -> 503966.6667 | GF6: ='PADD1 mthly rpt'!GF6+'PADD2 mthly rpt'!GF6+'PADD3 mthly rpt'!GF6+'PADD4 mthly rpt'!GF6+'PADD5 mthly rpt'!GF6 -> 522419.3548 | GG6: ='PADD1 mthly rpt'!GG6+'PADD2 mthly rpt'!GG6+'PADD3 mthly rpt'!GG6+'PADD4 mthly rpt'!GG6+'PADD5 mthly rpt'!GG6 -> 526741.9355 | GH6: ='PADD1 mthly rpt'!GH6+'PADD2 mthly rpt'!GH6+'PADD3 mthly rpt'!GH6+'PADD4 mthly rpt'!GH6+'PADD5 mthly rpt'!GH6 -> 529633.3333 | GI6: ='PADD1 mthly rpt'!GI6+'PADD2 mthly rpt'!GI6+'PADD3 mthly rpt'!GI6+'PADD4 mthly rpt'!GI6+'PADD5 mthly rpt'!GI6 -> 537806.4516 | GJ6: ='PADD1 mthly rpt'!GJ6+'PADD2 mthly rpt'!GJ6+'PADD3 mthly rpt'!GJ6+'PADD4 mthly rpt'!GJ6+'PADD5 mthly rpt'!GJ6 -> 559700 | GK6: ='PADD1 mthly rpt'!GK6+'PADD2 mthly rpt'!GK6+'PADD3 mthly rpt'!GK6+'PADD4 mthly rpt'!GK6+'PADD5 mthly rpt'!GK6 -> 557935.4839 | GL6: ='PADD1 mthly rpt'!GL6+'PADD2 mthly rpt'!GL6+'PADD3 mthly rpt'!GL6+'PADD4 mthly rpt'!GL6+'PADD5 mthly rpt'!GL6 -> 555225.8065 | GM6: ='PADD1 mthly rpt'!GM6+'PADD2 mthly rpt'!GM6+'PADD3 mthly rpt'!GM6+'PADD4 mthly rpt'!GM6+'PADD5 mthly rpt'!GM6 -> 463928.5714 | GN6: ='PADD1 mthly rpt'!GN6+'PADD2 mthly rpt'!GN6+'PADD3 mthly rpt'!GN6+'PADD4 mthly rpt'!GN6+'PADD5 mthly rpt'!GN6 -> 538290.3226 | GO6: ='PADD1 mthly rpt'!GO6+'PADD2 mthly rpt'!GO6+'PADD3 mthly rpt'!GO6+'PADD4 mthly rpt'!GO6+'PADD5 mthly rpt'!GO6 -> 579200 | GP6: ='PADD1 mthly rpt'!GP6+'PADD2 mthly rpt'!GP6+'PADD3 mthly rpt'!GP6+'PADD4 mthly rpt'!GP6+'PADD5 mthly rpt'!GP6 -> 624697.9893 | GQ6: ='PADD1 mthly rpt'!GQ6+'PADD2 mthly rpt'!GQ6+'PADD3 mthly rpt'!GQ6+'PADD4 mthly rpt'!GQ6+'PADD5 mthly rpt'!GQ6 -> 586203.3416 | GR6: ='PADD1 mthly rpt'!GR6+'PADD2 mthly rpt'!GR6+'PADD3 mthly rpt'!GR6+'PADD4 mthly rpt'!GR6+'PADD5 mthly rpt'!GR6 -> 594243.3115 | GS6: ='PADD1 mthly rpt'!GS6+'PADD2 mthly rpt'!GS6+'PADD3 mthly rpt'!GS6+'PADD4 mthly rpt'!GS6+'PADD5 mthly rpt'!GS6 -> 582656.1089 | GT6: ='PADD1 mthly rpt'!GT6+'PADD2 mthly rpt'!GT6+'PADD3 mthly rpt'!GT6+'PADD4 mthly rpt'!GT6+'PADD5 mthly rpt'!GT6 -> 556456.5112 | GU6: ='PADD1 mthly rpt'!GU6+'PADD2 mthly rpt'!GU6+'PADD3 mthly rpt'!GU6+'PADD4 mthly rpt'!GU6+'PADD5 mthly rpt'!GU6 -> 553079.0989 | GV6: ='PADD1 mthly rpt'!GV6+'PADD2 mthly rpt'!GV6+'PADD3 mthly rpt'!GV6+'PADD4 mthly rpt'!GV6+'PADD5 mthly rpt'!GV6 -> 576342.989 | GW6: ='PADD1 mthly rpt'!GW6+'PADD2 mthly rpt'!GW6+'PADD3 mthly rpt'!GW6+'PADD4 mthly rpt'!GW6+'PADD5 mthly rpt'!GW6 -> 598997.8011 | GX6: ='PADD1 mthly rpt'!GX6+'PADD2 mthly rpt'!GX6+'PADD3 mthly rpt'!GX6+'PADD4 mthly rpt'!GX6+'PADD5 mthly rpt'!GX6 -> 615109.946 | GY6: ='PADD1 mthly rpt'!GY6+'PADD2 mthly rpt'!GY6+'PADD3 mthly rpt'!GY6+'PADD4 mthly rpt'!GY6+'PADD5 mthly rpt'!GY6 -> 591752.5381 | GZ6: ='PADD1 mthly rpt'!GZ6+'PADD2 mthly rpt'!GZ6+'PADD3 mthly rpt'!GZ6+'PADD4 mthly rpt'!GZ6+'PADD5 mthly rpt'!GZ6 -> 623442.5224 | HA6: ='PADD1 mthly rpt'!HA6+'PADD2 mthly rpt'!HA6+'PADD3 mthly rpt'!HA6+'PADD4 mthly rpt'!HA6+'PADD5 mthly rpt'!HA6 -> 643532.4813 | HB6: ='PADD1 mthly rpt'!HB6+'PADD2 mthly rpt'!HB6+'PADD3 mthly rpt'!HB6+'PADD4 mthly rpt'!HB6+'PADD5 mthly rpt'!HB6 -> 649712.766 | HC6: ='PADD1 mthly rpt'!HC6+'PADD2 mthly rpt'!HC6+'PADD3 mthly rpt'!HC6+'PADD4 mthly rpt'!HC6+'PADD5 mthly rpt'!HC6 -> 652978.3332
A7: Imports | B7: ='PADD1 mthly rpt'!B7+'PADD2 mthly rpt'!B7+'PADD3 mthly rpt'!B7+'PADD4 mthly rpt'!B7+'PADD5 mthly rpt'!B7 -> 274000 | C7: ='PADD1 mthly rpt'!C7+'PADD2 mthly rpt'!C7+'PADD3 mthly rpt'!C7+'PADD4 mthly rpt'!C7+'PADD5 mthly rpt'!C7 -> 244142.8571 | D7: ='PADD1 mthly rpt'!D7+'PADD2 mthly rpt'!D7+'PADD3 mthly rpt'!D7+'PADD4 mthly rpt'!D7+'PADD5 mthly rpt'!D7 -> 163580.6452 | E7: ='PADD1 mthly rpt'!E7+'PADD2 mthly rpt'!E7+'PADD3 mthly rpt'!E7+'PADD4 mthly rpt'!E7+'PADD5 mthly rpt'!E7 -> 178500 | F7: ='PADD1 mthly rpt'!F7+'PADD2 mthly rpt'!F7+'PADD3 mthly rpt'!F7+'PADD4 mthly rpt'!F7+'PADD5 mthly rpt'!F7 -> 174935.4839 | G7: ='PADD1 mthly rpt'!G7+'PADD2 mthly rpt'!G7+'PADD3 mthly rpt'!G7+'PADD4 mthly rpt'!G7+'PADD5 mthly rpt'!G7 -> 151833.3333 | H7: ='PADD1 mthly rpt'!H7+'PADD2 mthly rpt'!H7+'PADD3 mthly rpt'!H7+'PADD4 mthly rpt'!H7+'PADD5 mthly rpt'!H7 -> 220161.2903 | I7: ='PADD1 mthly rpt'!I7+'PADD2 mthly rpt'!I7+'PADD3 mthly rpt'!I7+'PADD4 mthly rpt'!I7+'PADD5 mthly rpt'!I7 -> 171064.5161 | J7: ='PADD1 mthly rpt'!J7+'PADD2 mthly rpt'!J7+'PADD3 mthly rpt'!J7+'PADD4 mthly rpt'!J7+'PADD5 mthly rpt'!J7 -> 256200 | K7: ='PADD1 mthly rpt'!K7+'PADD2 mthly rpt'!K7+'PADD3 mthly rpt'!K7+'PADD4 mthly rpt'!K7+'PADD5 mthly rpt'!K7 -> 376935.4839 | L7: ='PADD1 mthly rpt'!L7+'PADD2 mthly rpt'!L7+'PADD3 mthly rpt'!L7+'PADD4 mthly rpt'!L7+'PADD5 mthly rpt'!L7 -> 292866.6667 | M7: ='PADD1 mthly rpt'!M7+'PADD2 mthly rpt'!M7+'PADD3 mthly rpt'!M7+'PADD4 mthly rpt'!M7+'PADD5 mthly rpt'!M7 -> 293193.5484 | N7: ='PADD1 mthly rpt'!N7+'PADD2 mthly rpt'!N7+'PADD3 mthly rpt'!N7+'PADD4 mthly rpt'!N7+'PADD5 mthly rpt'!N7 -> 206322.5806 | O7: ='PADD1 mthly rpt'!O7+'PADD2 mthly rpt'!O7+'PADD3 mthly rpt'!O7+'PADD4 mthly rpt'!O7+'PADD5 mthly rpt'!O7 -> 206285.7143 | P7: ='PADD1 mthly rpt'!P7+'PADD2 mthly rpt'!P7+'PADD3 mthly rpt'!P7+'PADD4 mthly rpt'!P7+'PADD5 mthly rpt'!P7 -> 180806.4516 | Q7: ='PADD1 mthly rpt'!Q7+'PADD2 mthly rpt'!Q7+'PADD3 mthly rpt'!Q7+'PADD4 mthly rpt'!Q7+'PADD5 mthly rpt'!Q7 -> 242800 | R7: ='PADD1 mthly rpt'!R7+'PADD2 mthly rpt'!R7+'PADD3 mthly rpt'!R7+'PADD4 mthly rpt'!R7+'PADD5 mthly rpt'!R7 -> 174225.8065 | S7: ='PADD1 mthly rpt'!S7+'PADD2 mthly rpt'!S7+'PADD3 mthly rpt'!S7+'PADD4 mthly rpt'!S7+'PADD5 mthly rpt'!S7 -> 241000 | T7: ='PADD1 mthly rpt'!T7+'PADD2 mthly rpt'!T7+'PADD3 mthly rpt'!T7+'PADD4 mthly rpt'!T7+'PADD5 mthly rpt'!T7 -> 226580.6452 | U7: ='PADD1 mthly rpt'!U7+'PADD2 mthly rpt'!U7+'PADD3 mthly rpt'!U7+'PADD4 mthly rpt'!U7+'PADD5 mthly rpt'!U7 -> 265064.5161 | V7: ='PADD1 mthly rpt'!V7+'PADD2 mthly rpt'!V7+'PADD3 mthly rpt'!V7+'PADD4 mthly rpt'!V7+'PADD5 mthly rpt'!V7 -> 280666.6667 | W7: ='PADD1 mthly rpt'!W7+'PADD2 mthly rpt'!W7+'PADD3 mthly rpt'!W7+'PADD4 mthly rpt'!W7+'PADD5 mthly rpt'!W7 -> 267225.8065 | X7: ='PADD1 mthly rpt'!X7+'PADD2 mthly rpt'!X7+'PADD3 mthly rpt'!X7+'PADD4 mthly rpt'!X7+'PADD5 mthly rpt'!X7 -> 215433.3333 | Y7: ='PADD1 mthly rpt'!Y7+'PADD2 mthly rpt'!Y7+'PADD3 mthly rpt'!Y7+'PADD4 mthly rpt'!Y7+'PADD5 mthly rpt'!Y7 -> 224258.0645 | Z7: ='PADD1 mthly rpt'!Z7+'PADD2 mthly rpt'!Z7+'PADD3 mthly rpt'!Z7+'PADD4 mthly rpt'!Z7+'PADD5 mthly rpt'!Z7 -> 244258.0645 | AA7: ='PADD1 mthly rpt'!AA7+'PADD2 mthly rpt'!AA7+'PADD3 mthly rpt'!AA7+'PADD4 mthly rpt'!AA7+'PADD5 mthly rpt'!AA7 -> 212642.8571 | AB7: ='PADD1 mthly rpt'!AB7+'PADD2 mthly rpt'!AB7+'PADD3 mthly rpt'!AB7+'PADD4 mthly rpt'!AB7+'PADD5 mthly rpt'!AB7 -> 184838.7097 | AC7: ='PADD1 mthly rpt'!AC7+'PADD2 mthly rpt'!AC7+'PADD3 mthly rpt'!AC7+'PADD4 mthly rpt'!AC7+'PADD5 mthly rpt'!AC7 -> 121066.6667 | AD7: ='PADD1 mthly rpt'!AD7+'PADD2 mthly rpt'!AD7+'PADD3 mthly rpt'!AD7+'PADD4 mthly rpt'!AD7+'PADD5 mthly rpt'!AD7 -> 145709.6774 | AE7: ='PADD1 mthly rpt'!AE7+'PADD2 mthly rpt'!AE7+'PADD3 mthly rpt'!AE7+'PADD4 mthly rpt'!AE7+'PADD5 mthly rpt'!AE7 -> 151333.3333 | AF7: ='PADD1 mthly rpt'!AF7+'PADD2 mthly rpt'!AF7+'PADD3 mthly rpt'!AF7+'PADD4 mthly rpt'!AF7+'PADD5 mthly rpt'!AF7 -> 134903.2258 | AG7: ='PADD1 mthly rpt'!AG7+'PADD2 mthly rpt'!AG7+'PADD3 mthly rpt'!AG7+'PADD4 mthly rpt'!AG7+'PADD5 mthly rpt'!AG7 -> 163967.7419 | AH7: ='PADD1 mthly rpt'!AH7+'PADD2 mthly rpt'!AH7+'PADD3 mthly rpt'!AH7+'PADD4 mthly rpt'!AH7+'PADD5 mthly rpt'!AH7 -> 232300 | AI7: ='PADD1 mthly rpt'!AI7+'PADD2 mthly rpt'!AI7+'PADD3 mthly rpt'!AI7+'PADD4 mthly rpt'!AI7+'PADD5 mthly rpt'!AI7 -> 204483.871 | AJ7: ='PADD1 mthly rpt'!AJ7+'PADD2 mthly rpt'!AJ7+'PADD3 mthly rpt'!AJ7+'PADD4 mthly rpt'!AJ7+'PADD5 mthly rpt'!AJ7 -> 200433.3333 | AK7: ='PADD1 mthly rpt'!AK7+'PADD2 mthly rpt'!AK7+'PADD3 mthly rpt'!AK7+'PADD4 mthly rpt'!AK7+'PADD5 mthly rpt'!AK7 -> 187935.4839 | AL7: ='PADD1 mthly rpt'!AL7+'PADD2 mthly rpt'!AL7+'PADD3 mthly rpt'!AL7+'PADD4 mthly rpt'!AL7+'PADD5 mthly rpt'!AL7 -> 262806.4516 | AM7: ='PADD1 mthly rpt'!AM7+'PADD2 mthly rpt'!AM7+'PADD3 mthly rpt'!AM7+'PADD4 mthly rpt'!AM7+'PADD5 mthly rpt'!AM7 -> 214448.2759 | AN7: ='PADD1 mthly rpt'!AN7+'PADD2 mthly rpt'!AN7+'PADD3 mthly rpt'!AN7+'PADD4 mthly rpt'!AN7+'PADD5 mthly rpt'!AN7 -> 217645.1613 | AO7: ='PADD1 mthly rpt'!AO7+'PADD2 mthly rpt'!AO7+'PADD3 mthly rpt'!AO7+'PADD4 mthly rpt'!AO7+'PADD5 mthly rpt'!AO7 -> 155366.6667 | AP7: ='PADD1 mthly rpt'!AP7+'PADD2 mthly rpt'!AP7+'PADD3 mthly rpt'!AP7+'PADD4 mthly rpt'!AP7+'PADD5 mthly rpt'!AP7 -> 163967.7419 | AQ7: ='PADD1 mthly rpt'!AQ7+'PADD2 mthly rpt'!AQ7+'PADD3 mthly rpt'!AQ7+'PADD4 mthly rpt'!AQ7+'PADD5 mthly rpt'!AQ7 -> 98833.33333 | AR7: ='PADD1 mthly rpt'!AR7+'PADD2 mthly rpt'!AR7+'PADD3 mthly rpt'!AR7+'PADD4 mthly rpt'!AR7+'PADD5 mthly rpt'!AR7 -> 130483.871 | AS7: ='PADD1 mthly rpt'!AS7+'PADD2 mthly rpt'!AS7+'PADD3 mthly rpt'!AS7+'PADD4 mthly rpt'!AS7+'PADD5 mthly rpt'!AS7 -> 186032.2581 | AT7: ='PADD1 mthly rpt'!AT7+'PADD2 mthly rpt'!AT7+'PADD3 mthly rpt'!AT7+'PADD4 mthly rpt'!AT7+'PADD5 mthly rpt'!AT7 -> 186300 | AU7: ='PADD1 mthly rpt'!AU7+'PADD2 mthly rpt'!AU7+'PADD3 mthly rpt'!AU7+'PADD4 mthly rpt'!AU7+'PADD5 mthly rpt'!AU7 -> 178935.4839 | AV7: ='PADD1 mthly rpt'!AV7+'PADD2 mthly rpt'!AV7+'PADD3 mthly rpt'!AV7+'PADD4 mthly rpt'!AV7+'PADD5 mthly rpt'!AV7 -> 196233.3333 | AW7: ='PADD1 mthly rpt'!AW7+'PADD2 mthly rpt'!AW7+'PADD3 mthly rpt'!AW7+'PADD4 mthly rpt'!AW7+'PADD5 mthly rpt'!AW7 -> 228612.9032 | AX7: ='PADD1 mthly rpt'!AX7+'PADD2 mthly rpt'!AX7+'PADD3 mthly rpt'!AX7+'PADD4 mthly rpt'!AX7+'PADD5 mthly rpt'!AX7 -> 222741.9355 | AY7: ='PADD1 mthly rpt'!AY7+'PADD2 mthly rpt'!AY7+'PADD3 mthly rpt'!AY7+'PADD4 mthly rpt'!AY7+'PADD5 mthly rpt'!AY7 -> 206535.7143 | AZ7: ='PADD1 mthly rpt'!AZ7+'PADD2 mthly rpt'!AZ7+'PADD3 mthly rpt'!AZ7+'PADD4 mthly rpt'!AZ7+'PADD5 mthly rpt'!AZ7 -> 218322.5806 | BA7: ='PADD1 mthly rpt'!BA7+'PADD2 mthly rpt'!BA7+'PADD3 mthly rpt'!BA7+'PADD4 mthly rpt'!BA7+'PADD5 mthly rpt'!BA7 -> 124233.3333 | BB7: ='PADD1 mthly rpt'!BB7+'PADD2 mthly rpt'!BB7+'PADD3 mthly rpt'!BB7+'PADD4 mthly rpt'!BB7+'PADD5 mthly rpt'!BB7 -> 105096.7742 | BC7: ='PADD1 mthly rpt'!BC7+'PADD2 mthly rpt'!BC7+'PADD3 mthly rpt'!BC7+'PADD4 mthly rpt'!BC7+'PADD5 mthly rpt'!BC7 -> 69966.66667 | BD7: ='PADD1 mthly rpt'!BD7+'PADD2 mthly rpt'!BD7+'PADD3 mthly rpt'!BD7+'PADD4 mthly rpt'!BD7+'PADD5 mthly rpt'!BD7 -> 99903.22581 | BE7: ='PADD1 mthly rpt'!BE7+'PADD2 mthly rpt'!BE7+'PADD3 mthly rpt'!BE7+'PADD4 mthly rpt'!BE7+'PADD5 mthly rpt'!BE7 -> 62645.16129 | BF7: ='PADD1 mthly rpt'!BF7+'PADD2 mthly rpt'!BF7+'PADD3 mthly rpt'!BF7+'PADD4 mthly rpt'!BF7+'PADD5 mthly rpt'!BF7 -> 94800 | BG7: ='PADD1 mthly rpt'!BG7+'PADD2 mthly rpt'!BG7+'PADD3 mthly rpt'!BG7+'PADD4 mthly rpt'!BG7+'PADD5 mthly rpt'!BG7 -> 145000 | BH7: ='PADD1 mthly rpt'!BH7+'PADD2 mthly rpt'!BH7+'PADD3 mthly rpt'!BH7+'PADD4 mthly rpt'!BH7+'PADD5 mthly rpt'!BH7 -> 205966.6667 | BI7: ='PADD1 mthly rpt'!BI7+'PADD2 mthly rpt'!BI7+'PADD3 mthly rpt'!BI7+'PADD4 mthly rpt'!BI7+'PADD5 mthly rpt'!BI7 -> 212000 | BJ7: ='PADD1 mthly rpt'!BJ7+'PADD2 mthly rpt'!BJ7+'PADD3 mthly rpt'!BJ7+'PADD4 mthly rpt'!BJ7+'PADD5 mthly rpt'!BJ7 -> 192000 | BK7: ='PADD1 mthly rpt'!BK7+'PADD2 mthly rpt'!BK7+'PADD3 mthly rpt'!BK7+'PADD4 mthly rpt'!BK7+'PADD5 mthly rpt'!BK7 -> 217178.5714 | BL7: ='PADD1 mthly rpt'!BL7+'PADD2 mthly rpt'!BL7+'PADD3 mthly rpt'!BL7+'PADD4 mthly rpt'!BL7+'PADD5 mthly rpt'!BL7 -> 136806.4516 | BM7: ='PADD1 mthly rpt'!BM7+'PADD2 mthly rpt'!BM7+'PADD3 mthly rpt'!BM7+'PADD4 mthly rpt'!BM7+'PADD5 mthly rpt'!BM7 -> 78500 | BN7: ='PADD1 mthly rpt'!BN7+'PADD2 mthly rpt'!BN7+'PADD3 mthly rpt'!BN7+'PADD4 mthly rpt'!BN7+'PADD5 mthly rpt'!BN7 -> 81935.48387 | BO7: ='PADD1 mthly rpt'!BO7+'PADD2 mthly rpt'!BO7+'PADD3 mthly rpt'!BO7+'PADD4 mthly rpt'!BO7+'PADD5 mthly rpt'!BO7 -> 72500 | BP7: ='PADD1 mthly rpt'!BP7+'PADD2 mthly rpt'!BP7+'PADD3 mthly rpt'!BP7+'PADD4 mthly rpt'!BP7+'PADD5 mthly rpt'!BP7 -> 55741.93548 | BQ7: ='PADD1 mthly rpt'!BQ7+'PADD2 mthly rpt'!BQ7+'PADD3 mthly rpt'!BQ7+'PADD4 mthly rpt'!BQ7+'PADD5 mthly rpt'!BQ7 -> 62387.09677 | BR7: ='PADD1 mthly rpt'!BR7+'PADD2 mthly rpt'!BR7+'PADD3 mthly rpt'!BR7+'PADD4 mthly rpt'!BR7+'PADD5 mthly rpt'!BR7 -> 84966.66667 | BS7: ='PADD1 mthly rpt'!BS7+'PADD2 mthly rpt'!BS7+'PADD3 mthly rpt'!BS7+'PADD4 mthly rpt'!BS7+'PADD5 mthly rpt'!BS7 -> 131129.0323 | BT7: ='PADD1 mthly rpt'!BT7+'PADD2 mthly rpt'!BT7+'PADD3 mthly rpt'!BT7+'PADD4 mthly rpt'!BT7+'PADD5 mthly rpt'!BT7 -> 132300 | BU7: ='PADD1 mthly rpt'!BU7+'PADD2 mthly rpt'!BU7+'PADD3 mthly rpt'!BU7+'PADD4 mthly rpt'!BU7+'PADD5 mthly rpt'!BU7 -> 214064.5161 | BV7: ='PADD1 mthly rpt'!BV7+'PADD2 mthly rpt'!BV7+'PADD3 mthly rpt'!BV7+'PADD4 mthly rpt'!BV7+'PADD5 mthly rpt'!BV7 -> 174903.2258 | BW7: ='PADD1 mthly rpt'!BW7+'PADD2 mthly rpt'!BW7+'PADD3 mthly rpt'!BW7+'PADD4 mthly rpt'!BW7+'PADD5 mthly rpt'!BW7 -> 174571.4286 | BX7: ='PADD1 mthly rpt'!BX7+'PADD2 mthly rpt'!BX7+'PADD3 mthly rpt'!BX7+'PADD4 mthly rpt'!BX7+'PADD5 mthly rpt'!BX7 -> 137161.2903 | BY7: ='PADD1 mthly rpt'!BY7+'PADD2 mthly rpt'!BY7+'PADD3 mthly rpt'!BY7+'PADD4 mthly rpt'!BY7+'PADD5 mthly rpt'!BY7 -> 96333.33333 | BZ7: ='PADD1 mthly rpt'!BZ7+'PADD2 mthly rpt'!BZ7+'PADD3 mthly rpt'!BZ7+'PADD4 mthly rpt'!BZ7+'PADD5 mthly rpt'!BZ7 -> 74032.25806 | CA7: ='PADD1 mthly rpt'!CA7+'PADD2 mthly rpt'!CA7+'PADD3 mthly rpt'!CA7+'PADD4 mthly rpt'!CA7+'PADD5 mthly rpt'!CA7 -> 62466.66667 | CB7: ='PADD1 mthly rpt'!CB7+'PADD2 mthly rpt'!CB7+'PADD3 mthly rpt'!CB7+'PADD4 mthly rpt'!CB7+'PADD5 mthly rpt'!CB7 -> 60548.3871 | CC7: ='PADD1 mthly rpt'!CC7+'PADD2 mthly rpt'!CC7+'PADD3 mthly rpt'!CC7+'PADD4 mthly rpt'!CC7+'PADD5 mthly rpt'!CC7 -> 73064.51613 | CD7: ='PADD1 mthly rpt'!CD7+'PADD2 mthly rpt'!CD7+'PADD3 mthly rpt'!CD7+'PADD4 mthly rpt'!CD7+'PADD5 mthly rpt'!CD7 -> 109200 | CE7: ='PADD1 mthly rpt'!CE7+'PADD2 mthly rpt'!CE7+'PADD3 mthly rpt'!CE7+'PADD4 mthly rpt'!CE7+'PADD5 mthly rpt'!CE7 -> 95258.06452 | CF7: ='PADD1 mthly rpt'!CF7+'PADD2 mthly rpt'!CF7+'PADD3 mthly rpt'!CF7+'PADD4 mthly rpt'!CF7+'PADD5 mthly rpt'!CF7 -> 109633.3333 | CG7: ='PADD1 mthly rpt'!CG7+'PADD2 mthly rpt'!CG7+'PADD3 mthly rpt'!CG7+'PADD4 mthly rpt'!CG7+'PADD5 mthly rpt'!CG7 -> 151806.4516 | CH7: ='PADD1 mthly rpt'!CH7+'PADD2 mthly rpt'!CH7+'PADD3 mthly rpt'!CH7+'PADD4 mthly rpt'!CH7+'PADD5 mthly rpt'!CH7 -> 145645.1613 | CI7: ='PADD1 mthly rpt'!CI7+'PADD2 mthly rpt'!CI7+'PADD3 mthly rpt'!CI7+'PADD4 mthly rpt'!CI7+'PADD5 mthly rpt'!CI7 -> 127048.0296 | CJ7: ='PADD1 mthly rpt'!CJ7+'PADD2 mthly rpt'!CJ7+'PADD3 mthly rpt'!CJ7+'PADD4 mthly rpt'!CJ7+'PADD5 mthly rpt'!CJ7 -> 108580.6452 | CK7: ='PADD1 mthly rpt'!CK7+'PADD2 mthly rpt'!CK7+'PADD3 mthly rpt'!CK7+'PADD4 mthly rpt'!CK7+'PADD5 mthly rpt'!CK7 -> 114600 | CL7: ='PADD1 mthly rpt'!CL7+'PADD2 mthly rpt'!CL7+'PADD3 mthly rpt'!CL7+'PADD4 mthly rpt'!CL7+'PADD5 mthly rpt'!CL7 -> 106290.3226 | CM7: ='PADD1 mthly rpt'!CM7+'PADD2 mthly rpt'!CM7+'PADD3 mthly rpt'!CM7+'PADD4 mthly rpt'!CM7+'PADD5 mthly rpt'!CM7 -> 102300 | CN7: ='PADD1 mthly rpt'!CN7+'PADD2 mthly rpt'!CN7+'PADD3 mthly rpt'!CN7+'PADD4 mthly rpt'!CN7+'PADD5 mthly rpt'!CN7 -> 114741.9355 | CO7: ='PADD1 mthly rpt'!CO7+'PADD2 mthly rpt'!CO7+'PADD3 mthly rpt'!CO7+'PADD4 mthly rpt'!CO7+'PADD5 mthly rpt'!CO7 -> 84677.41935 | CP7: ='PADD1 mthly rpt'!CP7+'PADD2 mthly rpt'!CP7+'PADD3 mthly rpt'!CP7+'PADD4 mthly rpt'!CP7+'PADD5 mthly rpt'!CP7 -> 100433.3333 | CQ7: ='PADD1 mthly rpt'!CQ7+'PADD2 mthly rpt'!CQ7+'PADD3 mthly rpt'!CQ7+'PADD4 mthly rpt'!CQ7+'PADD5 mthly rpt'!CQ7 -> 90741.93548 | CR7: ='PADD1 mthly rpt'!CR7+'PADD2 mthly rpt'!CR7+'PADD3 mthly rpt'!CR7+'PADD4 mthly rpt'!CR7+'PADD5 mthly rpt'!CR7 -> 137766.6667 | CS7: ='PADD1 mthly rpt'!CS7+'PADD2 mthly rpt'!CS7+'PADD3 mthly rpt'!CS7+'PADD4 mthly rpt'!CS7+'PADD5 mthly rpt'!CS7 -> 161419.3548 | CT7: ='PADD1 mthly rpt'!CT7+'PADD2 mthly rpt'!CT7+'PADD3 mthly rpt'!CT7+'PADD4 mthly rpt'!CT7+'PADD5 mthly rpt'!CT7 -> 183741.9355 | CU7: ='PADD1 mthly rpt'!CU7+'PADD2 mthly rpt'!CU7+'PADD3 mthly rpt'!CU7+'PADD4 mthly rpt'!CU7+'PADD5 mthly rpt'!CU7 -> 165714.2857 | CV7: ='PADD1 mthly rpt'!CV7+'PADD2 mthly rpt'!CV7+'PADD3 mthly rpt'!CV7+'PADD4 mthly rpt'!CV7+'PADD5 mthly rpt'!CV7 -> 140806.4516 | CW7: ='PADD1 mthly rpt'!CW7+'PADD2 mthly rpt'!CW7+'PADD3 mthly rpt'!CW7+'PADD4 mthly rpt'!CW7+'PADD5 mthly rpt'!CW7 -> 110766.6667 | CX7: ='PADD1 mthly rpt'!CX7+'PADD2 mthly rpt'!CX7+'PADD3 mthly rpt'!CX7+'PADD4 mthly rpt'!CX7+'PADD5 mthly rpt'!CX7 -> 80709.67742 | CY7: ='PADD1 mthly rpt'!CY7+'PADD2 mthly rpt'!CY7+'PADD3 mthly rpt'!CY7+'PADD4 mthly rpt'!CY7+'PADD5 mthly rpt'!CY7 -> 111100 | CZ7: ='PADD1 mthly rpt'!CZ7+'PADD2 mthly rpt'!CZ7+'PADD3 mthly rpt'!CZ7+'PADD4 mthly rpt'!CZ7+'PADD5 mthly rpt'!CZ7 -> 87548.3871 | DA7: ='PADD1 mthly rpt'!DA7+'PADD2 mthly rpt'!DA7+'PADD3 mthly rpt'!DA7+'PADD4 mthly rpt'!DA7+'PADD5 mthly rpt'!DA7 -> 84354.83871 | DB7: ='PADD1 mthly rpt'!DB7+'PADD2 mthly rpt'!DB7+'PADD3 mthly rpt'!DB7+'PADD4 mthly rpt'!DB7+'PADD5 mthly rpt'!DB7 -> 86833.33333 | DC7: ='PADD1 mthly rpt'!DC7+'PADD2 mthly rpt'!DC7+'PADD3 mthly rpt'!DC7+'PADD4 mthly rpt'!DC7+'PADD5 mthly rpt'!DC7 -> 157612.9032 | DD7: ='PADD1 mthly rpt'!DD7+'PADD2 mthly rpt'!DD7+'PADD3 mthly rpt'!DD7+'PADD4 mthly rpt'!DD7+'PADD5 mthly rpt'!DD7 -> 168866.6667 | DE7: ='PADD1 mthly rpt'!DE7+'PADD2 mthly rpt'!DE7+'PADD3 mthly rpt'!DE7+'PADD4 mthly rpt'!DE7+'PADD5 mthly rpt'!DE7 -> 146419.3548 | DF7: ='PADD1 mthly rpt'!DF7+'PADD2 mthly rpt'!DF7+'PADD3 mthly rpt'!DF7+'PADD4 mthly rpt'!DF7+'PADD5 mthly rpt'!DF7 -> 187064.5161 | DG7: ='PADD1 mthly rpt'!DG7+'PADD2 mthly rpt'!DG7+'PADD3 mthly rpt'!DG7+'PADD4 mthly rpt'!DG7+'PADD5 mthly rpt'!DG7 -> 220750 | DH7: ='PADD1 mthly rpt'!DH7+'PADD2 mthly rpt'!DH7+'PADD3 mthly rpt'!DH7+'PADD4 mthly rpt'!DH7+'PADD5 mthly rpt'!DH7 -> 122322.5806 | DI7: ='PADD1 mthly rpt'!DI7+'PADD2 mthly rpt'!DI7+'PADD3 mthly rpt'!DI7+'PADD4 mthly rpt'!DI7+'PADD5 mthly rpt'!DI7 -> 78700 | DJ7: ='PADD1 mthly rpt'!DJ7+'PADD2 mthly rpt'!DJ7+'PADD3 mthly rpt'!DJ7+'PADD4 mthly rpt'!DJ7+'PADD5 mthly rpt'!DJ7 -> 66258.06452 | DK7: ='PADD1 mthly rpt'!DK7+'PADD2 mthly rpt'!DK7+'PADD3 mthly rpt'!DK7+'PADD4 mthly rpt'!DK7+'PADD5 mthly rpt'!DK7 -> 91300 | DL7: ='PADD1 mthly rpt'!DL7+'PADD2 mthly rpt'!DL7+'PADD3 mthly rpt'!DL7+'PADD4 mthly rpt'!DL7+'PADD5 mthly rpt'!DL7 -> 64032.25806 | DM7: ='PADD1 mthly rpt'!DM7+'PADD2 mthly rpt'!DM7+'PADD3 mthly rpt'!DM7+'PADD4 mthly rpt'!DM7+'PADD5 mthly rpt'!DM7 -> 76322.58065 | DN7: ='PADD1 mthly rpt'!DN7+'PADD2 mthly rpt'!DN7+'PADD3 mthly rpt'!DN7+'PADD4 mthly rpt'!DN7+'PADD5 mthly rpt'!DN7 -> 75333.33333 | DO7: ='PADD1 mthly rpt'!DO7+'PADD2 mthly rpt'!DO7+'PADD3 mthly rpt'!DO7+'PADD4 mthly rpt'!DO7+'PADD5 mthly rpt'!DO7 -> 98903.22581 | DP7: ='PADD1 mthly rpt'!DP7+'PADD2 mthly rpt'!DP7+'PADD3 mthly rpt'!DP7+'PADD4 mthly rpt'!DP7+'PADD5 mthly rpt'!DP7 -> 89666.66667 | DQ7: ='PADD1 mthly rpt'!DQ7+'PADD2 mthly rpt'!DQ7+'PADD3 mthly rpt'!DQ7+'PADD4 mthly rpt'!DQ7+'PADD5 mthly rpt'!DQ7 -> 128709.6774 | DR7: ='PADD1 mthly rpt'!DR7+'PADD2 mthly rpt'!DR7+'PADD3 mthly rpt'!DR7+'PADD4 mthly rpt'!DR7+'PADD5 mthly rpt'!DR7 -> 156225.8065 | DS7: ='PADD1 mthly rpt'!DS7+'PADD2 mthly rpt'!DS7+'PADD3 mthly rpt'!DS7+'PADD4 mthly rpt'!DS7+'PADD5 mthly rpt'!DS7 -> 163142.8571 | DT7: ='PADD1 mthly rpt'!DT7+'PADD2 mthly rpt'!DT7+'PADD3 mthly rpt'!DT7+'PADD4 mthly rpt'!DT7+'PADD5 mthly rpt'!DT7 -> 147451.6129 | DU7: ='PADD1 mthly rpt'!DU7+'PADD2 mthly rpt'!DU7+'PADD3 mthly rpt'!DU7+'PADD4 mthly rpt'!DU7+'PADD5 mthly rpt'!DU7 -> 127300 | DV7: ='PADD1 mthly rpt'!DV7+'PADD2 mthly rpt'!DV7+'PADD3 mthly rpt'!DV7+'PADD4 mthly rpt'!DV7+'PADD5 mthly rpt'!DV7 -> 91354.83871 | DW7: ='PADD1 mthly rpt'!DW7+'PADD2 mthly rpt'!DW7+'PADD3 mthly rpt'!DW7+'PADD4 mthly rpt'!DW7+'PADD5 mthly rpt'!DW7 -> 96400 | DX7: ='PADD1 mthly rpt'!DX7+'PADD2 mthly rpt'!DX7+'PADD3 mthly rpt'!DX7+'PADD4 mthly rpt'!DX7+'PADD5 mthly rpt'!DX7 -> 107483.871 | DY7: ='PADD1 mthly rpt'!DY7+'PADD2 mthly rpt'!DY7+'PADD3 mthly rpt'!DY7+'PADD4 mthly rpt'!DY7+'PADD5 mthly rpt'!DY7 -> 111387.0968 | DZ7: ='PADD1 mthly rpt'!DZ7+'PADD2 mthly rpt'!DZ7+'PADD3 mthly rpt'!DZ7+'PADD4 mthly rpt'!DZ7+'PADD5 mthly rpt'!DZ7 -> 91833.33333 | EA7: ='PADD1 mthly rpt'!EA7+'PADD2 mthly rpt'!EA7+'PADD3 mthly rpt'!EA7+'PADD4 mthly rpt'!EA7+'PADD5 mthly rpt'!EA7 -> 119645.1613 | EB7: ='PADD1 mthly rpt'!EB7+'PADD2 mthly rpt'!EB7+'PADD3 mthly rpt'!EB7+'PADD4 mthly rpt'!EB7+'PADD5 mthly rpt'!EB7 -> 128633.3333 | EC7: ='PADD1 mthly rpt'!EC7+'PADD2 mthly rpt'!EC7+'PADD3 mthly rpt'!EC7+'PADD4 mthly rpt'!EC7+'PADD5 mthly rpt'!EC7 -> 145193.5484 | ED7: ='PADD1 mthly rpt'!ED7+'PADD2 mthly rpt'!ED7+'PADD3 mthly rpt'!ED7+'PADD4 mthly rpt'!ED7+'PADD5 mthly rpt'!ED7 -> 146903.2258 | EE7: ='PADD1 mthly rpt'!EE7+'PADD2 mthly rpt'!EE7+'PADD3 mthly rpt'!EE7+'PADD4 mthly rpt'!EE7+'PADD5 mthly rpt'!EE7 -> 196241.3793 | EF7: ='PADD1 mthly rpt'!EF7+'PADD2 mthly rpt'!EF7+'PADD3 mthly rpt'!EF7+'PADD4 mthly rpt'!EF7+'PADD5 mthly rpt'!EF7 -> 128387.0968 | EG7: ='PADD1 mthly rpt'!EG7+'PADD2 mthly rpt'!EG7+'PADD3 mthly rpt'!EG7+'PADD4 mthly rpt'!EG7+'PADD5 mthly rpt'!EG7 -> 109300 | EH7: ='PADD1 mthly rpt'!EH7+'PADD2 mthly rpt'!EH7+'PADD3 mthly rpt'!EH7+'PADD4 mthly rpt'!EH7+'PADD5 mthly rpt'!EH7 -> 106645.1613 | EI7: ='PADD1 mthly rpt'!EI7+'PADD2 mthly rpt'!EI7+'PADD3 mthly rpt'!EI7+'PADD4 mthly rpt'!EI7+'PADD5 mthly rpt'!EI7 -> 101733.3333 | EJ7: ='PADD1 mthly rpt'!EJ7+'PADD2 mthly rpt'!EJ7+'PADD3 mthly rpt'!EJ7+'PADD4 mthly rpt'!EJ7+'PADD5 mthly rpt'!EJ7 -> 110225.8065 | EK7: ='PADD1 mthly rpt'!EK7+'PADD2 mthly rpt'!EK7+'PADD3 mthly rpt'!EK7+'PADD4 mthly rpt'!EK7+'PADD5 mthly rpt'!EK7 -> 123193.5484 | EL7: ='PADD1 mthly rpt'!EL7+'PADD2 mthly rpt'!EL7+'PADD3 mthly rpt'!EL7+'PADD4 mthly rpt'!EL7+'PADD5 mthly rpt'!EL7 -> 126840.1017 | EM7: ='PADD1 mthly rpt'!EM7+'PADD2 mthly rpt'!EM7+'PADD3 mthly rpt'!EM7+'PADD4 mthly rpt'!EM7+'PADD5 mthly rpt'!EM7 -> 142366.9834 | EN7: ='PADD1 mthly rpt'!EN7+'PADD2 mthly rpt'!EN7+'PADD3 mthly rpt'!EN7+'PADD4 mthly rpt'!EN7+'PADD5 mthly rpt'!EN7 -> 166541.1017 | EO7: ='PADD1 mthly rpt'!EO7+'PADD2 mthly rpt'!EO7+'PADD3 mthly rpt'!EO7+'PADD4 mthly rpt'!EO7+'PADD5 mthly rpt'!EO7 -> 178498.0156 | EP7: ='PADD1 mthly rpt'!EP7+'PADD2 mthly rpt'!EP7+'PADD3 mthly rpt'!EP7+'PADD4 mthly rpt'!EP7+'PADD5 mthly rpt'!EP7 -> 247918.3705 | EQ7: ='PADD1 mthly rpt'!EQ7+'PADD2 mthly rpt'!EQ7+'PADD3 mthly rpt'!EQ7+'PADD4 mthly rpt'!EQ7+'PADD5 mthly rpt'!EQ7 -> 218882.0788 | ER7: ='PADD1 mthly rpt'!ER7+'PADD2 mthly rpt'!ER7+'PADD3 mthly rpt'!ER7+'PADD4 mthly rpt'!ER7+'PADD5 mthly rpt'!ER7 -> 172371.9834 | ES7: ='PADD1 mthly rpt'!ES7+'PADD2 mthly rpt'!ES7+'PADD3 mthly rpt'!ES7+'PADD4 mthly rpt'!ES7+'PADD5 mthly rpt'!ES7 -> 117746.1017 | ET7: ='PADD1 mthly rpt'!ET7+'PADD2 mthly rpt'!ET7+'PADD3 mthly rpt'!ET7+'PADD4 mthly rpt'!ET7+'PADD5 mthly rpt'!ET7 -> 126341.7253 | EU7: ='PADD1 mthly rpt'!EU7+'PADD2 mthly rpt'!EU7+'PADD3 mthly rpt'!EU7+'PADD4 mthly rpt'!EU7+'PADD5 mthly rpt'!EU7 -> 105700 | EV7: ='PADD1 mthly rpt'!EV7+'PADD2 mthly rpt'!EV7+'PADD3 mthly rpt'!EV7+'PADD4 mthly rpt'!EV7+'PADD5 mthly rpt'!EV7 -> 97354.83871 | EW7: ='PADD1 mthly rpt'!EW7+'PADD2 mthly rpt'!EW7+'PADD3 mthly rpt'!EW7+'PADD4 mthly rpt'!EW7+'PADD5 mthly rpt'!EW7 -> 102954.6076 | EX7: ='PADD1 mthly rpt'!EX7+'PADD2 mthly rpt'!EX7+'PADD3 mthly rpt'!EX7+'PADD4 mthly rpt'!EX7+'PADD5 mthly rpt'!EX7 -> 127612.2915 | EY7: ='PADD1 mthly rpt'!EY7+'PADD2 mthly rpt'!EY7+'PADD3 mthly rpt'!EY7+'PADD4 mthly rpt'!EY7+'PADD5 mthly rpt'!EY7 -> 166677.0713 | EZ7: ='PADD1 mthly rpt'!EZ7+'PADD2 mthly rpt'!EZ7+'PADD3 mthly rpt'!EZ7+'PADD4 mthly rpt'!EZ7+'PADD5 mthly rpt'!EZ7 -> 131573.0223 | FA7: ='PADD1 mthly rpt'!FA7+'PADD2 mthly rpt'!FA7+'PADD3 mthly rpt'!FA7+'PADD4 mthly rpt'!FA7+'PADD5 mthly rpt'!FA7 -> 148480.7282 | FB7: ='PADD1 mthly rpt'!FB7+'PADD2 mthly rpt'!FB7+'PADD3 mthly rpt'!FB7+'PADD4 mthly rpt'!FB7+'PADD5 mthly rpt'!FB7 -> 216595.3494 | FC7: ='PADD1 mthly rpt'!FC7+'PADD2 mthly rpt'!FC7+'PADD3 mthly rpt'!FC7+'PADD4 mthly rpt'!FC7+'PADD5 mthly rpt'!FC7 -> 181064.362 | FD7: ='PADD1 mthly rpt'!FD7+'PADD2 mthly rpt'!FD7+'PADD3 mthly rpt'!FD7+'PADD4 mthly rpt'!FD7+'PADD5 mthly rpt'!FD7 -> 116289.2876 | FE7: ='PADD1 mthly rpt'!FE7+'PADD2 mthly rpt'!FE7+'PADD3 mthly rpt'!FE7+'PADD4 mthly rpt'!FE7+'PADD5 mthly rpt'!FE7 -> 87878.80412 | FF7: ='PADD1 mthly rpt'!FF7+'PADD2 mthly rpt'!FF7+'PADD3 mthly rpt'!FF7+'PADD4 mthly rpt'!FF7+'PADD5 mthly rpt'!FF7 -> 60527.34925 | FG7: ='PADD1 mthly rpt'!FG7+'PADD2 mthly rpt'!FG7+'PADD3 mthly rpt'!FG7+'PADD4 mthly rpt'!FG7+'PADD5 mthly rpt'!FG7 -> 59974.78465 | FH7: ='PADD1 mthly rpt'!FH7+'PADD2 mthly rpt'!FH7+'PADD3 mthly rpt'!FH7+'PADD4 mthly rpt'!FH7+'PADD5 mthly rpt'!FH7 -> 68888.94635 | FI7: ='PADD1 mthly rpt'!FI7+'PADD2 mthly rpt'!FI7+'PADD3 mthly rpt'!FI7+'PADD4 mthly rpt'!FI7+'PADD5 mthly rpt'!FI7 -> 74176.97686 | FJ7: ='PADD1 mthly rpt'!FJ7+'PADD2 mthly rpt'!FJ7+'PADD3 mthly rpt'!FJ7+'PADD4 mthly rpt'!FJ7+'PADD5 mthly rpt'!FJ7 -> 76485.70646 | FK7: ='PADD1 mthly rpt'!FK7+'PADD2 mthly rpt'!FK7+'PADD3 mthly rpt'!FK7+'PADD4 mthly rpt'!FK7+'PADD5 mthly rpt'!FK7 -> 111483.4972 | FL7: ='PADD1 mthly rpt'!FL7+'PADD2 mthly rpt'!FL7+'PADD3 mthly rpt'!FL7+'PADD4 mthly rpt'!FL7+'PADD5 mthly rpt'!FL7 -> 142810.9415 | FM7: ='PADD1 mthly rpt'!FM7+'PADD2 mthly rpt'!FM7+'PADD3 mthly rpt'!FM7+'PADD4 mthly rpt'!FM7+'PADD5 mthly rpt'!FM7 -> 155917.2882 | FN7: ='PADD1 mthly rpt'!FN7+'PADD2 mthly rpt'!FN7+'PADD3 mthly rpt'!FN7+'PADD4 mthly rpt'!FN7+'PADD5 mthly rpt'!FN7 -> 213052.3314 | FO7: ='PADD1 mthly rpt'!FO7+'PADD2 mthly rpt'!FO7+'PADD3 mthly rpt'!FO7+'PADD4 mthly rpt'!FO7+'PADD5 mthly rpt'!FO7 -> 179557.5353 | FP7: ='PADD1 mthly rpt'!FP7+'PADD2 mthly rpt'!FP7+'PADD3 mthly rpt'!FP7+'PADD4 mthly rpt'!FP7+'PADD5 mthly rpt'!FP7 -> 144921.5281 | FQ7: ='PADD1 mthly rpt'!FQ7+'PADD2 mthly rpt'!FQ7+'PADD3 mthly rpt'!FQ7+'PADD4 mthly rpt'!FQ7+'PADD5 mthly rpt'!FQ7 -> 113067.2903 | FR7: ='PADD1 mthly rpt'!FR7+'PADD2 mthly rpt'!FR7+'PADD3 mthly rpt'!FR7+'PADD4 mthly rpt'!FR7+'PADD5 mthly rpt'!FR7 -> 82214.01265 | FS7: ='PADD1 mthly rpt'!FS7+'PADD2 mthly rpt'!FS7+'PADD3 mthly rpt'!FS7+'PADD4 mthly rpt'!FS7+'PADD5 mthly rpt'!FS7 -> 97513.20927 | FT7: ='PADD1 mthly rpt'!FT7+'PADD2 mthly rpt'!FT7+'PADD3 mthly rpt'!FT7+'PADD4 mthly rpt'!FT7+'PADD5 mthly rpt'!FT7 -> 99914.95894 | FU7: ='PADD1 mthly rpt'!FU7+'PADD2 mthly rpt'!FU7+'PADD3 mthly rpt'!FU7+'PADD4 mthly rpt'!FU7+'PADD5 mthly rpt'!FU7 -> 86000.69701 | FV7: ='PADD1 mthly rpt'!FV7+'PADD2 mthly rpt'!FV7+'PADD3 mthly rpt'!FV7+'PADD4 mthly rpt'!FV7+'PADD5 mthly rpt'!FV7 -> 100346.9291 | FW7: ='PADD1 mthly rpt'!FW7+'PADD2 mthly rpt'!FW7+'PADD3 mthly rpt'!FW7+'PADD4 mthly rpt'!FW7+'PADD5 mthly rpt'!FW7 -> 142326.1616 | FX7: ='PADD1 mthly rpt'!FX7+'PADD2 mthly rpt'!FX7+'PADD3 mthly rpt'!FX7+'PADD4 mthly rpt'!FX7+'PADD5 mthly rpt'!FX7 -> 157961.4764 | FY7: ='PADD1 mthly rpt'!FY7+'PADD2 mthly rpt'!FY7+'PADD3 mthly rpt'!FY7+'PADD4 mthly rpt'!FY7+'PADD5 mthly rpt'!FY7 -> 169287.3 | FZ7: ='PADD1 mthly rpt'!FZ7+'PADD2 mthly rpt'!FZ7+'PADD3 mthly rpt'!FZ7+'PADD4 mthly rpt'!FZ7+'PADD5 mthly rpt'!FZ7 -> 208585.7204 | GA7: ='PADD1 mthly rpt'!GA7+'PADD2 mthly rpt'!GA7+'PADD3 mthly rpt'!GA7+'PADD4 mthly rpt'!GA7+'PADD5 mthly rpt'!GA7 -> 149413.3802 | GB7: ='PADD1 mthly rpt'!GB7+'PADD2 mthly rpt'!GB7+'PADD3 mthly rpt'!GB7+'PADD4 mthly rpt'!GB7+'PADD5 mthly rpt'!GB7 -> 129737.8381 | GC7: ='PADD1 mthly rpt'!GC7+'PADD2 mthly rpt'!GC7+'PADD3 mthly rpt'!GC7+'PADD4 mthly rpt'!GC7+'PADD5 mthly rpt'!GC7 -> 99664.87843 | GD7: ='PADD1 mthly rpt'!GD7+'PADD2 mthly rpt'!GD7+'PADD3 mthly rpt'!GD7+'PADD4 mthly rpt'!GD7+'PADD5 mthly rpt'!GD7 -> 81669.32763 | GE7: ='PADD1 mthly rpt'!GE7+'PADD2 mthly rpt'!GE7+'PADD3 mthly rpt'!GE7+'PADD4 mthly rpt'!GE7+'PADD5 mthly rpt'!GE7 -> 81430.79578 | GF7: ='PADD1 mthly rpt'!GF7+'PADD2 mthly rpt'!GF7+'PADD3 mthly rpt'!GF7+'PADD4 mthly rpt'!GF7+'PADD5 mthly rpt'!GF7 -> 111919.2268 | GG7: ='PADD1 mthly rpt'!GG7+'PADD2 mthly rpt'!GG7+'PADD3 mthly rpt'!GG7+'PADD4 mthly rpt'!GG7+'PADD5 mthly rpt'!GG7 -> 81000.11613 | GH7: ='PADD1 mthly rpt'!GH7+'PADD2 mthly rpt'!GH7+'PADD3 mthly rpt'!GH7+'PADD4 mthly rpt'!GH7+'PADD5 mthly rpt'!GH7 -> 89479.80506 | GI7: ='PADD1 mthly rpt'!GI7+'PADD2 mthly rpt'!GI7+'PADD3 mthly rpt'!GI7+'PADD4 mthly rpt'!GI7+'PADD5 mthly rpt'!GI7 -> 140252.9772 | GJ7: ='PADD1 mthly rpt'!GJ7+'PADD2 mthly rpt'!GJ7+'PADD3 mthly rpt'!GJ7+'PADD4 mthly rpt'!GJ7+'PADD5 mthly rpt'!GJ7 -> 166468.8451 | GK7: ='PADD1 mthly rpt'!GK7+'PADD2 mthly rpt'!GK7+'PADD3 mthly rpt'!GK7+'PADD4 mthly rpt'!GK7+'PADD5 mthly rpt'!GK7 -> 186711.1248 | GL7: ='PADD1 mthly rpt'!GL7+'PADD2 mthly rpt'!GL7+'PADD3 mthly rpt'!GL7+'PADD4 mthly rpt'!GL7+'PADD5 mthly rpt'!GL7 -> 153865.4109 | GM7: ='PADD1 mthly rpt'!GM7+'PADD2 mthly rpt'!GM7+'PADD3 mthly rpt'!GM7+'PADD4 mthly rpt'!GM7+'PADD5 mthly rpt'!GM7 -> 165419.3241 | GN7: ='PADD1 mthly rpt'!GN7+'PADD2 mthly rpt'!GN7+'PADD3 mthly rpt'!GN7+'PADD4 mthly rpt'!GN7+'PADD5 mthly rpt'!GN7 -> 185728.1232 | GO7: ='PADD1 mthly rpt'!GO7+'PADD2 mthly rpt'!GO7+'PADD3 mthly rpt'!GO7+'PADD4 mthly rpt'!GO7+'PADD5 mthly rpt'!GO7 -> 75472.78485 | GP7: ='PADD1 mthly rpt'!GP7+'PADD2 mthly rpt'!GP7+'PADD3 mthly rpt'!GP7+'PADD4 mthly rpt'!GP7+'PADD5 mthly rpt'!GP7 -> 38758.99924 | GQ7: ='PADD1 mthly rpt'!GQ7+'PADD2 mthly rpt'!GQ7+'PADD3 mthly rpt'!GQ7+'PADD4 mthly rpt'!GQ7+'PADD5 mthly rpt'!GQ7 -> 118986.1205 | GR7: ='PADD1 mthly rpt'!GR7+'PADD2 mthly rpt'!GR7+'PADD3 mthly rpt'!GR7+'PADD4 mthly rpt'!GR7+'PADD5 mthly rpt'!GR7 -> 211506.5157 | GS7: ='PADD1 mthly rpt'!GS7+'PADD2 mthly rpt'!GS7+'PADD3 mthly rpt'!GS7+'PADD4 mthly rpt'!GS7+'PADD5 mthly rpt'!GS7 -> 133490.2589 | GT7: ='PADD1 mthly rpt'!GT7+'PADD2 mthly rpt'!GT7+'PADD3 mthly rpt'!GT7+'PADD4 mthly rpt'!GT7+'PADD5 mthly rpt'!GT7 -> 157356.337 | GU7: ='PADD1 mthly rpt'!GU7+'PADD2 mthly rpt'!GU7+'PADD3 mthly rpt'!GU7+'PADD4 mthly rpt'!GU7+'PADD5 mthly rpt'!GU7 -> 175872.9952 | GV7: ='PADD1 mthly rpt'!GV7+'PADD2 mthly rpt'!GV7+'PADD3 mthly rpt'!GV7+'PADD4 mthly rpt'!GV7+'PADD5 mthly rpt'!GV7 -> 171409.1413 | GW7: ='PADD1 mthly rpt'!GW7+'PADD2 mthly rpt'!GW7+'PADD3 mthly rpt'!GW7+'PADD4 mthly rpt'!GW7+'PADD5 mthly rpt'!GW7 -> 194384.3418 | GX7: ='PADD1 mthly rpt'!GX7+'PADD2 mthly rpt'!GX7+'PADD3 mthly rpt'!GX7+'PADD4 mthly rpt'!GX7+'PADD5 mthly rpt'!GX7 -> 206372.6432 | GY7: ='PADD1 mthly rpt'!GY7+'PADD2 mthly rpt'!GY7+'PADD3 mthly rpt'!GY7+'PADD4 mthly rpt'!GY7+'PADD5 mthly rpt'!GY7 -> 207374.5225 | GZ7: ='PADD1 mthly rpt'!GZ7+'PADD2 mthly rpt'!GZ7+'PADD3 mthly rpt'!GZ7+'PADD4 mthly rpt'!GZ7+'PADD5 mthly rpt'!GZ7 -> 220247.6683 | HA7: ='PADD1 mthly rpt'!HA7+'PADD2 mthly rpt'!HA7+'PADD3 mthly rpt'!HA7+'PADD4 mthly rpt'!HA7+'PADD5 mthly rpt'!HA7 -> 153512.4237 | HB7: ='PADD1 mthly rpt'!HB7+'PADD2 mthly rpt'!HB7+'PADD3 mthly rpt'!HB7+'PADD4 mthly rpt'!HB7+'PADD5 mthly rpt'!HB7 -> 133516.2125 | HC7: ='PADD1 mthly rpt'!HC7+'PADD2 mthly rpt'!HC7+'PADD3 mthly rpt'!HC7+'PADD4 mthly rpt'!HC7+'PADD5 mthly rpt'!HC7 -> 128272.6323
A8: Net Inter-PADD Transfers | B8: ='PADD1 mthly rpt'!B8+'PADD2 mthly rpt'!B8+'PADD3 mthly rpt'!B8+'PADD4 mthly rpt'!B8+'PADD5 mthly rpt'!B8 -> 0 | C8: ='PADD1 mthly rpt'!C8+'PADD2 mthly rpt'!C8+'PADD3 mthly rpt'!C8+'PADD4 mthly rpt'!C8+'PADD5 mthly rpt'!C8 -> 0 | D8: ='PADD1 mthly rpt'!D8+'PADD2 mthly rpt'!D8+'PADD3 mthly rpt'!D8+'PADD4 mthly rpt'!D8+'PADD5 mthly rpt'!D8 -> 0 | E8: ='PADD1 mthly rpt'!E8+'PADD2 mthly rpt'!E8+'PADD3 mthly rpt'!E8+'PADD4 mthly rpt'!E8+'PADD5 mthly rpt'!E8 -> 0 | F8: ='PADD1 mthly rpt'!F8+'PADD2 mthly rpt'!F8+'PADD3 mthly rpt'!F8+'PADD4 mthly rpt'!F8+'PADD5 mthly rpt'!F8 -> 0 | G8: ='PADD1 mthly rpt'!G8+'PADD2 mthly rpt'!G8+'PADD3 mthly rpt'!G8+'PADD4 mthly rpt'!G8+'PADD5 mthly rpt'!G8 -> 0 | H8: ='PADD1 mthly rpt'!H8+'PADD2 mthly rpt'!H8+'PADD3 mthly rpt'!H8+'PADD4 mthly rpt'!H8+'PADD5 mthly rpt'!H8 -> 0 | I8: ='PADD1 mthly rpt'!I8+'PADD2 mthly rpt'!I8+'PADD3 mthly rpt'!I8+'PADD4 mthly rpt'!I8+'PADD5 mthly rpt'!I8 -> 0 | J8: ='PADD1 mthly rpt'!J8+'PADD2 mthly rpt'!J8+'PADD3 mthly rpt'!J8+'PADD4 mthly rpt'!J8+'PADD5 mthly rpt'!J8 -> 0 | K8: ='PADD1 mthly rpt'!K8+'PADD2 mthly rpt'!K8+'PADD3 mthly rpt'!K8+'PADD4 mthly rpt'!K8+'PADD5 mthly rpt'!K8 -> 0 | L8: ='PADD1 mthly rpt'!L8+'PADD2 mthly rpt'!L8+'PADD3 mthly rpt'!L8+'PADD4 mthly rpt'!L8+'PADD5 mthly rpt'!L8 -> 0 | M8: ='PADD1 mthly rpt'!M8+'PADD2 mthly rpt'!M8+'PADD3 mthly rpt'!M8+'PADD4 mthly rpt'!M8+'PADD5 mthly rpt'!M8 -> 0 | N8: ='PADD1 mthly rpt'!N8+'PADD2 mthly rpt'!N8+'PADD3 mthly rpt'!N8+'PADD4 mthly rpt'!N8+'PADD5 mthly rpt'!N8 -> 0 | O8: ='PADD1 mthly rpt'!O8+'PADD2 mthly rpt'!O8+'PADD3 mthly rpt'!O8+'PADD4 mthly rpt'!O8+'PADD5 mthly rpt'!O8 -> 0 | P8: ='PADD1 mthly rpt'!P8+'PADD2 mthly rpt'!P8+'PADD3 mthly rpt'!P8+'PADD4 mthly rpt'!P8+'PADD5 mthly rpt'!P8 -> 0 | Q8: ='PADD1 mthly rpt'!Q8+'PADD2 mthly rpt'!Q8+'PADD3 mthly rpt'!Q8+'PADD4 mthly rpt'!Q8+'PADD5 mthly rpt'!Q8 -> 0 | R8: ='PADD1 mthly rpt'!R8+'PADD2 mthly rpt'!R8+'PADD3 mthly rpt'!R8+'PADD4 mthly rpt'!R8+'PADD5 mthly rpt'!R8 -> 0 | S8: ='PADD1 mthly rpt'!S8+'PADD2 mthly rpt'!S8+'PADD3 mthly rpt'!S8+'PADD4 mthly rpt'!S8+'PADD5 mthly rpt'!S8 -> 0 | T8: ='PADD1 mthly rpt'!T8+'PADD2 mthly rpt'!T8+'PADD3 mthly rpt'!T8+'PADD4 mthly rpt'!T8+'PADD5 mthly rpt'!T8 -> 0 | U8: ='PADD1 mthly rpt'!U8+'PADD2 mthly rpt'!U8+'PADD3 mthly rpt'!U8+'PADD4 mthly rpt'!U8+'PADD5 mthly rpt'!U8 -> 0 | V8: ='PADD1 mthly rpt'!V8+'PADD2 mthly rpt'!V8+'PADD3 mthly rpt'!V8+'PADD4 mthly rpt'!V8+'PADD5 mthly rpt'!V8 -> 0 | W8: ='PADD1 mthly rpt'!W8+'PADD2 mthly rpt'!W8+'PADD3 mthly rpt'!W8+'PADD4 mthly rpt'!W8+'PADD5 mthly rpt'!W8 -> 0 | X8: ='PADD1 mthly rpt'!X8+'PADD2 mthly rpt'!X8+'PADD3 mthly rpt'!X8+'PADD4 mthly rpt'!X8+'PADD5 mthly rpt'!X8 -> 0 | Y8: ='PADD1 mthly rpt'!Y8+'PADD2 mthly rpt'!Y8+'PADD3 mthly rpt'!Y8+'PADD4 mthly rpt'!Y8+'PADD5 mthly rpt'!Y8 -> 0 | Z8: ='PADD1 mthly rpt'!Z8+'PADD2 mthly rpt'!Z8+'PADD3 mthly rpt'!Z8+'PADD4 mthly rpt'!Z8+'PADD5 mthly rpt'!Z8 -> 0 | AA8: ='PADD1 mthly rpt'!AA8+'PADD2 mthly rpt'!AA8+'PADD3 mthly rpt'!AA8+'PADD4 mthly rpt'!AA8+'PADD5 mthly rpt'!AA8 -> 0 | AB8: ='PADD1 mthly rpt'!AB8+'PADD2 mthly rpt'!AB8+'PADD3 mthly rpt'!AB8+'PADD4 mthly rpt'!AB8+'PADD5 mthly rpt'!AB8 -> 0 | AC8: ='PADD1 mthly rpt'!AC8+'PADD2 mthly rpt'!AC8+'PADD3 mthly rpt'!AC8+'PADD4 mthly rpt'!AC8+'PADD5 mthly rpt'!AC8 -> 0 | AD8: ='PADD1 mthly rpt'!AD8+'PADD2 mthly rpt'!AD8+'PADD3 mthly rpt'!AD8+'PADD4 mthly rpt'!AD8+'PADD5 mthly rpt'!AD8 -> 0 | AE8: ='PADD1 mthly rpt'!AE8+'PADD2 mthly rpt'!AE8+'PADD3 mthly rpt'!AE8+'PADD4 mthly rpt'!AE8+'PADD5 mthly rpt'!AE8 -> 0 | AF8: ='PADD1 mthly rpt'!AF8+'PADD2 mthly rpt'!AF8+'PADD3 mthly rpt'!AF8+'PADD4 mthly rpt'!AF8+'PADD5 mthly rpt'!AF8 -> 0 | AG8: ='PADD1 mthly rpt'!AG8+'PADD2 mthly rpt'!AG8+'PADD3 mthly rpt'!AG8+'PADD4 mthly rpt'!AG8+'PADD5 mthly rpt'!AG8 -> 0 | AH8: ='PADD1 mthly rpt'!AH8+'PADD2 mthly rpt'!AH8+'PADD3 mthly rpt'!AH8+'PADD4 mthly rpt'!AH8+'PADD5 mthly rpt'!AH8 -> 0 | AI8: ='PADD1 mthly rpt'!AI8+'PADD2 mthly rpt'!AI8+'PADD3 mthly rpt'!AI8+'PADD4 mthly rpt'!AI8+'PADD5 mthly rpt'!AI8 -> 0 | AJ8: ='PADD1 mthly rpt'!AJ8+'PADD2 mthly rpt'!AJ8+'PADD3 mthly rpt'!AJ8+'PADD4 mthly rpt'!AJ8+'PADD5 mthly rpt'!AJ8 -> 0 | AK8: ='PADD1 mthly rpt'!AK8+'PADD2 mthly rpt'!AK8+'PADD3 mthly rpt'!AK8+'PADD4 mthly rpt'!AK8+'PADD5 mthly rpt'!AK8 -> 0 | AL8: ='PADD1 mthly rpt'!AL8+'PADD2 mthly rpt'!AL8+'PADD3 mthly rpt'!AL8+'PADD4 mthly rpt'!AL8+'PADD5 mthly rpt'!AL8 -> 0 | AM8: ='PADD1 mthly rpt'!AM8+'PADD2 mthly rpt'!AM8+'PADD3 mthly rpt'!AM8+'PADD4 mthly rpt'!AM8+'PADD5 mthly rpt'!AM8 -> 0 | AN8: ='PADD1 mthly rpt'!AN8+'PADD2 mthly rpt'!AN8+'PADD3 mthly rpt'!AN8+'PADD4 mthly rpt'!AN8+'PADD5 mthly rpt'!AN8 -> 0 | AO8: ='PADD1 mthly rpt'!AO8+'PADD2 mthly rpt'!AO8+'PADD3 mthly rpt'!AO8+'PADD4 mthly rpt'!AO8+'PADD5 mthly rpt'!AO8 -> 0 | AP8: ='PADD1 mthly rpt'!AP8+'PADD2 mthly rpt'!AP8+'PADD3 mthly rpt'!AP8+'PADD4 mthly rpt'!AP8+'PADD5 mthly rpt'!AP8 -> 0 | AQ8: ='PADD1 mthly rpt'!AQ8+'PADD2 mthly rpt'!AQ8+'PADD3 mthly rpt'!AQ8+'PADD4 mthly rpt'!AQ8+'PADD5 mthly rpt'!AQ8 -> 0 | AR8: ='PADD1 mthly rpt'!AR8+'PADD2 mthly rpt'!AR8+'PADD3 mthly rpt'!AR8+'PADD4 mthly rpt'!AR8+'PADD5 mthly rpt'!AR8 -> 0 | AS8: ='PADD1 mthly rpt'!AS8+'PADD2 mthly rpt'!AS8+'PADD3 mthly rpt'!AS8+'PADD4 mthly rpt'!AS8+'PADD5 mthly rpt'!AS8 -> 0 | AT8: ='PADD1 mthly rpt'!AT8+'PADD2 mthly rpt'!AT8+'PADD3 mthly rpt'!AT8+'PADD4 mthly rpt'!AT8+'PADD5 mthly rpt'!AT8 -> 0 | AU8: ='PADD1 mthly rpt'!AU8+'PADD2 mthly rpt'!AU8+'PADD3 mthly rpt'!AU8+'PADD4 mthly rpt'!AU8+'PADD5 mthly rpt'!AU8 -> 0 | AV8: ='PADD1 mthly rpt'!AV8+'PADD2 mthly rpt'!AV8+'PADD3 mthly rpt'!AV8+'PADD4 mthly rpt'!AV8+'PADD5 mthly rpt'!AV8 -> 0 | AW8: ='PADD1 mthly rpt'!AW8+'PADD2 mthly rpt'!AW8+'PADD3 mthly rpt'!AW8+'PADD4 mthly rpt'!AW8+'PADD5 mthly rpt'!AW8 -> 0 | AX8: ='PADD1 mthly rpt'!AX8+'PADD2 mthly rpt'!AX8+'PADD3 mthly rpt'!AX8+'PADD4 mthly rpt'!AX8+'PADD5 mthly rpt'!AX8 -> 0 | AY8: ='PADD1 mthly rpt'!AY8+'PADD2 mthly rpt'!AY8+'PADD3 mthly rpt'!AY8+'PADD4 mthly rpt'!AY8+'PADD5 mthly rpt'!AY8 -> 0 | AZ8: ='PADD1 mthly rpt'!AZ8+'PADD2 mthly rpt'!AZ8+'PADD3 mthly rpt'!AZ8+'PADD4 mthly rpt'!AZ8+'PADD5 mthly rpt'!AZ8 -> 0 | BA8: ='PADD1 mthly rpt'!BA8+'PADD2 mthly rpt'!BA8+'PADD3 mthly rpt'!BA8+'PADD4 mthly rpt'!BA8+'PADD5 mthly rpt'!BA8 -> 0 | BB8: ='PADD1 mthly rpt'!BB8+'PADD2 mthly rpt'!BB8+'PADD3 mthly rpt'!BB8+'PADD4 mthly rpt'!BB8+'PADD5 mthly rpt'!BB8 -> 0 | BC8: ='PADD1 mthly rpt'!BC8+'PADD2 mthly rpt'!BC8+'PADD3 mthly rpt'!BC8+'PADD4 mthly rpt'!BC8+'PADD5 mthly rpt'!BC8 -> 0 | BD8: ='PADD1 mthly rpt'!BD8+'PADD2 mthly rpt'!BD8+'PADD3 mthly rpt'!BD8+'PADD4 mthly rpt'!BD8+'PADD5 mthly rpt'!BD8 -> 0 | BE8: ='PADD1 mthly rpt'!BE8+'PADD2 mthly rpt'!BE8+'PADD3 mthly rpt'!BE8+'PADD4 mthly rpt'!BE8+'PADD5 mthly rpt'!BE8 -> 0 | BF8: ='PADD1 mthly rpt'!BF8+'PADD2 mthly rpt'!BF8+'PADD3 mthly rpt'!BF8+'PADD4 mthly rpt'!BF8+'PADD5 mthly rpt'!BF8 -> 0 | BG8: ='PADD1 mthly rpt'!BG8+'PADD2 mthly rpt'!BG8+'PADD3 mthly rpt'!BG8+'PADD4 mthly rpt'!BG8+'PADD5 mthly rpt'!BG8 -> 0 | BH8: ='PADD1 mthly rpt'!BH8+'PADD2 mthly rpt'!BH8+'PADD3 mthly rpt'!BH8+'PADD4 mthly rpt'!BH8+'PADD5 mthly rpt'!BH8 -> 0 | BI8: ='PADD1 mthly rpt'!BI8+'PADD2 mthly rpt'!BI8+'PADD3 mthly rpt'!BI8+'PADD4 mthly rpt'!BI8+'PADD5 mthly rpt'!BI8 -> 0 | BJ8: ='PADD1 mthly rpt'!BJ8+'PADD2 mthly rpt'!BJ8+'PADD3 mthly rpt'!BJ8+'PADD4 mthly rpt'!BJ8+'PADD5 mthly rpt'!BJ8 -> 0 | BK8: ='PADD1 mthly rpt'!BK8+'PADD2 mthly rpt'!BK8+'PADD3 mthly rpt'!BK8+'PADD4 mthly rpt'!BK8+'PADD5 mthly rpt'!BK8 -> 0 | BL8: ='PADD1 mthly rpt'!BL8+'PADD2 mthly rpt'!BL8+'PADD3 mthly rpt'!BL8+'PADD4 mthly rpt'!BL8+'PADD5 mthly rpt'!BL8 -> 0 | BM8: ='PADD1 mthly rpt'!BM8+'PADD2 mthly rpt'!BM8+'PADD3 mthly rpt'!BM8+'PADD4 mthly rpt'!BM8+'PADD5 mthly rpt'!BM8 -> 0 | BN8: ='PADD1 mthly rpt'!BN8+'PADD2 mthly rpt'!BN8+'PADD3 mthly rpt'!BN8+'PADD4 mthly rpt'!BN8+'PADD5 mthly rpt'!BN8 -> 0 | BO8: ='PADD1 mthly rpt'!BO8+'PADD2 mthly rpt'!BO8+'PADD3 mthly rpt'!BO8+'PADD4 mthly rpt'!BO8+'PADD5 mthly rpt'!BO8 -> 0 | BP8: ='PADD1 mthly rpt'!BP8+'PADD2 mthly rpt'!BP8+'PADD3 mthly rpt'!BP8+'PADD4 mthly rpt'!BP8+'PADD5 mthly rpt'!BP8 -> 0 | BQ8: ='PADD1 mthly rpt'!BQ8+'PADD2 mthly rpt'!BQ8+'PADD3 mthly rpt'!BQ8+'PADD4 mthly rpt'!BQ8+'PADD5 mthly rpt'!BQ8 -> 0 | BR8: ='PADD1 mthly rpt'!BR8+'PADD2 mthly rpt'!BR8+'PADD3 mthly rpt'!BR8+'PADD4 mthly rpt'!BR8+'PADD5 mthly rpt'!BR8 -> 0 | BS8: ='PADD1 mthly rpt'!BS8+'PADD2 mthly rpt'!BS8+'PADD3 mthly rpt'!BS8+'PADD4 mthly rpt'!BS8+'PADD5 mthly rpt'!BS8 -> 0 | BT8: ='PADD1 mthly rpt'!BT8+'PADD2 mthly rpt'!BT8+'PADD3 mthly rpt'!BT8+'PADD4 mthly rpt'!BT8+'PADD5 mthly rpt'!BT8 -> 0 | BU8: ='PADD1 mthly rpt'!BU8+'PADD2 mthly rpt'!BU8+'PADD3 mthly rpt'!BU8+'PADD4 mthly rpt'!BU8+'PADD5 mthly rpt'!BU8 -> 0 | BV8: ='PADD1 mthly rpt'!BV8+'PADD2 mthly rpt'!BV8+'PADD3 mthly rpt'!BV8+'PADD4 mthly rpt'!BV8+'PADD5 mthly rpt'!BV8 -> 0 | BW8: ='PADD1 mthly rpt'!BW8+'PADD2 mthly rpt'!BW8+'PADD3 mthly rpt'!BW8+'PADD4 mthly rpt'!BW8+'PADD5 mthly rpt'!BW8 -> 0 | BX8: ='PADD1 mthly rpt'!BX8+'PADD2 mthly rpt'!BX8+'PADD3 mthly rpt'!BX8+'PADD4 mthly rpt'!BX8+'PADD5 mthly rpt'!BX8 -> 0 | BY8: ='PADD1 mthly rpt'!BY8+'PADD2 mthly rpt'!BY8+'PADD3 mthly rpt'!BY8+'PADD4 mthly rpt'!BY8+'PADD5 mthly rpt'!BY8 -> 0 | BZ8: ='PADD1 mthly rpt'!BZ8+'PADD2 mthly rpt'!BZ8+'PADD3 mthly rpt'!BZ8+'PADD4 mthly rpt'!BZ8+'PADD5 mthly rpt'!BZ8 -> 0 | CA8: ='PADD1 mthly rpt'!CA8+'PADD2 mthly rpt'!CA8+'PADD3 mthly rpt'!CA8+'PADD4 mthly rpt'!CA8+'PADD5 mthly rpt'!CA8 -> 0 | CB8: ='PADD1 mthly rpt'!CB8+'PADD2 mthly rpt'!CB8+'PADD3 mthly rpt'!CB8+'PADD4 mthly rpt'!CB8+'PADD5 mthly rpt'!CB8 -> 0 | CC8: ='PADD1 mthly rpt'!CC8+'PADD2 mthly rpt'!CC8+'PADD3 mthly rpt'!CC8+'PADD4 mthly rpt'!CC8+'PADD5 mthly rpt'!CC8 -> 0 | CD8: ='PADD1 mthly rpt'!CD8+'PADD2 mthly rpt'!CD8+'PADD3 mthly rpt'!CD8+'PADD4 mthly rpt'!CD8+'PADD5 mthly rpt'!CD8 -> 0 | CE8: ='PADD1 mthly rpt'!CE8+'PADD2 mthly rpt'!CE8+'PADD3 mthly rpt'!CE8+'PADD4 mthly rpt'!CE8+'PADD5 mthly rpt'!CE8 -> 0 | CF8: ='PADD1 mthly rpt'!CF8+'PADD2 mthly rpt'!CF8+'PADD3 mthly rpt'!CF8+'PADD4 mthly rpt'!CF8+'PADD5 mthly rpt'!CF8 -> 0 | CG8: ='PADD1 mthly rpt'!CG8+'PADD2 mthly rpt'!CG8+'PADD3 mthly rpt'!CG8+'PADD4 mthly rpt'!CG8+'PADD5 mthly rpt'!CG8 -> 0 | CH8: ='PADD1 mthly rpt'!CH8+'PADD2 mthly rpt'!CH8+'PADD3 mthly rpt'!CH8+'PADD4 mthly rpt'!CH8+'PADD5 mthly rpt'!CH8 -> 0 | CI8: ='PADD1 mthly rpt'!CI8+'PADD2 mthly rpt'!CI8+'PADD3 mthly rpt'!CI8+'PADD4 mthly rpt'!CI8+'PADD5 mthly rpt'!CI8 -> 0 | CJ8: ='PADD1 mthly rpt'!CJ8+'PADD2 mthly rpt'!CJ8+'PADD3 mthly rpt'!CJ8+'PADD4 mthly rpt'!CJ8+'PADD5 mthly rpt'!CJ8 -> 0 | CK8: ='PADD1 mthly rpt'!CK8+'PADD2 mthly rpt'!CK8+'PADD3 mthly rpt'!CK8+'PADD4 mthly rpt'!CK8+'PADD5 mthly rpt'!CK8 -> 0 | CL8: ='PADD1 mthly rpt'!CL8+'PADD2 mthly rpt'!CL8+'PADD3 mthly rpt'!CL8+'PADD4 mthly rpt'!CL8+'PADD5 mthly rpt'!CL8 -> 0 | CM8: ='PADD1 mthly rpt'!CM8+'PADD2 mthly rpt'!CM8+'PADD3 mthly rpt'!CM8+'PADD4 mthly rpt'!CM8+'PADD5 mthly rpt'!CM8 -> 0 | CN8: ='PADD1 mthly rpt'!CN8+'PADD2 mthly rpt'!CN8+'PADD3 mthly rpt'!CN8+'PADD4 mthly rpt'!CN8+'PADD5 mthly rpt'!CN8 -> 0 | CO8: ='PADD1 mthly rpt'!CO8+'PADD2 mthly rpt'!CO8+'PADD3 mthly rpt'!CO8+'PADD4 mthly rpt'!CO8+'PADD5 mthly rpt'!CO8 -> 0 | CP8: ='PADD1 mthly rpt'!CP8+'PADD2 mthly rpt'!CP8+'PADD3 mthly rpt'!CP8+'PADD4 mthly rpt'!CP8+'PADD5 mthly rpt'!CP8 -> 0 | CQ8: ='PADD1 mthly rpt'!CQ8+'PADD2 mthly rpt'!CQ8+'PADD3 mthly rpt'!CQ8+'PADD4 mthly rpt'!CQ8+'PADD5 mthly rpt'!CQ8 -> 0 | CR8: ='PADD1 mthly rpt'!CR8+'PADD2 mthly rpt'!CR8+'PADD3 mthly rpt'!CR8+'PADD4 mthly rpt'!CR8+'PADD5 mthly rpt'!CR8 -> 0 | CS8: ='PADD1 mthly rpt'!CS8+'PADD2 mthly rpt'!CS8+'PADD3 mthly rpt'!CS8+'PADD4 mthly rpt'!CS8+'PADD5 mthly rpt'!CS8 -> 0 | CT8: ='PADD1 mthly rpt'!CT8+'PADD2 mthly rpt'!CT8+'PADD3 mthly rpt'!CT8+'PADD4 mthly rpt'!CT8+'PADD5 mthly rpt'!CT8 -> -1.546140993e-11 | CU8: ='PADD1 mthly rpt'!CU8+'PADD2 mthly rpt'!CU8+'PADD3 mthly rpt'!CU8+'PADD4 mthly rpt'!CU8+'PADD5 mthly rpt'!CU8 -> -1.546140993e-11 | CV8: ='PADD1 mthly rpt'!CV8+'PADD2 mthly rpt'!CV8+'PADD3 mthly rpt'!CV8+'PADD4 mthly rpt'!CV8+'PADD5 mthly rpt'!CV8 -> -1.546140993e-11 | CW8: ='PADD1 mthly rpt'!CW8+'PADD2 mthly rpt'!CW8+'PADD3 mthly rpt'!CW8+'PADD4 mthly rpt'!CW8+'PADD5 mthly rpt'!CW8 -> -1.546140993e-11 | CX8: ='PADD1 mthly rpt'!CX8+'PADD2 mthly rpt'!CX8+'PADD3 mthly rpt'!CX8+'PADD4 mthly rpt'!CX8+'PADD5 mthly rpt'!CX8 -> -1.546140993e-11 | CY8: ='PADD1 mthly rpt'!CY8+'PADD2 mthly rpt'!CY8+'PADD3 mthly rpt'!CY8+'PADD4 mthly rpt'!CY8+'PADD5 mthly rpt'!CY8 -> -1.546140993e-11 | CZ8: ='PADD1 mthly rpt'!CZ8+'PADD2 mthly rpt'!CZ8+'PADD3 mthly rpt'!CZ8+'PADD4 mthly rpt'!CZ8+'PADD5 mthly rpt'!CZ8 -> -1.546140993e-11 | DA8: ='PADD1 mthly rpt'!DA8+'PADD2 mthly rpt'!DA8+'PADD3 mthly rpt'!DA8+'PADD4 mthly rpt'!DA8+'PADD5 mthly rpt'!DA8 -> -1.546140993e-11 | DB8: ='PADD1 mthly rpt'!DB8+'PADD2 mthly rpt'!DB8+'PADD3 mthly rpt'!DB8+'PADD4 mthly rpt'!DB8+'PADD5 mthly rpt'!DB8 -> -1.546140993e-11 | DC8: ='PADD1 mthly rpt'!DC8+'PADD2 mthly rpt'!DC8+'PADD3 mthly rpt'!DC8+'PADD4 mthly rpt'!DC8+'PADD5 mthly rpt'!DC8 -> -1.546140993e-11 | DD8: ='PADD1 mthly rpt'!DD8+'PADD2 mthly rpt'!DD8+'PADD3 mthly rpt'!DD8+'PADD4 mthly rpt'!DD8+'PADD5 mthly rpt'!DD8 -> -1.546140993e-11 | DE8: ='PADD1 mthly rpt'!DE8+'PADD2 mthly rpt'!DE8+'PADD3 mthly rpt'!DE8+'PADD4 mthly rpt'!DE8+'PADD5 mthly rpt'!DE8 -> -1.546140993e-11 | DF8: ='PADD1 mthly rpt'!DF8+'PADD2 mthly rpt'!DF8+'PADD3 mthly rpt'!DF8+'PADD4 mthly rpt'!DF8+'PADD5 mthly rpt'!DF8 -> 0 | DG8: ='PADD1 mthly rpt'!DG8+'PADD2 mthly rpt'!DG8+'PADD3 mthly rpt'!DG8+'PADD4 mthly rpt'!DG8+'PADD5 mthly rpt'!DG8 -> 0 | DH8: ='PADD1 mthly rpt'!DH8+'PADD2 mthly rpt'!DH8+'PADD3 mthly rpt'!DH8+'PADD4 mthly rpt'!DH8+'PADD5 mthly rpt'!DH8 -> 0 | DI8: ='PADD1 mthly rpt'!DI8+'PADD2 mthly rpt'!DI8+'PADD3 mthly rpt'!DI8+'PADD4 mthly rpt'!DI8+'PADD5 mthly rpt'!DI8 -> 0 | DJ8: ='PADD1 mthly rpt'!DJ8+'PADD2 mthly rpt'!DJ8+'PADD3 mthly rpt'!DJ8+'PADD4 mthly rpt'!DJ8+'PADD5 mthly rpt'!DJ8 -> 0 | DK8: ='PADD1 mthly rpt'!DK8+'PADD2 mthly rpt'!DK8+'PADD3 mthly rpt'!DK8+'PADD4 mthly rpt'!DK8+'PADD5 mthly rpt'!DK8 -> 0 | DL8: ='PADD1 mthly rpt'!DL8+'PADD2 mthly rpt'!DL8+'PADD3 mthly rpt'!DL8+'PADD4 mthly rpt'!DL8+'PADD5 mthly rpt'!DL8 -> 0 | DM8: ='PADD1 mthly rpt'!DM8+'PADD2 mthly rpt'!DM8+'PADD3 mthly rpt'!DM8+'PADD4 mthly rpt'!DM8+'PADD5 mthly rpt'!DM8 -> 0 | DN8: ='PADD1 mthly rpt'!DN8+'PADD2 mthly rpt'!DN8+'PADD3 mthly rpt'!DN8+'PADD4 mthly rpt'!DN8+'PADD5 mthly rpt'!DN8 -> 0 | DO8: ='PADD1 mthly rpt'!DO8+'PADD2 mthly rpt'!DO8+'PADD3 mthly rpt'!DO8+'PADD4 mthly rpt'!DO8+'PADD5 mthly rpt'!DO8 -> 0 | DP8: ='PADD1 mthly rpt'!DP8+'PADD2 mthly rpt'!DP8+'PADD3 mthly rpt'!DP8+'PADD4 mthly rpt'!DP8+'PADD5 mthly rpt'!DP8 -> 0 | DQ8: ='PADD1 mthly rpt'!DQ8+'PADD2 mthly rpt'!DQ8+'PADD3 mthly rpt'!DQ8+'PADD4 mthly rpt'!DQ8+'PADD5 mthly rpt'!DQ8 -> 0 | DR8: ='PADD1 mthly rpt'!DR8+'PADD2 mthly rpt'!DR8+'PADD3 mthly rpt'!DR8+'PADD4 mthly rpt'!DR8+'PADD5 mthly rpt'!DR8 -> 0 | DS8: ='PADD1 mthly rpt'!DS8+'PADD2 mthly rpt'!DS8+'PADD3 mthly rpt'!DS8+'PADD4 mthly rpt'!DS8+'PADD5 mthly rpt'!DS8 -> 0 | DT8: ='PADD1 mthly rpt'!DT8+'PADD2 mthly rpt'!DT8+'PADD3 mthly rpt'!DT8+'PADD4 mthly rpt'!DT8+'PADD5 mthly rpt'!DT8 -> 0 | DU8: ='PADD1 mthly rpt'!DU8+'PADD2 mthly rpt'!DU8+'PADD3 mthly rpt'!DU8+'PADD4 mthly rpt'!DU8+'PADD5 mthly rpt'!DU8 -> 0 | DV8: ='PADD1 mthly rpt'!DV8+'PADD2 mthly rpt'!DV8+'PADD3 mthly rpt'!DV8+'PADD4 mthly rpt'!DV8+'PADD5 mthly rpt'!DV8 -> 0 | DW8: ='PADD1 mthly rpt'!DW8+'PADD2 mthly rpt'!DW8+'PADD3 mthly rpt'!DW8+'PADD4 mthly rpt'!DW8+'PADD5 mthly rpt'!DW8 -> 0 | DX8: ='PADD1 mthly rpt'!DX8+'PADD2 mthly rpt'!DX8+'PADD3 mthly rpt'!DX8+'PADD4 mthly rpt'!DX8+'PADD5 mthly rpt'!DX8 -> 0 | DY8: ='PADD1 mthly rpt'!DY8+'PADD2 mthly rpt'!DY8+'PADD3 mthly rpt'!DY8+'PADD4 mthly rpt'!DY8+'PADD5 mthly rpt'!DY8 -> 0 | DZ8: ='PADD1 mthly rpt'!DZ8+'PADD2 mthly rpt'!DZ8+'PADD3 mthly rpt'!DZ8+'PADD4 mthly rpt'!DZ8+'PADD5 mthly rpt'!DZ8 -> 0 | EA8: ='PADD1 mthly rpt'!EA8+'PADD2 mthly rpt'!EA8+'PADD3 mthly rpt'!EA8+'PADD4 mthly rpt'!EA8+'PADD5 mthly rpt'!EA8 -> 0 | EB8: ='PADD1 mthly rpt'!EB8+'PADD2 mthly rpt'!EB8+'PADD3 mthly rpt'!EB8+'PADD4 mthly rpt'!EB8+'PADD5 mthly rpt'!EB8 -> 0 | EC8: ='PADD1 mthly rpt'!EC8+'PADD2 mthly rpt'!EC8+'PADD3 mthly rpt'!EC8+'PADD4 mthly rpt'!EC8+'PADD5 mthly rpt'!EC8 -> 0 | ED8: ='PADD1 mthly rpt'!ED8+'PADD2 mthly rpt'!ED8+'PADD3 mthly rpt'!ED8+'PADD4 mthly rpt'!ED8+'PADD5 mthly rpt'!ED8 -> 1.455191523e-11 | EE8: ='PADD1 mthly rpt'!EE8+'PADD2 mthly rpt'!EE8+'PADD3 mthly rpt'!EE8+'PADD4 mthly rpt'!EE8+'PADD5 mthly rpt'!EE8 -> 1.455191523e-11 | EF8: ='PADD1 mthly rpt'!EF8+'PADD2 mthly rpt'!EF8+'PADD3 mthly rpt'!EF8+'PADD4 mthly rpt'!EF8+'PADD5 mthly rpt'!EF8 -> 1.455191523e-11 | EG8: ='PADD1 mthly rpt'!EG8+'PADD2 mthly rpt'!EG8+'PADD3 mthly rpt'!EG8+'PADD4 mthly rpt'!EG8+'PADD5 mthly rpt'!EG8 -> 1.455191523e-11 | EH8: ='PADD1 mthly rpt'!EH8+'PADD2 mthly rpt'!EH8+'PADD3 mthly rpt'!EH8+'PADD4 mthly rpt'!EH8+'PADD5 mthly rpt'!EH8 -> 1.455191523e-11 | EI8: ='PADD1 mthly rpt'!EI8+'PADD2 mthly rpt'!EI8+'PADD3 mthly rpt'!EI8+'PADD4 mthly rpt'!EI8+'PADD5 mthly rpt'!EI8 -> 1.455191523e-11 | EJ8: ='PADD1 mthly rpt'!EJ8+'PADD2 mthly rpt'!EJ8+'PADD3 mthly rpt'!EJ8+'PADD4 mthly rpt'!EJ8+'PADD5 mthly rpt'!EJ8 -> 1.455191523e-11 | EK8: ='PADD1 mthly rpt'!EK8+'PADD2 mthly rpt'!EK8+'PADD3 mthly rpt'!EK8+'PADD4 mthly rpt'!EK8+'PADD5 mthly rpt'!EK8 -> 1.455191523e-11 | EL8: ='PADD1 mthly rpt'!EL8+'PADD2 mthly rpt'!EL8+'PADD3 mthly rpt'!EL8+'PADD4 mthly rpt'!EL8+'PADD5 mthly rpt'!EL8 -> 1.455191523e-11 | EM8: ='PADD1 mthly rpt'!EM8+'PADD2 mthly rpt'!EM8+'PADD3 mthly rpt'!EM8+'PADD4 mthly rpt'!EM8+'PADD5 mthly rpt'!EM8 -> 1.455191523e-11 | EN8: ='PADD1 mthly rpt'!EN8+'PADD2 mthly rpt'!EN8+'PADD3 mthly rpt'!EN8+'PADD4 mthly rpt'!EN8+'PADD5 mthly rpt'!EN8 -> 1.455191523e-11 | EO8: ='PADD1 mthly rpt'!EO8+'PADD2 mthly rpt'!EO8+'PADD3 mthly rpt'!EO8+'PADD4 mthly rpt'!EO8+'PADD5 mthly rpt'!EO8 -> 1.455191523e-11 | EP8: ='PADD1 mthly rpt'!EP8+'PADD2 mthly rpt'!EP8+'PADD3 mthly rpt'!EP8+'PADD4 mthly rpt'!EP8+'PADD5 mthly rpt'!EP8 -> 3.274180926e-11 | EQ8: ='PADD1 mthly rpt'!EQ8+'PADD2 mthly rpt'!EQ8+'PADD3 mthly rpt'!EQ8+'PADD4 mthly rpt'!EQ8+'PADD5 mthly rpt'!EQ8 -> 3.274180926e-11 | ER8: ='PADD1 mthly rpt'!ER8+'PADD2 mthly rpt'!ER8+'PADD3 mthly rpt'!ER8+'PADD4 mthly rpt'!ER8+'PADD5 mthly rpt'!ER8 -> 3.274180926e-11 | ES8: ='PADD1 mthly rpt'!ES8+'PADD2 mthly rpt'!ES8+'PADD3 mthly rpt'!ES8+'PADD4 mthly rpt'!ES8+'PADD5 mthly rpt'!ES8 -> 3.274180926e-11 | ET8: ='PADD1 mthly rpt'!ET8+'PADD2 mthly rpt'!ET8+'PADD3 mthly rpt'!ET8+'PADD4 mthly rpt'!ET8+'PADD5 mthly rpt'!ET8 -> 3.274180926e-11 | EU8: ='PADD1 mthly rpt'!EU8+'PADD2 mthly rpt'!EU8+'PADD3 mthly rpt'!EU8+'PADD4 mthly rpt'!EU8+'PADD5 mthly rpt'!EU8 -> 3.274180926e-11 | EV8: ='PADD1 mthly rpt'!EV8+'PADD2 mthly rpt'!EV8+'PADD3 mthly rpt'!EV8+'PADD4 mthly rpt'!EV8+'PADD5 mthly rpt'!EV8 -> 3.274180926e-11 | EW8: ='PADD1 mthly rpt'!EW8+'PADD2 mthly rpt'!EW8+'PADD3 mthly rpt'!EW8+'PADD4 mthly rpt'!EW8+'PADD5 mthly rpt'!EW8 -> 3.274180926e-11 | EX8: ='PADD1 mthly rpt'!EX8+'PADD2 mthly rpt'!EX8+'PADD3 mthly rpt'!EX8+'PADD4 mthly rpt'!EX8+'PADD5 mthly rpt'!EX8 -> 3.274180926e-11 | EY8: ='PADD1 mthly rpt'!EY8+'PADD2 mthly rpt'!EY8+'PADD3 mthly rpt'!EY8+'PADD4 mthly rpt'!EY8+'PADD5 mthly rpt'!EY8 -> 3.274180926e-11 | EZ8: ='PADD1 mthly rpt'!EZ8+'PADD2 mthly rpt'!EZ8+'PADD3 mthly rpt'!EZ8+'PADD4 mthly rpt'!EZ8+'PADD5 mthly rpt'!EZ8 -> 3.274180926e-11 | FA8: ='PADD1 mthly rpt'!FA8+'PADD2 mthly rpt'!FA8+'PADD3 mthly rpt'!FA8+'PADD4 mthly rpt'!FA8+'PADD5 mthly rpt'!FA8 -> 3.274180926e-11 | FB8: ='PADD1 mthly rpt'!FB8+'PADD2 mthly rpt'!FB8+'PADD3 mthly rpt'!FB8+'PADD4 mthly rpt'!FB8+'PADD5 mthly rpt'!FB8 -> 70204.23495 | FC8: ='PADD1 mthly rpt'!FC8+'PADD2 mthly rpt'!FC8+'PADD3 mthly rpt'!FC8+'PADD4 mthly rpt'!FC8+'PADD5 mthly rpt'!FC8 -> 70204.23495 | FD8: ='PADD1 mthly rpt'!FD8+'PADD2 mthly rpt'!FD8+'PADD3 mthly rpt'!FD8+'PADD4 mthly rpt'!FD8+'PADD5 mthly rpt'!FD8 -> 70204.23495 | FE8: ='PADD1 mthly rpt'!FE8+'PADD2 mthly rpt'!FE8+'PADD3 mthly rpt'!FE8+'PADD4 mthly rpt'!FE8+'PADD5 mthly rpt'!FE8 -> 62204.23495 | FF8: ='PADD1 mthly rpt'!FF8+'PADD2 mthly rpt'!FF8+'PADD3 mthly rpt'!FF8+'PADD4 mthly rpt'!FF8+'PADD5 mthly rpt'!FF8 -> 64204.23495 | FG8: ='PADD1 mthly rpt'!FG8+'PADD2 mthly rpt'!FG8+'PADD3 mthly rpt'!FG8+'PADD4 mthly rpt'!FG8+'PADD5 mthly rpt'!FG8 -> 66204.23495 | FH8: ='PADD1 mthly rpt'!FH8+'PADD2 mthly rpt'!FH8+'PADD3 mthly rpt'!FH8+'PADD4 mthly rpt'!FH8+'PADD5 mthly rpt'!FH8 -> 68204.23495 | FI8: ='PADD1 mthly rpt'!FI8+'PADD2 mthly rpt'!FI8+'PADD3 mthly rpt'!FI8+'PADD4 mthly rpt'!FI8+'PADD5 mthly rpt'!FI8 -> 70204.23495 | FJ8: ='PADD1 mthly rpt'!FJ8+'PADD2 mthly rpt'!FJ8+'PADD3 mthly rpt'!FJ8+'PADD4 mthly rpt'!FJ8+'PADD5 mthly rpt'!FJ8 -> 90204.23495 | FK8: ='PADD1 mthly rpt'!FK8+'PADD2 mthly rpt'!FK8+'PADD3 mthly rpt'!FK8+'PADD4 mthly rpt'!FK8+'PADD5 mthly rpt'!FK8 -> 92204.23495 | FL8: ='PADD1 mthly rpt'!FL8+'PADD2 mthly rpt'!FL8+'PADD3 mthly rpt'!FL8+'PADD4 mthly rpt'!FL8+'PADD5 mthly rpt'!FL8 -> 94204.23495 | FM8: ='PADD1 mthly rpt'!FM8+'PADD2 mthly rpt'!FM8+'PADD3 mthly rpt'!FM8+'PADD4 mthly rpt'!FM8+'PADD5 mthly rpt'!FM8 -> 96204.23495 | FN8: ='PADD1 mthly rpt'!FN8+'PADD2 mthly rpt'!FN8+'PADD3 mthly rpt'!FN8+'PADD4 mthly rpt'!FN8+'PADD5 mthly rpt'!FN8 -> 34845.39646 | FO8: ='PADD1 mthly rpt'!FO8+'PADD2 mthly rpt'!FO8+'PADD3 mthly rpt'!FO8+'PADD4 mthly rpt'!FO8+'PADD5 mthly rpt'!FO8 -> 34845.39646 | FP8: ='PADD1 mthly rpt'!FP8+'PADD2 mthly rpt'!FP8+'PADD3 mthly rpt'!FP8+'PADD4 mthly rpt'!FP8+'PADD5 mthly rpt'!FP8 -> 1.455191523e-11 | FQ8: ='PADD1 mthly rpt'!FQ8+'PADD2 mthly rpt'!FQ8+'PADD3 mthly rpt'!FQ8+'PADD4 mthly rpt'!FQ8+'PADD5 mthly rpt'!FQ8 -> 1.455191523e-11 | FR8: ='PADD1 mthly rpt'!FR8+'PADD2 mthly rpt'!FR8+'PADD3 mthly rpt'!FR8+'PADD4 mthly rpt'!FR8+'PADD5 mthly rpt'!FR8 -> 1.455191523e-11 | FS8: ='PADD1 mthly rpt'!FS8+'PADD2 mthly rpt'!FS8+'PADD3 mthly rpt'!FS8+'PADD4 mthly rpt'!FS8+'PADD5 mthly rpt'!FS8 -> 1.455191523e-11 | FT8: ='PADD1 mthly rpt'!FT8+'PADD2 mthly rpt'!FT8+'PADD3 mthly rpt'!FT8+'PADD4 mthly rpt'!FT8+'PADD5 mthly rpt'!FT8 -> 1.455191523e-11 | FU8: ='PADD1 mthly rpt'!FU8+'PADD2 mthly rpt'!FU8+'PADD3 mthly rpt'!FU8+'PADD4 mthly rpt'!FU8+'PADD5 mthly rpt'!FU8 -> 12000 | FV8: ='PADD1 mthly rpt'!FV8+'PADD2 mthly rpt'!FV8+'PADD3 mthly rpt'!FV8+'PADD4 mthly rpt'!FV8+'PADD5 mthly rpt'!FV8 -> 39312.91191 | FW8: ='PADD1 mthly rpt'!FW8+'PADD2 mthly rpt'!FW8+'PADD3 mthly rpt'!FW8+'PADD4 mthly rpt'!FW8+'PADD5 mthly rpt'!FW8 -> 19242.87549 | FX8: ='PADD1 mthly rpt'!FX8+'PADD2 mthly rpt'!FX8+'PADD3 mthly rpt'!FX8+'PADD4 mthly rpt'!FX8+'PADD5 mthly rpt'!FX8 -> -220025.2971 | FY8: ='PADD1 mthly rpt'!FY8+'PADD2 mthly rpt'!FY8+'PADD3 mthly rpt'!FY8+'PADD4 mthly rpt'!FY8+'PADD5 mthly rpt'!FY8 -> -124727.7644 | FZ8: ='PADD1 mthly rpt'!FZ8+'PADD2 mthly rpt'!FZ8+'PADD3 mthly rpt'!FZ8+'PADD4 mthly rpt'!FZ8+'PADD5 mthly rpt'!FZ8 -> 102032.5669 | GA8: ='PADD1 mthly rpt'!GA8+'PADD2 mthly rpt'!GA8+'PADD3 mthly rpt'!GA8+'PADD4 mthly rpt'!GA8+'PADD5 mthly rpt'!GA8 -> -414234.8304 | GB8: ='PADD1 mthly rpt'!GB8+'PADD2 mthly rpt'!GB8+'PADD3 mthly rpt'!GB8+'PADD4 mthly rpt'!GB8+'PADD5 mthly rpt'!GB8 -> -171547.3646 | GC8: ='PADD1 mthly rpt'!GC8+'PADD2 mthly rpt'!GC8+'PADD3 mthly rpt'!GC8+'PADD4 mthly rpt'!GC8+'PADD5 mthly rpt'!GC8 -> -311597.2689 | GD8: ='PADD1 mthly rpt'!GD8+'PADD2 mthly rpt'!GD8+'PADD3 mthly rpt'!GD8+'PADD4 mthly rpt'!GD8+'PADD5 mthly rpt'!GD8 -> -54134.33942 | GE8: ='PADD1 mthly rpt'!GE8+'PADD2 mthly rpt'!GE8+'PADD3 mthly rpt'!GE8+'PADD4 mthly rpt'!GE8+'PADD5 mthly rpt'!GE8 -> -6485.710368 | GF8: ='PADD1 mthly rpt'!GF8+'PADD2 mthly rpt'!GF8+'PADD3 mthly rpt'!GF8+'PADD4 mthly rpt'!GF8+'PADD5 mthly rpt'!GF8 -> 46768.14764 | GG8: ='PADD1 mthly rpt'!GG8+'PADD2 mthly rpt'!GG8+'PADD3 mthly rpt'!GG8+'PADD4 mthly rpt'!GG8+'PADD5 mthly rpt'!GG8 -> 76314.45801 | GH8: ='PADD1 mthly rpt'!GH8+'PADD2 mthly rpt'!GH8+'PADD3 mthly rpt'!GH8+'PADD4 mthly rpt'!GH8+'PADD5 mthly rpt'!GH8 -> -99700.8893 | GI8: ='PADD1 mthly rpt'!GI8+'PADD2 mthly rpt'!GI8+'PADD3 mthly rpt'!GI8+'PADD4 mthly rpt'!GI8+'PADD5 mthly rpt'!GI8 -> -29841.7965 | GJ8: ='PADD1 mthly rpt'!GJ8+'PADD2 mthly rpt'!GJ8+'PADD3 mthly rpt'!GJ8+'PADD4 mthly rpt'!GJ8+'PADD5 mthly rpt'!GJ8 -> 55278.24382 | GK8: ='PADD1 mthly rpt'!GK8+'PADD2 mthly rpt'!GK8+'PADD3 mthly rpt'!GK8+'PADD4 mthly rpt'!GK8+'PADD5 mthly rpt'!GK8 -> -367071.649 | GL8: ='PADD1 mthly rpt'!GL8+'PADD2 mthly rpt'!GL8+'PADD3 mthly rpt'!GL8+'PADD4 mthly rpt'!GL8+'PADD5 mthly rpt'!GL8 -> -5205.390528 | GM8: ='PADD1 mthly rpt'!GM8+'PADD2 mthly rpt'!GM8+'PADD3 mthly rpt'!GM8+'PADD4 mthly rpt'!GM8+'PADD5 mthly rpt'!GM8 -> -381474.8708 | GN8: ='PADD1 mthly rpt'!GN8+'PADD2 mthly rpt'!GN8+'PADD3 mthly rpt'!GN8+'PADD4 mthly rpt'!GN8+'PADD5 mthly rpt'!GN8 -> 32732.82483 | GO8: ='PADD1 mthly rpt'!GO8+'PADD2 mthly rpt'!GO8+'PADD3 mthly rpt'!GO8+'PADD4 mthly rpt'!GO8+'PADD5 mthly rpt'!GO8 -> 188612.7428 | GP8: ='PADD1 mthly rpt'!GP8+'PADD2 mthly rpt'!GP8+'PADD3 mthly rpt'!GP8+'PADD4 mthly rpt'!GP8+'PADD5 mthly rpt'!GP8 -> 460273.2017 | GQ8: ='PADD1 mthly rpt'!GQ8+'PADD2 mthly rpt'!GQ8+'PADD3 mthly rpt'!GQ8+'PADD4 mthly rpt'!GQ8+'PADD5 mthly rpt'!GQ8 -> 110857.8167 | GR8: ='PADD1 mthly rpt'!GR8+'PADD2 mthly rpt'!GR8+'PADD3 mthly rpt'!GR8+'PADD4 mthly rpt'!GR8+'PADD5 mthly rpt'!GR8 -> -139917.9581 | GS8: ='PADD1 mthly rpt'!GS8+'PADD2 mthly rpt'!GS8+'PADD3 mthly rpt'!GS8+'PADD4 mthly rpt'!GS8+'PADD5 mthly rpt'!GS8 -> 57354.83871 | GT8: ='PADD1 mthly rpt'!GT8+'PADD2 mthly rpt'!GT8+'PADD3 mthly rpt'!GT8+'PADD4 mthly rpt'!GT8+'PADD5 mthly rpt'!GT8 -> 48100 | GU8: ='PADD1 mthly rpt'!GU8+'PADD2 mthly rpt'!GU8+'PADD3 mthly rpt'!GU8+'PADD4 mthly rpt'!GU8+'PADD5 mthly rpt'!GU8 -> 98322.58065 | GV8: ='PADD1 mthly rpt'!GV8+'PADD2 mthly rpt'!GV8+'PADD3 mthly rpt'!GV8+'PADD4 mthly rpt'!GV8+'PADD5 mthly rpt'!GV8 -> 118700 | GW8: ='PADD1 mthly rpt'!GW8+'PADD2 mthly rpt'!GW8+'PADD3 mthly rpt'!GW8+'PADD4 mthly rpt'!GW8+'PADD5 mthly rpt'!GW8 -> 158677.4194 | GX8: ='PADD1 mthly rpt'!GX8+'PADD2 mthly rpt'!GX8+'PADD3 mthly rpt'!GX8+'PADD4 mthly rpt'!GX8+'PADD5 mthly rpt'!GX8 -> 120806.4516 | GY8: ='PADD1 mthly rpt'!GY8+'PADD2 mthly rpt'!GY8+'PADD3 mthly rpt'!GY8+'PADD4 mthly rpt'!GY8+'PADD5 mthly rpt'!GY8 -> 92838.66995 | GZ8: ='PADD1 mthly rpt'!GZ8+'PADD2 mthly rpt'!GZ8+'PADD3 mthly rpt'!GZ8+'PADD4 mthly rpt'!GZ8+'PADD5 mthly rpt'!GZ8 -> 65709.67742 | HA8: ='PADD1 mthly rpt'!HA8+'PADD2 mthly rpt'!HA8+'PADD3 mthly rpt'!HA8+'PADD4 mthly rpt'!HA8+'PADD5 mthly rpt'!HA8 -> 58700 | HB8: ='PADD1 mthly rpt'!HB8+'PADD2 mthly rpt'!HB8+'PADD3 mthly rpt'!HB8+'PADD4 mthly rpt'!HB8+'PADD5 mthly rpt'!HB8 -> 92596.77419 | HC8: ='PADD1 mthly rpt'!HC8+'PADD2 mthly rpt'!HC8+'PADD3 mthly rpt'!HC8+'PADD4 mthly rpt'!HC8+'PADD5 mthly rpt'!HC8 -> 83533.33333
A9: Total Stock Change (Primary+Secondary+Tertiary) | B9: ='PADD1 mthly rpt'!B9+'PADD2 mthly rpt'!B9+'PADD3 mthly rpt'!B9+'PADD4 mthly rpt'!B9+'PADD5 mthly rpt'!B9 -> 266080.4943 | C9: ='PADD1 mthly rpt'!C9+'PADD2 mthly rpt'!C9+'PADD3 mthly rpt'!C9+'PADD4 mthly rpt'!C9+'PADD5 mthly rpt'!C9 -> 161433.4147 | D9: ='PADD1 mthly rpt'!D9+'PADD2 mthly rpt'!D9+'PADD3 mthly rpt'!D9+'PADD4 mthly rpt'!D9+'PADD5 mthly rpt'!D9 -> 116459.8153 | E9: ='PADD1 mthly rpt'!E9+'PADD2 mthly rpt'!E9+'PADD3 mthly rpt'!E9+'PADD4 mthly rpt'!E9+'PADD5 mthly rpt'!E9 -> -206144.1424 | F9: ='PADD1 mthly rpt'!F9+'PADD2 mthly rpt'!F9+'PADD3 mthly rpt'!F9+'PADD4 mthly rpt'!F9+'PADD5 mthly rpt'!F9 -> -154207.538 | G9: ='PADD1 mthly rpt'!G9+'PADD2 mthly rpt'!G9+'PADD3 mthly rpt'!G9+'PADD4 mthly rpt'!G9+'PADD5 mthly rpt'!G9 -> -221229.1729 | H9: ='PADD1 mthly rpt'!H9+'PADD2 mthly rpt'!H9+'PADD3 mthly rpt'!H9+'PADD4 mthly rpt'!H9+'PADD5 mthly rpt'!H9 -> -250496.4941 | I9: ='PADD1 mthly rpt'!I9+'PADD2 mthly rpt'!I9+'PADD3 mthly rpt'!I9+'PADD4 mthly rpt'!I9+'PADD5 mthly rpt'!I9 -> -84605.39103 | J9: ='PADD1 mthly rpt'!J9+'PADD2 mthly rpt'!J9+'PADD3 mthly rpt'!J9+'PADD4 mthly rpt'!J9+'PADD5 mthly rpt'!J9 -> 5497.039676 | K9: ='PADD1 mthly rpt'!K9+'PADD2 mthly rpt'!K9+'PADD3 mthly rpt'!K9+'PADD4 mthly rpt'!K9+'PADD5 mthly rpt'!K9 -> -124675.6504 | L9: ='PADD1 mthly rpt'!L9+'PADD2 mthly rpt'!L9+'PADD3 mthly rpt'!L9+'PADD4 mthly rpt'!L9+'PADD5 mthly rpt'!L9 -> 23038.75732 | M9: ='PADD1 mthly rpt'!M9+'PADD2 mthly rpt'!M9+'PADD3 mthly rpt'!M9+'PADD4 mthly rpt'!M9+'PADD5 mthly rpt'!M9 -> 350397.8213 | N9: ='PADD1 mthly rpt'!N9+'PADD2 mthly rpt'!N9+'PADD3 mthly rpt'!N9+'PADD4 mthly rpt'!N9+'PADD5 mthly rpt'!N9 -> 158385.8554 | O9: ='PADD1 mthly rpt'!O9+'PADD2 mthly rpt'!O9+'PADD3 mthly rpt'!O9+'PADD4 mthly rpt'!O9+'PADD5 mthly rpt'!O9 -> 323397.1546 | P9: ='PADD1 mthly rpt'!P9+'PADD2 mthly rpt'!P9+'PADD3 mthly rpt'!P9+'PADD4 mthly rpt'!P9+'PADD5 mthly rpt'!P9 -> 216054.5105 | Q9: ='PADD1 mthly rpt'!Q9+'PADD2 mthly rpt'!Q9+'PADD3 mthly rpt'!Q9+'PADD4 mthly rpt'!Q9+'PADD5 mthly rpt'!Q9 -> -127907.7133 | R9: ='PADD1 mthly rpt'!R9+'PADD2 mthly rpt'!R9+'PADD3 mthly rpt'!R9+'PADD4 mthly rpt'!R9+'PADD5 mthly rpt'!R9 -> -78365.53157 | S9: ='PADD1 mthly rpt'!S9+'PADD2 mthly rpt'!S9+'PADD3 mthly rpt'!S9+'PADD4 mthly rpt'!S9+'PADD5 mthly rpt'!S9 -> -175168.6841 | T9: ='PADD1 mthly rpt'!T9+'PADD2 mthly rpt'!T9+'PADD3 mthly rpt'!T9+'PADD4 mthly rpt'!T9+'PADD5 mthly rpt'!T9 -> -206448.2405 | U9: ='PADD1 mthly rpt'!U9+'PADD2 mthly rpt'!U9+'PADD3 mthly rpt'!U9+'PADD4 mthly rpt'!U9+'PADD5 mthly rpt'!U9 -> -215774.8163 | V9: ='PADD1 mthly rpt'!V9+'PADD2 mthly rpt'!V9+'PADD3 mthly rpt'!V9+'PADD4 mthly rpt'!V9+'PADD5 mthly rpt'!V9 -> -169524.2786 | W9: ='PADD1 mthly rpt'!W9+'PADD2 mthly rpt'!W9+'PADD3 mthly rpt'!W9+'PADD4 mthly rpt'!W9+'PADD5 mthly rpt'!W9 -> -15023.71048 | X9: ='PADD1 mthly rpt'!X9+'PADD2 mthly rpt'!X9+'PADD3 mthly rpt'!X9+'PADD4 mthly rpt'!X9+'PADD5 mthly rpt'!X9 -> 53513.82369 | Y9: ='PADD1 mthly rpt'!Y9+'PADD2 mthly rpt'!Y9+'PADD3 mthly rpt'!Y9+'PADD4 mthly rpt'!Y9+'PADD5 mthly rpt'!Y9 -> 139805.4667 | Z9: ='PADD1 mthly rpt'!Z9+'PADD2 mthly rpt'!Z9+'PADD3 mthly rpt'!Z9+'PADD4 mthly rpt'!Z9+'PADD5 mthly rpt'!Z9 -> 408320.7825 | AA9: ='PADD1 mthly rpt'!AA9+'PADD2 mthly rpt'!AA9+'PADD3 mthly rpt'!AA9+'PADD4 mthly rpt'!AA9+'PADD5 mthly rpt'!AA9 -> 475059.5459 | AB9: ='PADD1 mthly rpt'!AB9+'PADD2 mthly rpt'!AB9+'PADD3 mthly rpt'!AB9+'PADD4 mthly rpt'!AB9+'PADD5 mthly rpt'!AB9 -> 76379.03628 | AC9: ='PADD1 mthly rpt'!AC9+'PADD2 mthly rpt'!AC9+'PADD3 mthly rpt'!AC9+'PADD4 mthly rpt'!AC9+'PADD5 mthly rpt'!AC9 -> -6076.510901 | AD9: ='PADD1 mthly rpt'!AD9+'PADD2 mthly rpt'!AD9+'PADD3 mthly rpt'!AD9+'PADD4 mthly rpt'!AD9+'PADD5 mthly rpt'!AD9 -> -111031.5253 | AE9: ='PADD1 mthly rpt'!AE9+'PADD2 mthly rpt'!AE9+'PADD3 mthly rpt'!AE9+'PADD4 mthly rpt'!AE9+'PADD5 mthly rpt'!AE9 -> -113035.434 | AF9: ='PADD1 mthly rpt'!AF9+'PADD2 mthly rpt'!AF9+'PADD3 mthly rpt'!AF9+'PADD4 mthly rpt'!AF9+'PADD5 mthly rpt'!AF9 -> -24760.10524 | AG9: ='PADD1 mthly rpt'!AG9+'PADD2 mthly rpt'!AG9+'PADD3 mthly rpt'!AG9+'PADD4 mthly rpt'!AG9+'PADD5 mthly rpt'!AG9 -> 19648.89467 | AH9: ='PADD1 mthly rpt'!AH9+'PADD2 mthly rpt'!AH9+'PADD3 mthly rpt'!AH9+'PADD4 mthly rpt'!AH9+'PADD5 mthly rpt'!AH9 -> -15497.32812 | AI9: ='PADD1 mthly rpt'!AI9+'PADD2 mthly rpt'!AI9+'PADD3 mthly rpt'!AI9+'PADD4 mthly rpt'!AI9+'PADD5 mthly rpt'!AI9 -> 35110.15146 | AJ9: ='PADD1 mthly rpt'!AJ9+'PADD2 mthly rpt'!AJ9+'PADD3 mthly rpt'!AJ9+'PADD4 mthly rpt'!AJ9+'PADD5 mthly rpt'!AJ9 -> 183491.0226 | AK9: ='PADD1 mthly rpt'!AK9+'PADD2 mthly rpt'!AK9+'PADD3 mthly rpt'!AK9+'PADD4 mthly rpt'!AK9+'PADD5 mthly rpt'!AK9 -> 216375.6563 | AL9: ='PADD1 mthly rpt'!AL9+'PADD2 mthly rpt'!AL9+'PADD3 mthly rpt'!AL9+'PADD4 mthly rpt'!AL9+'PADD5 mthly rpt'!AL9 -> 263584.1872 | AM9: ='PADD1 mthly rpt'!AM9+'PADD2 mthly rpt'!AM9+'PADD3 mthly rpt'!AM9+'PADD4 mthly rpt'!AM9+'PADD5 mthly rpt'!AM9 -> 248612.2031 | AN9: ='PADD1 mthly rpt'!AN9+'PADD2 mthly rpt'!AN9+'PADD3 mthly rpt'!AN9+'PADD4 mthly rpt'!AN9+'PADD5 mthly rpt'!AN9 -> 54002.0311 | AO9: ='PADD1 mthly rpt'!AO9+'PADD2 mthly rpt'!AO9+'PADD3 mthly rpt'!AO9+'PADD4 mthly rpt'!AO9+'PADD5 mthly rpt'!AO9 -> -25248.75626 | AP9: ='PADD1 mthly rpt'!AP9+'PADD2 mthly rpt'!AP9+'PADD3 mthly rpt'!AP9+'PADD4 mthly rpt'!AP9+'PADD5 mthly rpt'!AP9 -> -154720.1383 | AQ9: ='PADD1 mthly rpt'!AQ9+'PADD2 mthly rpt'!AQ9+'PADD3 mthly rpt'!AQ9+'PADD4 mthly rpt'!AQ9+'PADD5 mthly rpt'!AQ9 -> -51997.27258 | AR9: ='PADD1 mthly rpt'!AR9+'PADD2 mthly rpt'!AR9+'PADD3 mthly rpt'!AR9+'PADD4 mthly rpt'!AR9+'PADD5 mthly rpt'!AR9 -> -98005.90763 | AS9: ='PADD1 mthly rpt'!AS9+'PADD2 mthly rpt'!AS9+'PADD3 mthly rpt'!AS9+'PADD4 mthly rpt'!AS9+'PADD5 mthly rpt'!AS9 -> -142973.0731 | AT9: ='PADD1 mthly rpt'!AT9+'PADD2 mthly rpt'!AT9+'PADD3 mthly rpt'!AT9+'PADD4 mthly rpt'!AT9+'PADD5 mthly rpt'!AT9 -> -128020.2803 | AU9: ='PADD1 mthly rpt'!AU9+'PADD2 mthly rpt'!AU9+'PADD3 mthly rpt'!AU9+'PADD4 mthly rpt'!AU9+'PADD5 mthly rpt'!AU9 -> -2799.497126 | AV9: ='PADD1 mthly rpt'!AV9+'PADD2 mthly rpt'!AV9+'PADD3 mthly rpt'!AV9+'PADD4 mthly rpt'!AV9+'PADD5 mthly rpt'!AV9 -> -79616.95469 | AW9: ='PADD1 mthly rpt'!AW9+'PADD2 mthly rpt'!AW9+'PADD3 mthly rpt'!AW9+'PADD4 mthly rpt'!AW9+'PADD5 mthly rpt'!AW9 -> -39134.22637 | AX9: ='PADD1 mthly rpt'!AX9+'PADD2 mthly rpt'!AX9+'PADD3 mthly rpt'!AX9+'PADD4 mthly rpt'!AX9+'PADD5 mthly rpt'!AX9 -> 154390.2489 | AY9: ='PADD1 mthly rpt'!AY9+'PADD2 mthly rpt'!AY9+'PADD3 mthly rpt'!AY9+'PADD4 mthly rpt'!AY9+'PADD5 mthly rpt'!AY9 -> 56403.15277 | AZ9: ='PADD1 mthly rpt'!AZ9+'PADD2 mthly rpt'!AZ9+'PADD3 mthly rpt'!AZ9+'PADD4 mthly rpt'!AZ9+'PADD5 mthly rpt'!AZ9 -> -55844.45004 | BA9: ='PADD1 mthly rpt'!BA9+'PADD2 mthly rpt'!BA9+'PADD3 mthly rpt'!BA9+'PADD4 mthly rpt'!BA9+'PADD5 mthly rpt'!BA9 -> -136773.5143 | BB9: ='PADD1 mthly rpt'!BB9+'PADD2 mthly rpt'!BB9+'PADD3 mthly rpt'!BB9+'PADD4 mthly rpt'!BB9+'PADD5 mthly rpt'!BB9 -> -228713.2357 | BC9: ='PADD1 mthly rpt'!BC9+'PADD2 mthly rpt'!BC9+'PADD3 mthly rpt'!BC9+'PADD4 mthly rpt'!BC9+'PADD5 mthly rpt'!BC9 -> -133356.8902 | BD9: ='PADD1 mthly rpt'!BD9+'PADD2 mthly rpt'!BD9+'PADD3 mthly rpt'!BD9+'PADD4 mthly rpt'!BD9+'PADD5 mthly rpt'!BD9 -> -129380.459 | BE9: ='PADD1 mthly rpt'!BE9+'PADD2 mthly rpt'!BE9+'PADD3 mthly rpt'!BE9+'PADD4 mthly rpt'!BE9+'PADD5 mthly rpt'!BE9 -> 53724.30818 | BF9: ='PADD1 mthly rpt'!BF9+'PADD2 mthly rpt'!BF9+'PADD3 mthly rpt'!BF9+'PADD4 mthly rpt'!BF9+'PADD5 mthly rpt'!BF9 -> -31434.35028 | BG9: ='PADD1 mthly rpt'!BG9+'PADD2 mthly rpt'!BG9+'PADD3 mthly rpt'!BG9+'PADD4 mthly rpt'!BG9+'PADD5 mthly rpt'!BG9 -> 118738.1291 | BH9: ='PADD1 mthly rpt'!BH9+'PADD2 mthly rpt'!BH9+'PADD3 mthly rpt'!BH9+'PADD4 mthly rpt'!BH9+'PADD5 mthly rpt'!BH9 -> 173574.3498 | BI9: ='PADD1 mthly rpt'!BI9+'PADD2 mthly rpt'!BI9+'PADD3 mthly rpt'!BI9+'PADD4 mthly rpt'!BI9+'PADD5 mthly rpt'!BI9 -> 242674.8196 | BJ9: ='PADD1 mthly rpt'!BJ9+'PADD2 mthly rpt'!BJ9+'PADD3 mthly rpt'!BJ9+'PADD4 mthly rpt'!BJ9+'PADD5 mthly rpt'!BJ9 -> 313062.5767 | BK9: ='PADD1 mthly rpt'!BK9+'PADD2 mthly rpt'!BK9+'PADD3 mthly rpt'!BK9+'PADD4 mthly rpt'!BK9+'PADD5 mthly rpt'!BK9 -> 158625.4295 | BL9: ='PADD1 mthly rpt'!BL9+'PADD2 mthly rpt'!BL9+'PADD3 mthly rpt'!BL9+'PADD4 mthly rpt'!BL9+'PADD5 mthly rpt'!BL9 -> -37077.07569 | BM9: ='PADD1 mthly rpt'!BM9+'PADD2 mthly rpt'!BM9+'PADD3 mthly rpt'!BM9+'PADD4 mthly rpt'!BM9+'PADD5 mthly rpt'!BM9 -> -148162.3504 | BN9: ='PADD1 mthly rpt'!BN9+'PADD2 mthly rpt'!BN9+'PADD3 mthly rpt'!BN9+'PADD4 mthly rpt'!BN9+'PADD5 mthly rpt'!BN9 -> -149040.6594 | BO9: ='PADD1 mthly rpt'!BO9+'PADD2 mthly rpt'!BO9+'PADD3 mthly rpt'!BO9+'PADD4 mthly rpt'!BO9+'PADD5 mthly rpt'!BO9 -> -108181.4461 | BP9: ='PADD1 mthly rpt'!BP9+'PADD2 mthly rpt'!BP9+'PADD3 mthly rpt'!BP9+'PADD4 mthly rpt'!BP9+'PADD5 mthly rpt'!BP9 -> -61729.31138 | BQ9: ='PADD1 mthly rpt'!BQ9+'PADD2 mthly rpt'!BQ9+'PADD3 mthly rpt'!BQ9+'PADD4 mthly rpt'!BQ9+'PADD5 mthly rpt'!BQ9 -> -49690.0873 | BR9: ='PADD1 mthly rpt'!BR9+'PADD2 mthly rpt'!BR9+'PADD3 mthly rpt'!BR9+'PADD4 mthly rpt'!BR9+'PADD5 mthly rpt'!BR9 -> 12159.27904 | BS9: ='PADD1 mthly rpt'!BS9+'PADD2 mthly rpt'!BS9+'PADD3 mthly rpt'!BS9+'PADD4 mthly rpt'!BS9+'PADD5 mthly rpt'!BS9 -> -10469.62987 | BT9: ='PADD1 mthly rpt'!BT9+'PADD2 mthly rpt'!BT9+'PADD3 mthly rpt'!BT9+'PADD4 mthly rpt'!BT9+'PADD5 mthly rpt'!BT9 -> 26758.7598 | BU9: ='PADD1 mthly rpt'!BU9+'PADD2 mthly rpt'!BU9+'PADD3 mthly rpt'!BU9+'PADD4 mthly rpt'!BU9+'PADD5 mthly rpt'!BU9 -> 292083.6344 | BV9: ='PADD1 mthly rpt'!BV9+'PADD2 mthly rpt'!BV9+'PADD3 mthly rpt'!BV9+'PADD4 mthly rpt'!BV9+'PADD5 mthly rpt'!BV9 -> 317452.0418 | BW9: ='PADD1 mthly rpt'!BW9+'PADD2 mthly rpt'!BW9+'PADD3 mthly rpt'!BW9+'PADD4 mthly rpt'!BW9+'PADD5 mthly rpt'!BW9 -> 322533.4906 | BX9: ='PADD1 mthly rpt'!BX9+'PADD2 mthly rpt'!BX9+'PADD3 mthly rpt'!BX9+'PADD4 mthly rpt'!BX9+'PADD5 mthly rpt'!BX9 -> 159038.3672 | BY9: ='PADD1 mthly rpt'!BY9+'PADD2 mthly rpt'!BY9+'PADD3 mthly rpt'!BY9+'PADD4 mthly rpt'!BY9+'PADD5 mthly rpt'!BY9 -> 9307.854201 | BZ9: ='PADD1 mthly rpt'!BZ9+'PADD2 mthly rpt'!BZ9+'PADD3 mthly rpt'!BZ9+'PADD4 mthly rpt'!BZ9+'PADD5 mthly rpt'!BZ9 -> -73077.56994 | CA9: ='PADD1 mthly rpt'!CA9+'PADD2 mthly rpt'!CA9+'PADD3 mthly rpt'!CA9+'PADD4 mthly rpt'!CA9+'PADD5 mthly rpt'!CA9 -> -73618.17729 | CB9: ='PADD1 mthly rpt'!CB9+'PADD2 mthly rpt'!CB9+'PADD3 mthly rpt'!CB9+'PADD4 mthly rpt'!CB9+'PADD5 mthly rpt'!CB9 -> -162441.7485 | CC9: ='PADD1 mthly rpt'!CC9+'PADD2 mthly rpt'!CC9+'PADD3 mthly rpt'!CC9+'PADD4 mthly rpt'!CC9+'PADD5 mthly rpt'!CC9 -> -124890.6548 | CD9: ='PADD1 mthly rpt'!CD9+'PADD2 mthly rpt'!CD9+'PADD3 mthly rpt'!CD9+'PADD4 mthly rpt'!CD9+'PADD5 mthly rpt'!CD9 -> -70039.39682 | CE9: ='PADD1 mthly rpt'!CE9+'PADD2 mthly rpt'!CE9+'PADD3 mthly rpt'!CE9+'PADD4 mthly rpt'!CE9+'PADD5 mthly rpt'!CE9 -> -105388.381 | CF9: ='PADD1 mthly rpt'!CF9+'PADD2 mthly rpt'!CF9+'PADD3 mthly rpt'!CF9+'PADD4 mthly rpt'!CF9+'PADD5 mthly rpt'!CF9 -> 22170.23295 | CG9: ='PADD1 mthly rpt'!CG9+'PADD2 mthly rpt'!CG9+'PADD3 mthly rpt'!CG9+'PADD4 mthly rpt'!CG9+'PADD5 mthly rpt'!CG9 -> 69053.04597 | CH9: ='PADD1 mthly rpt'!CH9+'PADD2 mthly rpt'!CH9+'PADD3 mthly rpt'!CH9+'PADD4 mthly rpt'!CH9+'PADD5 mthly rpt'!CH9 -> 121454.0415 | CI9: ='PADD1 mthly rpt'!CI9+'PADD2 mthly rpt'!CI9+'PADD3 mthly rpt'!CI9+'PADD4 mthly rpt'!CI9+'PADD5 mthly rpt'!CI9 -> 76802.99238 | CJ9: ='PADD1 mthly rpt'!CJ9+'PADD2 mthly rpt'!CJ9+'PADD3 mthly rpt'!CJ9+'PADD4 mthly rpt'!CJ9+'PADD5 mthly rpt'!CJ9 -> -83533.03295 | CK9: ='PADD1 mthly rpt'!CK9+'PADD2 mthly rpt'!CK9+'PADD3 mthly rpt'!CK9+'PADD4 mthly rpt'!CK9+'PADD5 mthly rpt'!CK9 -> -167285.4581 | CL9: ='PADD1 mthly rpt'!CL9+'PADD2 mthly rpt'!CL9+'PADD3 mthly rpt'!CL9+'PADD4 mthly rpt'!CL9+'PADD5 mthly rpt'!CL9 -> -231541.6434 | CM9: ='PADD1 mthly rpt'!CM9+'PADD2 mthly rpt'!CM9+'PADD3 mthly rpt'!CM9+'PADD4 mthly rpt'!CM9+'PADD5 mthly rpt'!CM9 -> -187497.3046 | CN9: ='PADD1 mthly rpt'!CN9+'PADD2 mthly rpt'!CN9+'PADD3 mthly rpt'!CN9+'PADD4 mthly rpt'!CN9+'PADD5 mthly rpt'!CN9 -> -163911.717 | CO9: ='PADD1 mthly rpt'!CO9+'PADD2 mthly rpt'!CO9+'PADD3 mthly rpt'!CO9+'PADD4 mthly rpt'!CO9+'PADD5 mthly rpt'!CO9 -> -100192.4305 | CP9: ='PADD1 mthly rpt'!CP9+'PADD2 mthly rpt'!CP9+'PADD3 mthly rpt'!CP9+'PADD4 mthly rpt'!CP9+'PADD5 mthly rpt'!CP9 -> -113712.4238 | CQ9: ='PADD1 mthly rpt'!CQ9+'PADD2 mthly rpt'!CQ9+'PADD3 mthly rpt'!CQ9+'PADD4 mthly rpt'!CQ9+'PADD5 mthly rpt'!CQ9 -> -51936.5453 | CR9: ='PADD1 mthly rpt'!CR9+'PADD2 mthly rpt'!CR9+'PADD3 mthly rpt'!CR9+'PADD4 mthly rpt'!CR9+'PADD5 mthly rpt'!CR9 -> 11091.03718 | CS9: ='PADD1 mthly rpt'!CS9+'PADD2 mthly rpt'!CS9+'PADD3 mthly rpt'!CS9+'PADD4 mthly rpt'!CS9+'PADD5 mthly rpt'!CS9 -> 109238.0851 | CT9: ='PADD1 mthly rpt'!CT9+'PADD2 mthly rpt'!CT9+'PADD3 mthly rpt'!CT9+'PADD4 mthly rpt'!CT9+'PADD5 mthly rpt'!CT9 -> 262311.0252 | CU9: ='PADD1 mthly rpt'!CU9+'PADD2 mthly rpt'!CU9+'PADD3 mthly rpt'!CU9+'PADD4 mthly rpt'!CU9+'PADD5 mthly rpt'!CU9 -> 155600.5561 | CV9: ='PADD1 mthly rpt'!CV9+'PADD2 mthly rpt'!CV9+'PADD3 mthly rpt'!CV9+'PADD4 mthly rpt'!CV9+'PADD5 mthly rpt'!CV9 -> 98057.46642 | CW9: ='PADD1 mthly rpt'!CW9+'PADD2 mthly rpt'!CW9+'PADD3 mthly rpt'!CW9+'PADD4 mthly rpt'!CW9+'PADD5 mthly rpt'!CW9 -> -102647.3219 | CX9: ='PADD1 mthly rpt'!CX9+'PADD2 mthly rpt'!CX9+'PADD3 mthly rpt'!CX9+'PADD4 mthly rpt'!CX9+'PADD5 mthly rpt'!CX9 -> -143788.5165 | CY9: ='PADD1 mthly rpt'!CY9+'PADD2 mthly rpt'!CY9+'PADD3 mthly rpt'!CY9+'PADD4 mthly rpt'!CY9+'PADD5 mthly rpt'!CY9 -> -179283.1643 | CZ9: ='PADD1 mthly rpt'!CZ9+'PADD2 mthly rpt'!CZ9+'PADD3 mthly rpt'!CZ9+'PADD4 mthly rpt'!CZ9+'PADD5 mthly rpt'!CZ9 -> -98602.05876 | DA9: ='PADD1 mthly rpt'!DA9+'PADD2 mthly rpt'!DA9+'PADD3 mthly rpt'!DA9+'PADD4 mthly rpt'!DA9+'PADD5 mthly rpt'!DA9 -> -135778.248 | DB9: ='PADD1 mthly rpt'!DB9+'PADD2 mthly rpt'!DB9+'PADD3 mthly rpt'!DB9+'PADD4 mthly rpt'!DB9+'PADD5 mthly rpt'!DB9 -> -66991.71027 | DC9: ='PADD1 mthly rpt'!DC9+'PADD2 mthly rpt'!DC9+'PADD3 mthly rpt'!DC9+'PADD4 mthly rpt'!DC9+'PADD5 mthly rpt'!DC9 -> 129866.968 | DD9: ='PADD1 mthly rpt'!DD9+'PADD2 mthly rpt'!DD9+'PADD3 mthly rpt'!DD9+'PADD4 mthly rpt'!DD9+'PADD5 mthly rpt'!DD9 -> 191454.1439 | DE9: ='PADD1 mthly rpt'!DE9+'PADD2 mthly rpt'!DE9+'PADD3 mthly rpt'!DE9+'PADD4 mthly rpt'!DE9+'PADD5 mthly rpt'!DE9 -> 254748.382 | DF9: ='PADD1 mthly rpt'!DF9+'PADD2 mthly rpt'!DF9+'PADD3 mthly rpt'!DF9+'PADD4 mthly rpt'!DF9+'PADD5 mthly rpt'!DF9 -> 218457.1652 | DG9: ='PADD1 mthly rpt'!DG9+'PADD2 mthly rpt'!DG9+'PADD3 mthly rpt'!DG9+'PADD4 mthly rpt'!DG9+'PADD5 mthly rpt'!DG9 -> 81549.49491 | DH9: ='PADD1 mthly rpt'!DH9+'PADD2 mthly rpt'!DH9+'PADD3 mthly rpt'!DH9+'PADD4 mthly rpt'!DH9+'PADD5 mthly rpt'!DH9 -> -58912.64892 | DI9: ='PADD1 mthly rpt'!DI9+'PADD2 mthly rpt'!DI9+'PADD3 mthly rpt'!DI9+'PADD4 mthly rpt'!DI9+'PADD5 mthly rpt'!DI9 -> -163741.1354 | DJ9: ='PADD1 mthly rpt'!DJ9+'PADD2 mthly rpt'!DJ9+'PADD3 mthly rpt'!DJ9+'PADD4 mthly rpt'!DJ9+'PADD5 mthly rpt'!DJ9 -> -183317.1474 | DK9: ='PADD1 mthly rpt'!DK9+'PADD2 mthly rpt'!DK9+'PADD3 mthly rpt'!DK9+'PADD4 mthly rpt'!DK9+'PADD5 mthly rpt'!DK9 -> -283617.5271 | DL9: ='PADD1 mthly rpt'!DL9+'PADD2 mthly rpt'!DL9+'PADD3 mthly rpt'!DL9+'PADD4 mthly rpt'!DL9+'PADD5 mthly rpt'!DL9 -> -218862.698 | DM9: ='PADD1 mthly rpt'!DM9+'PADD2 mthly rpt'!DM9+'PADD3 mthly rpt'!DM9+'PADD4 mthly rpt'!DM9+'PADD5 mthly rpt'!DM9 -> -282811.5166 | DN9: ='PADD1 mthly rpt'!DN9+'PADD2 mthly rpt'!DN9+'PADD3 mthly rpt'!DN9+'PADD4 mthly rpt'!DN9+'PADD5 mthly rpt'!DN9 -> -141890.7438 | DO9: ='PADD1 mthly rpt'!DO9+'PADD2 mthly rpt'!DO9+'PADD3 mthly rpt'!DO9+'PADD4 mthly rpt'!DO9+'PADD5 mthly rpt'!DO9 -> 38444.87233 | DP9: ='PADD1 mthly rpt'!DP9+'PADD2 mthly rpt'!DP9+'PADD3 mthly rpt'!DP9+'PADD4 mthly rpt'!DP9+'PADD5 mthly rpt'!DP9 -> -40533.01837 | DQ9: ='PADD1 mthly rpt'!DQ9+'PADD2 mthly rpt'!DQ9+'PADD3 mthly rpt'!DQ9+'PADD4 mthly rpt'!DQ9+'PADD5 mthly rpt'!DQ9 -> 123821.3638 | DR9: ='PADD1 mthly rpt'!DR9+'PADD2 mthly rpt'!DR9+'PADD3 mthly rpt'!DR9+'PADD4 mthly rpt'!DR9+'PADD5 mthly rpt'!DR9 -> 204661.3725 | DS9: ='PADD1 mthly rpt'!DS9+'PADD2 mthly rpt'!DS9+'PADD3 mthly rpt'!DS9+'PADD4 mthly rpt'!DS9+'PADD5 mthly rpt'!DS9 -> 281201.8864 | DT9: ='PADD1 mthly rpt'!DT9+'PADD2 mthly rpt'!DT9+'PADD3 mthly rpt'!DT9+'PADD4 mthly rpt'!DT9+'PADD5 mthly rpt'!DT9 -> -102788.25 | DU9: ='PADD1 mthly rpt'!DU9+'PADD2 mthly rpt'!DU9+'PADD3 mthly rpt'!DU9+'PADD4 mthly rpt'!DU9+'PADD5 mthly rpt'!DU9 -> -140352.8092 | DV9: ='PADD1 mthly rpt'!DV9+'PADD2 mthly rpt'!DV9+'PADD3 mthly rpt'!DV9+'PADD4 mthly rpt'!DV9+'PADD5 mthly rpt'!DV9 -> -170704.6405 | DW9: ='PADD1 mthly rpt'!DW9+'PADD2 mthly rpt'!DW9+'PADD3 mthly rpt'!DW9+'PADD4 mthly rpt'!DW9+'PADD5 mthly rpt'!DW9 -> -177689.0581 | DX9: ='PADD1 mthly rpt'!DX9+'PADD2 mthly rpt'!DX9+'PADD3 mthly rpt'!DX9+'PADD4 mthly rpt'!DX9+'PADD5 mthly rpt'!DX9 -> -252485.5884 | DY9: ='PADD1 mthly rpt'!DY9+'PADD2 mthly rpt'!DY9+'PADD3 mthly rpt'!DY9+'PADD4 mthly rpt'!DY9+'PADD5 mthly rpt'!DY9 -> -232166.6741 | DZ9: ='PADD1 mthly rpt'!DZ9+'PADD2 mthly rpt'!DZ9+'PADD3 mthly rpt'!DZ9+'PADD4 mthly rpt'!DZ9+'PADD5 mthly rpt'!DZ9 -> -16077.30856 | EA9: ='PADD1 mthly rpt'!EA9+'PADD2 mthly rpt'!EA9+'PADD3 mthly rpt'!EA9+'PADD4 mthly rpt'!EA9+'PADD5 mthly rpt'!EA9 -> -125142.7476 | EB9: ='PADD1 mthly rpt'!EB9+'PADD2 mthly rpt'!EB9+'PADD3 mthly rpt'!EB9+'PADD4 mthly rpt'!EB9+'PADD5 mthly rpt'!EB9 -> 24429.84973 | EC9: ='PADD1 mthly rpt'!EC9+'PADD2 mthly rpt'!EC9+'PADD3 mthly rpt'!EC9+'PADD4 mthly rpt'!EC9+'PADD5 mthly rpt'!EC9 -> 233155.9465 | ED9: ='PADD1 mthly rpt'!ED9+'PADD2 mthly rpt'!ED9+'PADD3 mthly rpt'!ED9+'PADD4 mthly rpt'!ED9+'PADD5 mthly rpt'!ED9 -> 433807.1159 | EE9: ='PADD1 mthly rpt'!EE9+'PADD2 mthly rpt'!EE9+'PADD3 mthly rpt'!EE9+'PADD4 mthly rpt'!EE9+'PADD5 mthly rpt'!EE9 -> 344954.6701 | EF9: ='PADD1 mthly rpt'!EF9+'PADD2 mthly rpt'!EF9+'PADD3 mthly rpt'!EF9+'PADD4 mthly rpt'!EF9+'PADD5 mthly rpt'!EF9 -> -86050.25048 | EG9: ='PADD1 mthly rpt'!EG9+'PADD2 mthly rpt'!EG9+'PADD3 mthly rpt'!EG9+'PADD4 mthly rpt'!EG9+'PADD5 mthly rpt'!EG9 -> -198952.2111 | EH9: ='PADD1 mthly rpt'!EH9+'PADD2 mthly rpt'!EH9+'PADD3 mthly rpt'!EH9+'PADD4 mthly rpt'!EH9+'PADD5 mthly rpt'!EH9 -> -93436.07617 | EI9: ='PADD1 mthly rpt'!EI9+'PADD2 mthly rpt'!EI9+'PADD3 mthly rpt'!EI9+'PADD4 mthly rpt'!EI9+'PADD5 mthly rpt'!EI9 -> -202097.1792 | EJ9: ='PADD1 mthly rpt'!EJ9+'PADD2 mthly rpt'!EJ9+'PADD3 mthly rpt'!EJ9+'PADD4 mthly rpt'!EJ9+'PADD5 mthly rpt'!EJ9 -> -128000.653 | EK9: ='PADD1 mthly rpt'!EK9+'PADD2 mthly rpt'!EK9+'PADD3 mthly rpt'!EK9+'PADD4 mthly rpt'!EK9+'PADD5 mthly rpt'!EK9 -> -71346.67899 | EL9: ='PADD1 mthly rpt'!EL9+'PADD2 mthly rpt'!EL9+'PADD3 mthly rpt'!EL9+'PADD4 mthly rpt'!EL9+'PADD5 mthly rpt'!EL9 -> -140225.5433 | EM9: ='PADD1 mthly rpt'!EM9+'PADD2 mthly rpt'!EM9+'PADD3 mthly rpt'!EM9+'PADD4 mthly rpt'!EM9+'PADD5 mthly rpt'!EM9 -> 215469.3103 | EN9: ='PADD1 mthly rpt'!EN9+'PADD2 mthly rpt'!EN9+'PADD3 mthly rpt'!EN9+'PADD4 mthly rpt'!EN9+'PADD5 mthly rpt'!EN9 -> 187649.8314 | EO9: ='PADD1 mthly rpt'!EO9+'PADD2 mthly rpt'!EO9+'PADD3 mthly rpt'!EO9+'PADD4 mthly rpt'!EO9+'PADD5 mthly rpt'!EO9 -> 581602.2064 | EP9: ='PADD1 mthly rpt'!EP9+'PADD2 mthly rpt'!EP9+'PADD3 mthly rpt'!EP9+'PADD4 mthly rpt'!EP9+'PADD5 mthly rpt'!EP9 -> 573193.7991 | EQ9: ='PADD1 mthly rpt'!EQ9+'PADD2 mthly rpt'!EQ9+'PADD3 mthly rpt'!EQ9+'PADD4 mthly rpt'!EQ9+'PADD5 mthly rpt'!EQ9 -> 373222.1042 | ER9: ='PADD1 mthly rpt'!ER9+'PADD2 mthly rpt'!ER9+'PADD3 mthly rpt'!ER9+'PADD4 mthly rpt'!ER9+'PADD5 mthly rpt'!ER9 -> 334968.7933 | ES9: ='PADD1 mthly rpt'!ES9+'PADD2 mthly rpt'!ES9+'PADD3 mthly rpt'!ES9+'PADD4 mthly rpt'!ES9+'PADD5 mthly rpt'!ES9 -> 95813.26055 | ET9: ='PADD1 mthly rpt'!ET9+'PADD2 mthly rpt'!ET9+'PADD3 mthly rpt'!ET9+'PADD4 mthly rpt'!ET9+'PADD5 mthly rpt'!ET9 -> -77208.86654 | EU9: ='PADD1 mthly rpt'!EU9+'PADD2 mthly rpt'!EU9+'PADD3 mthly rpt'!EU9+'PADD4 mthly rpt'!EU9+'PADD5 mthly rpt'!EU9 -> -187163.1754 | EV9: ='PADD1 mthly rpt'!EV9+'PADD2 mthly rpt'!EV9+'PADD3 mthly rpt'!EV9+'PADD4 mthly rpt'!EV9+'PADD5 mthly rpt'!EV9 -> -150049.5676 | EW9: ='PADD1 mthly rpt'!EW9+'PADD2 mthly rpt'!EW9+'PADD3 mthly rpt'!EW9+'PADD4 mthly rpt'!EW9+'PADD5 mthly rpt'!EW9 -> -183306.7165 | EX9: ='PADD1 mthly rpt'!EX9+'PADD2 mthly rpt'!EX9+'PADD3 mthly rpt'!EX9+'PADD4 mthly rpt'!EX9+'PADD5 mthly rpt'!EX9 -> 58747.05636 | EY9: ='PADD1 mthly rpt'!EY9+'PADD2 mthly rpt'!EY9+'PADD3 mthly rpt'!EY9+'PADD4 mthly rpt'!EY9+'PADD5 mthly rpt'!EY9 -> 181259.8694 | EZ9: ='PADD1 mthly rpt'!EZ9+'PADD2 mthly rpt'!EZ9+'PADD3 mthly rpt'!EZ9+'PADD4 mthly rpt'!EZ9+'PADD5 mthly rpt'!EZ9 -> 144973.1619 | FA9: ='PADD1 mthly rpt'!FA9+'PADD2 mthly rpt'!FA9+'PADD3 mthly rpt'!FA9+'PADD4 mthly rpt'!FA9+'PADD5 mthly rpt'!FA9 -> 276523.8296 | FB9: ='PADD1 mthly rpt'!FB9+'PADD2 mthly rpt'!FB9+'PADD3 mthly rpt'!FB9+'PADD4 mthly rpt'!FB9+'PADD5 mthly rpt'!FB9 -> 246022.3197 | FC9: ='PADD1 mthly rpt'!FC9+'PADD2 mthly rpt'!FC9+'PADD3 mthly rpt'!FC9+'PADD4 mthly rpt'!FC9+'PADD5 mthly rpt'!FC9 -> 63768.98816 | FD9: ='PADD1 mthly rpt'!FD9+'PADD2 mthly rpt'!FD9+'PADD3 mthly rpt'!FD9+'PADD4 mthly rpt'!FD9+'PADD5 mthly rpt'!FD9 -> -624.4225668 | FE9: ='PADD1 mthly rpt'!FE9+'PADD2 mthly rpt'!FE9+'PADD3 mthly rpt'!FE9+'PADD4 mthly rpt'!FE9+'PADD5 mthly rpt'!FE9 -> -98079.83264 | FF9: ='PADD1 mthly rpt'!FF9+'PADD2 mthly rpt'!FF9+'PADD3 mthly rpt'!FF9+'PADD4 mthly rpt'!FF9+'PADD5 mthly rpt'!FF9 -> -140529.3864 | FG9: ='PADD1 mthly rpt'!FG9+'PADD2 mthly rpt'!FG9+'PADD3 mthly rpt'!FG9+'PADD4 mthly rpt'!FG9+'PADD5 mthly rpt'!FG9 -> -211362.5523 | FH9: ='PADD1 mthly rpt'!FH9+'PADD2 mthly rpt'!FH9+'PADD3 mthly rpt'!FH9+'PADD4 mthly rpt'!FH9+'PADD5 mthly rpt'!FH9 -> -92753.00366 | FI9: ='PADD1 mthly rpt'!FI9+'PADD2 mthly rpt'!FI9+'PADD3 mthly rpt'!FI9+'PADD4 mthly rpt'!FI9+'PADD5 mthly rpt'!FI9 -> -133843.1424 | FJ9: ='PADD1 mthly rpt'!FJ9+'PADD2 mthly rpt'!FJ9+'PADD3 mthly rpt'!FJ9+'PADD4 mthly rpt'!FJ9+'PADD5 mthly rpt'!FJ9 -> -327040.3101 | FK9: ='PADD1 mthly rpt'!FK9+'PADD2 mthly rpt'!FK9+'PADD3 mthly rpt'!FK9+'PADD4 mthly rpt'!FK9+'PADD5 mthly rpt'!FK9 -> -90221.54693 | FL9: ='PADD1 mthly rpt'!FL9+'PADD2 mthly rpt'!FL9+'PADD3 mthly rpt'!FL9+'PADD4 mthly rpt'!FL9+'PADD5 mthly rpt'!FL9 -> 13701.30587 | FM9: ='PADD1 mthly rpt'!FM9+'PADD2 mthly rpt'!FM9+'PADD3 mthly rpt'!FM9+'PADD4 mthly rpt'!FM9+'PADD5 mthly rpt'!FM9 -> 191915.3274 | FN9: ='PADD1 mthly rpt'!FN9+'PADD2 mthly rpt'!FN9+'PADD3 mthly rpt'!FN9+'PADD4 mthly rpt'!FN9+'PADD5 mthly rpt'!FN9 -> 159214.638 | FO9: ='PADD1 mthly rpt'!FO9+'PADD2 mthly rpt'!FO9+'PADD3 mthly rpt'!FO9+'PADD4 mthly rpt'!FO9+'PADD5 mthly rpt'!FO9 -> 56891.14591 | FP9: ='PADD1 mthly rpt'!FP9+'PADD2 mthly rpt'!FP9+'PADD3 mthly rpt'!FP9+'PADD4 mthly rpt'!FP9+'PADD5 mthly rpt'!FP9 -> -102679.0467 | FQ9: ='PADD1 mthly rpt'!FQ9+'PADD2 mthly rpt'!FQ9+'PADD3 mthly rpt'!FQ9+'PADD4 mthly rpt'!FQ9+'PADD5 mthly rpt'!FQ9 -> -83258.59442 | FR9: ='PADD1 mthly rpt'!FR9+'PADD2 mthly rpt'!FR9+'PADD3 mthly rpt'!FR9+'PADD4 mthly rpt'!FR9+'PADD5 mthly rpt'!FR9 -> -192367.4397 | FS9: ='PADD1 mthly rpt'!FS9+'PADD2 mthly rpt'!FS9+'PADD3 mthly rpt'!FS9+'PADD4 mthly rpt'!FS9+'PADD5 mthly rpt'!FS9 -> -156312.9209 | FT9: ='PADD1 mthly rpt'!FT9+'PADD2 mthly rpt'!FT9+'PADD3 mthly rpt'!FT9+'PADD4 mthly rpt'!FT9+'PADD5 mthly rpt'!FT9 -> -133095.4387 | FU9: ='PADD1 mthly rpt'!FU9+'PADD2 mthly rpt'!FU9+'PADD3 mthly rpt'!FU9+'PADD4 mthly rpt'!FU9+'PADD5 mthly rpt'!FU9 -> -241835.1075 | FV9: ='PADD1 mthly rpt'!FV9+'PADD2 mthly rpt'!FV9+'PADD3 mthly rpt'!FV9+'PADD4 mthly rpt'!FV9+'PADD5 mthly rpt'!FV9 -> -217307.8135 | FW9: ='PADD1 mthly rpt'!FW9+'PADD2 mthly rpt'!FW9+'PADD3 mthly rpt'!FW9+'PADD4 mthly rpt'!FW9+'PADD5 mthly rpt'!FW9 -> -55913.83889 | FX9: ='PADD1 mthly rpt'!FX9+'PADD2 mthly rpt'!FX9+'PADD3 mthly rpt'!FX9+'PADD4 mthly rpt'!FX9+'PADD5 mthly rpt'!FX9 -> 147668.3558 | FY9: ='PADD1 mthly rpt'!FY9+'PADD2 mthly rpt'!FY9+'PADD3 mthly rpt'!FY9+'PADD4 mthly rpt'!FY9+'PADD5 mthly rpt'!FY9 -> 198508.8447 | FZ9: ='PADD1 mthly rpt'!FZ9+'PADD2 mthly rpt'!FZ9+'PADD3 mthly rpt'!FZ9+'PADD4 mthly rpt'!FZ9+'PADD5 mthly rpt'!FZ9 -> -32087.63452 | GA9: ='PADD1 mthly rpt'!GA9+'PADD2 mthly rpt'!GA9+'PADD3 mthly rpt'!GA9+'PADD4 mthly rpt'!GA9+'PADD5 mthly rpt'!GA9 -> 533448.857 | GB9: ='PADD1 mthly rpt'!GB9+'PADD2 mthly rpt'!GB9+'PADD3 mthly rpt'!GB9+'PADD4 mthly rpt'!GB9+'PADD5 mthly rpt'!GB9 -> 189964.4363 | GC9: ='PADD1 mthly rpt'!GC9+'PADD2 mthly rpt'!GC9+'PADD3 mthly rpt'!GC9+'PADD4 mthly rpt'!GC9+'PADD5 mthly rpt'!GC9 -> 205757.7723 | GD9: ='PADD1 mthly rpt'!GD9+'PADD2 mthly rpt'!GD9+'PADD3 mthly rpt'!GD9+'PADD4 mthly rpt'!GD9+'PADD5 mthly rpt'!GD9 -> -81619.51057 | GE9: ='PADD1 mthly rpt'!GE9+'PADD2 mthly rpt'!GE9+'PADD3 mthly rpt'!GE9+'PADD4 mthly rpt'!GE9+'PADD5 mthly rpt'!GE9 -> -39521.41325 | GF9: ='PADD1 mthly rpt'!GF9+'PADD2 mthly rpt'!GF9+'PADD3 mthly rpt'!GF9+'PADD4 mthly rpt'!GF9+'PADD5 mthly rpt'!GF9 -> -211592.4512 | GG9: ='PADD1 mthly rpt'!GG9+'PADD2 mthly rpt'!GG9+'PADD3 mthly rpt'!GG9+'PADD4 mthly rpt'!GG9+'PADD5 mthly rpt'!GG9 -> -247202.3023 | GH9: ='PADD1 mthly rpt'!GH9+'PADD2 mthly rpt'!GH9+'PADD3 mthly rpt'!GH9+'PADD4 mthly rpt'!GH9+'PADD5 mthly rpt'!GH9 -> -5832.649735 | GI9: ='PADD1 mthly rpt'!GI9+'PADD2 mthly rpt'!GI9+'PADD3 mthly rpt'!GI9+'PADD4 mthly rpt'!GI9+'PADD5 mthly rpt'!GI9 -> 160706.4033 | GJ9: ='PADD1 mthly rpt'!GJ9+'PADD2 mthly rpt'!GJ9+'PADD3 mthly rpt'!GJ9+'PADD4 mthly rpt'!GJ9+'PADD5 mthly rpt'!GJ9 -> 92092.35149 | GK9: ='PADD1 mthly rpt'!GK9+'PADD2 mthly rpt'!GK9+'PADD3 mthly rpt'!GK9+'PADD4 mthly rpt'!GK9+'PADD5 mthly rpt'!GK9 -> 1062249.379 | GL9: ='PADD1 mthly rpt'!GL9+'PADD2 mthly rpt'!GL9+'PADD3 mthly rpt'!GL9+'PADD4 mthly rpt'!GL9+'PADD5 mthly rpt'!GL9 -> 651321.2837 | GM9: ='PADD1 mthly rpt'!GM9+'PADD2 mthly rpt'!GM9+'PADD3 mthly rpt'!GM9+'PADD4 mthly rpt'!GM9+'PADD5 mthly rpt'!GM9 -> 1018764.813 | GN9: ='PADD1 mthly rpt'!GN9+'PADD2 mthly rpt'!GN9+'PADD3 mthly rpt'!GN9+'PADD4 mthly rpt'!GN9+'PADD5 mthly rpt'!GN9 -> -20409.4043 | GO9: ='PADD1 mthly rpt'!GO9+'PADD2 mthly rpt'!GO9+'PADD3 mthly rpt'!GO9+'PADD4 mthly rpt'!GO9+'PADD5 mthly rpt'!GO9 -> 23028.41915 | GP9: ='PADD1 mthly rpt'!GP9+'PADD2 mthly rpt'!GP9+'PADD3 mthly rpt'!GP9+'PADD4 mthly rpt'!GP9+'PADD5 mthly rpt'!GP9 -> -543568.0858 | GQ9: ='PADD1 mthly rpt'!GQ9+'PADD2 mthly rpt'!GQ9+'PADD3 mthly rpt'!GQ9+'PADD4 mthly rpt'!GQ9+'PADD5 mthly rpt'!GQ9 -> -269045.0896 | GR9: ='PADD1 mthly rpt'!GR9+'PADD2 mthly rpt'!GR9+'PADD3 mthly rpt'!GR9+'PADD4 mthly rpt'!GR9+'PADD5 mthly rpt'!GR9 -> -275547.917 | GS9: ='PADD1 mthly rpt'!GS9+'PADD2 mthly rpt'!GS9+'PADD3 mthly rpt'!GS9+'PADD4 mthly rpt'!GS9+'PADD5 mthly rpt'!GS9 -> -212162.278 | GT9: ='PADD1 mthly rpt'!GT9+'PADD2 mthly rpt'!GT9+'PADD3 mthly rpt'!GT9+'PADD4 mthly rpt'!GT9+'PADD5 mthly rpt'!GT9 -> -170556.3896 | GU9: ='PADD1 mthly rpt'!GU9+'PADD2 mthly rpt'!GU9+'PADD3 mthly rpt'!GU9+'PADD4 mthly rpt'!GU9+'PADD5 mthly rpt'!GU9 -> -76531.10042 | GV9: ='PADD1 mthly rpt'!GV9+'PADD2 mthly rpt'!GV9+'PADD3 mthly rpt'!GV9+'PADD4 mthly rpt'!GV9+'PADD5 mthly rpt'!GV9 -> -17222.26 | GW9: ='PADD1 mthly rpt'!GW9+'PADD2 mthly rpt'!GW9+'PADD3 mthly rpt'!GW9+'PADD4 mthly rpt'!GW9+'PADD5 mthly rpt'!GW9 -> 172633.2808 | GX9: ='PADD1 mthly rpt'!GX9+'PADD2 mthly rpt'!GX9+'PADD3 mthly rpt'!GX9+'PADD4 mthly rpt'!GX9+'PADD5 mthly rpt'!GX9 -> 244723.1302 | GY9: ='PADD1 mthly rpt'!GY9+'PADD2 mthly rpt'!GY9+'PADD3 mthly rpt'!GY9+'PADD4 mthly rpt'!GY9+'PADD5 mthly rpt'!GY9 -> 217933.9473 | GZ9: ='PADD1 mthly rpt'!GZ9+'PADD2 mthly rpt'!GZ9+'PADD3 mthly rpt'!GZ9+'PADD4 mthly rpt'!GZ9+'PADD5 mthly rpt'!GZ9 -> -31548.33234 | HA9: ='PADD1 mthly rpt'!HA9+'PADD2 mthly rpt'!HA9+'PADD3 mthly rpt'!HA9+'PADD4 mthly rpt'!HA9+'PADD5 mthly rpt'!HA9 -> -157129.3367 | HB9: ='PADD1 mthly rpt'!HB9+'PADD2 mthly rpt'!HB9+'PADD3 mthly rpt'!HB9+'PADD4 mthly rpt'!HB9+'PADD5 mthly rpt'!HB9 -> -155362.2739 | HC9: ='PADD1 mthly rpt'!HC9+'PADD2 mthly rpt'!HC9+'PADD3 mthly rpt'!HC9+'PADD4 mthly rpt'!HC9+'PADD5 mthly rpt'!HC9 -> -193379.544
A10: TOTAL SUPPLY | B10: =SUM(B5:B9) -> 1626693.398 | C10: =SUM(C5:C9) -> 1524183.415 | D10: 1369040.46 | E10: 1089322.524 | F10: 1138244.075 | G10: 1023104.16 | H10: 1026761.57 | I10: 1131007.512 | J10: 1164730.373 | K10: 1140969.511 | L10: 1298705.424 | M10: 1628236.531 | N10: 1382353.597 | O10: 1537111.44 | P10: 1381344.833 | Q10: 1154125.62 | R10: 1166795.759 | S10: 1110364.649 | T10: 1073454.985 | U10: 1122031.635 | V10: 1176309.055 | W10: 1284944.031 | X10: 1331280.49 | Y10: 1444611.918 | Z10: 1708707.879 | AA10: 1719738.117 | AB10: 1332895.165 | AC10: 1179223.489 | AD10: 1122032.991 | AE10: 1108431.233 | AF10: 1177014.088 | AG10: 1225745.669 | AH10: 1285302.672 | AI10: 1298271.442 | AJ10: 1480957.689 | AK10: 1517730.495 | AL10: 1606035.8 | AM10: 1522750.134 | AN10: 1331518.16 | AO10: 1183851.244 | AP10: 1089731.475 | AQ10: 1113169.394 | AR10: 1098574.738 | AS10: 1088123.701 | AT10: 912079.7197 | AU10: 1178974.696 | AV10: 1143416.379 | AW10: 1165446.419 | AX10: 1376325.733 | AY10: 1284617.438 | AZ10: 1223736.195 | BA10: 1075159.819 | BB10: 979544.8288 | BC10: 1048243.11 | BD10: 1063813.089 | BE10: 1219692.05 | BF10: 1178832.316 | BG10: 1350641.355 | BH10: 1488007.683 | BI10: 1559287.723 | BJ10: 1600804.512 | BK10: 1509625.43 | BL10: 1256793.892 | BM10: 1098870.983 | BN10: 1093830.308 | BO10: =SUM(BO5:BO9) -> 1114351.887 | BP10: 1136915.85 | BQ10: 1155019.59 | BR10: 1241759.279 | BS10: 1246530.37 | BT10: 1307025.426 | BU10: 1678825.57 | BV10: 1656452.042 | BW10: 1581033.491 | BX10: 1446199.657 | BY10: 1264141.188 | BZ10: 1193890.172 | CA10: 1175348.489 | CB10: 1085074.381 | CC10: 1138367.41 | CD10: 1232027.27 | CE10: 1190095.49 | CF10: 1370736.9 | CG10: 1461117.562 | CH10: 1480389.525 | CI10: 1469539.446 | CJ10: 1255918.58 | CK10: 1193747.875 | CL10: 1145619.647 | CM10: 1192802.695 | CN10: 1217088.283 | CO10: 1238162.408 | CP10: 1234487.576 | CQ10: 1325063.455 | CR10: 1464557.704 | CS10: 1606012.279 | CT10: 1734859.412 | CU10: 1631814.842 | CV10: 1569089.724 | CW10: 1367186.011 | CX10: 1325501.806 | CY10: 1317116.836 | CZ10: 1399204.393 | DA10: 1385673.365 | DB10: 1469541.623 | DC10: 1702705.678 | DD10: 1787387.477 | DE10: 1842522.576 | DF10: 1840553.939 | DG10: 1749370.923 | DH10: 1532119.609 | DI10: 1451925.531 | DJ10: 1437424.788 | DK10: 1397482.473 | DL10: 1474105.044 | DM10: 1433317.516 | DN10: 1535109.256 | DO10: 1725154.55 | DP10: 1701566.982 | DQ10: 1965627.815 | DR10: 1984790.405 | DS10: 2070701.886 | DT10: 1702824.653 | DU10: 1730247.191 | DV10: 1649585.682 | DW10: 1628644.275 | DX10: 1586353.121 | DY10: 1618059.132 | DZ10: 1780422.691 | EA10: =SUM(EA5:EA9) -> 1704212.091 | EB10: 1886463.183 | EC10: 2104349.495 | ED10: 2288032.922 | EE10: 2255437.429 | EF10: 1804175.556 | EG10: 1674647.789 | EH10: 1789112.311 | EI10: 1646502.821 | EJ10: 1734902.573 | EK10: 1799040.418 | EL10: 1724481.225 | EM10: 2073868.552 | EN10: 2119424.266 | EO10: 2474326.029 | EP10: 2513854.105 | EQ10: 2277033.986 | ER10: 2280244.002 | ES10: 2009692.696 | ET10: 1882100.601 | EU10: 1764636.825 | EV10: 1805273.013 | EW10: 1750196.278 | EX10: 1947759.348 | EY10: 2225807.908 | EZ10: 2206712.851 | FA10: 2359004.558 | FB10: 2382209.001 | FC10: 2193287.585 | FD10: 2106417.487 | FE10: 2005103.206 | FF10: 1958589.295 | FG10: =SUM(FG5:FG9) -> 1907316.467 | FH10: 2065436.952 | FI10: =SUM(FI5:FI9) -> 2074989.682 | FJ10: 1901849.631 | FK10: =SUM(FK5:FK9) -> 2155950.056 | FL10: =SUM(FL5:FL9) -> 2333416.482 | FM10: 2536133.625 | FN10: =SUM(FN5:FN9) -> 2482596.237 | FO10: 2319079.792 | FP10: 2114081.191 | FQ10: =SUM(FQ5:FQ9) -> 2149042.029 | FR10: 2029717.541 | FS10: =SUM(FS5:FS9) -> 2088133.622 | FT10: =SUM(FT5:FT9) -> 2123335.649 | FU10: 2040036.557 | FV10: =SUM(FV5:FV9) -> 2136885.361 | FW10: =SUM(FW5:FW9) -> 2304332.618 | FX10: 2348904.535 | FY10: =SUM(FY5:FY9) -> 2523519.993 | FZ10: 2576982.266 | GA10: =SUM(GA5:GA9) -> 2457868.786 | GB10: 2432800.071 | GC10: =SUM(GC5:GC9) -> 2179492.048 | GD10: 1968496.123 | GE10: =SUM(GE5:GE9) -> 2153757.005 | GF10: 2141159.439 | GG10: =SUM(GG5:GG9) -> 2107563.885 | GH10: 2206012.933 | GI10: =SUM(GI5:GI9) -> 2489859.52 | GJ10: 2589139.44 | GK10: =SUM(GK5:GK9) -> 3136146.919 | GL10: 3062368.401 | GM10: =SUM(GM5:GM9) -> 2698030.695 | GN10: 2429470.899 | GO10: =SUM(GO5:GO9) -> 2607613.947 | GP10: 2333840.281 | GQ10: =SUM(GQ5:GQ9) -> 2293701.68 | GR10: 2191115.759 | GS10: =SUM(GS5:GS9) -> 2371424.807 | GT10: 2402575.568 | GU10: =SUM(GU5:GU9) -> 2564135.016 | GV10: 2668662.76 | GW10: =SUM(GW5:GW9) -> 2946112.575 | GX10: 3007157.776 | GY10: =SUM(GY5:GY9) -> 2934633.658 | GZ10: 2714288.84 | HA10: =SUM(HA5:HA9) -> 2542433.024 | HB10: 2573032.32 | HC10: =SUM(HC5:HC9) -> 2529167.89
A11: DEMAND
A12: Residential and Commercial | B12: ='PADD1 mthly rpt'!B12+'PADD2 mthly rpt'!B12+'PADD3 mthly rpt'!B12+'PADD4 mthly rpt'!B12+'PADD5 mthly rpt'!B12 -> 815628.2504 | C12: ='PADD1 mthly rpt'!C12+'PADD2 mthly rpt'!C12+'PADD3 mthly rpt'!C12+'PADD4 mthly rpt'!C12+'PADD5 mthly rpt'!C12 -> 734884.2729 | D12: ='PADD1 mthly rpt'!D12+'PADD2 mthly rpt'!D12+'PADD3 mthly rpt'!D12+'PADD4 mthly rpt'!D12+'PADD5 mthly rpt'!D12 -> 620200.6517 | E12: ='PADD1 mthly rpt'!E12+'PADD2 mthly rpt'!E12+'PADD3 mthly rpt'!E12+'PADD4 mthly rpt'!E12+'PADD5 mthly rpt'!E12 -> 362426.4862 | F12: ='PADD1 mthly rpt'!F12+'PADD2 mthly rpt'!F12+'PADD3 mthly rpt'!F12+'PADD4 mthly rpt'!F12+'PADD5 mthly rpt'!F12 -> 363365.7553 | G12: ='PADD1 mthly rpt'!G12+'PADD2 mthly rpt'!G12+'PADD3 mthly rpt'!G12+'PADD4 mthly rpt'!G12+'PADD5 mthly rpt'!G12 -> 325937.2656 | H12: ='PADD1 mthly rpt'!H12+'PADD2 mthly rpt'!H12+'PADD3 mthly rpt'!H12+'PADD4 mthly rpt'!H12+'PADD5 mthly rpt'!H12 -> 311614.8929 | I12: ='PADD1 mthly rpt'!I12+'PADD2 mthly rpt'!I12+'PADD3 mthly rpt'!I12+'PADD4 mthly rpt'!I12+'PADD5 mthly rpt'!I12 -> 365404.5091 | J12: ='PADD1 mthly rpt'!J12+'PADD2 mthly rpt'!J12+'PADD3 mthly rpt'!J12+'PADD4 mthly rpt'!J12+'PADD5 mthly rpt'!J12 -> 419034.2651 | K12: ='PADD1 mthly rpt'!K12+'PADD2 mthly rpt'!K12+'PADD3 mthly rpt'!K12+'PADD4 mthly rpt'!K12+'PADD5 mthly rpt'!K12 -> 336794.7324 | L12: ='PADD1 mthly rpt'!L12+'PADD2 mthly rpt'!L12+'PADD3 mthly rpt'!L12+'PADD4 mthly rpt'!L12+'PADD5 mthly rpt'!L12 -> 423749.4624 | M12: ='PADD1 mthly rpt'!M12+'PADD2 mthly rpt'!M12+'PADD3 mthly rpt'!M12+'PADD4 mthly rpt'!M12+'PADD5 mthly rpt'!M12 -> 765643.8447 | N12: ='PADD1 mthly rpt'!N12+'PADD2 mthly rpt'!N12+'PADD3 mthly rpt'!N12+'PADD4 mthly rpt'!N12+'PADD5 mthly rpt'!N12 -> 578398.4201 | O12: ='PADD1 mthly rpt'!O12+'PADD2 mthly rpt'!O12+'PADD3 mthly rpt'!O12+'PADD4 mthly rpt'!O12+'PADD5 mthly rpt'!O12 -> 659758.4826 | P12: ='PADD1 mthly rpt'!P12+'PADD2 mthly rpt'!P12+'PADD3 mthly rpt'!P12+'PADD4 mthly rpt'!P12+'PADD5 mthly rpt'!P12 -> 557162.8618 | Q12: ='PADD1 mthly rpt'!Q12+'PADD2 mthly rpt'!Q12+'PADD3 mthly rpt'!Q12+'PADD4 mthly rpt'!Q12+'PADD5 mthly rpt'!Q12 -> 356288.8301 | R12: ='PADD1 mthly rpt'!R12+'PADD2 mthly rpt'!R12+'PADD3 mthly rpt'!R12+'PADD4 mthly rpt'!R12+'PADD5 mthly rpt'!R12 -> 337702.538 | S12: ='PADD1 mthly rpt'!S12+'PADD2 mthly rpt'!S12+'PADD3 mthly rpt'!S12+'PADD4 mthly rpt'!S12+'PADD5 mthly rpt'!S12 -> 332274.0871 | T12: ='PADD1 mthly rpt'!T12+'PADD2 mthly rpt'!T12+'PADD3 mthly rpt'!T12+'PADD4 mthly rpt'!T12+'PADD5 mthly rpt'!T12 -> 337711.505 | U12: ='PADD1 mthly rpt'!U12+'PADD2 mthly rpt'!U12+'PADD3 mthly rpt'!U12+'PADD4 mthly rpt'!U12+'PADD5 mthly rpt'!U12 -> 328483.002 | V12: ='PADD1 mthly rpt'!V12+'PADD2 mthly rpt'!V12+'PADD3 mthly rpt'!V12+'PADD4 mthly rpt'!V12+'PADD5 mthly rpt'!V12 -> 397434.2726 | W12: ='PADD1 mthly rpt'!W12+'PADD2 mthly rpt'!W12+'PADD3 mthly rpt'!W12+'PADD4 mthly rpt'!W12+'PADD5 mthly rpt'!W12 -> 437098.2964 | X12: ='PADD1 mthly rpt'!X12+'PADD2 mthly rpt'!X12+'PADD3 mthly rpt'!X12+'PADD4 mthly rpt'!X12+'PADD5 mthly rpt'!X12 -> 474185.4926 | Y12: ='PADD1 mthly rpt'!Y12+'PADD2 mthly rpt'!Y12+'PADD3 mthly rpt'!Y12+'PADD4 mthly rpt'!Y12+'PADD5 mthly rpt'!Y12 -> 590952.4234 | Z12: ='PADD1 mthly rpt'!Z12+'PADD2 mthly rpt'!Z12+'PADD3 mthly rpt'!Z12+'PADD4 mthly rpt'!Z12+'PADD5 mthly rpt'!Z12 -> 787885.0841 | AA12: ='PADD1 mthly rpt'!AA12+'PADD2 mthly rpt'!AA12+'PADD3 mthly rpt'!AA12+'PADD4 mthly rpt'!AA12+'PADD5 mthly rpt'!AA12 -> 932384.5945 | AB12: ='PADD1 mthly rpt'!AB12+'PADD2 mthly rpt'!AB12+'PADD3 mthly rpt'!AB12+'PADD4 mthly rpt'!AB12+'PADD5 mthly rpt'!AB12 -> 564775.3462 | AC12: ='PADD1 mthly rpt'!AC12+'PADD2 mthly rpt'!AC12+'PADD3 mthly rpt'!AC12+'PADD4 mthly rpt'!AC12+'PADD5 mthly rpt'!AC12 -> 420213.8421 | AD12: ='PADD1 mthly rpt'!AD12+'PADD2 mthly rpt'!AD12+'PADD3 mthly rpt'!AD12+'PADD4 mthly rpt'!AD12+'PADD5 mthly rpt'!AD12 -> 339831.3112 | AE12: ='PADD1 mthly rpt'!AE12+'PADD2 mthly rpt'!AE12+'PADD3 mthly rpt'!AE12+'PADD4 mthly rpt'!AE12+'PADD5 mthly rpt'!AE12 -> 320085.5937 | AF12: ='PADD1 mthly rpt'!AF12+'PADD2 mthly rpt'!AF12+'PADD3 mthly rpt'!AF12+'PADD4 mthly rpt'!AF12+'PADD5 mthly rpt'!AF12 -> 350611.5779 | AG12: ='PADD1 mthly rpt'!AG12+'PADD2 mthly rpt'!AG12+'PADD3 mthly rpt'!AG12+'PADD4 mthly rpt'!AG12+'PADD5 mthly rpt'!AG12 -> 373471.3266 | AH12: ='PADD1 mthly rpt'!AH12+'PADD2 mthly rpt'!AH12+'PADD3 mthly rpt'!AH12+'PADD4 mthly rpt'!AH12+'PADD5 mthly rpt'!AH12 -> 385641.2713 | AI12: ='PADD1 mthly rpt'!AI12+'PADD2 mthly rpt'!AI12+'PADD3 mthly rpt'!AI12+'PADD4 mthly rpt'!AI12+'PADD5 mthly rpt'!AI12 -> 408406.2885 | AJ12: ='PADD1 mthly rpt'!AJ12+'PADD2 mthly rpt'!AJ12+'PADD3 mthly rpt'!AJ12+'PADD4 mthly rpt'!AJ12+'PADD5 mthly rpt'!AJ12 -> 484879.8196 | AK12: ='PADD1 mthly rpt'!AK12+'PADD2 mthly rpt'!AK12+'PADD3 mthly rpt'!AK12+'PADD4 mthly rpt'!AK12+'PADD5 mthly rpt'!AK12 -> 603749.8744 | AL12: ='PADD1 mthly rpt'!AL12+'PADD2 mthly rpt'!AL12+'PADD3 mthly rpt'!AL12+'PADD4 mthly rpt'!AL12+'PADD5 mthly rpt'!AL12 -> 779578.7113 | AM12: ='PADD1 mthly rpt'!AM12+'PADD2 mthly rpt'!AM12+'PADD3 mthly rpt'!AM12+'PADD4 mthly rpt'!AM12+'PADD5 mthly rpt'!AM12 -> 727022.1764 | AN12: ='PADD1 mthly rpt'!AN12+'PADD2 mthly rpt'!AN12+'PADD3 mthly rpt'!AN12+'PADD4 mthly rpt'!AN12+'PADD5 mthly rpt'!AN12 -> 558333.4135 | AO12: ='PADD1 mthly rpt'!AO12+'PADD2 mthly rpt'!AO12+'PADD3 mthly rpt'!AO12+'PADD4 mthly rpt'!AO12+'PADD5 mthly rpt'!AO12 -> 406387.4747 | AP12: ='PADD1 mthly rpt'!AP12+'PADD2 mthly rpt'!AP12+'PADD3 mthly rpt'!AP12+'PADD4 mthly rpt'!AP12+'PADD5 mthly rpt'!AP12 -> 359188.7928 | AQ12: ='PADD1 mthly rpt'!AQ12+'PADD2 mthly rpt'!AQ12+'PADD3 mthly rpt'!AQ12+'PADD4 mthly rpt'!AQ12+'PADD5 mthly rpt'!AQ12 -> 333932.1231 | AR12: ='PADD1 mthly rpt'!AR12+'PADD2 mthly rpt'!AR12+'PADD3 mthly rpt'!AR12+'PADD4 mthly rpt'!AR12+'PADD5 mthly rpt'!AR12 -> 352118.0506 | AS12: ='PADD1 mthly rpt'!AS12+'PADD2 mthly rpt'!AS12+'PADD3 mthly rpt'!AS12+'PADD4 mthly rpt'!AS12+'PADD5 mthly rpt'!AS12 -> 337577.9665 | AT12: ='PADD1 mthly rpt'!AT12+'PADD2 mthly rpt'!AT12+'PADD3 mthly rpt'!AT12+'PADD4 mthly rpt'!AT12+'PADD5 mthly rpt'!AT12 -> 325110.363 | AU12: ='PADD1 mthly rpt'!AU12+'PADD2 mthly rpt'!AU12+'PADD3 mthly rpt'!AU12+'PADD4 mthly rpt'!AU12+'PADD5 mthly rpt'!AU12 -> 449119.0365 | AV12: ='PADD1 mthly rpt'!AV12+'PADD2 mthly rpt'!AV12+'PADD3 mthly rpt'!AV12+'PADD4 mthly rpt'!AV12+'PADD5 mthly rpt'!AV12 -> 494078.9568 | AW12: ='PADD1 mthly rpt'!AW12+'PADD2 mthly rpt'!AW12+'PADD3 mthly rpt'!AW12+'PADD4 mthly rpt'!AW12+'PADD5 mthly rpt'!AW12 -> 597169.7883 | AX12: ='PADD1 mthly rpt'!AX12+'PADD2 mthly rpt'!AX12+'PADD3 mthly rpt'!AX12+'PADD4 mthly rpt'!AX12+'PADD5 mthly rpt'!AX12 -> 726275.7926 | AY12: ='PADD1 mthly rpt'!AY12+'PADD2 mthly rpt'!AY12+'PADD3 mthly rpt'!AY12+'PADD4 mthly rpt'!AY12+'PADD5 mthly rpt'!AY12 -> 557683.4268 | AZ12: ='PADD1 mthly rpt'!AZ12+'PADD2 mthly rpt'!AZ12+'PADD3 mthly rpt'!AZ12+'PADD4 mthly rpt'!AZ12+'PADD5 mthly rpt'!AZ12 -> 530538.8015 | BA12: ='PADD1 mthly rpt'!BA12+'PADD2 mthly rpt'!BA12+'PADD3 mthly rpt'!BA12+'PADD4 mthly rpt'!BA12+'PADD5 mthly rpt'!BA12 -> 391564.9943 | BB12: ='PADD1 mthly rpt'!BB12+'PADD2 mthly rpt'!BB12+'PADD3 mthly rpt'!BB12+'PADD4 mthly rpt'!BB12+'PADD5 mthly rpt'!BB12 -> 307219.1861 | BC12: ='PADD1 mthly rpt'!BC12+'PADD2 mthly rpt'!BC12+'PADD3 mthly rpt'!BC12+'PADD4 mthly rpt'!BC12+'PADD5 mthly rpt'!BC12 -> 305943.892 | BD12: ='PADD1 mthly rpt'!BD12+'PADD2 mthly rpt'!BD12+'PADD3 mthly rpt'!BD12+'PADD4 mthly rpt'!BD12+'PADD5 mthly rpt'!BD12 -> 290242.2303 | BE12: ='PADD1 mthly rpt'!BE12+'PADD2 mthly rpt'!BE12+'PADD3 mthly rpt'!BE12+'PADD4 mthly rpt'!BE12+'PADD5 mthly rpt'!BE12 -> 332171.8098 | BF12: ='PADD1 mthly rpt'!BF12+'PADD2 mthly rpt'!BF12+'PADD3 mthly rpt'!BF12+'PADD4 mthly rpt'!BF12+'PADD5 mthly rpt'!BF12 -> 337462.7558 | BG12: ='PADD1 mthly rpt'!BG12+'PADD2 mthly rpt'!BG12+'PADD3 mthly rpt'!BG12+'PADD4 mthly rpt'!BG12+'PADD5 mthly rpt'!BG12 -> 454088.6778 | BH12: ='PADD1 mthly rpt'!BH12+'PADD2 mthly rpt'!BH12+'PADD3 mthly rpt'!BH12+'PADD4 mthly rpt'!BH12+'PADD5 mthly rpt'!BH12 -> 582315.5903 | BI12: ='PADD1 mthly rpt'!BI12+'PADD2 mthly rpt'!BI12+'PADD3 mthly rpt'!BI12+'PADD4 mthly rpt'!BI12+'PADD5 mthly rpt'!BI12 -> 701156.2194 | BJ12: ='PADD1 mthly rpt'!BJ12+'PADD2 mthly rpt'!BJ12+'PADD3 mthly rpt'!BJ12+'PADD4 mthly rpt'!BJ12+'PADD5 mthly rpt'!BJ12 -> 740857.2528 | BK12: ='PADD1 mthly rpt'!BK12+'PADD2 mthly rpt'!BK12+'PADD3 mthly rpt'!BK12+'PADD4 mthly rpt'!BK12+'PADD5 mthly rpt'!BK12 -> 697178.3051 | BL12: ='PADD1 mthly rpt'!BL12+'PADD2 mthly rpt'!BL12+'PADD3 mthly rpt'!BL12+'PADD4 mthly rpt'!BL12+'PADD5 mthly rpt'!BL12 -> 509691.6637 | BM12: ='PADD1 mthly rpt'!BM12+'PADD2 mthly rpt'!BM12+'PADD3 mthly rpt'!BM12+'PADD4 mthly rpt'!BM12+'PADD5 mthly rpt'!BM12 -> 330226.4023 | BN12: ='PADD1 mthly rpt'!BN12+'PADD2 mthly rpt'!BN12+'PADD3 mthly rpt'!BN12+'PADD4 mthly rpt'!BN12+'PADD5 mthly rpt'!BN12 -> 304521.3025 | BO12: ='PADD1 mthly rpt'!BO12+'PADD2 mthly rpt'!BO12+'PADD3 mthly rpt'!BO12+'PADD4 mthly rpt'!BO12+'PADD5 mthly rpt'!BO12 -> 322342.4312 | BP12: ='PADD1 mthly rpt'!BP12+'PADD2 mthly rpt'!BP12+'PADD3 mthly rpt'!BP12+'PADD4 mthly rpt'!BP12+'PADD5 mthly rpt'!BP12 -> 326624.8629 | BQ12: ='PADD1 mthly rpt'!BQ12+'PADD2 mthly rpt'!BQ12+'PADD3 mthly rpt'!BQ12+'PADD4 mthly rpt'!BQ12+'PADD5 mthly rpt'!BQ12 -> 319487.1236 | BR12: ='PADD1 mthly rpt'!BR12+'PADD2 mthly rpt'!BR12+'PADD3 mthly rpt'!BR12+'PADD4 mthly rpt'!BR12+'PADD5 mthly rpt'!BR12 -> 322055.3415 | BS12: ='PADD1 mthly rpt'!BS12+'PADD2 mthly rpt'!BS12+'PADD3 mthly rpt'!BS12+'PADD4 mthly rpt'!BS12+'PADD5 mthly rpt'!BS12 -> 359127.5181 | BT12: ='PADD1 mthly rpt'!BT12+'PADD2 mthly rpt'!BT12+'PADD3 mthly rpt'!BT12+'PADD4 mthly rpt'!BT12+'PADD5 mthly rpt'!BT12 -> 402931.9063 | BU12: ='PADD1 mthly rpt'!BU12+'PADD2 mthly rpt'!BU12+'PADD3 mthly rpt'!BU12+'PADD4 mthly rpt'!BU12+'PADD5 mthly rpt'!BU12 -> 767917.8885 | BV12: ='PADD1 mthly rpt'!BV12+'PADD2 mthly rpt'!BV12+'PADD3 mthly rpt'!BV12+'PADD4 mthly rpt'!BV12+'PADD5 mthly rpt'!BV12 -> 726025.3415 | BW12: ='PADD1 mthly rpt'!BW12+'PADD2 mthly rpt'!BW12+'PADD3 mthly rpt'!BW12+'PADD4 mthly rpt'!BW12+'PADD5 mthly rpt'!BW12 -> 710264.3257 | BX12: ='PADD1 mthly rpt'!BX12+'PADD2 mthly rpt'!BX12+'PADD3 mthly rpt'!BX12+'PADD4 mthly rpt'!BX12+'PADD5 mthly rpt'!BX12 -> 526303.7679 | BY12: ='PADD1 mthly rpt'!BY12+'PADD2 mthly rpt'!BY12+'PADD3 mthly rpt'!BY12+'PADD4 mthly rpt'!BY12+'PADD5 mthly rpt'!BY12 -> 364309.4806 | BZ12: ='PADD1 mthly rpt'!BZ12+'PADD2 mthly rpt'!BZ12+'PADD3 mthly rpt'!BZ12+'PADD4 mthly rpt'!BZ12+'PADD5 mthly rpt'!BZ12 -> 305818.2877 | CA12: ='PADD1 mthly rpt'!CA12+'PADD2 mthly rpt'!CA12+'PADD3 mthly rpt'!CA12+'PADD4 mthly rpt'!CA12+'PADD5 mthly rpt'!CA12 -> 280906.8828 | CB12: ='PADD1 mthly rpt'!CB12+'PADD2 mthly rpt'!CB12+'PADD3 mthly rpt'!CB12+'PADD4 mthly rpt'!CB12+'PADD5 mthly rpt'!CB12 -> 272892.292 | CC12: ='PADD1 mthly rpt'!CC12+'PADD2 mthly rpt'!CC12+'PADD3 mthly rpt'!CC12+'PADD4 mthly rpt'!CC12+'PADD5 mthly rpt'!CC12 -> 299110.8649 | CD12: ='PADD1 mthly rpt'!CD12+'PADD2 mthly rpt'!CD12+'PADD3 mthly rpt'!CD12+'PADD4 mthly rpt'!CD12+'PADD5 mthly rpt'!CD12 -> 328089.889 | CE12: ='PADD1 mthly rpt'!CE12+'PADD2 mthly rpt'!CE12+'PADD3 mthly rpt'!CE12+'PADD4 mthly rpt'!CE12+'PADD5 mthly rpt'!CE12 -> 321758.8317 | CF12: ='PADD1 mthly rpt'!CF12+'PADD2 mthly rpt'!CF12+'PADD3 mthly rpt'!CF12+'PADD4 mthly rpt'!CF12+'PADD5 mthly rpt'!CF12 -> 436893.0265 | CG12: ='PADD1 mthly rpt'!CG12+'PADD2 mthly rpt'!CG12+'PADD3 mthly rpt'!CG12+'PADD4 mthly rpt'!CG12+'PADD5 mthly rpt'!CG12 -> 551898.6664 | CH12: ='PADD1 mthly rpt'!CH12+'PADD2 mthly rpt'!CH12+'PADD3 mthly rpt'!CH12+'PADD4 mthly rpt'!CH12+'PADD5 mthly rpt'!CH12 -> 539971.9393 | CI12: ='PADD1 mthly rpt'!CI12+'PADD2 mthly rpt'!CI12+'PADD3 mthly rpt'!CI12+'PADD4 mthly rpt'!CI12+'PADD5 mthly rpt'!CI12 -> 547001.686 | CJ12: ='PADD1 mthly rpt'!CJ12+'PADD2 mthly rpt'!CJ12+'PADD3 mthly rpt'!CJ12+'PADD4 mthly rpt'!CJ12+'PADD5 mthly rpt'!CJ12 -> 342891.2583 | CK12: ='PADD1 mthly rpt'!CK12+'PADD2 mthly rpt'!CK12+'PADD3 mthly rpt'!CK12+'PADD4 mthly rpt'!CK12+'PADD5 mthly rpt'!CK12 -> 266414.1803 | CL12: ='PADD1 mthly rpt'!CL12+'PADD2 mthly rpt'!CL12+'PADD3 mthly rpt'!CL12+'PADD4 mthly rpt'!CL12+'PADD5 mthly rpt'!CL12 -> 270303.3046 | CM12: ='PADD1 mthly rpt'!CM12+'PADD2 mthly rpt'!CM12+'PADD3 mthly rpt'!CM12+'PADD4 mthly rpt'!CM12+'PADD5 mthly rpt'!CM12 -> 262929.8026 | CN12: ='PADD1 mthly rpt'!CN12+'PADD2 mthly rpt'!CN12+'PADD3 mthly rpt'!CN12+'PADD4 mthly rpt'!CN12+'PADD5 mthly rpt'!CN12 -> 253223.6272 | CO12: ='PADD1 mthly rpt'!CO12+'PADD2 mthly rpt'!CO12+'PADD3 mthly rpt'!CO12+'PADD4 mthly rpt'!CO12+'PADD5 mthly rpt'!CO12 -> 296809.0838 | CP12: ='PADD1 mthly rpt'!CP12+'PADD2 mthly rpt'!CP12+'PADD3 mthly rpt'!CP12+'PADD4 mthly rpt'!CP12+'PADD5 mthly rpt'!CP12 -> 251767.6027 | CQ12: ='PADD1 mthly rpt'!CQ12+'PADD2 mthly rpt'!CQ12+'PADD3 mthly rpt'!CQ12+'PADD4 mthly rpt'!CQ12+'PADD5 mthly rpt'!CQ12 -> 288396.7097 | CR12: ='PADD1 mthly rpt'!CR12+'PADD2 mthly rpt'!CR12+'PADD3 mthly rpt'!CR12+'PADD4 mthly rpt'!CR12+'PADD5 mthly rpt'!CR12 -> 398411.4841 | CS12: ='PADD1 mthly rpt'!CS12+'PADD2 mthly rpt'!CS12+'PADD3 mthly rpt'!CS12+'PADD4 mthly rpt'!CS12+'PADD5 mthly rpt'!CS12 -> 515603.0465 | CT12: ='PADD1 mthly rpt'!CT12+'PADD2 mthly rpt'!CT12+'PADD3 mthly rpt'!CT12+'PADD4 mthly rpt'!CT12+'PADD5 mthly rpt'!CT12 -> 724338.9205 | CU12: ='PADD1 mthly rpt'!CU12+'PADD2 mthly rpt'!CU12+'PADD3 mthly rpt'!CU12+'PADD4 mthly rpt'!CU12+'PADD5 mthly rpt'!CU12 -> 624717.3677 | CV12: ='PADD1 mthly rpt'!CV12+'PADD2 mthly rpt'!CV12+'PADD3 mthly rpt'!CV12+'PADD4 mthly rpt'!CV12+'PADD5 mthly rpt'!CV12 -> 496388.1097 | CW12: ='PADD1 mthly rpt'!CW12+'PADD2 mthly rpt'!CW12+'PADD3 mthly rpt'!CW12+'PADD4 mthly rpt'!CW12+'PADD5 mthly rpt'!CW12 -> 321097.0496 | CX12: ='PADD1 mthly rpt'!CX12+'PADD2 mthly rpt'!CX12+'PADD3 mthly rpt'!CX12+'PADD4 mthly rpt'!CX12+'PADD5 mthly rpt'!CX12 -> 263613.7336 | CY12: ='PADD1 mthly rpt'!CY12+'PADD2 mthly rpt'!CY12+'PADD3 mthly rpt'!CY12+'PADD4 mthly rpt'!CY12+'PADD5 mthly rpt'!CY12 -> 287705.1321 | CZ12: ='PADD1 mthly rpt'!CZ12+'PADD2 mthly rpt'!CZ12+'PADD3 mthly rpt'!CZ12+'PADD4 mthly rpt'!CZ12+'PADD5 mthly rpt'!CZ12 -> 344841.0992 | DA12: ='PADD1 mthly rpt'!DA12+'PADD2 mthly rpt'!DA12+'PADD3 mthly rpt'!DA12+'PADD4 mthly rpt'!DA12+'PADD5 mthly rpt'!DA12 -> 290859.9411 | DB12: ='PADD1 mthly rpt'!DB12+'PADD2 mthly rpt'!DB12+'PADD3 mthly rpt'!DB12+'PADD4 mthly rpt'!DB12+'PADD5 mthly rpt'!DB12 -> 276213.3947 | DC12: ='PADD1 mthly rpt'!DC12+'PADD2 mthly rpt'!DC12+'PADD3 mthly rpt'!DC12+'PADD4 mthly rpt'!DC12+'PADD5 mthly rpt'!DC12 -> 370274.7957 | DD12: ='PADD1 mthly rpt'!DD12+'PADD2 mthly rpt'!DD12+'PADD3 mthly rpt'!DD12+'PADD4 mthly rpt'!DD12+'PADD5 mthly rpt'!DD12 -> 474099.8497 | DE12: ='PADD1 mthly rpt'!DE12+'PADD2 mthly rpt'!DE12+'PADD3 mthly rpt'!DE12+'PADD4 mthly rpt'!DE12+'PADD5 mthly rpt'!DE12 -> 633700.5583 | DF12: ='PADD1 mthly rpt'!DF12+'PADD2 mthly rpt'!DF12+'PADD3 mthly rpt'!DF12+'PADD4 mthly rpt'!DF12+'PADD5 mthly rpt'!DF12 -> 691712.5244 | DG12: ='PADD1 mthly rpt'!DG12+'PADD2 mthly rpt'!DG12+'PADD3 mthly rpt'!DG12+'PADD4 mthly rpt'!DG12+'PADD5 mthly rpt'!DG12 -> 661378.7792 | DH12: ='PADD1 mthly rpt'!DH12+'PADD2 mthly rpt'!DH12+'PADD3 mthly rpt'!DH12+'PADD4 mthly rpt'!DH12+'PADD5 mthly rpt'!DH12 -> 489959.216 | DI12: ='PADD1 mthly rpt'!DI12+'PADD2 mthly rpt'!DI12+'PADD3 mthly rpt'!DI12+'PADD4 mthly rpt'!DI12+'PADD5 mthly rpt'!DI12 -> 354676.8705 | DJ12: ='PADD1 mthly rpt'!DJ12+'PADD2 mthly rpt'!DJ12+'PADD3 mthly rpt'!DJ12+'PADD4 mthly rpt'!DJ12+'PADD5 mthly rpt'!DJ12 -> 310589.6207 | DK12: ='PADD1 mthly rpt'!DK12+'PADD2 mthly rpt'!DK12+'PADD3 mthly rpt'!DK12+'PADD4 mthly rpt'!DK12+'PADD5 mthly rpt'!DK12 -> 305109.9549 | DL12: ='PADD1 mthly rpt'!DL12+'PADD2 mthly rpt'!DL12+'PADD3 mthly rpt'!DL12+'PADD4 mthly rpt'!DL12+'PADD5 mthly rpt'!DL12 -> 315112.1642 | DM12: ='PADD1 mthly rpt'!DM12+'PADD2 mthly rpt'!DM12+'PADD3 mthly rpt'!DM12+'PADD4 mthly rpt'!DM12+'PADD5 mthly rpt'!DM12 -> 323712.6881 | DN12: ='PADD1 mthly rpt'!DN12+'PADD2 mthly rpt'!DN12+'PADD3 mthly rpt'!DN12+'PADD4 mthly rpt'!DN12+'PADD5 mthly rpt'!DN12 -> 319368.122 | DO12: ='PADD1 mthly rpt'!DO12+'PADD2 mthly rpt'!DO12+'PADD3 mthly rpt'!DO12+'PADD4 mthly rpt'!DO12+'PADD5 mthly rpt'!DO12 -> 391975.6624 | DP12: ='PADD1 mthly rpt'!DP12+'PADD2 mthly rpt'!DP12+'PADD3 mthly rpt'!DP12+'PADD4 mthly rpt'!DP12+'PADD5 mthly rpt'!DP12 -> 457932.6485 | DQ12: ='PADD1 mthly rpt'!DQ12+'PADD2 mthly rpt'!DQ12+'PADD3 mthly rpt'!DQ12+'PADD4 mthly rpt'!DQ12+'PADD5 mthly rpt'!DQ12 -> 607596.2309 | DR12: ='PADD1 mthly rpt'!DR12+'PADD2 mthly rpt'!DR12+'PADD3 mthly rpt'!DR12+'PADD4 mthly rpt'!DR12+'PADD5 mthly rpt'!DR12 -> 667531.4974 | DS12: ='PADD1 mthly rpt'!DS12+'PADD2 mthly rpt'!DS12+'PADD3 mthly rpt'!DS12+'PADD4 mthly rpt'!DS12+'PADD5 mthly rpt'!DS12 -> 636512.9266 | DT12: ='PADD1 mthly rpt'!DT12+'PADD2 mthly rpt'!DT12+'PADD3 mthly rpt'!DT12+'PADD4 mthly rpt'!DT12+'PADD5 mthly rpt'!DT12 -> 465697.8821 | DU12: ='PADD1 mthly rpt'!DU12+'PADD2 mthly rpt'!DU12+'PADD3 mthly rpt'!DU12+'PADD4 mthly rpt'!DU12+'PADD5 mthly rpt'!DU12 -> 329833.6003 | DV12: ='PADD1 mthly rpt'!DV12+'PADD2 mthly rpt'!DV12+'PADD3 mthly rpt'!DV12+'PADD4 mthly rpt'!DV12+'PADD5 mthly rpt'!DV12 -> 285660.8736 | DW12: ='PADD1 mthly rpt'!DW12+'PADD2 mthly rpt'!DW12+'PADD3 mthly rpt'!DW12+'PADD4 mthly rpt'!DW12+'PADD5 mthly rpt'!DW12 -> 280402.5008 | DX12: ='PADD1 mthly rpt'!DX12+'PADD2 mthly rpt'!DX12+'PADD3 mthly rpt'!DX12+'PADD4 mthly rpt'!DX12+'PADD5 mthly rpt'!DX12 -> 290492.5687 | DY12: ='PADD1 mthly rpt'!DY12+'PADD2 mthly rpt'!DY12+'PADD3 mthly rpt'!DY12+'PADD4 mthly rpt'!DY12+'PADD5 mthly rpt'!DY12 -> 298967.7045 | DZ12: ='PADD1 mthly rpt'!DZ12+'PADD2 mthly rpt'!DZ12+'PADD3 mthly rpt'!DZ12+'PADD4 mthly rpt'!DZ12+'PADD5 mthly rpt'!DZ12 -> 294900.2741 | EA12: ='PADD1 mthly rpt'!EA12+'PADD2 mthly rpt'!EA12+'PADD3 mthly rpt'!EA12+'PADD4 mthly rpt'!EA12+'PADD5 mthly rpt'!EA12 -> 349383.3746 | EB12: ='PADD1 mthly rpt'!EB12+'PADD2 mthly rpt'!EB12+'PADD3 mthly rpt'!EB12+'PADD4 mthly rpt'!EB12+'PADD5 mthly rpt'!EB12 -> 434411.741 | EC12: ='PADD1 mthly rpt'!EC12+'PADD2 mthly rpt'!EC12+'PADD3 mthly rpt'!EC12+'PADD4 mthly rpt'!EC12+'PADD5 mthly rpt'!EC12 -> 583590.0482 | ED12: ='PADD1 mthly rpt'!ED12+'PADD2 mthly rpt'!ED12+'PADD3 mthly rpt'!ED12+'PADD4 mthly rpt'!ED12+'PADD5 mthly rpt'!ED12 -> 662006.3266 | EE12: ='PADD1 mthly rpt'!EE12+'PADD2 mthly rpt'!EE12+'PADD3 mthly rpt'!EE12+'PADD4 mthly rpt'!EE12+'PADD5 mthly rpt'!EE12 -> 630953.8849 | EF12: ='PADD1 mthly rpt'!EF12+'PADD2 mthly rpt'!EF12+'PADD3 mthly rpt'!EF12+'PADD4 mthly rpt'!EF12+'PADD5 mthly rpt'!EF12 -> 461227.8874 | EG12: ='PADD1 mthly rpt'!EG12+'PADD2 mthly rpt'!EG12+'PADD3 mthly rpt'!EG12+'PADD4 mthly rpt'!EG12+'PADD5 mthly rpt'!EG12 -> 325985.152 | EH12: ='PADD1 mthly rpt'!EH12+'PADD2 mthly rpt'!EH12+'PADD3 mthly rpt'!EH12+'PADD4 mthly rpt'!EH12+'PADD5 mthly rpt'!EH12 -> 282014.5134 | EI12: ='PADD1 mthly rpt'!EI12+'PADD2 mthly rpt'!EI12+'PADD3 mthly rpt'!EI12+'PADD4 mthly rpt'!EI12+'PADD5 mthly rpt'!EI12 -> 276886.3591 | EJ12: ='PADD1 mthly rpt'!EJ12+'PADD2 mthly rpt'!EJ12+'PADD3 mthly rpt'!EJ12+'PADD4 mthly rpt'!EJ12+'PADD5 mthly rpt'!EJ12 -> 286997.1308 | EK12: ='PADD1 mthly rpt'!EK12+'PADD2 mthly rpt'!EK12+'PADD3 mthly rpt'!EK12+'PADD4 mthly rpt'!EK12+'PADD5 mthly rpt'!EK12 -> 295743.1033 | EL12: ='PADD1 mthly rpt'!EL12+'PADD2 mthly rpt'!EL12+'PADD3 mthly rpt'!EL12+'PADD4 mthly rpt'!EL12+'PADD5 mthly rpt'!EL12 -> 291828.0981 | EM12: ='PADD1 mthly rpt'!EM12+'PADD2 mthly rpt'!EM12+'PADD3 mthly rpt'!EM12+'PADD4 mthly rpt'!EM12+'PADD5 mthly rpt'!EM12 -> 346372.7797 | EN12: ='PADD1 mthly rpt'!EN12+'PADD2 mthly rpt'!EN12+'PADD3 mthly rpt'!EN12+'PADD4 mthly rpt'!EN12+'PADD5 mthly rpt'!EN12 -> 430722.6338 | EO12: ='PADD1 mthly rpt'!EO12+'PADD2 mthly rpt'!EO12+'PADD3 mthly rpt'!EO12+'PADD4 mthly rpt'!EO12+'PADD5 mthly rpt'!EO12 -> 578823.6121 | EP12: ='PADD1 mthly rpt'!EP12+'PADD2 mthly rpt'!EP12+'PADD3 mthly rpt'!EP12+'PADD4 mthly rpt'!EP12+'PADD5 mthly rpt'!EP12 -> 664000.2949 | EQ12: ='PADD1 mthly rpt'!EQ12+'PADD2 mthly rpt'!EQ12+'PADD3 mthly rpt'!EQ12+'PADD4 mthly rpt'!EQ12+'PADD5 mthly rpt'!EQ12 -> 625345.5091 | ER12: ='PADD1 mthly rpt'!ER12+'PADD2 mthly rpt'!ER12+'PADD3 mthly rpt'!ER12+'PADD4 mthly rpt'!ER12+'PADD5 mthly rpt'!ER12 -> 464094.7514 | ES12: ='PADD1 mthly rpt'!ES12+'PADD2 mthly rpt'!ES12+'PADD3 mthly rpt'!ES12+'PADD4 mthly rpt'!ES12+'PADD5 mthly rpt'!ES12 -> 340017.7214 | ET12: ='PADD1 mthly rpt'!ET12+'PADD2 mthly rpt'!ET12+'PADD3 mthly rpt'!ET12+'PADD4 mthly rpt'!ET12+'PADD5 mthly rpt'!ET12 -> 282270.72 | EU12: ='PADD1 mthly rpt'!EU12+'PADD2 mthly rpt'!EU12+'PADD3 mthly rpt'!EU12+'PADD4 mthly rpt'!EU12+'PADD5 mthly rpt'!EU12 -> 273564.1792 | EV12: ='PADD1 mthly rpt'!EV12+'PADD2 mthly rpt'!EV12+'PADD3 mthly rpt'!EV12+'PADD4 mthly rpt'!EV12+'PADD5 mthly rpt'!EV12 -> 272620.3522 | EW12: ='PADD1 mthly rpt'!EW12+'PADD2 mthly rpt'!EW12+'PADD3 mthly rpt'!EW12+'PADD4 mthly rpt'!EW12+'PADD5 mthly rpt'!EW12 -> 275833.7393 | EX12: ='PADD1 mthly rpt'!EX12+'PADD2 mthly rpt'!EX12+'PADD3 mthly rpt'!EX12+'PADD4 mthly rpt'!EX12+'PADD5 mthly rpt'!EX12 -> 272756.9504 | EY12: ='PADD1 mthly rpt'!EY12+'PADD2 mthly rpt'!EY12+'PADD3 mthly rpt'!EY12+'PADD4 mthly rpt'!EY12+'PADD5 mthly rpt'!EY12 -> 350564.8091 | EZ12: ='PADD1 mthly rpt'!EZ12+'PADD2 mthly rpt'!EZ12+'PADD3 mthly rpt'!EZ12+'PADD4 mthly rpt'!EZ12+'PADD5 mthly rpt'!EZ12 -> 430045.7813 | FA12: ='PADD1 mthly rpt'!FA12+'PADD2 mthly rpt'!FA12+'PADD3 mthly rpt'!FA12+'PADD4 mthly rpt'!FA12+'PADD5 mthly rpt'!FA12 -> 553552.6149 | FB12: ='PADD1 mthly rpt'!FB12+'PADD2 mthly rpt'!FB12+'PADD3 mthly rpt'!FB12+'PADD4 mthly rpt'!FB12+'PADD5 mthly rpt'!FB12 -> 761822.7091 | FC12: ='PADD1 mthly rpt'!FC12+'PADD2 mthly rpt'!FC12+'PADD3 mthly rpt'!FC12+'PADD4 mthly rpt'!FC12+'PADD5 mthly rpt'!FC12 -> 621569.5176 | FD12: ='PADD1 mthly rpt'!FD12+'PADD2 mthly rpt'!FD12+'PADD3 mthly rpt'!FD12+'PADD4 mthly rpt'!FD12+'PADD5 mthly rpt'!FD12 -> 479544.5321 | FE12: ='PADD1 mthly rpt'!FE12+'PADD2 mthly rpt'!FE12+'PADD3 mthly rpt'!FE12+'PADD4 mthly rpt'!FE12+'PADD5 mthly rpt'!FE12 -> 411449.9395 | FF12: ='PADD1 mthly rpt'!FF12+'PADD2 mthly rpt'!FF12+'PADD3 mthly rpt'!FF12+'PADD4 mthly rpt'!FF12+'PADD5 mthly rpt'!FF12 -> 290179.2831 | FG12: ='PADD1 mthly rpt'!FG12+'PADD2 mthly rpt'!FG12+'PADD3 mthly rpt'!FG12+'PADD4 mthly rpt'!FG12+'PADD5 mthly rpt'!FG12 -> 338383.0996 | FH12: ='PADD1 mthly rpt'!FH12+'PADD2 mthly rpt'!FH12+'PADD3 mthly rpt'!FH12+'PADD4 mthly rpt'!FH12+'PADD5 mthly rpt'!FH12 -> 286842.4601 | FI12: ='PADD1 mthly rpt'!FI12+'PADD2 mthly rpt'!FI12+'PADD3 mthly rpt'!FI12+'PADD4 mthly rpt'!FI12+'PADD5 mthly rpt'!FI12 -> 300265.2925 | FJ12: ='PADD1 mthly rpt'!FJ12+'PADD2 mthly rpt'!FJ12+'PADD3 mthly rpt'!FJ12+'PADD4 mthly rpt'!FJ12+'PADD5 mthly rpt'!FJ12 -> 301296.8166 | FK12: ='PADD1 mthly rpt'!FK12+'PADD2 mthly rpt'!FK12+'PADD3 mthly rpt'!FK12+'PADD4 mthly rpt'!FK12+'PADD5 mthly rpt'!FK12 -> 378794.9164 | FL12: ='PADD1 mthly rpt'!FL12+'PADD2 mthly rpt'!FL12+'PADD3 mthly rpt'!FL12+'PADD4 mthly rpt'!FL12+'PADD5 mthly rpt'!FL12 -> 480859.1352 | FM12: ='PADD1 mthly rpt'!FM12+'PADD2 mthly rpt'!FM12+'PADD3 mthly rpt'!FM12+'PADD4 mthly rpt'!FM12+'PADD5 mthly rpt'!FM12 -> 579778.6641 | FN12: ='PADD1 mthly rpt'!FN12+'PADD2 mthly rpt'!FN12+'PADD3 mthly rpt'!FN12+'PADD4 mthly rpt'!FN12+'PADD5 mthly rpt'!FN12 -> 768280.3065 | FO12: ='PADD1 mthly rpt'!FO12+'PADD2 mthly rpt'!FO12+'PADD3 mthly rpt'!FO12+'PADD4 mthly rpt'!FO12+'PADD5 mthly rpt'!FO12 -> 752858.3956 | FP12: ='PADD1 mthly rpt'!FP12+'PADD2 mthly rpt'!FP12+'PADD3 mthly rpt'!FP12+'PADD4 mthly rpt'!FP12+'PADD5 mthly rpt'!FP12 -> 540946.0263 | FQ12: ='PADD1 mthly rpt'!FQ12+'PADD2 mthly rpt'!FQ12+'PADD3 mthly rpt'!FQ12+'PADD4 mthly rpt'!FQ12+'PADD5 mthly rpt'!FQ12 -> 330058.7724 | FR12: ='PADD1 mthly rpt'!FR12+'PADD2 mthly rpt'!FR12+'PADD3 mthly rpt'!FR12+'PADD4 mthly rpt'!FR12+'PADD5 mthly rpt'!FR12 -> 294932.7398 | FS12: ='PADD1 mthly rpt'!FS12+'PADD2 mthly rpt'!FS12+'PADD3 mthly rpt'!FS12+'PADD4 mthly rpt'!FS12+'PADD5 mthly rpt'!FS12 -> 279765.0286 | FT12: ='PADD1 mthly rpt'!FT12+'PADD2 mthly rpt'!FT12+'PADD3 mthly rpt'!FT12+'PADD4 mthly rpt'!FT12+'PADD5 mthly rpt'!FT12 -> 285415.8501 | FU12: ='PADD1 mthly rpt'!FU12+'PADD2 mthly rpt'!FU12+'PADD3 mthly rpt'!FU12+'PADD4 mthly rpt'!FU12+'PADD5 mthly rpt'!FU12 -> 320683.4991 | FV12: ='PADD1 mthly rpt'!FV12+'PADD2 mthly rpt'!FV12+'PADD3 mthly rpt'!FV12+'PADD4 mthly rpt'!FV12+'PADD5 mthly rpt'!FV12 -> 282776.6547 | FW12: ='PADD1 mthly rpt'!FW12+'PADD2 mthly rpt'!FW12+'PADD3 mthly rpt'!FW12+'PADD4 mthly rpt'!FW12+'PADD5 mthly rpt'!FW12 -> 344733.3735 | FX12: ='PADD1 mthly rpt'!FX12+'PADD2 mthly rpt'!FX12+'PADD3 mthly rpt'!FX12+'PADD4 mthly rpt'!FX12+'PADD5 mthly rpt'!FX12 -> 416777.4665 | FY12: ='PADD1 mthly rpt'!FY12+'PADD2 mthly rpt'!FY12+'PADD3 mthly rpt'!FY12+'PADD4 mthly rpt'!FY12+'PADD5 mthly rpt'!FY12 -> 559224.8525 | FZ12: ='PADD1 mthly rpt'!FZ12+'PADD2 mthly rpt'!FZ12+'PADD3 mthly rpt'!FZ12+'PADD4 mthly rpt'!FZ12+'PADD5 mthly rpt'!FZ12 -> 618400.2114 | GA12: ='PADD1 mthly rpt'!GA12+'PADD2 mthly rpt'!GA12+'PADD3 mthly rpt'!GA12+'PADD4 mthly rpt'!GA12+'PADD5 mthly rpt'!GA12 -> 591335.8331 | GB12: ='PADD1 mthly rpt'!GB12+'PADD2 mthly rpt'!GB12+'PADD3 mthly rpt'!GB12+'PADD4 mthly rpt'!GB12+'PADD5 mthly rpt'!GB12 -> 440389.8992 | GC12: ='PADD1 mthly rpt'!GC12+'PADD2 mthly rpt'!GC12+'PADD3 mthly rpt'!GC12+'PADD4 mthly rpt'!GC12+'PADD5 mthly rpt'!GC12 -> 314179.8361 | GD12: ='PADD1 mthly rpt'!GD12+'PADD2 mthly rpt'!GD12+'PADD3 mthly rpt'!GD12+'PADD4 mthly rpt'!GD12+'PADD5 mthly rpt'!GD12 -> 268536.8505 | GE12: ='PADD1 mthly rpt'!GE12+'PADD2 mthly rpt'!GE12+'PADD3 mthly rpt'!GE12+'PADD4 mthly rpt'!GE12+'PADD5 mthly rpt'!GE12 -> 256635.6231 | GF12: ='PADD1 mthly rpt'!GF12+'PADD2 mthly rpt'!GF12+'PADD3 mthly rpt'!GF12+'PADD4 mthly rpt'!GF12+'PADD5 mthly rpt'!GF12 -> 277124.5072 | GG12: ='PADD1 mthly rpt'!GG12+'PADD2 mthly rpt'!GG12+'PADD3 mthly rpt'!GG12+'PADD4 mthly rpt'!GG12+'PADD5 mthly rpt'!GG12 -> 289409.032 | GH12: ='PADD1 mthly rpt'!GH12+'PADD2 mthly rpt'!GH12+'PADD3 mthly rpt'!GH12+'PADD4 mthly rpt'!GH12+'PADD5 mthly rpt'!GH12 -> 273157.6001 | GI12: ='PADD1 mthly rpt'!GI12+'PADD2 mthly rpt'!GI12+'PADD3 mthly rpt'!GI12+'PADD4 mthly rpt'!GI12+'PADD5 mthly rpt'!GI12 -> 332017.7581 | GJ12: ='PADD1 mthly rpt'!GJ12+'PADD2 mthly rpt'!GJ12+'PADD3 mthly rpt'!GJ12+'PADD4 mthly rpt'!GJ12+'PADD5 mthly rpt'!GJ12 -> 518373 | GK12: ='PADD1 mthly rpt'!GK12+'PADD2 mthly rpt'!GK12+'PADD3 mthly rpt'!GK12+'PADD4 mthly rpt'!GK12+'PADD5 mthly rpt'!GK12 -> 762082 | GL12: ='PADD1 mthly rpt'!GL12+'PADD2 mthly rpt'!GL12+'PADD3 mthly rpt'!GL12+'PADD4 mthly rpt'!GL12+'PADD5 mthly rpt'!GL12 -> 798967.2348 | GM12: ='PADD1 mthly rpt'!GM12+'PADD2 mthly rpt'!GM12+'PADD3 mthly rpt'!GM12+'PADD4 mthly rpt'!GM12+'PADD5 mthly rpt'!GM12 -> 879494.6392 | GN12: ='PADD1 mthly rpt'!GN12+'PADD2 mthly rpt'!GN12+'PADD3 mthly rpt'!GN12+'PADD4 mthly rpt'!GN12+'PADD5 mthly rpt'!GN12 -> 640890 | GO12: ='PADD1 mthly rpt'!GO12+'PADD2 mthly rpt'!GO12+'PADD3 mthly rpt'!GO12+'PADD4 mthly rpt'!GO12+'PADD5 mthly rpt'!GO12 -> 507281.8674 | GP12: ='PADD1 mthly rpt'!GP12+'PADD2 mthly rpt'!GP12+'PADD3 mthly rpt'!GP12+'PADD4 mthly rpt'!GP12+'PADD5 mthly rpt'!GP12 -> 383429.9625 | GQ12: ='PADD1 mthly rpt'!GQ12+'PADD2 mthly rpt'!GQ12+'PADD3 mthly rpt'!GQ12+'PADD4 mthly rpt'!GQ12+'PADD5 mthly rpt'!GQ12 -> 318991.0139 | GR12: ='PADD1 mthly rpt'!GR12+'PADD2 mthly rpt'!GR12+'PADD3 mthly rpt'!GR12+'PADD4 mthly rpt'!GR12+'PADD5 mthly rpt'!GR12 -> 270414.6171 | GS12: ='PADD1 mthly rpt'!GS12+'PADD2 mthly rpt'!GS12+'PADD3 mthly rpt'!GS12+'PADD4 mthly rpt'!GS12+'PADD5 mthly rpt'!GS12 -> 275462.6908 | GT12: ='PADD1 mthly rpt'!GT12+'PADD2 mthly rpt'!GT12+'PADD3 mthly rpt'!GT12+'PADD4 mthly rpt'!GT12+'PADD5 mthly rpt'!GT12 -> 307896.596 | GU12: ='PADD1 mthly rpt'!GU12+'PADD2 mthly rpt'!GU12+'PADD3 mthly rpt'!GU12+'PADD4 mthly rpt'!GU12+'PADD5 mthly rpt'!GU12 -> 459256.3805 | GV12: ='PADD1 mthly rpt'!GV12+'PADD2 mthly rpt'!GV12+'PADD3 mthly rpt'!GV12+'PADD4 mthly rpt'!GV12+'PADD5 mthly rpt'!GV12 -> 662767.2734 | GW12: ='PADD1 mthly rpt'!GW12+'PADD2 mthly rpt'!GW12+'PADD3 mthly rpt'!GW12+'PADD4 mthly rpt'!GW12+'PADD5 mthly rpt'!GW12 -> 876559.1563 | GX12: ='PADD1 mthly rpt'!GX12+'PADD2 mthly rpt'!GX12+'PADD3 mthly rpt'!GX12+'PADD4 mthly rpt'!GX12+'PADD5 mthly rpt'!GX12 -> 942399.4539 | GY12: ='PADD1 mthly rpt'!GY12+'PADD2 mthly rpt'!GY12+'PADD3 mthly rpt'!GY12+'PADD4 mthly rpt'!GY12+'PADD5 mthly rpt'!GY12 -> 865830.3557 | GZ12: ='PADD1 mthly rpt'!GZ12+'PADD2 mthly rpt'!GZ12+'PADD3 mthly rpt'!GZ12+'PADD4 mthly rpt'!GZ12+'PADD5 mthly rpt'!GZ12 -> 715031.9229 | HA12: ='PADD1 mthly rpt'!HA12+'PADD2 mthly rpt'!HA12+'PADD3 mthly rpt'!HA12+'PADD4 mthly rpt'!HA12+'PADD5 mthly rpt'!HA12 -> 530439.7763 | HB12: ='PADD1 mthly rpt'!HB12+'PADD2 mthly rpt'!HB12+'PADD3 mthly rpt'!HB12+'PADD4 mthly rpt'!HB12+'PADD5 mthly rpt'!HB12 -> 391032.3255 | HC12: ='PADD1 mthly rpt'!HC12+'PADD2 mthly rpt'!HC12+'PADD3 mthly rpt'!HC12+'PADD4 mthly rpt'!HC12+'PADD5 mthly rpt'!HC12 -> 309040.5216
A13: Chemical | B13: ='PADD1 mthly rpt'!B13+'PADD2 mthly rpt'!B13+'PADD3 mthly rpt'!B13+'PADD4 mthly rpt'!B13+'PADD5 mthly rpt'!B13 -> 616502.3703 | C13: ='PADD1 mthly rpt'!C13+'PADD2 mthly rpt'!C13+'PADD3 mthly rpt'!C13+'PADD4 mthly rpt'!C13+'PADD5 mthly rpt'!C13 -> 605919.3594 | D13: ='PADD1 mthly rpt'!D13+'PADD2 mthly rpt'!D13+'PADD3 mthly rpt'!D13+'PADD4 mthly rpt'!D13+'PADD5 mthly rpt'!D13 -> 584753.3376 | E13: ='PADD1 mthly rpt'!E13+'PADD2 mthly rpt'!E13+'PADD3 mthly rpt'!E13+'PADD4 mthly rpt'!E13+'PADD5 mthly rpt'!E13 -> 562262.6296 | F13: ='PADD1 mthly rpt'!F13+'PADD2 mthly rpt'!F13+'PADD3 mthly rpt'!F13+'PADD4 mthly rpt'!F13+'PADD5 mthly rpt'!F13 -> 612917.6628 | G13: ='PADD1 mthly rpt'!G13+'PADD2 mthly rpt'!G13+'PADD3 mthly rpt'!G13+'PADD4 mthly rpt'!G13+'PADD5 mthly rpt'!G13 -> 532882.7104 | H13: ='PADD1 mthly rpt'!H13+'PADD2 mthly rpt'!H13+'PADD3 mthly rpt'!H13+'PADD4 mthly rpt'!H13+'PADD5 mthly rpt'!H13 -> 554215.4308 | I13: ='PADD1 mthly rpt'!I13+'PADD2 mthly rpt'!I13+'PADD3 mthly rpt'!I13+'PADD4 mthly rpt'!I13+'PADD5 mthly rpt'!I13 -> 573913.2144 | J13: ='PADD1 mthly rpt'!J13+'PADD2 mthly rpt'!J13+'PADD3 mthly rpt'!J13+'PADD4 mthly rpt'!J13+'PADD5 mthly rpt'!J13 -> 523105.5043 | K13: ='PADD1 mthly rpt'!K13+'PADD2 mthly rpt'!K13+'PADD3 mthly rpt'!K13+'PADD4 mthly rpt'!K13+'PADD5 mthly rpt'!K13 -> 517464.7115 | L13: ='PADD1 mthly rpt'!L13+'PADD2 mthly rpt'!L13+'PADD3 mthly rpt'!L13+'PADD4 mthly rpt'!L13+'PADD5 mthly rpt'!L13 -> 611767.2484 | M13: ='PADD1 mthly rpt'!M13+'PADD2 mthly rpt'!M13+'PADD3 mthly rpt'!M13+'PADD4 mthly rpt'!M13+'PADD5 mthly rpt'!M13 -> 623774.7775 | N13: ='PADD1 mthly rpt'!N13+'PADD2 mthly rpt'!N13+'PADD3 mthly rpt'!N13+'PADD4 mthly rpt'!N13+'PADD5 mthly rpt'!N13 -> 587708.6831 | O13: ='PADD1 mthly rpt'!O13+'PADD2 mthly rpt'!O13+'PADD3 mthly rpt'!O13+'PADD4 mthly rpt'!O13+'PADD5 mthly rpt'!O13 -> 627908.5101 | P13: ='PADD1 mthly rpt'!P13+'PADD2 mthly rpt'!P13+'PADD3 mthly rpt'!P13+'PADD4 mthly rpt'!P13+'PADD5 mthly rpt'!P13 -> 632601.1024 | Q13: ='PADD1 mthly rpt'!Q13+'PADD2 mthly rpt'!Q13+'PADD3 mthly rpt'!Q13+'PADD4 mthly rpt'!Q13+'PADD5 mthly rpt'!Q13 -> 620255.8011 | R13: ='PADD1 mthly rpt'!R13+'PADD2 mthly rpt'!R13+'PADD3 mthly rpt'!R13+'PADD4 mthly rpt'!R13+'PADD5 mthly rpt'!R13 -> 683210.7904 | S13: ='PADD1 mthly rpt'!S13+'PADD2 mthly rpt'!S13+'PADD3 mthly rpt'!S13+'PADD4 mthly rpt'!S13+'PADD5 mthly rpt'!S13 -> 639869.8642 | T13: ='PADD1 mthly rpt'!T13+'PADD2 mthly rpt'!T13+'PADD3 mthly rpt'!T13+'PADD4 mthly rpt'!T13+'PADD5 mthly rpt'!T13 -> 598991.9367 | U13: ='PADD1 mthly rpt'!U13+'PADD2 mthly rpt'!U13+'PADD3 mthly rpt'!U13+'PADD4 mthly rpt'!U13+'PADD5 mthly rpt'!U13 -> 623210.4048 | V13: ='PADD1 mthly rpt'!V13+'PADD2 mthly rpt'!V13+'PADD3 mthly rpt'!V13+'PADD4 mthly rpt'!V13+'PADD5 mthly rpt'!V13 -> 575048.4743 | W13: ='PADD1 mthly rpt'!W13+'PADD2 mthly rpt'!W13+'PADD3 mthly rpt'!W13+'PADD4 mthly rpt'!W13+'PADD5 mthly rpt'!W13 -> 575697.5597 | X13: ='PADD1 mthly rpt'!X13+'PADD2 mthly rpt'!X13+'PADD3 mthly rpt'!X13+'PADD4 mthly rpt'!X13+'PADD5 mthly rpt'!X13 -> 594149.6525 | Y13: ='PADD1 mthly rpt'!Y13+'PADD2 mthly rpt'!Y13+'PADD3 mthly rpt'!Y13+'PADD4 mthly rpt'!Y13+'PADD5 mthly rpt'!Y13 -> 615899.8942 | Z13: ='PADD1 mthly rpt'!Z13+'PADD2 mthly rpt'!Z13+'PADD3 mthly rpt'!Z13+'PADD4 mthly rpt'!Z13+'PADD5 mthly rpt'!Z13 -> 667486.4735 | AA13: ='PADD1 mthly rpt'!AA13+'PADD2 mthly rpt'!AA13+'PADD3 mthly rpt'!AA13+'PADD4 mthly rpt'!AA13+'PADD5 mthly rpt'!AA13 -> 578883.8957 | AB13: ='PADD1 mthly rpt'!AB13+'PADD2 mthly rpt'!AB13+'PADD3 mthly rpt'!AB13+'PADD4 mthly rpt'!AB13+'PADD5 mthly rpt'!AB13 -> 584368.569 | AC13: ='PADD1 mthly rpt'!AC13+'PADD2 mthly rpt'!AC13+'PADD3 mthly rpt'!AC13+'PADD4 mthly rpt'!AC13+'PADD5 mthly rpt'!AC13 -> 607092.0479 | AD13: ='PADD1 mthly rpt'!AD13+'PADD2 mthly rpt'!AD13+'PADD3 mthly rpt'!AD13+'PADD4 mthly rpt'!AD13+'PADD5 mthly rpt'!AD13 -> 634184.1433 | AE13: ='PADD1 mthly rpt'!AE13+'PADD2 mthly rpt'!AE13+'PADD3 mthly rpt'!AE13+'PADD4 mthly rpt'!AE13+'PADD5 mthly rpt'!AE13 -> 645344.0008 | AF13: ='PADD1 mthly rpt'!AF13+'PADD2 mthly rpt'!AF13+'PADD3 mthly rpt'!AF13+'PADD4 mthly rpt'!AF13+'PADD5 mthly rpt'!AF13 -> 672227.6336 | AG13: ='PADD1 mthly rpt'!AG13+'PADD2 mthly rpt'!AG13+'PADD3 mthly rpt'!AG13+'PADD4 mthly rpt'!AG13+'PADD5 mthly rpt'!AG13 -> 679366.1623 | AH13: ='PADD1 mthly rpt'!AH13+'PADD2 mthly rpt'!AH13+'PADD3 mthly rpt'!AH13+'PADD4 mthly rpt'!AH13+'PADD5 mthly rpt'!AH13 -> 689457.4967 | AI13: ='PADD1 mthly rpt'!AI13+'PADD2 mthly rpt'!AI13+'PADD3 mthly rpt'!AI13+'PADD4 mthly rpt'!AI13+'PADD5 mthly rpt'!AI13 -> 627006.0185 | AJ13: ='PADD1 mthly rpt'!AJ13+'PADD2 mthly rpt'!AJ13+'PADD3 mthly rpt'!AJ13+'PADD4 mthly rpt'!AJ13+'PADD5 mthly rpt'!AJ13 -> 666919.0448 | AK13: ='PADD1 mthly rpt'!AK13+'PADD2 mthly rpt'!AK13+'PADD3 mthly rpt'!AK13+'PADD4 mthly rpt'!AK13+'PADD5 mthly rpt'!AK13 -> 666639.0437 | AL13: ='PADD1 mthly rpt'!AL13+'PADD2 mthly rpt'!AL13+'PADD3 mthly rpt'!AL13+'PADD4 mthly rpt'!AL13+'PADD5 mthly rpt'!AL13 -> 535113.285 | AM13: ='PADD1 mthly rpt'!AM13+'PADD2 mthly rpt'!AM13+'PADD3 mthly rpt'!AM13+'PADD4 mthly rpt'!AM13+'PADD5 mthly rpt'!AM13 -> 532753.6259 | AN13: ='PADD1 mthly rpt'!AN13+'PADD2 mthly rpt'!AN13+'PADD3 mthly rpt'!AN13+'PADD4 mthly rpt'!AN13+'PADD5 mthly rpt'!AN13 -> 559296.7002 | AO13: ='PADD1 mthly rpt'!AO13+'PADD2 mthly rpt'!AO13+'PADD3 mthly rpt'!AO13+'PADD4 mthly rpt'!AO13+'PADD5 mthly rpt'!AO13 -> 607012.9248 | AP13: ='PADD1 mthly rpt'!AP13+'PADD2 mthly rpt'!AP13+'PADD3 mthly rpt'!AP13+'PADD4 mthly rpt'!AP13+'PADD5 mthly rpt'!AP13 -> 546303.0912 | AQ13: ='PADD1 mthly rpt'!AQ13+'PADD2 mthly rpt'!AQ13+'PADD3 mthly rpt'!AQ13+'PADD4 mthly rpt'!AQ13+'PADD5 mthly rpt'!AQ13 -> 645963.3023 | AR13: ='PADD1 mthly rpt'!AR13+'PADD2 mthly rpt'!AR13+'PADD3 mthly rpt'!AR13+'PADD4 mthly rpt'!AR13+'PADD5 mthly rpt'!AR13 -> 617973.858 | AS13: ='PADD1 mthly rpt'!AS13+'PADD2 mthly rpt'!AS13+'PADD3 mthly rpt'!AS13+'PADD4 mthly rpt'!AS13+'PADD5 mthly rpt'!AS13 -> 587015.3452 | AT13: ='PADD1 mthly rpt'!AT13+'PADD2 mthly rpt'!AT13+'PADD3 mthly rpt'!AT13+'PADD4 mthly rpt'!AT13+'PADD5 mthly rpt'!AT13 -> 378336.69 | AU13: ='PADD1 mthly rpt'!AU13+'PADD2 mthly rpt'!AU13+'PADD3 mthly rpt'!AU13+'PADD4 mthly rpt'!AU13+'PADD5 mthly rpt'!AU13 -> 427771.889 | AV13: ='PADD1 mthly rpt'!AV13+'PADD2 mthly rpt'!AV13+'PADD3 mthly rpt'!AV13+'PADD4 mthly rpt'!AV13+'PADD5 mthly rpt'!AV13 -> 395554.5295 | AW13: ='PADD1 mthly rpt'!AW13+'PADD2 mthly rpt'!AW13+'PADD3 mthly rpt'!AW13+'PADD4 mthly rpt'!AW13+'PADD5 mthly rpt'!AW13 -> 336968.9227 | AX13: ='PADD1 mthly rpt'!AX13+'PADD2 mthly rpt'!AX13+'PADD3 mthly rpt'!AX13+'PADD4 mthly rpt'!AX13+'PADD5 mthly rpt'!AX13 -> 411815.9213 | AY13: ='PADD1 mthly rpt'!AY13+'PADD2 mthly rpt'!AY13+'PADD3 mthly rpt'!AY13+'PADD4 mthly rpt'!AY13+'PADD5 mthly rpt'!AY13 -> 468105.5307 | AZ13: ='PADD1 mthly rpt'!AZ13+'PADD2 mthly rpt'!AZ13+'PADD3 mthly rpt'!AZ13+'PADD4 mthly rpt'!AZ13+'PADD5 mthly rpt'!AZ13 -> 493022.3537 | BA13: ='PADD1 mthly rpt'!BA13+'PADD2 mthly rpt'!BA13+'PADD3 mthly rpt'!BA13+'PADD4 mthly rpt'!BA13+'PADD5 mthly rpt'!BA13 -> 500859.0603 | BB13: ='PADD1 mthly rpt'!BB13+'PADD2 mthly rpt'!BB13+'PADD3 mthly rpt'!BB13+'PADD4 mthly rpt'!BB13+'PADD5 mthly rpt'!BB13 -> 528146.1814 | BC13: ='PADD1 mthly rpt'!BC13+'PADD2 mthly rpt'!BC13+'PADD3 mthly rpt'!BC13+'PADD4 mthly rpt'!BC13+'PADD5 mthly rpt'!BC13 -> 594346.7526 | BD13: ='PADD1 mthly rpt'!BD13+'PADD2 mthly rpt'!BD13+'PADD3 mthly rpt'!BD13+'PADD4 mthly rpt'!BD13+'PADD5 mthly rpt'!BD13 -> 618083.0443 | BE13: ='PADD1 mthly rpt'!BE13+'PADD2 mthly rpt'!BE13+'PADD3 mthly rpt'!BE13+'PADD4 mthly rpt'!BE13+'PADD5 mthly rpt'!BE13 -> 638238.9187 | BF13: ='PADD1 mthly rpt'!BF13+'PADD2 mthly rpt'!BF13+'PADD3 mthly rpt'!BF13+'PADD4 mthly rpt'!BF13+'PADD5 mthly rpt'!BF13 -> 578012.3884 | BG13: ='PADD1 mthly rpt'!BG13+'PADD2 mthly rpt'!BG13+'PADD3 mthly rpt'!BG13+'PADD4 mthly rpt'!BG13+'PADD5 mthly rpt'!BG13 -> 537312.7842 | BH13: ='PADD1 mthly rpt'!BH13+'PADD2 mthly rpt'!BH13+'PADD3 mthly rpt'!BH13+'PADD4 mthly rpt'!BH13+'PADD5 mthly rpt'!BH13 -> 537312.7842 | BI13: ='PADD1 mthly rpt'!BI13+'PADD2 mthly rpt'!BI13+'PADD3 mthly rpt'!BI13+'PADD4 mthly rpt'!BI13+'PADD5 mthly rpt'!BI13 -> 541665.3569 | BJ13: ='PADD1 mthly rpt'!BJ13+'PADD2 mthly rpt'!BJ13+'PADD3 mthly rpt'!BJ13+'PADD4 mthly rpt'!BJ13+'PADD5 mthly rpt'!BJ13 -> 575191.9294 | BK13: ='PADD1 mthly rpt'!BK13+'PADD2 mthly rpt'!BK13+'PADD3 mthly rpt'!BK13+'PADD4 mthly rpt'!BK13+'PADD5 mthly rpt'!BK13 -> 589600.8881 | BL13: ='PADD1 mthly rpt'!BL13+'PADD2 mthly rpt'!BL13+'PADD3 mthly rpt'!BL13+'PADD4 mthly rpt'!BL13+'PADD5 mthly rpt'!BL13 -> 544073.6026 | BM13: ='PADD1 mthly rpt'!BM13+'PADD2 mthly rpt'!BM13+'PADD3 mthly rpt'!BM13+'PADD4 mthly rpt'!BM13+'PADD5 mthly rpt'!BM13 -> 572642.8625 | BN13: ='PADD1 mthly rpt'!BN13+'PADD2 mthly rpt'!BN13+'PADD3 mthly rpt'!BN13+'PADD4 mthly rpt'!BN13+'PADD5 mthly rpt'!BN13 -> 572167.7271 | BO13: ='PADD1 mthly rpt'!BO13+'PADD2 mthly rpt'!BO13+'PADD3 mthly rpt'!BO13+'PADD4 mthly rpt'!BO13+'PADD5 mthly rpt'!BO13 -> 605813.4131 | BP13: ='PADD1 mthly rpt'!BP13+'PADD2 mthly rpt'!BP13+'PADD3 mthly rpt'!BP13+'PADD4 mthly rpt'!BP13+'PADD5 mthly rpt'!BP13 -> 610570.475 | BQ13: ='PADD1 mthly rpt'!BQ13+'PADD2 mthly rpt'!BQ13+'PADD3 mthly rpt'!BQ13+'PADD4 mthly rpt'!BQ13+'PADD5 mthly rpt'!BQ13 -> 618509.7844 | BR13: ='PADD1 mthly rpt'!BR13+'PADD2 mthly rpt'!BR13+'PADD3 mthly rpt'!BR13+'PADD4 mthly rpt'!BR13+'PADD5 mthly rpt'!BR13 -> 631126.8466 | BS13: ='PADD1 mthly rpt'!BS13+'PADD2 mthly rpt'!BS13+'PADD3 mthly rpt'!BS13+'PADD4 mthly rpt'!BS13+'PADD5 mthly rpt'!BS13 -> 584173.6514 | BT13: ='PADD1 mthly rpt'!BT13+'PADD2 mthly rpt'!BT13+'PADD3 mthly rpt'!BT13+'PADD4 mthly rpt'!BT13+'PADD5 mthly rpt'!BT13 -> 581234.0309 | BU13: ='PADD1 mthly rpt'!BU13+'PADD2 mthly rpt'!BU13+'PADD3 mthly rpt'!BU13+'PADD4 mthly rpt'!BU13+'PADD5 mthly rpt'!BU13 -> 602791.2959 | BV13: ='PADD1 mthly rpt'!BV13+'PADD2 mthly rpt'!BV13+'PADD3 mthly rpt'!BV13+'PADD4 mthly rpt'!BV13+'PADD5 mthly rpt'!BV13 -> 646284.0018 | BW13: ='PADD1 mthly rpt'!BW13+'PADD2 mthly rpt'!BW13+'PADD3 mthly rpt'!BW13+'PADD4 mthly rpt'!BW13+'PADD5 mthly rpt'!BW13 -> 627707.9081 | BX13: ='PADD1 mthly rpt'!BX13+'PADD2 mthly rpt'!BX13+'PADD3 mthly rpt'!BX13+'PADD4 mthly rpt'!BX13+'PADD5 mthly rpt'!BX13 -> 646602.5746 | BY13: ='PADD1 mthly rpt'!BY13+'PADD2 mthly rpt'!BY13+'PADD3 mthly rpt'!BY13+'PADD4 mthly rpt'!BY13+'PADD5 mthly rpt'!BY13 -> 614264.3747 | BZ13: ='PADD1 mthly rpt'!BZ13+'PADD2 mthly rpt'!BZ13+'PADD3 mthly rpt'!BZ13+'PADD4 mthly rpt'!BZ13+'PADD5 mthly rpt'!BZ13 -> 636845.7906 | CA13: ='PADD1 mthly rpt'!CA13+'PADD2 mthly rpt'!CA13+'PADD3 mthly rpt'!CA13+'PADD4 mthly rpt'!CA13+'PADD5 mthly rpt'!CA13 -> 668602.574 | CB13: ='PADD1 mthly rpt'!CB13+'PADD2 mthly rpt'!CB13+'PADD3 mthly rpt'!CB13+'PADD4 mthly rpt'!CB13+'PADD5 mthly rpt'!CB13 -> 609257.0806 | CC13: ='PADD1 mthly rpt'!CC13+'PADD2 mthly rpt'!CC13+'PADD3 mthly rpt'!CC13+'PADD4 mthly rpt'!CC13+'PADD5 mthly rpt'!CC13 -> 597526.1077 | CD13: ='PADD1 mthly rpt'!CD13+'PADD2 mthly rpt'!CD13+'PADD3 mthly rpt'!CD13+'PADD4 mthly rpt'!CD13+'PADD5 mthly rpt'!CD13 -> 608910.509 | CE13: ='PADD1 mthly rpt'!CE13+'PADD2 mthly rpt'!CE13+'PADD3 mthly rpt'!CE13+'PADD4 mthly rpt'!CE13+'PADD5 mthly rpt'!CE13 -> 604945.5256 | CF13: ='PADD1 mthly rpt'!CF13+'PADD2 mthly rpt'!CF13+'PADD3 mthly rpt'!CF13+'PADD4 mthly rpt'!CF13+'PADD5 mthly rpt'!CF13 -> 614345.0689 | CG13: ='PADD1 mthly rpt'!CG13+'PADD2 mthly rpt'!CG13+'PADD3 mthly rpt'!CG13+'PADD4 mthly rpt'!CG13+'PADD5 mthly rpt'!CG13 -> 609109.2156 | CH13: ='PADD1 mthly rpt'!CH13+'PADD2 mthly rpt'!CH13+'PADD3 mthly rpt'!CH13+'PADD4 mthly rpt'!CH13+'PADD5 mthly rpt'!CH13 -> 629024.1949 | CI13: ='PADD1 mthly rpt'!CI13+'PADD2 mthly rpt'!CI13+'PADD3 mthly rpt'!CI13+'PADD4 mthly rpt'!CI13+'PADD5 mthly rpt'!CI13 -> 645911.2765 | CJ13: ='PADD1 mthly rpt'!CJ13+'PADD2 mthly rpt'!CJ13+'PADD3 mthly rpt'!CJ13+'PADD4 mthly rpt'!CJ13+'PADD5 mthly rpt'!CJ13 -> 649641.8907 | CK13: ='PADD1 mthly rpt'!CK13+'PADD2 mthly rpt'!CK13+'PADD3 mthly rpt'!CK13+'PADD4 mthly rpt'!CK13+'PADD5 mthly rpt'!CK13 -> 633776.6745 | CL13: ='PADD1 mthly rpt'!CL13+'PADD2 mthly rpt'!CL13+'PADD3 mthly rpt'!CL13+'PADD4 mthly rpt'!CL13+'PADD5 mthly rpt'!CL13 -> 629709.7956 | CM13: ='PADD1 mthly rpt'!CM13+'PADD2 mthly rpt'!CM13+'PADD3 mthly rpt'!CM13+'PADD4 mthly rpt'!CM13+'PADD5 mthly rpt'!CM13 -> 670356.8463 | CN13: ='PADD1 mthly rpt'!CN13+'PADD2 mthly rpt'!CN13+'PADD3 mthly rpt'!CN13+'PADD4 mthly rpt'!CN13+'PADD5 mthly rpt'!CN13 -> 697510.785 | CO13: ='PADD1 mthly rpt'!CO13+'PADD2 mthly rpt'!CO13+'PADD3 mthly rpt'!CO13+'PADD4 mthly rpt'!CO13+'PADD5 mthly rpt'!CO13 -> 660840.1447 | CP13: ='PADD1 mthly rpt'!CP13+'PADD2 mthly rpt'!CP13+'PADD3 mthly rpt'!CP13+'PADD4 mthly rpt'!CP13+'PADD5 mthly rpt'!CP13 -> 675362.092 | CQ13: ='PADD1 mthly rpt'!CQ13+'PADD2 mthly rpt'!CQ13+'PADD3 mthly rpt'!CQ13+'PADD4 mthly rpt'!CQ13+'PADD5 mthly rpt'!CQ13 -> 644711.8688 | CR13: ='PADD1 mthly rpt'!CR13+'PADD2 mthly rpt'!CR13+'PADD3 mthly rpt'!CR13+'PADD4 mthly rpt'!CR13+'PADD5 mthly rpt'!CR13 -> 639048.6018 | CS13: ='PADD1 mthly rpt'!CS13+'PADD2 mthly rpt'!CS13+'PADD3 mthly rpt'!CS13+'PADD4 mthly rpt'!CS13+'PADD5 mthly rpt'!CS13 -> 717168.3571 | CT13: ='PADD1 mthly rpt'!CT13+'PADD2 mthly rpt'!CT13+'PADD3 mthly rpt'!CT13+'PADD4 mthly rpt'!CT13+'PADD5 mthly rpt'!CT13 -> 690529.2283 | CU13: ='PADD1 mthly rpt'!CU13+'PADD2 mthly rpt'!CU13+'PADD3 mthly rpt'!CU13+'PADD4 mthly rpt'!CU13+'PADD5 mthly rpt'!CU13 -> 680953.4139 | CV13: ='PADD1 mthly rpt'!CV13+'PADD2 mthly rpt'!CV13+'PADD3 mthly rpt'!CV13+'PADD4 mthly rpt'!CV13+'PADD5 mthly rpt'!CV13 -> 671120.1585 | CW13: ='PADD1 mthly rpt'!CW13+'PADD2 mthly rpt'!CW13+'PADD3 mthly rpt'!CW13+'PADD4 mthly rpt'!CW13+'PADD5 mthly rpt'!CW13 -> 651112.3935 | CX13: ='PADD1 mthly rpt'!CX13+'PADD2 mthly rpt'!CX13+'PADD3 mthly rpt'!CX13+'PADD4 mthly rpt'!CX13+'PADD5 mthly rpt'!CX13 -> 647718.4632 | CY13: ='PADD1 mthly rpt'!CY13+'PADD2 mthly rpt'!CY13+'PADD3 mthly rpt'!CY13+'PADD4 mthly rpt'!CY13+'PADD5 mthly rpt'!CY13 -> 656187.9165 | CZ13: ='PADD1 mthly rpt'!CZ13+'PADD2 mthly rpt'!CZ13+'PADD3 mthly rpt'!CZ13+'PADD4 mthly rpt'!CZ13+'PADD5 mthly rpt'!CZ13 -> 674904.2209 | DA13: ='PADD1 mthly rpt'!DA13+'PADD2 mthly rpt'!DA13+'PADD3 mthly rpt'!DA13+'PADD4 mthly rpt'!DA13+'PADD5 mthly rpt'!DA13 -> 664257.3053 | DB13: ='PADD1 mthly rpt'!DB13+'PADD2 mthly rpt'!DB13+'PADD3 mthly rpt'!DB13+'PADD4 mthly rpt'!DB13+'PADD5 mthly rpt'!DB13 -> 682590.3157 | DC13: ='PADD1 mthly rpt'!DC13+'PADD2 mthly rpt'!DC13+'PADD3 mthly rpt'!DC13+'PADD4 mthly rpt'!DC13+'PADD5 mthly rpt'!DC13 -> 692922.5141 | DD13: ='PADD1 mthly rpt'!DD13+'PADD2 mthly rpt'!DD13+'PADD3 mthly rpt'!DD13+'PADD4 mthly rpt'!DD13+'PADD5 mthly rpt'!DD13 -> 657212.7355 | DE13: ='PADD1 mthly rpt'!DE13+'PADD2 mthly rpt'!DE13+'PADD3 mthly rpt'!DE13+'PADD4 mthly rpt'!DE13+'PADD5 mthly rpt'!DE13 -> 622954.4023 | DF13: ='PADD1 mthly rpt'!DF13+'PADD2 mthly rpt'!DF13+'PADD3 mthly rpt'!DF13+'PADD4 mthly rpt'!DF13+'PADD5 mthly rpt'!DF13 -> 627501.3361 | DG13: ='PADD1 mthly rpt'!DG13+'PADD2 mthly rpt'!DG13+'PADD3 mthly rpt'!DG13+'PADD4 mthly rpt'!DG13+'PADD5 mthly rpt'!DG13 -> 598926.8491 | DH13: ='PADD1 mthly rpt'!DH13+'PADD2 mthly rpt'!DH13+'PADD3 mthly rpt'!DH13+'PADD4 mthly rpt'!DH13+'PADD5 mthly rpt'!DH13 -> 573940.8712 | DI13: ='PADD1 mthly rpt'!DI13+'PADD2 mthly rpt'!DI13+'PADD3 mthly rpt'!DI13+'PADD4 mthly rpt'!DI13+'PADD5 mthly rpt'!DI13 -> 555991.648 | DJ13: ='PADD1 mthly rpt'!DJ13+'PADD2 mthly rpt'!DJ13+'PADD3 mthly rpt'!DJ13+'PADD4 mthly rpt'!DJ13+'PADD5 mthly rpt'!DJ13 -> 556850.7778 | DK13: ='PADD1 mthly rpt'!DK13+'PADD2 mthly rpt'!DK13+'PADD3 mthly rpt'!DK13+'PADD4 mthly rpt'!DK13+'PADD5 mthly rpt'!DK13 -> 590631.6759 | DL13: ='PADD1 mthly rpt'!DL13+'PADD2 mthly rpt'!DL13+'PADD3 mthly rpt'!DL13+'PADD4 mthly rpt'!DL13+'PADD5 mthly rpt'!DL13 -> 573489.1555 | DM13: ='PADD1 mthly rpt'!DM13+'PADD2 mthly rpt'!DM13+'PADD3 mthly rpt'!DM13+'PADD4 mthly rpt'!DM13+'PADD5 mthly rpt'!DM13 -> 572447.7348 | DN13: ='PADD1 mthly rpt'!DN13+'PADD2 mthly rpt'!DN13+'PADD3 mthly rpt'!DN13+'PADD4 mthly rpt'!DN13+'PADD5 mthly rpt'!DN13 -> 570407.7046 | DO13: ='PADD1 mthly rpt'!DO13+'PADD2 mthly rpt'!DO13+'PADD3 mthly rpt'!DO13+'PADD4 mthly rpt'!DO13+'PADD5 mthly rpt'!DO13 -> 556826.5999 | DP13: ='PADD1 mthly rpt'!DP13+'PADD2 mthly rpt'!DP13+'PADD3 mthly rpt'!DP13+'PADD4 mthly rpt'!DP13+'PADD5 mthly rpt'!DP13 -> 588690.101 | DQ13: ='PADD1 mthly rpt'!DQ13+'PADD2 mthly rpt'!DQ13+'PADD3 mthly rpt'!DQ13+'PADD4 mthly rpt'!DQ13+'PADD5 mthly rpt'!DQ13 -> 647889.9458 | DR13: ='PADD1 mthly rpt'!DR13+'PADD2 mthly rpt'!DR13+'PADD3 mthly rpt'!DR13+'PADD4 mthly rpt'!DR13+'PADD5 mthly rpt'!DR13 -> 647749.3371 | DS13: ='PADD1 mthly rpt'!DS13+'PADD2 mthly rpt'!DS13+'PADD3 mthly rpt'!DS13+'PADD4 mthly rpt'!DS13+'PADD5 mthly rpt'!DS13 -> 633070.3411 | DT13: ='PADD1 mthly rpt'!DT13+'PADD2 mthly rpt'!DT13+'PADD3 mthly rpt'!DT13+'PADD4 mthly rpt'!DT13+'PADD5 mthly rpt'!DT13 -> 647619.1201 | DU13: ='PADD1 mthly rpt'!DU13+'PADD2 mthly rpt'!DU13+'PADD3 mthly rpt'!DU13+'PADD4 mthly rpt'!DU13+'PADD5 mthly rpt'!DU13 -> 659802.1034 | DV13: ='PADD1 mthly rpt'!DV13+'PADD2 mthly rpt'!DV13+'PADD3 mthly rpt'!DV13+'PADD4 mthly rpt'!DV13+'PADD5 mthly rpt'!DV13 -> 676910.2576 | DW13: ='PADD1 mthly rpt'!DW13+'PADD2 mthly rpt'!DW13+'PADD3 mthly rpt'!DW13+'PADD4 mthly rpt'!DW13+'PADD5 mthly rpt'!DW13 -> 706747.7842 | DX13: ='PADD1 mthly rpt'!DX13+'PADD2 mthly rpt'!DX13+'PADD3 mthly rpt'!DX13+'PADD4 mthly rpt'!DX13+'PADD5 mthly rpt'!DX13 -> 586764.5461 | DY13: ='PADD1 mthly rpt'!DY13+'PADD2 mthly rpt'!DY13+'PADD3 mthly rpt'!DY13+'PADD4 mthly rpt'!DY13+'PADD5 mthly rpt'!DY13 -> 593100.8637 | DZ13: ='PADD1 mthly rpt'!DZ13+'PADD2 mthly rpt'!DZ13+'PADD3 mthly rpt'!DZ13+'PADD4 mthly rpt'!DZ13+'PADD5 mthly rpt'!DZ13 -> 582480.6018 | EA13: ='PADD1 mthly rpt'!EA13+'PADD2 mthly rpt'!EA13+'PADD3 mthly rpt'!EA13+'PADD4 mthly rpt'!EA13+'PADD5 mthly rpt'!EA13 -> 542854.3397 | EB13: ='PADD1 mthly rpt'!EB13+'PADD2 mthly rpt'!EB13+'PADD3 mthly rpt'!EB13+'PADD4 mthly rpt'!EB13+'PADD5 mthly rpt'!EB13 -> 554293.1276 | EC13: ='PADD1 mthly rpt'!EC13+'PADD2 mthly rpt'!EC13+'PADD3 mthly rpt'!EC13+'PADD4 mthly rpt'!EC13+'PADD5 mthly rpt'!EC13 -> 590694.8954 | ED13: ='PADD1 mthly rpt'!ED13+'PADD2 mthly rpt'!ED13+'PADD3 mthly rpt'!ED13+'PADD4 mthly rpt'!ED13+'PADD5 mthly rpt'!ED13 -> 593248.0121 | EE13: ='PADD1 mthly rpt'!EE13+'PADD2 mthly rpt'!EE13+'PADD3 mthly rpt'!EE13+'PADD4 mthly rpt'!EE13+'PADD5 mthly rpt'!EE13 -> 595327.0321 | EF13: ='PADD1 mthly rpt'!EF13+'PADD2 mthly rpt'!EF13+'PADD3 mthly rpt'!EF13+'PADD4 mthly rpt'!EF13+'PADD5 mthly rpt'!EF13 -> 546921.9807 | EG13: ='PADD1 mthly rpt'!EG13+'PADD2 mthly rpt'!EG13+'PADD3 mthly rpt'!EG13+'PADD4 mthly rpt'!EG13+'PADD5 mthly rpt'!EG13 -> 531839.7812 | EH13: ='PADD1 mthly rpt'!EH13+'PADD2 mthly rpt'!EH13+'PADD3 mthly rpt'!EH13+'PADD4 mthly rpt'!EH13+'PADD5 mthly rpt'!EH13 -> 503550.7934 | EI13: ='PADD1 mthly rpt'!EI13+'PADD2 mthly rpt'!EI13+'PADD3 mthly rpt'!EI13+'PADD4 mthly rpt'!EI13+'PADD5 mthly rpt'!EI13 -> 518011.6775 | EJ13: ='PADD1 mthly rpt'!EJ13+'PADD2 mthly rpt'!EJ13+'PADD3 mthly rpt'!EJ13+'PADD4 mthly rpt'!EJ13+'PADD5 mthly rpt'!EJ13 -> 584690.0097 | EK13: ='PADD1 mthly rpt'!EK13+'PADD2 mthly rpt'!EK13+'PADD3 mthly rpt'!EK13+'PADD4 mthly rpt'!EK13+'PADD5 mthly rpt'!EK13 -> 684196.9682 | EL13: ='PADD1 mthly rpt'!EL13+'PADD2 mthly rpt'!EL13+'PADD3 mthly rpt'!EL13+'PADD4 mthly rpt'!EL13+'PADD5 mthly rpt'!EL13 -> 647858.5243 | EM13: ='PADD1 mthly rpt'!EM13+'PADD2 mthly rpt'!EM13+'PADD3 mthly rpt'!EM13+'PADD4 mthly rpt'!EM13+'PADD5 mthly rpt'!EM13 -> 615698.9983 | EN13: ='PADD1 mthly rpt'!EN13+'PADD2 mthly rpt'!EN13+'PADD3 mthly rpt'!EN13+'PADD4 mthly rpt'!EN13+'PADD5 mthly rpt'!EN13 -> 605893.2414 | EO13: ='PADD1 mthly rpt'!EO13+'PADD2 mthly rpt'!EO13+'PADD3 mthly rpt'!EO13+'PADD4 mthly rpt'!EO13+'PADD5 mthly rpt'!EO13 -> 641664.7703 | EP13: ='PADD1 mthly rpt'!EP13+'PADD2 mthly rpt'!EP13+'PADD3 mthly rpt'!EP13+'PADD4 mthly rpt'!EP13+'PADD5 mthly rpt'!EP13 -> 641299.5251 | EQ13: ='PADD1 mthly rpt'!EQ13+'PADD2 mthly rpt'!EQ13+'PADD3 mthly rpt'!EQ13+'PADD4 mthly rpt'!EQ13+'PADD5 mthly rpt'!EQ13 -> 607066.5891 | ER13: ='PADD1 mthly rpt'!ER13+'PADD2 mthly rpt'!ER13+'PADD3 mthly rpt'!ER13+'PADD4 mthly rpt'!ER13+'PADD5 mthly rpt'!ER13 -> 681368.2963 | ES13: ='PADD1 mthly rpt'!ES13+'PADD2 mthly rpt'!ES13+'PADD3 mthly rpt'!ES13+'PADD4 mthly rpt'!ES13+'PADD5 mthly rpt'!ES13 -> 657295.1707 | ET13: ='PADD1 mthly rpt'!ET13+'PADD2 mthly rpt'!ET13+'PADD3 mthly rpt'!ET13+'PADD4 mthly rpt'!ET13+'PADD5 mthly rpt'!ET13 -> 632360.7031 | EU13: ='PADD1 mthly rpt'!EU13+'PADD2 mthly rpt'!EU13+'PADD3 mthly rpt'!EU13+'PADD4 mthly rpt'!EU13+'PADD5 mthly rpt'!EU13 -> 626145.907 | EV13: ='PADD1 mthly rpt'!EV13+'PADD2 mthly rpt'!EV13+'PADD3 mthly rpt'!EV13+'PADD4 mthly rpt'!EV13+'PADD5 mthly rpt'!EV13 -> 630059.6504 | EW13: ='PADD1 mthly rpt'!EW13+'PADD2 mthly rpt'!EW13+'PADD3 mthly rpt'!EW13+'PADD4 mthly rpt'!EW13+'PADD5 mthly rpt'!EW13 -> 611308.9027 | EX13: ='PADD1 mthly rpt'!EX13+'PADD2 mthly rpt'!EX13+'PADD3 mthly rpt'!EX13+'PADD4 mthly rpt'!EX13+'PADD5 mthly rpt'!EX13 -> 552265.0607 | EY13: ='PADD1 mthly rpt'!EY13+'PADD2 mthly rpt'!EY13+'PADD3 mthly rpt'!EY13+'PADD4 mthly rpt'!EY13+'PADD5 mthly rpt'!EY13 -> 563854.6677 | EZ13: ='PADD1 mthly rpt'!EZ13+'PADD2 mthly rpt'!EZ13+'PADD3 mthly rpt'!EZ13+'PADD4 mthly rpt'!EZ13+'PADD5 mthly rpt'!EZ13 -> 588015.8688 | FA13: ='PADD1 mthly rpt'!FA13+'PADD2 mthly rpt'!FA13+'PADD3 mthly rpt'!FA13+'PADD4 mthly rpt'!FA13+'PADD5 mthly rpt'!FA13 -> 593434.7259 | FB13: ='PADD1 mthly rpt'!FB13+'PADD2 mthly rpt'!FB13+'PADD3 mthly rpt'!FB13+'PADD4 mthly rpt'!FB13+'PADD5 mthly rpt'!FB13 -> 594558.2177 | FC13: ='PADD1 mthly rpt'!FC13+'PADD2 mthly rpt'!FC13+'PADD3 mthly rpt'!FC13+'PADD4 mthly rpt'!FC13+'PADD5 mthly rpt'!FC13 -> 602362.6394 | FD13: ='PADD1 mthly rpt'!FD13+'PADD2 mthly rpt'!FD13+'PADD3 mthly rpt'!FD13+'PADD4 mthly rpt'!FD13+'PADD5 mthly rpt'!FD13 -> 612822.4414 | FE13: ='PADD1 mthly rpt'!FE13+'PADD2 mthly rpt'!FE13+'PADD3 mthly rpt'!FE13+'PADD4 mthly rpt'!FE13+'PADD5 mthly rpt'!FE13 -> 598722.8518 | FF13: ='PADD1 mthly rpt'!FF13+'PADD2 mthly rpt'!FF13+'PADD3 mthly rpt'!FF13+'PADD4 mthly rpt'!FF13+'PADD5 mthly rpt'!FF13 -> 554684.8505 | FG13: ='PADD1 mthly rpt'!FG13+'PADD2 mthly rpt'!FG13+'PADD3 mthly rpt'!FG13+'PADD4 mthly rpt'!FG13+'PADD5 mthly rpt'!FG13 -> 581658.6749 | FH13: ='PADD1 mthly rpt'!FH13+'PADD2 mthly rpt'!FH13+'PADD3 mthly rpt'!FH13+'PADD4 mthly rpt'!FH13+'PADD5 mthly rpt'!FH13 -> 594500.9625 | FI13: ='PADD1 mthly rpt'!FI13+'PADD2 mthly rpt'!FI13+'PADD3 mthly rpt'!FI13+'PADD4 mthly rpt'!FI13+'PADD5 mthly rpt'!FI13 -> 592677.0907 | FJ13: ='PADD1 mthly rpt'!FJ13+'PADD2 mthly rpt'!FJ13+'PADD3 mthly rpt'!FJ13+'PADD4 mthly rpt'!FJ13+'PADD5 mthly rpt'!FJ13 -> 585749.0454 | FK13: ='PADD1 mthly rpt'!FK13+'PADD2 mthly rpt'!FK13+'PADD3 mthly rpt'!FK13+'PADD4 mthly rpt'!FK13+'PADD5 mthly rpt'!FK13 -> 579760.2256 | FL13: ='PADD1 mthly rpt'!FL13+'PADD2 mthly rpt'!FL13+'PADD3 mthly rpt'!FL13+'PADD4 mthly rpt'!FL13+'PADD5 mthly rpt'!FL13 -> 579760.2256 | FM13: ='PADD1 mthly rpt'!FM13+'PADD2 mthly rpt'!FM13+'PADD3 mthly rpt'!FM13+'PADD4 mthly rpt'!FM13+'PADD5 mthly rpt'!FM13 -> 579760.2256 | FN13: ='PADD1 mthly rpt'!FN13+'PADD2 mthly rpt'!FN13+'PADD3 mthly rpt'!FN13+'PADD4 mthly rpt'!FN13+'PADD5 mthly rpt'!FN13 -> 569573.4611 | FO13: ='PADD1 mthly rpt'!FO13+'PADD2 mthly rpt'!FO13+'PADD3 mthly rpt'!FO13+'PADD4 mthly rpt'!FO13+'PADD5 mthly rpt'!FO13 -> 569573.4611 | FP13: ='PADD1 mthly rpt'!FP13+'PADD2 mthly rpt'!FP13+'PADD3 mthly rpt'!FP13+'PADD4 mthly rpt'!FP13+'PADD5 mthly rpt'!FP13 -> 569573.4611 | FQ13: ='PADD1 mthly rpt'!FQ13+'PADD2 mthly rpt'!FQ13+'PADD3 mthly rpt'!FQ13+'PADD4 mthly rpt'!FQ13+'PADD5 mthly rpt'!FQ13 -> 569573.4611 | FR13: ='PADD1 mthly rpt'!FR13+'PADD2 mthly rpt'!FR13+'PADD3 mthly rpt'!FR13+'PADD4 mthly rpt'!FR13+'PADD5 mthly rpt'!FR13 -> 569573.4611 | FS13: ='PADD1 mthly rpt'!FS13+'PADD2 mthly rpt'!FS13+'PADD3 mthly rpt'!FS13+'PADD4 mthly rpt'!FS13+'PADD5 mthly rpt'!FS13 -> 569573.4611 | FT13: ='PADD1 mthly rpt'!FT13+'PADD2 mthly rpt'!FT13+'PADD3 mthly rpt'!FT13+'PADD4 mthly rpt'!FT13+'PADD5 mthly rpt'!FT13 -> 569573.4611 | FU13: ='PADD1 mthly rpt'!FU13+'PADD2 mthly rpt'!FU13+'PADD3 mthly rpt'!FU13+'PADD4 mthly rpt'!FU13+'PADD5 mthly rpt'!FU13 -> 569573.4611 | FV13: ='PADD1 mthly rpt'!FV13+'PADD2 mthly rpt'!FV13+'PADD3 mthly rpt'!FV13+'PADD4 mthly rpt'!FV13+'PADD5 mthly rpt'!FV13 -> 569573.4611 | FW13: ='PADD1 mthly rpt'!FW13+'PADD2 mthly rpt'!FW13+'PADD3 mthly rpt'!FW13+'PADD4 mthly rpt'!FW13+'PADD5 mthly rpt'!FW13 -> 569573.4611 | FX13: ='PADD1 mthly rpt'!FX13+'PADD2 mthly rpt'!FX13+'PADD3 mthly rpt'!FX13+'PADD4 mthly rpt'!FX13+'PADD5 mthly rpt'!FX13 -> 569573.4611 | FY13: ='PADD1 mthly rpt'!FY13+'PADD2 mthly rpt'!FY13+'PADD3 mthly rpt'!FY13+'PADD4 mthly rpt'!FY13+'PADD5 mthly rpt'!FY13 -> 569573.4611 | FZ13: ='PADD1 mthly rpt'!FZ13+'PADD2 mthly rpt'!FZ13+'PADD3 mthly rpt'!FZ13+'PADD4 mthly rpt'!FZ13+'PADD5 mthly rpt'!FZ13 -> 568150.3876 | GA13: ='PADD1 mthly rpt'!GA13+'PADD2 mthly rpt'!GA13+'PADD3 mthly rpt'!GA13+'PADD4 mthly rpt'!GA13+'PADD5 mthly rpt'!GA13 -> 568150.3876 | GB13: ='PADD1 mthly rpt'!GB13+'PADD2 mthly rpt'!GB13+'PADD3 mthly rpt'!GB13+'PADD4 mthly rpt'!GB13+'PADD5 mthly rpt'!GB13 -> 568150.3876 | GC13: ='PADD1 mthly rpt'!GC13+'PADD2 mthly rpt'!GC13+'PADD3 mthly rpt'!GC13+'PADD4 mthly rpt'!GC13+'PADD5 mthly rpt'!GC13 -> 568150.3876 | GD13: ='PADD1 mthly rpt'!GD13+'PADD2 mthly rpt'!GD13+'PADD3 mthly rpt'!GD13+'PADD4 mthly rpt'!GD13+'PADD5 mthly rpt'!GD13 -> 568150.3876 | GE13: ='PADD1 mthly rpt'!GE13+'PADD2 mthly rpt'!GE13+'PADD3 mthly rpt'!GE13+'PADD4 mthly rpt'!GE13+'PADD5 mthly rpt'!GE13 -> 568150.3876 | GF13: ='PADD1 mthly rpt'!GF13+'PADD2 mthly rpt'!GF13+'PADD3 mthly rpt'!GF13+'PADD4 mthly rpt'!GF13+'PADD5 mthly rpt'!GF13 -> 568150.3876 | GG13: ='PADD1 mthly rpt'!GG13+'PADD2 mthly rpt'!GG13+'PADD3 mthly rpt'!GG13+'PADD4 mthly rpt'!GG13+'PADD5 mthly rpt'!GG13 -> 568150.3876 | GH13: ='PADD1 mthly rpt'!GH13+'PADD2 mthly rpt'!GH13+'PADD3 mthly rpt'!GH13+'PADD4 mthly rpt'!GH13+'PADD5 mthly rpt'!GH13 -> 568150.3876 | GI13: ='PADD1 mthly rpt'!GI13+'PADD2 mthly rpt'!GI13+'PADD3 mthly rpt'!GI13+'PADD4 mthly rpt'!GI13+'PADD5 mthly rpt'!GI13 -> 568150.3876 | GJ13: ='PADD1 mthly rpt'!GJ13+'PADD2 mthly rpt'!GJ13+'PADD3 mthly rpt'!GJ13+'PADD4 mthly rpt'!GJ13+'PADD5 mthly rpt'!GJ13 -> 632137.8232 | GK13: ='PADD1 mthly rpt'!GK13+'PADD2 mthly rpt'!GK13+'PADD3 mthly rpt'!GK13+'PADD4 mthly rpt'!GK13+'PADD5 mthly rpt'!GK13 -> 646268.757 | GL13: ='PADD1 mthly rpt'!GL13+'PADD2 mthly rpt'!GL13+'PADD3 mthly rpt'!GL13+'PADD4 mthly rpt'!GL13+'PADD5 mthly rpt'!GL13 -> 656227.7321 | GM13: ='PADD1 mthly rpt'!GM13+'PADD2 mthly rpt'!GM13+'PADD3 mthly rpt'!GM13+'PADD4 mthly rpt'!GM13+'PADD5 mthly rpt'!GM13 -> 469511.2919 | GN13: ='PADD1 mthly rpt'!GN13+'PADD2 mthly rpt'!GN13+'PADD3 mthly rpt'!GN13+'PADD4 mthly rpt'!GN13+'PADD5 mthly rpt'!GN13 -> 503561.7677 | GO13: ='PADD1 mthly rpt'!GO13+'PADD2 mthly rpt'!GO13+'PADD3 mthly rpt'!GO13+'PADD4 mthly rpt'!GO13+'PADD5 mthly rpt'!GO13 -> 608111.3886 | GP13: ='PADD1 mthly rpt'!GP13+'PADD2 mthly rpt'!GP13+'PADD3 mthly rpt'!GP13+'PADD4 mthly rpt'!GP13+'PADD5 mthly rpt'!GP13 -> 606489.8923 | GQ13: ='PADD1 mthly rpt'!GQ13+'PADD2 mthly rpt'!GQ13+'PADD3 mthly rpt'!GQ13+'PADD4 mthly rpt'!GQ13+'PADD5 mthly rpt'!GQ13 -> 607007.6333 | GR13: ='PADD1 mthly rpt'!GR13+'PADD2 mthly rpt'!GR13+'PADD3 mthly rpt'!GR13+'PADD4 mthly rpt'!GR13+'PADD5 mthly rpt'!GR13 -> 618114.7005 | GS13: ='PADD1 mthly rpt'!GS13+'PADD2 mthly rpt'!GS13+'PADD3 mthly rpt'!GS13+'PADD4 mthly rpt'!GS13+'PADD5 mthly rpt'!GS13 -> 631199.02 | GT13: ='PADD1 mthly rpt'!GT13+'PADD2 mthly rpt'!GT13+'PADD3 mthly rpt'!GT13+'PADD4 mthly rpt'!GT13+'PADD5 mthly rpt'!GT13 -> 623526.1928 | GU13: ='PADD1 mthly rpt'!GU13+'PADD2 mthly rpt'!GU13+'PADD3 mthly rpt'!GU13+'PADD4 mthly rpt'!GU13+'PADD5 mthly rpt'!GU13 -> 633918.2884 | GV13: ='PADD1 mthly rpt'!GV13+'PADD2 mthly rpt'!GV13+'PADD3 mthly rpt'!GV13+'PADD4 mthly rpt'!GV13+'PADD5 mthly rpt'!GV13 -> 632707.1932 | GW13: ='PADD1 mthly rpt'!GW13+'PADD2 mthly rpt'!GW13+'PADD3 mthly rpt'!GW13+'PADD4 mthly rpt'!GW13+'PADD5 mthly rpt'!GW13 -> 634534.6244 | GX13: ='PADD1 mthly rpt'!GX13+'PADD2 mthly rpt'!GX13+'PADD3 mthly rpt'!GX13+'PADD4 mthly rpt'!GX13+'PADD5 mthly rpt'!GX13 -> 633648.6817 | GY13: ='PADD1 mthly rpt'!GY13+'PADD2 mthly rpt'!GY13+'PADD3 mthly rpt'!GY13+'PADD4 mthly rpt'!GY13+'PADD5 mthly rpt'!GY13 -> 620172.9401 | GZ13: ='PADD1 mthly rpt'!GZ13+'PADD2 mthly rpt'!GZ13+'PADD3 mthly rpt'!GZ13+'PADD4 mthly rpt'!GZ13+'PADD5 mthly rpt'!GZ13 -> 585887.6522 | HA13: ='PADD1 mthly rpt'!HA13+'PADD2 mthly rpt'!HA13+'PADD3 mthly rpt'!HA13+'PADD4 mthly rpt'!HA13+'PADD5 mthly rpt'!HA13 -> 594830.2239 | HB13: ='PADD1 mthly rpt'!HB13+'PADD2 mthly rpt'!HB13+'PADD3 mthly rpt'!HB13+'PADD4 mthly rpt'!HB13+'PADD5 mthly rpt'!HB13 -> 603720.7677 | HC13: ='PADD1 mthly rpt'!HC13+'PADD2 mthly rpt'!HC13+'PADD3 mthly rpt'!HC13+'PADD4 mthly rpt'!HC13+'PADD5 mthly rpt'!HC13 -> 643826.2116
A14: Farm | B14: ='PADD1 mthly rpt'!B14+'PADD2 mthly rpt'!B14+'PADD3 mthly rpt'!B14+'PADD4 mthly rpt'!B14+'PADD5 mthly rpt'!B14 -> 57265.94317 | C14: ='PADD1 mthly rpt'!C14+'PADD2 mthly rpt'!C14+'PADD3 mthly rpt'!C14+'PADD4 mthly rpt'!C14+'PADD5 mthly rpt'!C14 -> 43889.82365 | D14: ='PADD1 mthly rpt'!D14+'PADD2 mthly rpt'!D14+'PADD3 mthly rpt'!D14+'PADD4 mthly rpt'!D14+'PADD5 mthly rpt'!D14 -> 29992.55662 | E14: ='PADD1 mthly rpt'!E14+'PADD2 mthly rpt'!E14+'PADD3 mthly rpt'!E14+'PADD4 mthly rpt'!E14+'PADD5 mthly rpt'!E14 -> 30803.23053 | F14: ='PADD1 mthly rpt'!F14+'PADD2 mthly rpt'!F14+'PADD3 mthly rpt'!F14+'PADD4 mthly rpt'!F14+'PADD5 mthly rpt'!F14 -> 29992.55662 | G14: ='PADD1 mthly rpt'!G14+'PADD2 mthly rpt'!G14+'PADD3 mthly rpt'!G14+'PADD4 mthly rpt'!G14+'PADD5 mthly rpt'!G14 -> 30803.23053 | H14: ='PADD1 mthly rpt'!H14+'PADD2 mthly rpt'!H14+'PADD3 mthly rpt'!H14+'PADD4 mthly rpt'!H14+'PADD5 mthly rpt'!H14 -> 29992.55662 | I14: ='PADD1 mthly rpt'!I14+'PADD2 mthly rpt'!I14+'PADD3 mthly rpt'!I14+'PADD4 mthly rpt'!I14+'PADD5 mthly rpt'!I14 -> 57265.94317 | J14: ='PADD1 mthly rpt'!J14+'PADD2 mthly rpt'!J14+'PADD3 mthly rpt'!J14+'PADD4 mthly rpt'!J14+'PADD5 mthly rpt'!J14 -> 94209.51137 | K14: ='PADD1 mthly rpt'!K14+'PADD2 mthly rpt'!K14+'PADD3 mthly rpt'!K14+'PADD4 mthly rpt'!K14+'PADD5 mthly rpt'!K14 -> 145918.9258 | L14: ='PADD1 mthly rpt'!L14+'PADD2 mthly rpt'!L14+'PADD3 mthly rpt'!L14+'PADD4 mthly rpt'!L14+'PADD5 mthly rpt'!L14 -> 129415.9212 | M14: ='PADD1 mthly rpt'!M14+'PADD2 mthly rpt'!M14+'PADD3 mthly rpt'!M14+'PADD4 mthly rpt'!M14+'PADD5 mthly rpt'!M14 -> 87955.7412 | N14: ='PADD1 mthly rpt'!N14+'PADD2 mthly rpt'!N14+'PADD3 mthly rpt'!N14+'PADD4 mthly rpt'!N14+'PADD5 mthly rpt'!N14 -> 55399.00774 | O14: ='PADD1 mthly rpt'!O14+'PADD2 mthly rpt'!O14+'PADD3 mthly rpt'!O14+'PADD4 mthly rpt'!O14+'PADD5 mthly rpt'!O14 -> 42812.31503 | P14: ='PADD1 mthly rpt'!P14+'PADD2 mthly rpt'!P14+'PADD3 mthly rpt'!P14+'PADD4 mthly rpt'!P14+'PADD5 mthly rpt'!P14 -> 29735.23169 | Q14: ='PADD1 mthly rpt'!Q14+'PADD2 mthly rpt'!Q14+'PADD3 mthly rpt'!Q14+'PADD4 mthly rpt'!Q14+'PADD5 mthly rpt'!Q14 -> 30498.06155 | R14: ='PADD1 mthly rpt'!R14+'PADD2 mthly rpt'!R14+'PADD3 mthly rpt'!R14+'PADD4 mthly rpt'!R14+'PADD5 mthly rpt'!R14 -> 29735.23169 | S14: ='PADD1 mthly rpt'!S14+'PADD2 mthly rpt'!S14+'PADD3 mthly rpt'!S14+'PADD4 mthly rpt'!S14+'PADD5 mthly rpt'!S14 -> 30498.06155 | T14: ='PADD1 mthly rpt'!T14+'PADD2 mthly rpt'!T14+'PADD3 mthly rpt'!T14+'PADD4 mthly rpt'!T14+'PADD5 mthly rpt'!T14 -> 29735.23169 | U14: ='PADD1 mthly rpt'!U14+'PADD2 mthly rpt'!U14+'PADD3 mthly rpt'!U14+'PADD4 mthly rpt'!U14+'PADD5 mthly rpt'!U14 -> 55399.00774 | V14: ='PADD1 mthly rpt'!V14+'PADD2 mthly rpt'!V14+'PADD3 mthly rpt'!V14+'PADD4 mthly rpt'!V14+'PADD5 mthly rpt'!V14 -> 90162.25429 | W14: ='PADD1 mthly rpt'!W14+'PADD2 mthly rpt'!W14+'PADD3 mthly rpt'!W14+'PADD4 mthly rpt'!W14+'PADD5 mthly rpt'!W14 -> 138819.9019 | X14: ='PADD1 mthly rpt'!X14+'PADD2 mthly rpt'!X14+'PADD3 mthly rpt'!X14+'PADD4 mthly rpt'!X14+'PADD5 mthly rpt'!X14 -> 123290.8654 | Y14: ='PADD1 mthly rpt'!Y14+'PADD2 mthly rpt'!Y14+'PADD3 mthly rpt'!Y14+'PADD4 mthly rpt'!Y14+'PADD5 mthly rpt'!Y14 -> 84277.56679 | Z14: ='PADD1 mthly rpt'!Z14+'PADD2 mthly rpt'!Z14+'PADD3 mthly rpt'!Z14+'PADD4 mthly rpt'!Z14+'PADD5 mthly rpt'!Z14 -> 58892.58883 | AA14: ='PADD1 mthly rpt'!AA14+'PADD2 mthly rpt'!AA14+'PADD3 mthly rpt'!AA14+'PADD4 mthly rpt'!AA14+'PADD5 mthly rpt'!AA14 -> 45522.60638 | AB14: ='PADD1 mthly rpt'!AB14+'PADD2 mthly rpt'!AB14+'PADD3 mthly rpt'!AB14+'PADD4 mthly rpt'!AB14+'PADD5 mthly rpt'!AB14 -> 31631.71552 | AC14: ='PADD1 mthly rpt'!AC14+'PADD2 mthly rpt'!AC14+'PADD3 mthly rpt'!AC14+'PADD4 mthly rpt'!AC14+'PADD5 mthly rpt'!AC14 -> 32442.01749 | AD14: ='PADD1 mthly rpt'!AD14+'PADD2 mthly rpt'!AD14+'PADD3 mthly rpt'!AD14+'PADD4 mthly rpt'!AD14+'PADD5 mthly rpt'!AD14 -> 31631.71552 | AE14: ='PADD1 mthly rpt'!AE14+'PADD2 mthly rpt'!AE14+'PADD3 mthly rpt'!AE14+'PADD4 mthly rpt'!AE14+'PADD5 mthly rpt'!AE14 -> 32442.01749 | AF14: ='PADD1 mthly rpt'!AF14+'PADD2 mthly rpt'!AF14+'PADD3 mthly rpt'!AF14+'PADD4 mthly rpt'!AF14+'PADD5 mthly rpt'!AF14 -> 31631.71552 | AG14: ='PADD1 mthly rpt'!AG14+'PADD2 mthly rpt'!AG14+'PADD3 mthly rpt'!AG14+'PADD4 mthly rpt'!AG14+'PADD5 mthly rpt'!AG14 -> 58892.58883 | AH14: ='PADD1 mthly rpt'!AH14+'PADD2 mthly rpt'!AH14+'PADD3 mthly rpt'!AH14+'PADD4 mthly rpt'!AH14+'PADD5 mthly rpt'!AH14 -> 95819.20703 | AI14: ='PADD1 mthly rpt'!AI14+'PADD2 mthly rpt'!AI14+'PADD3 mthly rpt'!AI14+'PADD4 mthly rpt'!AI14+'PADD5 mthly rpt'!AI14 -> 147504.8968 | AJ14: ='PADD1 mthly rpt'!AJ14+'PADD2 mthly rpt'!AJ14+'PADD3 mthly rpt'!AJ14+'PADD4 mthly rpt'!AJ14+'PADD5 mthly rpt'!AJ14 -> 131009.4639 | AK14: ='PADD1 mthly rpt'!AK14+'PADD2 mthly rpt'!AK14+'PADD3 mthly rpt'!AK14+'PADD4 mthly rpt'!AK14+'PADD5 mthly rpt'!AK14 -> 89568.30615 | AL14: ='PADD1 mthly rpt'!AL14+'PADD2 mthly rpt'!AL14+'PADD3 mthly rpt'!AL14+'PADD4 mthly rpt'!AL14+'PADD5 mthly rpt'!AL14 -> 62403.51761 | AM14: ='PADD1 mthly rpt'!AM14+'PADD2 mthly rpt'!AM14+'PADD3 mthly rpt'!AM14+'PADD4 mthly rpt'!AM14+'PADD5 mthly rpt'!AM14 -> 46579.43677 | AN14: ='PADD1 mthly rpt'!AN14+'PADD2 mthly rpt'!AN14+'PADD3 mthly rpt'!AN14+'PADD4 mthly rpt'!AN14+'PADD5 mthly rpt'!AN14 -> 32998.13904 | AO14: ='PADD1 mthly rpt'!AO14+'PADD2 mthly rpt'!AO14+'PADD3 mthly rpt'!AO14+'PADD4 mthly rpt'!AO14+'PADD5 mthly rpt'!AO14 -> 33870.33247 | AP14: ='PADD1 mthly rpt'!AP14+'PADD2 mthly rpt'!AP14+'PADD3 mthly rpt'!AP14+'PADD4 mthly rpt'!AP14+'PADD5 mthly rpt'!AP14 -> 32998.13904 | AQ14: ='PADD1 mthly rpt'!AQ14+'PADD2 mthly rpt'!AQ14+'PADD3 mthly rpt'!AQ14+'PADD4 mthly rpt'!AQ14+'PADD5 mthly rpt'!AQ14 -> 33870.33247 | AR14: ='PADD1 mthly rpt'!AR14+'PADD2 mthly rpt'!AR14+'PADD3 mthly rpt'!AR14+'PADD4 mthly rpt'!AR14+'PADD5 mthly rpt'!AR14 -> 32998.13904 | AS14: ='PADD1 mthly rpt'!AS14+'PADD2 mthly rpt'!AS14+'PADD3 mthly rpt'!AS14+'PADD4 mthly rpt'!AS14+'PADD5 mthly rpt'!AS14 -> 62403.51761 | AT14: ='PADD1 mthly rpt'!AT14+'PADD2 mthly rpt'!AT14+'PADD3 mthly rpt'!AT14+'PADD4 mthly rpt'!AT14+'PADD5 mthly rpt'!AT14 -> 102275.2174 | AU14: ='PADD1 mthly rpt'!AU14+'PADD2 mthly rpt'!AU14+'PADD3 mthly rpt'!AU14+'PADD4 mthly rpt'!AU14+'PADD5 mthly rpt'!AU14 -> 158033.2975 | AV14: ='PADD1 mthly rpt'!AV14+'PADD2 mthly rpt'!AV14+'PADD3 mthly rpt'!AV14+'PADD4 mthly rpt'!AV14+'PADD5 mthly rpt'!AV14 -> 140277.9312 | AW14: ='PADD1 mthly rpt'!AW14+'PADD2 mthly rpt'!AW14+'PADD3 mthly rpt'!AW14+'PADD4 mthly rpt'!AW14+'PADD5 mthly rpt'!AW14 -> 95546.86803 | AX14: ='PADD1 mthly rpt'!AX14+'PADD2 mthly rpt'!AX14+'PADD3 mthly rpt'!AX14+'PADD4 mthly rpt'!AX14+'PADD5 mthly rpt'!AX14 -> 67714.86232 | AY14: ='PADD1 mthly rpt'!AY14+'PADD2 mthly rpt'!AY14+'PADD3 mthly rpt'!AY14+'PADD4 mthly rpt'!AY14+'PADD5 mthly rpt'!AY14 -> 51393.72029 | AZ14: ='PADD1 mthly rpt'!AZ14+'PADD2 mthly rpt'!AZ14+'PADD3 mthly rpt'!AZ14+'PADD4 mthly rpt'!AZ14+'PADD5 mthly rpt'!AZ14 -> 34489.68032 | BA14: ='PADD1 mthly rpt'!BA14+'PADD2 mthly rpt'!BA14+'PADD3 mthly rpt'!BA14+'PADD4 mthly rpt'!BA14+'PADD5 mthly rpt'!BA14 -> 35436.88946 | BB14: ='PADD1 mthly rpt'!BB14+'PADD2 mthly rpt'!BB14+'PADD3 mthly rpt'!BB14+'PADD4 mthly rpt'!BB14+'PADD5 mthly rpt'!BB14 -> 34489.68032 | BC14: ='PADD1 mthly rpt'!BC14+'PADD2 mthly rpt'!BC14+'PADD3 mthly rpt'!BC14+'PADD4 mthly rpt'!BC14+'PADD5 mthly rpt'!BC14 -> 35436.88946 | BD14: ='PADD1 mthly rpt'!BD14+'PADD2 mthly rpt'!BD14+'PADD3 mthly rpt'!BD14+'PADD4 mthly rpt'!BD14+'PADD5 mthly rpt'!BD14 -> 34489.68032 | BE14: ='PADD1 mthly rpt'!BE14+'PADD2 mthly rpt'!BE14+'PADD3 mthly rpt'!BE14+'PADD4 mthly rpt'!BE14+'PADD5 mthly rpt'!BE14 -> 71795.14783 | BF14: ='PADD1 mthly rpt'!BF14+'PADD2 mthly rpt'!BF14+'PADD3 mthly rpt'!BF14+'PADD4 mthly rpt'!BF14+'PADD5 mthly rpt'!BF14 -> 112670.8652 | BG14: ='PADD1 mthly rpt'!BG14+'PADD2 mthly rpt'!BG14+'PADD3 mthly rpt'!BG14+'PADD4 mthly rpt'!BG14+'PADD5 mthly rpt'!BG14 -> 167536.1328 | BH14: ='PADD1 mthly rpt'!BH14+'PADD2 mthly rpt'!BH14+'PADD3 mthly rpt'!BH14+'PADD4 mthly rpt'!BH14+'PADD5 mthly rpt'!BH14 -> 188156.1471 | BI14: ='PADD1 mthly rpt'!BI14+'PADD2 mthly rpt'!BI14+'PADD3 mthly rpt'!BI14+'PADD4 mthly rpt'!BI14+'PADD5 mthly rpt'!BI14 -> 105093.1921 | BJ14: ='PADD1 mthly rpt'!BJ14+'PADD2 mthly rpt'!BJ14+'PADD3 mthly rpt'!BJ14+'PADD4 mthly rpt'!BJ14+'PADD5 mthly rpt'!BJ14 -> 56693.58516 | BK14: ='PADD1 mthly rpt'!BK14+'PADD2 mthly rpt'!BK14+'PADD3 mthly rpt'!BK14+'PADD4 mthly rpt'!BK14+'PADD5 mthly rpt'!BK14 -> 38378.64065 | BL14: ='PADD1 mthly rpt'!BL14+'PADD2 mthly rpt'!BL14+'PADD3 mthly rpt'!BL14+'PADD4 mthly rpt'!BL14+'PADD5 mthly rpt'!BL14 -> 26289.7396 | BM14: ='PADD1 mthly rpt'!BM14+'PADD2 mthly rpt'!BM14+'PADD3 mthly rpt'!BM14+'PADD4 mthly rpt'!BM14+'PADD5 mthly rpt'!BM14 -> 27016.11133 | BN14: ='PADD1 mthly rpt'!BN14+'PADD2 mthly rpt'!BN14+'PADD3 mthly rpt'!BN14+'PADD4 mthly rpt'!BN14+'PADD5 mthly rpt'!BN14 -> 26289.7396 | BO14: ='PADD1 mthly rpt'!BO14+'PADD2 mthly rpt'!BO14+'PADD3 mthly rpt'!BO14+'PADD4 mthly rpt'!BO14+'PADD5 mthly rpt'!BO14 -> 27016.11133 | BP14: ='PADD1 mthly rpt'!BP14+'PADD2 mthly rpt'!BP14+'PADD3 mthly rpt'!BP14+'PADD4 mthly rpt'!BP14+'PADD5 mthly rpt'!BP14 -> 26289.7396 | BQ14: ='PADD1 mthly rpt'!BQ14+'PADD2 mthly rpt'!BQ14+'PADD3 mthly rpt'!BQ14+'PADD4 mthly rpt'!BQ14+'PADD5 mthly rpt'!BQ14 -> 50000.58844 | BR14: ='PADD1 mthly rpt'!BR14+'PADD2 mthly rpt'!BR14+'PADD3 mthly rpt'!BR14+'PADD4 mthly rpt'!BR14+'PADD5 mthly rpt'!BR14 -> 108473.5133 | BS14: ='PADD1 mthly rpt'!BS14+'PADD2 mthly rpt'!BS14+'PADD3 mthly rpt'!BS14+'PADD4 mthly rpt'!BS14+'PADD5 mthly rpt'!BS14 -> 105619.91 | BT14: ='PADD1 mthly rpt'!BT14+'PADD2 mthly rpt'!BT14+'PADD3 mthly rpt'!BT14+'PADD4 mthly rpt'!BT14+'PADD5 mthly rpt'!BT14 -> 120821.8328 | BU14: ='PADD1 mthly rpt'!BU14+'PADD2 mthly rpt'!BU14+'PADD3 mthly rpt'!BU14+'PADD4 mthly rpt'!BU14+'PADD5 mthly rpt'!BU14 -> 76616.92423 | BV14: ='PADD1 mthly rpt'!BV14+'PADD2 mthly rpt'!BV14+'PADD3 mthly rpt'!BV14+'PADD4 mthly rpt'!BV14+'PADD5 mthly rpt'!BV14 -> 46960.65447 | BW14: ='PADD1 mthly rpt'!BW14+'PADD2 mthly rpt'!BW14+'PADD3 mthly rpt'!BW14+'PADD4 mthly rpt'!BW14+'PADD5 mthly rpt'!BW14 -> 36267.28324 | BX14: ='PADD1 mthly rpt'!BX14+'PADD2 mthly rpt'!BX14+'PADD3 mthly rpt'!BX14+'PADD4 mthly rpt'!BX14+'PADD5 mthly rpt'!BX14 -> 25157.28715 | BY14: ='PADD1 mthly rpt'!BY14+'PADD2 mthly rpt'!BY14+'PADD3 mthly rpt'!BY14+'PADD4 mthly rpt'!BY14+'PADD5 mthly rpt'!BY14 -> 25805.37025 | BZ14: ='PADD1 mthly rpt'!BZ14+'PADD2 mthly rpt'!BZ14+'PADD3 mthly rpt'!BZ14+'PADD4 mthly rpt'!BZ14+'PADD5 mthly rpt'!BZ14 -> 25157.28715 | CA14: ='PADD1 mthly rpt'!CA14+'PADD2 mthly rpt'!CA14+'PADD3 mthly rpt'!CA14+'PADD4 mthly rpt'!CA14+'PADD5 mthly rpt'!CA14 -> 25805.37025 | CB14: ='PADD1 mthly rpt'!CB14+'PADD2 mthly rpt'!CB14+'PADD3 mthly rpt'!CB14+'PADD4 mthly rpt'!CB14+'PADD5 mthly rpt'!CB14 -> 25157.28715 | CC14: ='PADD1 mthly rpt'!CC14+'PADD2 mthly rpt'!CC14+'PADD3 mthly rpt'!CC14+'PADD4 mthly rpt'!CC14+'PADD5 mthly rpt'!CC14 -> 46960.65447 | CD14: ='PADD1 mthly rpt'!CD14+'PADD2 mthly rpt'!CD14+'PADD3 mthly rpt'!CD14+'PADD4 mthly rpt'!CD14+'PADD5 mthly rpt'!CD14 -> 76494.7274 | CE14: ='PADD1 mthly rpt'!CE14+'PADD2 mthly rpt'!CE14+'PADD3 mthly rpt'!CE14+'PADD4 mthly rpt'!CE14+'PADD5 mthly rpt'!CE14 -> 117833.1712 | CF14: ='PADD1 mthly rpt'!CF14+'PADD2 mthly rpt'!CF14+'PADD3 mthly rpt'!CF14+'PADD4 mthly rpt'!CF14+'PADD5 mthly rpt'!CF14 -> 104640.0508 | CG14: ='PADD1 mthly rpt'!CG14+'PADD2 mthly rpt'!CG14+'PADD3 mthly rpt'!CG14+'PADD4 mthly rpt'!CG14+'PADD5 mthly rpt'!CG14 -> 71495.22916 | CH14: ='PADD1 mthly rpt'!CH14+'PADD2 mthly rpt'!CH14+'PADD3 mthly rpt'!CH14+'PADD4 mthly rpt'!CH14+'PADD5 mthly rpt'!CH14 -> 48158.51721 | CI14: ='PADD1 mthly rpt'!CI14+'PADD2 mthly rpt'!CI14+'PADD3 mthly rpt'!CI14+'PADD4 mthly rpt'!CI14+'PADD5 mthly rpt'!CI14 -> 36019.76829 | CJ14: ='PADD1 mthly rpt'!CJ14+'PADD2 mthly rpt'!CJ14+'PADD3 mthly rpt'!CJ14+'PADD4 mthly rpt'!CJ14+'PADD5 mthly rpt'!CJ14 -> 25601.47198 | CK14: ='PADD1 mthly rpt'!CK14+'PADD2 mthly rpt'!CK14+'PADD3 mthly rpt'!CK14+'PADD4 mthly rpt'!CK14+'PADD5 mthly rpt'!CK14 -> 26270.53688 | CL14: ='PADD1 mthly rpt'!CL14+'PADD2 mthly rpt'!CL14+'PADD3 mthly rpt'!CL14+'PADD4 mthly rpt'!CL14+'PADD5 mthly rpt'!CL14 -> 25601.47198 | CM14: ='PADD1 mthly rpt'!CM14+'PADD2 mthly rpt'!CM14+'PADD3 mthly rpt'!CM14+'PADD4 mthly rpt'!CM14+'PADD5 mthly rpt'!CM14 -> 26270.53688 | CN14: ='PADD1 mthly rpt'!CN14+'PADD2 mthly rpt'!CN14+'PADD3 mthly rpt'!CN14+'PADD4 mthly rpt'!CN14+'PADD5 mthly rpt'!CN14 -> 25601.47198 | CO14: ='PADD1 mthly rpt'!CO14+'PADD2 mthly rpt'!CO14+'PADD3 mthly rpt'!CO14+'PADD4 mthly rpt'!CO14+'PADD5 mthly rpt'!CO14 -> 48158.51721 | CP14: ='PADD1 mthly rpt'!CP14+'PADD2 mthly rpt'!CP14+'PADD3 mthly rpt'!CP14+'PADD4 mthly rpt'!CP14+'PADD5 mthly rpt'!CP14 -> 78744.34124 | CQ14: ='PADD1 mthly rpt'!CQ14+'PADD2 mthly rpt'!CQ14+'PADD3 mthly rpt'!CQ14+'PADD4 mthly rpt'!CQ14+'PADD5 mthly rpt'!CQ14 -> 121516.7045 | CR14: ='PADD1 mthly rpt'!CR14+'PADD2 mthly rpt'!CR14+'PADD3 mthly rpt'!CR14+'PADD4 mthly rpt'!CR14+'PADD5 mthly rpt'!CR14 -> 107896.4548 | CS14: ='PADD1 mthly rpt'!CS14+'PADD2 mthly rpt'!CS14+'PADD3 mthly rpt'!CS14+'PADD4 mthly rpt'!CS14+'PADD5 mthly rpt'!CS14 -> 73582.98344 | CT14: ='PADD1 mthly rpt'!CT14+'PADD2 mthly rpt'!CT14+'PADD3 mthly rpt'!CT14+'PADD4 mthly rpt'!CT14+'PADD5 mthly rpt'!CT14 -> 59966.07619 | CU14: ='PADD1 mthly rpt'!CU14+'PADD2 mthly rpt'!CU14+'PADD3 mthly rpt'!CU14+'PADD4 mthly rpt'!CU14+'PADD5 mthly rpt'!CU14 -> 46162.7835 | CV14: ='PADD1 mthly rpt'!CV14+'PADD2 mthly rpt'!CV14+'PADD3 mthly rpt'!CV14+'PADD4 mthly rpt'!CV14+'PADD5 mthly rpt'!CV14 -> 31802.40724 | CW14: ='PADD1 mthly rpt'!CW14+'PADD2 mthly rpt'!CW14+'PADD3 mthly rpt'!CW14+'PADD4 mthly rpt'!CW14+'PADD5 mthly rpt'!CW14 -> 32668.98167 | CX14: ='PADD1 mthly rpt'!CX14+'PADD2 mthly rpt'!CX14+'PADD3 mthly rpt'!CX14+'PADD4 mthly rpt'!CX14+'PADD5 mthly rpt'!CX14 -> 31802.40724 | CY14: ='PADD1 mthly rpt'!CY14+'PADD2 mthly rpt'!CY14+'PADD3 mthly rpt'!CY14+'PADD4 mthly rpt'!CY14+'PADD5 mthly rpt'!CY14 -> 32668.98167 | CZ14: ='PADD1 mthly rpt'!CZ14+'PADD2 mthly rpt'!CZ14+'PADD3 mthly rpt'!CZ14+'PADD4 mthly rpt'!CZ14+'PADD5 mthly rpt'!CZ14 -> 31802.40724 | DA14: ='PADD1 mthly rpt'!DA14+'PADD2 mthly rpt'!DA14+'PADD3 mthly rpt'!DA14+'PADD4 mthly rpt'!DA14+'PADD5 mthly rpt'!DA14 -> 59966.07619 | DB14: ='PADD1 mthly rpt'!DB14+'PADD2 mthly rpt'!DB14+'PADD3 mthly rpt'!DB14+'PADD4 mthly rpt'!DB14+'PADD5 mthly rpt'!DB14 -> 98033.4529 | DC14: ='PADD1 mthly rpt'!DC14+'PADD2 mthly rpt'!DC14+'PADD3 mthly rpt'!DC14+'PADD4 mthly rpt'!DC14+'PADD5 mthly rpt'!DC14 -> 151327.7803 | DD14: ='PADD1 mthly rpt'!DD14+'PADD2 mthly rpt'!DD14+'PADD3 mthly rpt'!DD14+'PADD4 mthly rpt'!DD14+'PADD5 mthly rpt'!DD14 -> 161045.7935 | DE14: ='PADD1 mthly rpt'!DE14+'PADD2 mthly rpt'!DE14+'PADD3 mthly rpt'!DE14+'PADD4 mthly rpt'!DE14+'PADD5 mthly rpt'!DE14 -> 91596.04286 | DF14: ='PADD1 mthly rpt'!DF14+'PADD2 mthly rpt'!DF14+'PADD3 mthly rpt'!DF14+'PADD4 mthly rpt'!DF14+'PADD5 mthly rpt'!DF14 -> 63845.55319 | DG14: ='PADD1 mthly rpt'!DG14+'PADD2 mthly rpt'!DG14+'PADD3 mthly rpt'!DG14+'PADD4 mthly rpt'!DG14+'PADD5 mthly rpt'!DG14 -> 49053.09228 | DH14: ='PADD1 mthly rpt'!DH14+'PADD2 mthly rpt'!DH14+'PADD3 mthly rpt'!DH14+'PADD4 mthly rpt'!DH14+'PADD5 mthly rpt'!DH14 -> 33746.11098 | DI14: ='PADD1 mthly rpt'!DI14+'PADD2 mthly rpt'!DI14+'PADD3 mthly rpt'!DI14+'PADD4 mthly rpt'!DI14+'PADD5 mthly rpt'!DI14 -> 34646.52164 | DJ14: ='PADD1 mthly rpt'!DJ14+'PADD2 mthly rpt'!DJ14+'PADD3 mthly rpt'!DJ14+'PADD4 mthly rpt'!DJ14+'PADD5 mthly rpt'!DJ14 -> 33746.11098 | DK14: ='PADD1 mthly rpt'!DK14+'PADD2 mthly rpt'!DK14+'PADD3 mthly rpt'!DK14+'PADD4 mthly rpt'!DK14+'PADD5 mthly rpt'!DK14 -> 34646.52164 | DL14: ='PADD1 mthly rpt'!DL14+'PADD2 mthly rpt'!DL14+'PADD3 mthly rpt'!DL14+'PADD4 mthly rpt'!DL14+'PADD5 mthly rpt'!DL14 -> 33746.11098 | DM14: ='PADD1 mthly rpt'!DM14+'PADD2 mthly rpt'!DM14+'PADD3 mthly rpt'!DM14+'PADD4 mthly rpt'!DM14+'PADD5 mthly rpt'!DM14 -> 63845.55319 | DN14: ='PADD1 mthly rpt'!DN14+'PADD2 mthly rpt'!DN14+'PADD3 mthly rpt'!DN14+'PADD4 mthly rpt'!DN14+'PADD5 mthly rpt'!DN14 -> 110088.0723 | DO14: ='PADD1 mthly rpt'!DO14+'PADD2 mthly rpt'!DO14+'PADD3 mthly rpt'!DO14+'PADD4 mthly rpt'!DO14+'PADD5 mthly rpt'!DO14 -> 153243.4692 | DP14: ='PADD1 mthly rpt'!DP14+'PADD2 mthly rpt'!DP14+'PADD3 mthly rpt'!DP14+'PADD4 mthly rpt'!DP14+'PADD5 mthly rpt'!DP14 -> 151185.3877 | DQ14: ='PADD1 mthly rpt'!DQ14+'PADD2 mthly rpt'!DQ14+'PADD3 mthly rpt'!DQ14+'PADD4 mthly rpt'!DQ14+'PADD5 mthly rpt'!DQ14 -> 97739.58321 | DR14: ='PADD1 mthly rpt'!DR14+'PADD2 mthly rpt'!DR14+'PADD3 mthly rpt'!DR14+'PADD4 mthly rpt'!DR14+'PADD5 mthly rpt'!DR14 -> 48877.47158 | DS14: ='PADD1 mthly rpt'!DS14+'PADD2 mthly rpt'!DS14+'PADD3 mthly rpt'!DS14+'PADD4 mthly rpt'!DS14+'PADD5 mthly rpt'!DS14 -> 37908.93223 | DT14: ='PADD1 mthly rpt'!DT14+'PADD2 mthly rpt'!DT14+'PADD3 mthly rpt'!DT14+'PADD4 mthly rpt'!DT14+'PADD5 mthly rpt'!DT14 -> 26513.04719 | DU14: ='PADD1 mthly rpt'!DU14+'PADD2 mthly rpt'!DU14+'PADD3 mthly rpt'!DU14+'PADD4 mthly rpt'!DU14+'PADD5 mthly rpt'!DU14 -> 27177.80715 | DV14: ='PADD1 mthly rpt'!DV14+'PADD2 mthly rpt'!DV14+'PADD3 mthly rpt'!DV14+'PADD4 mthly rpt'!DV14+'PADD5 mthly rpt'!DV14 -> 26513.04719 | DW14: ='PADD1 mthly rpt'!DW14+'PADD2 mthly rpt'!DW14+'PADD3 mthly rpt'!DW14+'PADD4 mthly rpt'!DW14+'PADD5 mthly rpt'!DW14 -> 27177.80715 | DX14: ='PADD1 mthly rpt'!DX14+'PADD2 mthly rpt'!DX14+'PADD3 mthly rpt'!DX14+'PADD4 mthly rpt'!DX14+'PADD5 mthly rpt'!DX14 -> 26513.04719 | DY14: ='PADD1 mthly rpt'!DY14+'PADD2 mthly rpt'!DY14+'PADD3 mthly rpt'!DY14+'PADD4 mthly rpt'!DY14+'PADD5 mthly rpt'!DY14 -> 48877.47158 | DZ14: ='PADD1 mthly rpt'!DZ14+'PADD2 mthly rpt'!DZ14+'PADD3 mthly rpt'!DZ14+'PADD4 mthly rpt'!DZ14+'PADD5 mthly rpt'!DZ14 -> 79171.53265 | EA14: ='PADD1 mthly rpt'!EA14+'PADD2 mthly rpt'!EA14+'PADD3 mthly rpt'!EA14+'PADD4 mthly rpt'!EA14+'PADD5 mthly rpt'!EA14 -> 120573.7216 | EB14: ='PADD1 mthly rpt'!EB14+'PADD2 mthly rpt'!EB14+'PADD3 mthly rpt'!EB14+'PADD4 mthly rpt'!EB14+'PADD5 mthly rpt'!EB14 -> 107541.1081 | EC14: ='PADD1 mthly rpt'!EC14+'PADD2 mthly rpt'!EC14+'PADD3 mthly rpt'!EC14+'PADD4 mthly rpt'!EC14+'PADD5 mthly rpt'!EC14 -> 74043.38438 | ED14: ='PADD1 mthly rpt'!ED14+'PADD2 mthly rpt'!ED14+'PADD3 mthly rpt'!ED14+'PADD4 mthly rpt'!ED14+'PADD5 mthly rpt'!ED14 -> 62966.87446 | EE14: ='PADD1 mthly rpt'!EE14+'PADD2 mthly rpt'!EE14+'PADD3 mthly rpt'!EE14+'PADD4 mthly rpt'!EE14+'PADD5 mthly rpt'!EE14 -> 48312.43243 | EF14: ='PADD1 mthly rpt'!EF14+'PADD2 mthly rpt'!EF14+'PADD3 mthly rpt'!EF14+'PADD4 mthly rpt'!EF14+'PADD5 mthly rpt'!EF14 -> 33778.10761 | EG14: ='PADD1 mthly rpt'!EG14+'PADD2 mthly rpt'!EG14+'PADD3 mthly rpt'!EG14+'PADD4 mthly rpt'!EG14+'PADD5 mthly rpt'!EG14 -> 33975.18611 | EH14: ='PADD1 mthly rpt'!EH14+'PADD2 mthly rpt'!EH14+'PADD3 mthly rpt'!EH14+'PADD4 mthly rpt'!EH14+'PADD5 mthly rpt'!EH14 -> 33778.10761 | EI14: ='PADD1 mthly rpt'!EI14+'PADD2 mthly rpt'!EI14+'PADD3 mthly rpt'!EI14+'PADD4 mthly rpt'!EI14+'PADD5 mthly rpt'!EI14 -> 34689.73856 | EJ14: ='PADD1 mthly rpt'!EJ14+'PADD2 mthly rpt'!EJ14+'PADD3 mthly rpt'!EJ14+'PADD4 mthly rpt'!EJ14+'PADD5 mthly rpt'!EJ14 -> 33680.64226 | EK14: ='PADD1 mthly rpt'!EK14+'PADD2 mthly rpt'!EK14+'PADD3 mthly rpt'!EK14+'PADD4 mthly rpt'!EK14+'PADD5 mthly rpt'!EK14 -> 64903.86626 | EL14: ='PADD1 mthly rpt'!EL14+'PADD2 mthly rpt'!EL14+'PADD3 mthly rpt'!EL14+'PADD4 mthly rpt'!EL14+'PADD5 mthly rpt'!EL14 -> 107197.745 | EM14: ='PADD1 mthly rpt'!EM14+'PADD2 mthly rpt'!EM14+'PADD3 mthly rpt'!EM14+'PADD4 mthly rpt'!EM14+'PADD5 mthly rpt'!EM14 -> 166395.9171 | EN14: ='PADD1 mthly rpt'!EN14+'PADD2 mthly rpt'!EN14+'PADD3 mthly rpt'!EN14+'PADD4 mthly rpt'!EN14+'PADD5 mthly rpt'!EN14 -> 144502.8835 | EO14: ='PADD1 mthly rpt'!EO14+'PADD2 mthly rpt'!EO14+'PADD3 mthly rpt'!EO14+'PADD4 mthly rpt'!EO14+'PADD5 mthly rpt'!EO14 -> 100038.2797 | EP14: ='PADD1 mthly rpt'!EP14+'PADD2 mthly rpt'!EP14+'PADD3 mthly rpt'!EP14+'PADD4 mthly rpt'!EP14+'PADD5 mthly rpt'!EP14 -> 61903.86626 | EQ14: ='PADD1 mthly rpt'!EQ14+'PADD2 mthly rpt'!EQ14+'PADD3 mthly rpt'!EQ14+'PADD4 mthly rpt'!EQ14+'PADD5 mthly rpt'!EQ14 -> 49790.13221 | ER14: ='PADD1 mthly rpt'!ER14+'PADD2 mthly rpt'!ER14+'PADD3 mthly rpt'!ER14+'PADD4 mthly rpt'!ER14+'PADD5 mthly rpt'!ER14 -> 33819.70012 | ES14: ='PADD1 mthly rpt'!ES14+'PADD2 mthly rpt'!ES14+'PADD3 mthly rpt'!ES14+'PADD4 mthly rpt'!ES14+'PADD5 mthly rpt'!ES14 -> 34752.50424 | ET14: ='PADD1 mthly rpt'!ET14+'PADD2 mthly rpt'!ET14+'PADD3 mthly rpt'!ET14+'PADD4 mthly rpt'!ET14+'PADD5 mthly rpt'!ET14 -> 33819.70012 | EU14: ='PADD1 mthly rpt'!EU14+'PADD2 mthly rpt'!EU14+'PADD3 mthly rpt'!EU14+'PADD4 mthly rpt'!EU14+'PADD5 mthly rpt'!EU14 -> 31866.1817 | EV14: ='PADD1 mthly rpt'!EV14+'PADD2 mthly rpt'!EV14+'PADD3 mthly rpt'!EV14+'PADD4 mthly rpt'!EV14+'PADD5 mthly rpt'!EV14 -> 30818.93629 | EW14: ='PADD1 mthly rpt'!EW14+'PADD2 mthly rpt'!EW14+'PADD3 mthly rpt'!EW14+'PADD4 mthly rpt'!EW14+'PADD5 mthly rpt'!EW14 -> 66051.26394 | EX14: ='PADD1 mthly rpt'!EX14+'PADD2 mthly rpt'!EX14+'PADD3 mthly rpt'!EX14+'PADD4 mthly rpt'!EX14+'PADD5 mthly rpt'!EX14 -> 113775.7332 | EY14: ='PADD1 mthly rpt'!EY14+'PADD2 mthly rpt'!EY14+'PADD3 mthly rpt'!EY14+'PADD4 mthly rpt'!EY14+'PADD5 mthly rpt'!EY14 -> 180575.0296 | EZ14: ='PADD1 mthly rpt'!EZ14+'PADD2 mthly rpt'!EZ14+'PADD3 mthly rpt'!EZ14+'PADD4 mthly rpt'!EZ14+'PADD5 mthly rpt'!EZ14 -> 159256.1052 | FA14: ='PADD1 mthly rpt'!FA14+'PADD2 mthly rpt'!FA14+'PADD3 mthly rpt'!FA14+'PADD4 mthly rpt'!FA14+'PADD5 mthly rpt'!FA14 -> 105696.983 | FB14: ='PADD1 mthly rpt'!FB14+'PADD2 mthly rpt'!FB14+'PADD3 mthly rpt'!FB14+'PADD4 mthly rpt'!FB14+'PADD5 mthly rpt'!FB14 -> 66687.36239 | FC14: ='PADD1 mthly rpt'!FC14+'PADD2 mthly rpt'!FC14+'PADD3 mthly rpt'!FC14+'PADD4 mthly rpt'!FC14+'PADD5 mthly rpt'!FC14 -> 49241.40462 | FD14: ='PADD1 mthly rpt'!FD14+'PADD2 mthly rpt'!FD14+'PADD3 mthly rpt'!FD14+'PADD4 mthly rpt'!FD14+'PADD5 mthly rpt'!FD14 -> 31115.73421 | FE14: ='PADD1 mthly rpt'!FE14+'PADD2 mthly rpt'!FE14+'PADD3 mthly rpt'!FE14+'PADD4 mthly rpt'!FE14+'PADD5 mthly rpt'!FE14 -> 32173.06498 | FF14: ='PADD1 mthly rpt'!FF14+'PADD2 mthly rpt'!FF14+'PADD3 mthly rpt'!FF14+'PADD4 mthly rpt'!FF14+'PADD5 mthly rpt'!FF14 -> 31115.73421 | FG14: ='PADD1 mthly rpt'!FG14+'PADD2 mthly rpt'!FG14+'PADD3 mthly rpt'!FG14+'PADD4 mthly rpt'!FG14+'PADD5 mthly rpt'!FG14 -> 32173.06498 | FH14: ='PADD1 mthly rpt'!FH14+'PADD2 mthly rpt'!FH14+'PADD3 mthly rpt'!FH14+'PADD4 mthly rpt'!FH14+'PADD5 mthly rpt'!FH14 -> 31115.73421 | FI14: ='PADD1 mthly rpt'!FI14+'PADD2 mthly rpt'!FI14+'PADD3 mthly rpt'!FI14+'PADD4 mthly rpt'!FI14+'PADD5 mthly rpt'!FI14 -> 66687.36239 | FJ14: ='PADD1 mthly rpt'!FJ14+'PADD2 mthly rpt'!FJ14+'PADD3 mthly rpt'!FJ14+'PADD4 mthly rpt'!FJ14+'PADD5 mthly rpt'!FJ14 -> 104871.4362 | FK14: ='PADD1 mthly rpt'!FK14+'PADD2 mthly rpt'!FK14+'PADD3 mthly rpt'!FK14+'PADD4 mthly rpt'!FK14+'PADD5 mthly rpt'!FK14 -> 182314.0349 | FL14: ='PADD1 mthly rpt'!FL14+'PADD2 mthly rpt'!FL14+'PADD3 mthly rpt'!FL14+'PADD4 mthly rpt'!FL14+'PADD5 mthly rpt'!FL14 -> 140789.8013 | FM14: ='PADD1 mthly rpt'!FM14+'PADD2 mthly rpt'!FM14+'PADD3 mthly rpt'!FM14+'PADD4 mthly rpt'!FM14+'PADD5 mthly rpt'!FM14 -> 106714.8846 | FN14: ='PADD1 mthly rpt'!FN14+'PADD2 mthly rpt'!FN14+'PADD3 mthly rpt'!FN14+'PADD4 mthly rpt'!FN14+'PADD5 mthly rpt'!FN14 -> 48830.93192 | FO14: ='PADD1 mthly rpt'!FO14+'PADD2 mthly rpt'!FO14+'PADD3 mthly rpt'!FO14+'PADD4 mthly rpt'!FO14+'PADD5 mthly rpt'!FO14 -> 43440.28042 | FP14: ='PADD1 mthly rpt'!FP14+'PADD2 mthly rpt'!FP14+'PADD3 mthly rpt'!FP14+'PADD4 mthly rpt'!FP14+'PADD5 mthly rpt'!FP14 -> 27449.99315 | FQ14: ='PADD1 mthly rpt'!FQ14+'PADD2 mthly rpt'!FQ14+'PADD3 mthly rpt'!FQ14+'PADD4 mthly rpt'!FQ14+'PADD5 mthly rpt'!FQ14 -> 28382.75991 | FR14: ='PADD1 mthly rpt'!FR14+'PADD2 mthly rpt'!FR14+'PADD3 mthly rpt'!FR14+'PADD4 mthly rpt'!FR14+'PADD5 mthly rpt'!FR14 -> 27449.99315 | FS14: ='PADD1 mthly rpt'!FS14+'PADD2 mthly rpt'!FS14+'PADD3 mthly rpt'!FS14+'PADD4 mthly rpt'!FS14+'PADD5 mthly rpt'!FS14 -> 28382.75991 | FT14: ='PADD1 mthly rpt'!FT14+'PADD2 mthly rpt'!FT14+'PADD3 mthly rpt'!FT14+'PADD4 mthly rpt'!FT14+'PADD5 mthly rpt'!FT14 -> 27449.99315 | FU14: ='PADD1 mthly rpt'!FU14+'PADD2 mthly rpt'!FU14+'PADD3 mthly rpt'!FU14+'PADD4 mthly rpt'!FU14+'PADD5 mthly rpt'!FU14 -> 58830.93192 | FV14: ='PADD1 mthly rpt'!FV14+'PADD2 mthly rpt'!FV14+'PADD3 mthly rpt'!FV14+'PADD4 mthly rpt'!FV14+'PADD5 mthly rpt'!FV14 -> 101338.4456 | FW14: ='PADD1 mthly rpt'!FW14+'PADD2 mthly rpt'!FW14+'PADD3 mthly rpt'!FW14+'PADD4 mthly rpt'!FW14+'PADD5 mthly rpt'!FW14 -> 160835.6395 | FX14: ='PADD1 mthly rpt'!FX14+'PADD2 mthly rpt'!FX14+'PADD3 mthly rpt'!FX14+'PADD4 mthly rpt'!FX14+'PADD5 mthly rpt'!FX14 -> 141847.1733 | FY14: ='PADD1 mthly rpt'!FY14+'PADD2 mthly rpt'!FY14+'PADD3 mthly rpt'!FY14+'PADD4 mthly rpt'!FY14+'PADD5 mthly rpt'!FY14 -> 94142.81631 | FZ14: ='PADD1 mthly rpt'!FZ14+'PADD2 mthly rpt'!FZ14+'PADD3 mthly rpt'!FZ14+'PADD4 mthly rpt'!FZ14+'PADD5 mthly rpt'!FZ14 -> 57654.31328 | GA14: ='PADD1 mthly rpt'!GA14+'PADD2 mthly rpt'!GA14+'PADD3 mthly rpt'!GA14+'PADD4 mthly rpt'!GA14+'PADD5 mthly rpt'!GA14 -> 42571.47481 | GB14: ='PADD1 mthly rpt'!GB14+'PADD2 mthly rpt'!GB14+'PADD3 mthly rpt'!GB14+'PADD4 mthly rpt'!GB14+'PADD5 mthly rpt'!GB14 -> 26900.99329 | GC14: ='PADD1 mthly rpt'!GC14+'PADD2 mthly rpt'!GC14+'PADD3 mthly rpt'!GC14+'PADD4 mthly rpt'!GC14+'PADD5 mthly rpt'!GC14 -> 27815.10471 | GD14: ='PADD1 mthly rpt'!GD14+'PADD2 mthly rpt'!GD14+'PADD3 mthly rpt'!GD14+'PADD4 mthly rpt'!GD14+'PADD5 mthly rpt'!GD14 -> 26900.99329 | GE14: ='PADD1 mthly rpt'!GE14+'PADD2 mthly rpt'!GE14+'PADD3 mthly rpt'!GE14+'PADD4 mthly rpt'!GE14+'PADD5 mthly rpt'!GE14 -> 27815.10471 | GF14: ='PADD1 mthly rpt'!GF14+'PADD2 mthly rpt'!GF14+'PADD3 mthly rpt'!GF14+'PADD4 mthly rpt'!GF14+'PADD5 mthly rpt'!GF14 -> 26900.99329 | GG14: ='PADD1 mthly rpt'!GG14+'PADD2 mthly rpt'!GG14+'PADD3 mthly rpt'!GG14+'PADD4 mthly rpt'!GG14+'PADD5 mthly rpt'!GG14 -> 57654.31328 | GH14: ='PADD1 mthly rpt'!GH14+'PADD2 mthly rpt'!GH14+'PADD3 mthly rpt'!GH14+'PADD4 mthly rpt'!GH14+'PADD5 mthly rpt'!GH14 -> 99311.67667 | GI14: ='PADD1 mthly rpt'!GI14+'PADD2 mthly rpt'!GI14+'PADD3 mthly rpt'!GI14+'PADD4 mthly rpt'!GI14+'PADD5 mthly rpt'!GI14 -> 157618.9267 | GJ14: ='PADD1 mthly rpt'!GJ14+'PADD2 mthly rpt'!GJ14+'PADD3 mthly rpt'!GJ14+'PADD4 mthly rpt'!GJ14+'PADD5 mthly rpt'!GJ14 -> 50014.55168 | GK14: ='PADD1 mthly rpt'!GK14+'PADD2 mthly rpt'!GK14+'PADD3 mthly rpt'!GK14+'PADD4 mthly rpt'!GK14+'PADD5 mthly rpt'!GK14 -> 83714.92552 | GL14: ='PADD1 mthly rpt'!GL14+'PADD2 mthly rpt'!GL14+'PADD3 mthly rpt'!GL14+'PADD4 mthly rpt'!GL14+'PADD5 mthly rpt'!GL14 -> 85897.90124 | GM14: ='PADD1 mthly rpt'!GM14+'PADD2 mthly rpt'!GM14+'PADD3 mthly rpt'!GM14+'PADD4 mthly rpt'!GM14+'PADD5 mthly rpt'!GM14 -> 92755.31931 | GN14: ='PADD1 mthly rpt'!GN14+'PADD2 mthly rpt'!GN14+'PADD3 mthly rpt'!GN14+'PADD4 mthly rpt'!GN14+'PADD5 mthly rpt'!GN14 -> 52291.9854 | GO14: ='PADD1 mthly rpt'!GO14+'PADD2 mthly rpt'!GO14+'PADD3 mthly rpt'!GO14+'PADD4 mthly rpt'!GO14+'PADD5 mthly rpt'!GO14 -> 37253.76036 | GP14: ='PADD1 mthly rpt'!GP14+'PADD2 mthly rpt'!GP14+'PADD3 mthly rpt'!GP14+'PADD4 mthly rpt'!GP14+'PADD5 mthly rpt'!GP14 -> 30290.0547 | GQ14: ='PADD1 mthly rpt'!GQ14+'PADD2 mthly rpt'!GQ14+'PADD3 mthly rpt'!GQ14+'PADD4 mthly rpt'!GQ14+'PADD5 mthly rpt'!GQ14 -> 4675.035281 | GR14: ='PADD1 mthly rpt'!GR14+'PADD2 mthly rpt'!GR14+'PADD3 mthly rpt'!GR14+'PADD4 mthly rpt'!GR14+'PADD5 mthly rpt'!GR14 -> 1286.21794 | GS14: ='PADD1 mthly rpt'!GS14+'PADD2 mthly rpt'!GS14+'PADD3 mthly rpt'!GS14+'PADD4 mthly rpt'!GS14+'PADD5 mthly rpt'!GS14 -> 96510.59865 | GT14: ='PADD1 mthly rpt'!GT14+'PADD2 mthly rpt'!GT14+'PADD3 mthly rpt'!GT14+'PADD4 mthly rpt'!GT14+'PADD5 mthly rpt'!GT14 -> 109740.5069 | GU14: ='PADD1 mthly rpt'!GU14+'PADD2 mthly rpt'!GU14+'PADD3 mthly rpt'!GU14+'PADD4 mthly rpt'!GU14+'PADD5 mthly rpt'!GU14 -> 129427.823 | GV14: ='PADD1 mthly rpt'!GV14+'PADD2 mthly rpt'!GV14+'PADD3 mthly rpt'!GV14+'PADD4 mthly rpt'!GV14+'PADD5 mthly rpt'!GV14 -> 59562.94876 | GW14: ='PADD1 mthly rpt'!GW14+'PADD2 mthly rpt'!GW14+'PADD3 mthly rpt'!GW14+'PADD4 mthly rpt'!GW14+'PADD5 mthly rpt'!GW14 -> 81623.5674 | GX14: ='PADD1 mthly rpt'!GX14+'PADD2 mthly rpt'!GX14+'PADD3 mthly rpt'!GX14+'PADD4 mthly rpt'!GX14+'PADD5 mthly rpt'!GX14 -> 108477.8481 | GY14: ='PADD1 mthly rpt'!GY14+'PADD2 mthly rpt'!GY14+'PADD3 mthly rpt'!GY14+'PADD4 mthly rpt'!GY14+'PADD5 mthly rpt'!GY14 -> 90865.15329 | GZ14: ='PADD1 mthly rpt'!GZ14+'PADD2 mthly rpt'!GZ14+'PADD3 mthly rpt'!GZ14+'PADD4 mthly rpt'!GZ14+'PADD5 mthly rpt'!GZ14 -> 72788.37585 | HA14: ='PADD1 mthly rpt'!HA14+'PADD2 mthly rpt'!HA14+'PADD3 mthly rpt'!HA14+'PADD4 mthly rpt'!HA14+'PADD5 mthly rpt'!HA14 -> 41408.91204 | HB14: ='PADD1 mthly rpt'!HB14+'PADD2 mthly rpt'!HB14+'PADD3 mthly rpt'!HB14+'PADD4 mthly rpt'!HB14+'PADD5 mthly rpt'!HB14 -> 19398.34903 | HC14: ='PADD1 mthly rpt'!HC14+'PADD2 mthly rpt'!HC14+'PADD3 mthly rpt'!HC14+'PADD4 mthly rpt'!HC14+'PADD5 mthly rpt'!HC14 -> 5257.445179
A15: Other | B15: ='PADD1 mthly rpt'!B15+'PADD2 mthly rpt'!B15+'PADD3 mthly rpt'!B15+'PADD4 mthly rpt'!B15+'PADD5 mthly rpt'!B15 -> 108845.2208 | C15: ='PADD1 mthly rpt'!C15+'PADD2 mthly rpt'!C15+'PADD3 mthly rpt'!C15+'PADD4 mthly rpt'!C15+'PADD5 mthly rpt'!C15 -> 104525.673 | D15: ='PADD1 mthly rpt'!D15+'PADD2 mthly rpt'!D15+'PADD3 mthly rpt'!D15+'PADD4 mthly rpt'!D15+'PADD5 mthly rpt'!D15 -> 100255.2111 | E15: ='PADD1 mthly rpt'!E15+'PADD2 mthly rpt'!E15+'PADD3 mthly rpt'!E15+'PADD4 mthly rpt'!E15+'PADD5 mthly rpt'!E15 -> 96230.17797 | F15: ='PADD1 mthly rpt'!F15+'PADD2 mthly rpt'!F15+'PADD3 mthly rpt'!F15+'PADD4 mthly rpt'!F15+'PADD5 mthly rpt'!F15 -> 92548.74525 | G15: ='PADD1 mthly rpt'!G15+'PADD2 mthly rpt'!G15+'PADD3 mthly rpt'!G15+'PADD4 mthly rpt'!G15+'PADD5 mthly rpt'!G15 -> 91714.28717 | H15: ='PADD1 mthly rpt'!H15+'PADD2 mthly rpt'!H15+'PADD3 mthly rpt'!H15+'PADD4 mthly rpt'!H15+'PADD5 mthly rpt'!H15 -> 91616.11563 | I15: ='PADD1 mthly rpt'!I15+'PADD2 mthly rpt'!I15+'PADD3 mthly rpt'!I15+'PADD4 mthly rpt'!I15+'PADD5 mthly rpt'!I15 -> 93972.23257 | J15: ='PADD1 mthly rpt'!J15+'PADD2 mthly rpt'!J15+'PADD3 mthly rpt'!J15+'PADD4 mthly rpt'!J15+'PADD5 mthly rpt'!J15 -> 96181.0922 | K15: ='PADD1 mthly rpt'!K15+'PADD2 mthly rpt'!K15+'PADD3 mthly rpt'!K15+'PADD4 mthly rpt'!K15+'PADD5 mthly rpt'!K15 -> 97113.72182 | L15: ='PADD1 mthly rpt'!L15+'PADD2 mthly rpt'!L15+'PADD3 mthly rpt'!L15+'PADD4 mthly rpt'!L15+'PADD5 mthly rpt'!L15 -> 100206.1253 | M15: ='PADD1 mthly rpt'!M15+'PADD2 mthly rpt'!M15+'PADD3 mthly rpt'!M15+'PADD4 mthly rpt'!M15+'PADD5 mthly rpt'!M15 -> 106636.3611 | N15: ='PADD1 mthly rpt'!N15+'PADD2 mthly rpt'!N15+'PADD3 mthly rpt'!N15+'PADD4 mthly rpt'!N15+'PADD5 mthly rpt'!N15 -> 111266.8412 | O15: ='PADD1 mthly rpt'!O15+'PADD2 mthly rpt'!O15+'PADD3 mthly rpt'!O15+'PADD4 mthly rpt'!O15+'PADD5 mthly rpt'!O15 -> 103739.2754 | P15: ='PADD1 mthly rpt'!P15+'PADD2 mthly rpt'!P15+'PADD3 mthly rpt'!P15+'PADD4 mthly rpt'!P15+'PADD5 mthly rpt'!P15 -> 96297.25005 | Q15: ='PADD1 mthly rpt'!Q15+'PADD2 mthly rpt'!Q15+'PADD3 mthly rpt'!Q15+'PADD4 mthly rpt'!Q15+'PADD5 mthly rpt'!Q15 -> 89282.92734 | R15: ='PADD1 mthly rpt'!R15+'PADD2 mthly rpt'!R15+'PADD3 mthly rpt'!R15+'PADD4 mthly rpt'!R15+'PADD5 mthly rpt'!R15 -> 82824.61801 | S15: ='PADD1 mthly rpt'!S15+'PADD2 mthly rpt'!S15+'PADD3 mthly rpt'!S15+'PADD4 mthly rpt'!S15+'PADD5 mthly rpt'!S15 -> 81455.96968 | T15: ='PADD1 mthly rpt'!T15+'PADD2 mthly rpt'!T15+'PADD3 mthly rpt'!T15+'PADD4 mthly rpt'!T15+'PADD5 mthly rpt'!T15 -> 81242.11838 | U15: ='PADD1 mthly rpt'!U15+'PADD2 mthly rpt'!U15+'PADD3 mthly rpt'!U15+'PADD4 mthly rpt'!U15+'PADD5 mthly rpt'!U15 -> 85390.83364 | V15: ='PADD1 mthly rpt'!V15+'PADD2 mthly rpt'!V15+'PADD3 mthly rpt'!V15+'PADD4 mthly rpt'!V15+'PADD5 mthly rpt'!V15 -> 89197.38682 | W15: ='PADD1 mthly rpt'!W15+'PADD2 mthly rpt'!W15+'PADD3 mthly rpt'!W15+'PADD4 mthly rpt'!W15+'PADD5 mthly rpt'!W15 -> 90779.88645 | X15: ='PADD1 mthly rpt'!X15+'PADD2 mthly rpt'!X15+'PADD3 mthly rpt'!X15+'PADD4 mthly rpt'!X15+'PADD5 mthly rpt'!X15 -> 96254.47979 | Y15: ='PADD1 mthly rpt'!Y15+'PADD2 mthly rpt'!Y15+'PADD3 mthly rpt'!Y15+'PADD4 mthly rpt'!Y15+'PADD5 mthly rpt'!Y15 -> 107417.5178 | Z15: ='PADD1 mthly rpt'!Z15+'PADD2 mthly rpt'!Z15+'PADD3 mthly rpt'!Z15+'PADD4 mthly rpt'!Z15+'PADD5 mthly rpt'!Z15 -> 116766.3134 | AA15: ='PADD1 mthly rpt'!AA15+'PADD2 mthly rpt'!AA15+'PADD3 mthly rpt'!AA15+'PADD4 mthly rpt'!AA15+'PADD5 mthly rpt'!AA15 -> 108768.4493 | AB15: ='PADD1 mthly rpt'!AB15+'PADD2 mthly rpt'!AB15+'PADD3 mthly rpt'!AB15+'PADD4 mthly rpt'!AB15+'PADD5 mthly rpt'!AB15 -> 100861.4701 | AC15: ='PADD1 mthly rpt'!AC15+'PADD2 mthly rpt'!AC15+'PADD3 mthly rpt'!AC15+'PADD4 mthly rpt'!AC15+'PADD5 mthly rpt'!AC15 -> 93408.91492 | AD15: ='PADD1 mthly rpt'!AD15+'PADD2 mthly rpt'!AD15+'PADD3 mthly rpt'!AD15+'PADD4 mthly rpt'!AD15+'PADD5 mthly rpt'!AD15 -> 86547.11109 | AE15: ='PADD1 mthly rpt'!AE15+'PADD2 mthly rpt'!AE15+'PADD3 mthly rpt'!AE15+'PADD4 mthly rpt'!AE15+'PADD5 mthly rpt'!AE15 -> 85092.95399 | AF15: ='PADD1 mthly rpt'!AF15+'PADD2 mthly rpt'!AF15+'PADD3 mthly rpt'!AF15+'PADD4 mthly rpt'!AF15+'PADD5 mthly rpt'!AF15 -> 84865.74194 | AG15: ='PADD1 mthly rpt'!AG15+'PADD2 mthly rpt'!AG15+'PADD3 mthly rpt'!AG15+'PADD4 mthly rpt'!AG15+'PADD5 mthly rpt'!AG15 -> 89273.65566 | AH15: ='PADD1 mthly rpt'!AH15+'PADD2 mthly rpt'!AH15+'PADD3 mthly rpt'!AH15+'PADD4 mthly rpt'!AH15+'PADD5 mthly rpt'!AH15 -> 93318.0301 | AI15: ='PADD1 mthly rpt'!AI15+'PADD2 mthly rpt'!AI15+'PADD3 mthly rpt'!AI15+'PADD4 mthly rpt'!AI15+'PADD5 mthly rpt'!AI15 -> 94999.39925 | AJ15: ='PADD1 mthly rpt'!AJ15+'PADD2 mthly rpt'!AJ15+'PADD3 mthly rpt'!AJ15+'PADD4 mthly rpt'!AJ15+'PADD5 mthly rpt'!AJ15 -> 100816.0277 | AK15: ='PADD1 mthly rpt'!AK15+'PADD2 mthly rpt'!AK15+'PADD3 mthly rpt'!AK15+'PADD4 mthly rpt'!AK15+'PADD5 mthly rpt'!AK15 -> 112676.4965 | AL15: ='PADD1 mthly rpt'!AL15+'PADD2 mthly rpt'!AL15+'PADD3 mthly rpt'!AL15+'PADD4 mthly rpt'!AL15+'PADD5 mthly rpt'!AL15 -> 109230.6087 | AM15: ='PADD1 mthly rpt'!AM15+'PADD2 mthly rpt'!AM15+'PADD3 mthly rpt'!AM15+'PADD4 mthly rpt'!AM15+'PADD5 mthly rpt'!AM15 -> 99360.41228 | AN15: ='PADD1 mthly rpt'!AN15+'PADD2 mthly rpt'!AN15+'PADD3 mthly rpt'!AN15+'PADD4 mthly rpt'!AN15+'PADD5 mthly rpt'!AN15 -> 93438.29445 | AO15: ='PADD1 mthly rpt'!AO15+'PADD2 mthly rpt'!AO15+'PADD3 mthly rpt'!AO15+'PADD4 mthly rpt'!AO15+'PADD5 mthly rpt'!AO15 -> 86080.51168 | AP15: ='PADD1 mthly rpt'!AP15+'PADD2 mthly rpt'!AP15+'PADD3 mthly rpt'!AP15+'PADD4 mthly rpt'!AP15+'PADD5 mthly rpt'!AP15 -> 79305.9678 | AQ15: ='PADD1 mthly rpt'!AQ15+'PADD2 mthly rpt'!AQ15+'PADD3 mthly rpt'!AQ15+'PADD4 mthly rpt'!AQ15+'PADD5 mthly rpt'!AQ15 -> 77870.30287 | AR15: ='PADD1 mthly rpt'!AR15+'PADD2 mthly rpt'!AR15+'PADD3 mthly rpt'!AR15+'PADD4 mthly rpt'!AR15+'PADD5 mthly rpt'!AR15 -> 77645.98022 | AS15: ='PADD1 mthly rpt'!AS15+'PADD2 mthly rpt'!AS15+'PADD3 mthly rpt'!AS15+'PADD4 mthly rpt'!AS15+'PADD5 mthly rpt'!AS15 -> 81997.83954 | AT15: ='PADD1 mthly rpt'!AT15+'PADD2 mthly rpt'!AT15+'PADD3 mthly rpt'!AT15+'PADD4 mthly rpt'!AT15+'PADD5 mthly rpt'!AT15 -> 85990.78263 | AU15: ='PADD1 mthly rpt'!AU15+'PADD2 mthly rpt'!AU15+'PADD3 mthly rpt'!AU15+'PADD4 mthly rpt'!AU15+'PADD5 mthly rpt'!AU15 -> 87695.63473 | AV15: ='PADD1 mthly rpt'!AV15+'PADD2 mthly rpt'!AV15+'PADD3 mthly rpt'!AV15+'PADD4 mthly rpt'!AV15+'PADD5 mthly rpt'!AV15 -> 93438.29445 | AW15: ='PADD1 mthly rpt'!AW15+'PADD2 mthly rpt'!AW15+'PADD3 mthly rpt'!AW15+'PADD4 mthly rpt'!AW15+'PADD5 mthly rpt'!AW15 -> 105147.9365 | AX15: ='PADD1 mthly rpt'!AX15+'PADD2 mthly rpt'!AX15+'PADD3 mthly rpt'!AX15+'PADD4 mthly rpt'!AX15+'PADD5 mthly rpt'!AX15 -> 94228.83405 | AY15: ='PADD1 mthly rpt'!AY15+'PADD2 mthly rpt'!AY15+'PADD3 mthly rpt'!AY15+'PADD4 mthly rpt'!AY15+'PADD5 mthly rpt'!AY15 -> 87256.1892 | AZ15: ='PADD1 mthly rpt'!AZ15+'PADD2 mthly rpt'!AZ15+'PADD3 mthly rpt'!AZ15+'PADD4 mthly rpt'!AZ15+'PADD5 mthly rpt'!AZ15 -> 80362.77895 | BA15: ='PADD1 mthly rpt'!BA15+'PADD2 mthly rpt'!BA15+'PADD3 mthly rpt'!BA15+'PADD4 mthly rpt'!BA15+'PADD5 mthly rpt'!BA15 -> 73865.5417 | BB15: ='PADD1 mthly rpt'!BB15+'PADD2 mthly rpt'!BB15+'PADD3 mthly rpt'!BB15+'PADD4 mthly rpt'!BB15+'PADD5 mthly rpt'!BB15 -> 67883.32935 | BC15: ='PADD1 mthly rpt'!BC15+'PADD2 mthly rpt'!BC15+'PADD3 mthly rpt'!BC15+'PADD4 mthly rpt'!BC15+'PADD5 mthly rpt'!BC15 -> 66615.57574 | BD15: ='PADD1 mthly rpt'!BD15+'PADD2 mthly rpt'!BD15+'PADD3 mthly rpt'!BD15+'PADD4 mthly rpt'!BD15+'PADD5 mthly rpt'!BD15 -> 66417.48924 | BE15: ='PADD1 mthly rpt'!BE15+'PADD2 mthly rpt'!BE15+'PADD3 mthly rpt'!BE15+'PADD4 mthly rpt'!BE15+'PADD5 mthly rpt'!BE15 -> 70260.36737 | BF15: ='PADD1 mthly rpt'!BF15+'PADD2 mthly rpt'!BF15+'PADD3 mthly rpt'!BF15+'PADD4 mthly rpt'!BF15+'PADD5 mthly rpt'!BF15 -> 73786.3071 | BG15: ='PADD1 mthly rpt'!BG15+'PADD2 mthly rpt'!BG15+'PADD3 mthly rpt'!BG15+'PADD4 mthly rpt'!BG15+'PADD5 mthly rpt'!BG15 -> 75252.14721 | BH15: ='PADD1 mthly rpt'!BH15+'PADD2 mthly rpt'!BH15+'PADD3 mthly rpt'!BH15+'PADD4 mthly rpt'!BH15+'PADD5 mthly rpt'!BH15 -> 80323.16165 | BI15: ='PADD1 mthly rpt'!BI15+'PADD2 mthly rpt'!BI15+'PADD3 mthly rpt'!BI15+'PADD4 mthly rpt'!BI15+'PADD5 mthly rpt'!BI15 -> 90663.27702 | BJ15: ='PADD1 mthly rpt'!BJ15+'PADD2 mthly rpt'!BJ15+'PADD3 mthly rpt'!BJ15+'PADD4 mthly rpt'!BJ15+'PADD5 mthly rpt'!BJ15 -> 96900.86625 | BK15: ='PADD1 mthly rpt'!BK15+'PADD2 mthly rpt'!BK15+'PADD3 mthly rpt'!BK15+'PADD4 mthly rpt'!BK15+'PADD5 mthly rpt'!BK15 -> 89682.29328 | BL15: ='PADD1 mthly rpt'!BL15+'PADD2 mthly rpt'!BL15+'PADD3 mthly rpt'!BL15+'PADD4 mthly rpt'!BL15+'PADD5 mthly rpt'!BL15 -> 82545.74955 | BM15: ='PADD1 mthly rpt'!BM15+'PADD2 mthly rpt'!BM15+'PADD3 mthly rpt'!BM15+'PADD4 mthly rpt'!BM15+'PADD5 mthly rpt'!BM15 -> 75819.35201 | BN15: ='PADD1 mthly rpt'!BN15+'PADD2 mthly rpt'!BN15+'PADD3 mthly rpt'!BN15+'PADD4 mthly rpt'!BN15+'PADD5 mthly rpt'!BN15 -> 69626.14452 | BO15: ='PADD1 mthly rpt'!BO15+'PADD2 mthly rpt'!BO15+'PADD3 mthly rpt'!BO15+'PADD4 mthly rpt'!BO15+'PADD5 mthly rpt'!BO15 -> 68313.6767 | BP15: ='PADD1 mthly rpt'!BP15+'PADD2 mthly rpt'!BP15+'PADD3 mthly rpt'!BP15+'PADD4 mthly rpt'!BP15+'PADD5 mthly rpt'!BP15 -> 68108.60361 | BQ15: ='PADD1 mthly rpt'!BQ15+'PADD2 mthly rpt'!BQ15+'PADD3 mthly rpt'!BQ15+'PADD4 mthly rpt'!BQ15+'PADD5 mthly rpt'!BQ15 -> 72087.02167 | BR15: ='PADD1 mthly rpt'!BR15+'PADD2 mthly rpt'!BR15+'PADD3 mthly rpt'!BR15+'PADD4 mthly rpt'!BR15+'PADD5 mthly rpt'!BR15 -> 75737.32277 | BS15: ='PADD1 mthly rpt'!BS15+'PADD2 mthly rpt'!BS15+'PADD3 mthly rpt'!BS15+'PADD4 mthly rpt'!BS15+'PADD5 mthly rpt'!BS15 -> 77254.86368 | BT15: ='PADD1 mthly rpt'!BT15+'PADD2 mthly rpt'!BT15+'PADD3 mthly rpt'!BT15+'PADD4 mthly rpt'!BT15+'PADD5 mthly rpt'!BT15 -> 82504.73493 | BU15: ='PADD1 mthly rpt'!BU15+'PADD2 mthly rpt'!BU15+'PADD3 mthly rpt'!BU15+'PADD4 mthly rpt'!BU15+'PADD5 mthly rpt'!BU15 -> 93209.55053 | BV15: ='PADD1 mthly rpt'!BV15+'PADD2 mthly rpt'!BV15+'PADD3 mthly rpt'!BV15+'PADD4 mthly rpt'!BV15+'PADD5 mthly rpt'!BV15 -> 109892.1147 | BW15: ='PADD1 mthly rpt'!BW15+'PADD2 mthly rpt'!BW15+'PADD3 mthly rpt'!BW15+'PADD4 mthly rpt'!BW15+'PADD5 mthly rpt'!BW15 -> 101401.5096 | BX15: ='PADD1 mthly rpt'!BX15+'PADD2 mthly rpt'!BX15+'PADD3 mthly rpt'!BX15+'PADD4 mthly rpt'!BX15+'PADD5 mthly rpt'!BX15 -> 93007.38865 | BY15: ='PADD1 mthly rpt'!BY15+'PADD2 mthly rpt'!BY15+'PADD3 mthly rpt'!BY15+'PADD4 mthly rpt'!BY15+'PADD5 mthly rpt'!BY15 -> 85095.68845 | BZ15: ='PADD1 mthly rpt'!BZ15+'PADD2 mthly rpt'!BZ15+'PADD3 mthly rpt'!BZ15+'PADD4 mthly rpt'!BZ15+'PADD5 mthly rpt'!BZ15 -> 77811.13523 | CA15: ='PADD1 mthly rpt'!CA15+'PADD2 mthly rpt'!CA15+'PADD3 mthly rpt'!CA15+'PADD4 mthly rpt'!CA15+'PADD5 mthly rpt'!CA15 -> 76267.38885 | CB15: ='PADD1 mthly rpt'!CB15+'PADD2 mthly rpt'!CB15+'PADD3 mthly rpt'!CB15+'PADD4 mthly rpt'!CB15+'PADD5 mthly rpt'!CB15 -> 76026.17847 | CC15: ='PADD1 mthly rpt'!CC15+'PADD2 mthly rpt'!CC15+'PADD3 mthly rpt'!CC15+'PADD4 mthly rpt'!CC15+'PADD5 mthly rpt'!CC15 -> 80705.65969 | CD15: ='PADD1 mthly rpt'!CD15+'PADD2 mthly rpt'!CD15+'PADD3 mthly rpt'!CD15+'PADD4 mthly rpt'!CD15+'PADD5 mthly rpt'!CD15 -> 84999.20431 | CE15: ='PADD1 mthly rpt'!CE15+'PADD2 mthly rpt'!CE15+'PADD3 mthly rpt'!CE15+'PADD4 mthly rpt'!CE15+'PADD5 mthly rpt'!CE15 -> 86784.16106 | CF15: ='PADD1 mthly rpt'!CF15+'PADD2 mthly rpt'!CF15+'PADD3 mthly rpt'!CF15+'PADD4 mthly rpt'!CF15+'PADD5 mthly rpt'!CF15 -> 92959.14658 | CG15: ='PADD1 mthly rpt'!CG15+'PADD2 mthly rpt'!CG15+'PADD3 mthly rpt'!CG15+'PADD4 mthly rpt'!CG15+'PADD5 mthly rpt'!CG15 -> 105550.328 | CH15: ='PADD1 mthly rpt'!CH15+'PADD2 mthly rpt'!CH15+'PADD3 mthly rpt'!CH15+'PADD4 mthly rpt'!CH15+'PADD5 mthly rpt'!CH15 -> 99105.46184 | CI15: ='PADD1 mthly rpt'!CI15+'PADD2 mthly rpt'!CI15+'PADD3 mthly rpt'!CI15+'PADD4 mthly rpt'!CI15+'PADD5 mthly rpt'!CI15 -> 91081.7045 | CJ15: ='PADD1 mthly rpt'!CJ15+'PADD2 mthly rpt'!CJ15+'PADD3 mthly rpt'!CJ15+'PADD4 mthly rpt'!CJ15+'PADD5 mthly rpt'!CJ15 -> 86267.4501 | CK15: ='PADD1 mthly rpt'!CK15+'PADD2 mthly rpt'!CK15+'PADD3 mthly rpt'!CK15+'PADD4 mthly rpt'!CK15+'PADD5 mthly rpt'!CK15 -> 80286.10372 | CL15: ='PADD1 mthly rpt'!CL15+'PADD2 mthly rpt'!CL15+'PADD3 mthly rpt'!CL15+'PADD4 mthly rpt'!CL15+'PADD5 mthly rpt'!CL15 -> 74778.88845 | CM15: ='PADD1 mthly rpt'!CM15+'PADD2 mthly rpt'!CM15+'PADD3 mthly rpt'!CM15+'PADD4 mthly rpt'!CM15+'PADD5 mthly rpt'!CM15 -> 73611.79648 | CN15: ='PADD1 mthly rpt'!CN15+'PADD2 mthly rpt'!CN15+'PADD3 mthly rpt'!CN15+'PADD4 mthly rpt'!CN15+'PADD5 mthly rpt'!CN15 -> 73429.43836 | CO15: ='PADD1 mthly rpt'!CO15+'PADD2 mthly rpt'!CO15+'PADD3 mthly rpt'!CO15+'PADD4 mthly rpt'!CO15+'PADD5 mthly rpt'!CO15 -> 76967.18591 | CP15: ='PADD1 mthly rpt'!CP15+'PADD2 mthly rpt'!CP15+'PADD3 mthly rpt'!CP15+'PADD4 mthly rpt'!CP15+'PADD5 mthly rpt'!CP15 -> 80213.16047 | CQ15: ='PADD1 mthly rpt'!CQ15+'PADD2 mthly rpt'!CQ15+'PADD3 mthly rpt'!CQ15+'PADD4 mthly rpt'!CQ15+'PADD5 mthly rpt'!CQ15 -> 81599.08219 | CR15: ='PADD1 mthly rpt'!CR15+'PADD2 mthly rpt'!CR15+'PADD3 mthly rpt'!CR15+'PADD4 mthly rpt'!CR15+'PADD5 mthly rpt'!CR15 -> 86267.4501 | CS15: ='PADD1 mthly rpt'!CS15+'PADD2 mthly rpt'!CS15+'PADD3 mthly rpt'!CS15+'PADD4 mthly rpt'!CS15+'PADD5 mthly rpt'!CS15 -> 95786.54403 | CT15: ='PADD1 mthly rpt'!CT15+'PADD2 mthly rpt'!CT15+'PADD3 mthly rpt'!CT15+'PADD4 mthly rpt'!CT15+'PADD5 mthly rpt'!CT15 -> 93449.67446 | CU15: ='PADD1 mthly rpt'!CU15+'PADD2 mthly rpt'!CU15+'PADD3 mthly rpt'!CU15+'PADD4 mthly rpt'!CU15+'PADD5 mthly rpt'!CU15 -> 87307.83756 | CV15: ='PADD1 mthly rpt'!CV15+'PADD2 mthly rpt'!CV15+'PADD3 mthly rpt'!CV15+'PADD4 mthly rpt'!CV15+'PADD5 mthly rpt'!CV15 -> 81235.79427 | CW15: ='PADD1 mthly rpt'!CW15+'PADD2 mthly rpt'!CW15+'PADD3 mthly rpt'!CW15+'PADD4 mthly rpt'!CW15+'PADD5 mthly rpt'!CW15 -> 75512.71898 | CX15: ='PADD1 mthly rpt'!CX15+'PADD2 mthly rpt'!CX15+'PADD3 mthly rpt'!CX15+'PADD4 mthly rpt'!CX15+'PADD5 mthly rpt'!CX15 -> 70243.3021 | CY15: ='PADD1 mthly rpt'!CY15+'PADD2 mthly rpt'!CY15+'PADD3 mthly rpt'!CY15+'PADD4 mthly rpt'!CY15+'PADD5 mthly rpt'!CY15 -> 69126.60449 | CZ15: ='PADD1 mthly rpt'!CZ15+'PADD2 mthly rpt'!CZ15+'PADD3 mthly rpt'!CZ15+'PADD4 mthly rpt'!CZ15+'PADD5 mthly rpt'!CZ15 -> 68952.12048 | DA15: ='PADD1 mthly rpt'!DA15+'PADD2 mthly rpt'!DA15+'PADD3 mthly rpt'!DA15+'PADD4 mthly rpt'!DA15+'PADD5 mthly rpt'!DA15 -> 72337.11014 | DB15: ='PADD1 mthly rpt'!DB15+'PADD2 mthly rpt'!DB15+'PADD3 mthly rpt'!DB15+'PADD4 mthly rpt'!DB15+'PADD5 mthly rpt'!DB15 -> 75442.92538 | DC15: ='PADD1 mthly rpt'!DC15+'PADD2 mthly rpt'!DC15+'PADD3 mthly rpt'!DC15+'PADD4 mthly rpt'!DC15+'PADD5 mthly rpt'!DC15 -> 76734.107 | DD15: ='PADD1 mthly rpt'!DD15+'PADD2 mthly rpt'!DD15+'PADD3 mthly rpt'!DD15+'PADD4 mthly rpt'!DD15+'PADD5 mthly rpt'!DD15 -> 81200.89747 | DE15: ='PADD1 mthly rpt'!DE15+'PADD2 mthly rpt'!DE15+'PADD3 mthly rpt'!DE15+'PADD4 mthly rpt'!DE15+'PADD5 mthly rpt'!DE15 -> 90308.96241 | DF15: ='PADD1 mthly rpt'!DF15+'PADD2 mthly rpt'!DF15+'PADD3 mthly rpt'!DF15+'PADD4 mthly rpt'!DF15+'PADD5 mthly rpt'!DF15 -> 102494.5258 | DG15: ='PADD1 mthly rpt'!DG15+'PADD2 mthly rpt'!DG15+'PADD3 mthly rpt'!DG15+'PADD4 mthly rpt'!DG15+'PADD5 mthly rpt'!DG15 -> 95297.91725 | DH15: ='PADD1 mthly rpt'!DH15+'PADD2 mthly rpt'!DH15+'PADD3 mthly rpt'!DH15+'PADD4 mthly rpt'!DH15+'PADD5 mthly rpt'!DH15 -> 88183.08838 | DI15: ='PADD1 mthly rpt'!DI15+'PADD2 mthly rpt'!DI15+'PADD3 mthly rpt'!DI15+'PADD4 mthly rpt'!DI15+'PADD5 mthly rpt'!DI15 -> 81477.15773 | DJ15: ='PADD1 mthly rpt'!DJ15+'PADD2 mthly rpt'!DJ15+'PADD3 mthly rpt'!DJ15+'PADD4 mthly rpt'!DJ15+'PADD5 mthly rpt'!DJ15 -> 75302.79474 | DK15: ='PADD1 mthly rpt'!DK15+'PADD2 mthly rpt'!DK15+'PADD3 mthly rpt'!DK15+'PADD4 mthly rpt'!DK15+'PADD5 mthly rpt'!DK15 -> 73994.32047 | DL15: ='PADD1 mthly rpt'!DL15+'PADD2 mthly rpt'!DL15+'PADD3 mthly rpt'!DL15+'PADD4 mthly rpt'!DL15+'PADD5 mthly rpt'!DL15 -> 73789.87136 | DM15: ='PADD1 mthly rpt'!DM15+'PADD2 mthly rpt'!DM15+'PADD3 mthly rpt'!DM15+'PADD4 mthly rpt'!DM15+'PADD5 mthly rpt'!DM15 -> 77756.18401 | DN15: ='PADD1 mthly rpt'!DN15+'PADD2 mthly rpt'!DN15+'PADD3 mthly rpt'!DN15+'PADD4 mthly rpt'!DN15+'PADD5 mthly rpt'!DN15 -> 81395.37808 | DO15: ='PADD1 mthly rpt'!DO15+'PADD2 mthly rpt'!DO15+'PADD3 mthly rpt'!DO15+'PADD4 mthly rpt'!DO15+'PADD5 mthly rpt'!DO15 -> 82908.30146 | DP15: ='PADD1 mthly rpt'!DP15+'PADD2 mthly rpt'!DP15+'PADD3 mthly rpt'!DP15+'PADD4 mthly rpt'!DP15+'PADD5 mthly rpt'!DP15 -> 88142.19856 | DQ15: ='PADD1 mthly rpt'!DQ15+'PADD2 mthly rpt'!DQ15+'PADD3 mthly rpt'!DQ15+'PADD4 mthly rpt'!DQ15+'PADD5 mthly rpt'!DQ15 -> 98814.44187 | DR15: ='PADD1 mthly rpt'!DR15+'PADD2 mthly rpt'!DR15+'PADD3 mthly rpt'!DR15+'PADD4 mthly rpt'!DR15+'PADD5 mthly rpt'!DR15 -> 109793.389 | DS15: ='PADD1 mthly rpt'!DS15+'PADD2 mthly rpt'!DS15+'PADD3 mthly rpt'!DS15+'PADD4 mthly rpt'!DS15+'PADD5 mthly rpt'!DS15 -> 101281.1151 | DT15: ='PADD1 mthly rpt'!DT15+'PADD2 mthly rpt'!DT15+'PADD3 mthly rpt'!DT15+'PADD4 mthly rpt'!DT15+'PADD5 mthly rpt'!DT15 -> 92865.57159 | DU15: ='PADD1 mthly rpt'!DU15+'PADD2 mthly rpt'!DU15+'PADD3 mthly rpt'!DU15+'PADD4 mthly rpt'!DU15+'PADD5 mthly rpt'!DU15 -> 84933.68001 | DV15: ='PADD1 mthly rpt'!DV15+'PADD2 mthly rpt'!DV15+'PADD3 mthly rpt'!DV15+'PADD4 mthly rpt'!DV15+'PADD5 mthly rpt'!DV15 -> 77630.53593 | DW15: ='PADD1 mthly rpt'!DW15+'PADD2 mthly rpt'!DW15+'PADD3 mthly rpt'!DW15+'PADD4 mthly rpt'!DW15+'PADD5 mthly rpt'!DW15 -> 76082.84976 | DX15: ='PADD1 mthly rpt'!DX15+'PADD2 mthly rpt'!DX15+'PADD3 mthly rpt'!DX15+'PADD4 mthly rpt'!DX15+'PADD5 mthly rpt'!DX15 -> 75841.0238 | DY15: ='PADD1 mthly rpt'!DY15+'PADD2 mthly rpt'!DY15+'PADD3 mthly rpt'!DY15+'PADD4 mthly rpt'!DY15+'PADD5 mthly rpt'!DY15 -> 80532.44748 | DZ15: ='PADD1 mthly rpt'!DZ15+'PADD2 mthly rpt'!DZ15+'PADD3 mthly rpt'!DZ15+'PADD4 mthly rpt'!DZ15+'PADD5 mthly rpt'!DZ15 -> 84836.94962 | EA15: ='PADD1 mthly rpt'!EA15+'PADD2 mthly rpt'!EA15+'PADD3 mthly rpt'!EA15+'PADD4 mthly rpt'!EA15+'PADD5 mthly rpt'!EA15 -> 86626.46175 | EB15: ='PADD1 mthly rpt'!EB15+'PADD2 mthly rpt'!EB15+'PADD3 mthly rpt'!EB15+'PADD4 mthly rpt'!EB15+'PADD5 mthly rpt'!EB15 -> 92817.2064 | EC15: ='PADD1 mthly rpt'!EC15+'PADD2 mthly rpt'!EC15+'PADD3 mthly rpt'!EC15+'PADD4 mthly rpt'!EC15+'PADD5 mthly rpt'!EC15 -> 105440.5217 | ED15: ='PADD1 mthly rpt'!ED15+'PADD2 mthly rpt'!ED15+'PADD3 mthly rpt'!ED15+'PADD4 mthly rpt'!ED15+'PADD5 mthly rpt'!ED15 -> 103972.9995 | EE15: ='PADD1 mthly rpt'!EE15+'PADD2 mthly rpt'!EE15+'PADD3 mthly rpt'!EE15+'PADD4 mthly rpt'!EE15+'PADD5 mthly rpt'!EE15 -> 96568.2173 | EF15: ='PADD1 mthly rpt'!EF15+'PADD2 mthly rpt'!EF15+'PADD3 mthly rpt'!EF15+'PADD4 mthly rpt'!EF15+'PADD5 mthly rpt'!EF15 -> 89247.58031 | EG15: ='PADD1 mthly rpt'!EG15+'PADD2 mthly rpt'!EG15+'PADD3 mthly rpt'!EG15+'PADD4 mthly rpt'!EG15+'PADD5 mthly rpt'!EG15 -> 82347.66958 | EH15: ='PADD1 mthly rpt'!EH15+'PADD2 mthly rpt'!EH15+'PADD3 mthly rpt'!EH15+'PADD4 mthly rpt'!EH15+'PADD5 mthly rpt'!EH15 -> 75994.703 | EI15: ='PADD1 mthly rpt'!EI15+'PADD2 mthly rpt'!EI15+'PADD3 mthly rpt'!EI15+'PADD4 mthly rpt'!EI15+'PADD5 mthly rpt'!EI15 -> 74648.37895 | EJ15: ='PADD1 mthly rpt'!EJ15+'PADD2 mthly rpt'!EJ15+'PADD3 mthly rpt'!EJ15+'PADD4 mthly rpt'!EJ15+'PADD5 mthly rpt'!EJ15 -> 74438.01582 | EK15: ='PADD1 mthly rpt'!EK15+'PADD2 mthly rpt'!EK15+'PADD3 mthly rpt'!EK15+'PADD4 mthly rpt'!EK15+'PADD5 mthly rpt'!EK15 -> 78519.06058 | EL15: ='PADD1 mthly rpt'!EL15+'PADD2 mthly rpt'!EL15+'PADD3 mthly rpt'!EL15+'PADD4 mthly rpt'!EL15+'PADD5 mthly rpt'!EL15 -> 82263.52433 | EM15: ='PADD1 mthly rpt'!EM15+'PADD2 mthly rpt'!EM15+'PADD3 mthly rpt'!EM15+'PADD4 mthly rpt'!EM15+'PADD5 mthly rpt'!EM15 -> 83820.21151 | EN15: ='PADD1 mthly rpt'!EN15+'PADD2 mthly rpt'!EN15+'PADD3 mthly rpt'!EN15+'PADD4 mthly rpt'!EN15+'PADD5 mthly rpt'!EN15 -> 89205.50768 | EO15: ='PADD1 mthly rpt'!EO15+'PADD2 mthly rpt'!EO15+'PADD3 mthly rpt'!EO15+'PADD4 mthly rpt'!EO15+'PADD5 mthly rpt'!EO15 -> 100186.4632 | EP15: ='PADD1 mthly rpt'!EP15+'PADD2 mthly rpt'!EP15+'PADD3 mthly rpt'!EP15+'PADD4 mthly rpt'!EP15+'PADD5 mthly rpt'!EP15 -> 103972.9995 | EQ15: ='PADD1 mthly rpt'!EQ15+'PADD2 mthly rpt'!EQ15+'PADD3 mthly rpt'!EQ15+'PADD4 mthly rpt'!EQ15+'PADD5 mthly rpt'!EQ15 -> 97536.18907 | ER15: ='PADD1 mthly rpt'!ER15+'PADD2 mthly rpt'!ER15+'PADD3 mthly rpt'!ER15+'PADD4 mthly rpt'!ER15+'PADD5 mthly rpt'!ER15 -> 91154.80303 | ES15: ='PADD1 mthly rpt'!ES15+'PADD2 mthly rpt'!ES15+'PADD3 mthly rpt'!ES15+'PADD4 mthly rpt'!ES15+'PADD5 mthly rpt'!ES15 -> 84627.29916 | ET15: ='PADD1 mthly rpt'!ET15+'PADD2 mthly rpt'!ET15+'PADD3 mthly rpt'!ET15+'PADD4 mthly rpt'!ET15+'PADD5 mthly rpt'!ET15 -> 78617.21938 | EU15: ='PADD1 mthly rpt'!EU15+'PADD2 mthly rpt'!EU15+'PADD3 mthly rpt'!EU15+'PADD4 mthly rpt'!EU15+'PADD5 mthly rpt'!EU15 -> 77193.89007 | EV15: ='PADD1 mthly rpt'!EV15+'PADD2 mthly rpt'!EV15+'PADD3 mthly rpt'!EV15+'PADD4 mthly rpt'!EV15+'PADD5 mthly rpt'!EV15 -> 76967.62264 | EW15: ='PADD1 mthly rpt'!EW15+'PADD2 mthly rpt'!EW15+'PADD3 mthly rpt'!EW15+'PADD4 mthly rpt'!EW15+'PADD5 mthly rpt'!EW15 -> 81357.21086 | EX15: ='PADD1 mthly rpt'!EX15+'PADD2 mthly rpt'!EX15+'PADD3 mthly rpt'!EX15+'PADD4 mthly rpt'!EX15+'PADD5 mthly rpt'!EX15 -> 85384.77118 | EY15: ='PADD1 mthly rpt'!EY15+'PADD2 mthly rpt'!EY15+'PADD3 mthly rpt'!EY15+'PADD4 mthly rpt'!EY15+'PADD5 mthly rpt'!EY15 -> 87059.1502 | EZ15: ='PADD1 mthly rpt'!EZ15+'PADD2 mthly rpt'!EZ15+'PADD3 mthly rpt'!EZ15+'PADD4 mthly rpt'!EZ15+'PADD5 mthly rpt'!EZ15 -> 92851.59651 | FA15: ='PADD1 mthly rpt'!FA15+'PADD2 mthly rpt'!FA15+'PADD3 mthly rpt'!FA15+'PADD4 mthly rpt'!FA15+'PADD5 mthly rpt'!FA15 -> 104662.7566 | FB15: ='PADD1 mthly rpt'!FB15+'PADD2 mthly rpt'!FB15+'PADD3 mthly rpt'!FB15+'PADD4 mthly rpt'!FB15+'PADD5 mthly rpt'!FB15 -> 109676.7824 | FC15: ='PADD1 mthly rpt'!FC15+'PADD2 mthly rpt'!FC15+'PADD3 mthly rpt'!FC15+'PADD4 mthly rpt'!FC15+'PADD5 mthly rpt'!FC15 -> 101608.6197 | FD15: ='PADD1 mthly rpt'!FD15+'PADD2 mthly rpt'!FD15+'PADD3 mthly rpt'!FD15+'PADD4 mthly rpt'!FD15+'PADD5 mthly rpt'!FD15 -> 93632.14058 | FE15: ='PADD1 mthly rpt'!FE15+'PADD2 mthly rpt'!FE15+'PADD3 mthly rpt'!FE15+'PADD4 mthly rpt'!FE15+'PADD5 mthly rpt'!FE15 -> 86680.51776 | FF15: ='PADD1 mthly rpt'!FF15+'PADD2 mthly rpt'!FF15+'PADD3 mthly rpt'!FF15+'PADD4 mthly rpt'!FF15+'PADD5 mthly rpt'!FF15 -> 79758.40085 | FG15: ='PADD1 mthly rpt'!FG15+'PADD2 mthly rpt'!FG15+'PADD3 mthly rpt'!FG15+'PADD4 mthly rpt'!FG15+'PADD5 mthly rpt'!FG15 -> 78291.46216 | FH15: ='PADD1 mthly rpt'!FH15+'PADD2 mthly rpt'!FH15+'PADD3 mthly rpt'!FH15+'PADD4 mthly rpt'!FH15+'PADD5 mthly rpt'!FH15 -> 78062.25299 | FI15: ='PADD1 mthly rpt'!FI15+'PADD2 mthly rpt'!FI15+'PADD3 mthly rpt'!FI15+'PADD4 mthly rpt'!FI15+'PADD5 mthly rpt'!FI15 -> 82508.91088 | FJ15: ='PADD1 mthly rpt'!FJ15+'PADD2 mthly rpt'!FJ15+'PADD3 mthly rpt'!FJ15+'PADD4 mthly rpt'!FJ15+'PADD5 mthly rpt'!FJ15 -> 86588.83409 | FK15: ='PADD1 mthly rpt'!FK15+'PADD2 mthly rpt'!FK15+'PADD3 mthly rpt'!FK15+'PADD4 mthly rpt'!FK15+'PADD5 mthly rpt'!FK15 -> 87197.59539 | FL15: ='PADD1 mthly rpt'!FL15+'PADD2 mthly rpt'!FL15+'PADD3 mthly rpt'!FL15+'PADD4 mthly rpt'!FL15+'PADD5 mthly rpt'!FL15 -> 93563.82125 | FM15: ='PADD1 mthly rpt'!FM15+'PADD2 mthly rpt'!FM15+'PADD3 mthly rpt'!FM15+'PADD4 mthly rpt'!FM15+'PADD5 mthly rpt'!FM15 -> 106544.9537 | FN15: ='PADD1 mthly rpt'!FN15+'PADD2 mthly rpt'!FN15+'PADD3 mthly rpt'!FN15+'PADD4 mthly rpt'!FN15+'PADD5 mthly rpt'!FN15 -> 65932.83643 | FO15: ='PADD1 mthly rpt'!FO15+'PADD2 mthly rpt'!FO15+'PADD3 mthly rpt'!FO15+'PADD4 mthly rpt'!FO15+'PADD5 mthly rpt'!FO15 -> 61375.26738 | FP15: ='PADD1 mthly rpt'!FP15+'PADD2 mthly rpt'!FP15+'PADD3 mthly rpt'!FP15+'PADD4 mthly rpt'!FP15+'PADD5 mthly rpt'!FP15 -> 57778.17101 | FQ15: ='PADD1 mthly rpt'!FQ15+'PADD2 mthly rpt'!FQ15+'PADD3 mthly rpt'!FQ15+'PADD4 mthly rpt'!FQ15+'PADD5 mthly rpt'!FQ15 -> 54582.74359 | FR15: ='PADD1 mthly rpt'!FR15+'PADD2 mthly rpt'!FR15+'PADD3 mthly rpt'!FR15+'PADD4 mthly rpt'!FR15+'PADD5 mthly rpt'!FR15 -> 52427.80706 | FS15: ='PADD1 mthly rpt'!FS15+'PADD2 mthly rpt'!FS15+'PADD3 mthly rpt'!FS15+'PADD4 mthly rpt'!FS15+'PADD5 mthly rpt'!FS15 -> 52501.41318 | FT15: ='PADD1 mthly rpt'!FT15+'PADD2 mthly rpt'!FT15+'PADD3 mthly rpt'!FT15+'PADD4 mthly rpt'!FT15+'PADD5 mthly rpt'!FT15 -> 52691.83762 | FU15: ='PADD1 mthly rpt'!FU15+'PADD2 mthly rpt'!FU15+'PADD3 mthly rpt'!FU15+'PADD4 mthly rpt'!FU15+'PADD5 mthly rpt'!FU15 -> 55550.60939 | FV15: ='PADD1 mthly rpt'!FV15+'PADD2 mthly rpt'!FV15+'PADD3 mthly rpt'!FV15+'PADD4 mthly rpt'!FV15+'PADD5 mthly rpt'!FV15 -> 59285.84061 | FW15: ='PADD1 mthly rpt'!FW15+'PADD2 mthly rpt'!FW15+'PADD3 mthly rpt'!FW15+'PADD4 mthly rpt'!FW15+'PADD5 mthly rpt'!FW15 -> 60695.31355 | FX15: ='PADD1 mthly rpt'!FX15+'PADD2 mthly rpt'!FX15+'PADD3 mthly rpt'!FX15+'PADD4 mthly rpt'!FX15+'PADD5 mthly rpt'!FX15 -> 61795.4753 | FY15: ='PADD1 mthly rpt'!FY15+'PADD2 mthly rpt'!FY15+'PADD3 mthly rpt'!FY15+'PADD4 mthly rpt'!FY15+'PADD5 mthly rpt'!FY15 -> 65471.13017 | FZ15: ='PADD1 mthly rpt'!FZ15+'PADD2 mthly rpt'!FZ15+'PADD3 mthly rpt'!FZ15+'PADD4 mthly rpt'!FZ15+'PADD5 mthly rpt'!FZ15 -> 69572.84616 | GA15: ='PADD1 mthly rpt'!GA15+'PADD2 mthly rpt'!GA15+'PADD3 mthly rpt'!GA15+'PADD4 mthly rpt'!GA15+'PADD5 mthly rpt'!GA15 -> 64869.0972 | GB15: ='PADD1 mthly rpt'!GB15+'PADD2 mthly rpt'!GB15+'PADD3 mthly rpt'!GB15+'PADD4 mthly rpt'!GB15+'PADD5 mthly rpt'!GB15 -> 60218.79993 | GC15: ='PADD1 mthly rpt'!GC15+'PADD2 mthly rpt'!GC15+'PADD3 mthly rpt'!GC15+'PADD4 mthly rpt'!GC15+'PADD5 mthly rpt'!GC15 -> 55835.76113 | GD15: ='PADD1 mthly rpt'!GD15+'PADD2 mthly rpt'!GD15+'PADD3 mthly rpt'!GD15+'PADD4 mthly rpt'!GD15+'PADD5 mthly rpt'!GD15 -> 51800.15832 | GE15: ='PADD1 mthly rpt'!GE15+'PADD2 mthly rpt'!GE15+'PADD3 mthly rpt'!GE15+'PADD4 mthly rpt'!GE15+'PADD5 mthly rpt'!GE15 -> 50944.93124 | GF15: ='PADD1 mthly rpt'!GF15+'PADD2 mthly rpt'!GF15+'PADD3 mthly rpt'!GF15+'PADD4 mthly rpt'!GF15+'PADD5 mthly rpt'!GF15 -> 50811.30201 | GG15: ='PADD1 mthly rpt'!GG15+'PADD2 mthly rpt'!GG15+'PADD3 mthly rpt'!GG15+'PADD4 mthly rpt'!GG15+'PADD5 mthly rpt'!GG15 -> 53403.7091 | GH15: ='PADD1 mthly rpt'!GH15+'PADD2 mthly rpt'!GH15+'PADD3 mthly rpt'!GH15+'PADD4 mthly rpt'!GH15+'PADD5 mthly rpt'!GH15 -> 55782.30943 | GI15: ='PADD1 mthly rpt'!GI15+'PADD2 mthly rpt'!GI15+'PADD3 mthly rpt'!GI15+'PADD4 mthly rpt'!GI15+'PADD5 mthly rpt'!GI15 -> 56771.16575 | GJ15: ='PADD1 mthly rpt'!GJ15+'PADD2 mthly rpt'!GJ15+'PADD3 mthly rpt'!GJ15+'PADD4 mthly rpt'!GJ15+'PADD5 mthly rpt'!GJ15 -> 58080.73222 | GK15: ='PADD1 mthly rpt'!GK15+'PADD2 mthly rpt'!GK15+'PADD3 mthly rpt'!GK15+'PADD4 mthly rpt'!GK15+'PADD5 mthly rpt'!GK15 -> 52823.17186 | GL15: ='PADD1 mthly rpt'!GL15+'PADD2 mthly rpt'!GL15+'PADD3 mthly rpt'!GL15+'PADD4 mthly rpt'!GL15+'PADD5 mthly rpt'!GL15 -> 52533.59712 | GM15: ='PADD1 mthly rpt'!GM15+'PADD2 mthly rpt'!GM15+'PADD3 mthly rpt'!GM15+'PADD4 mthly rpt'!GM15+'PADD5 mthly rpt'!GM15 -> 50055.15863 | GN15: ='PADD1 mthly rpt'!GN15+'PADD2 mthly rpt'!GN15+'PADD3 mthly rpt'!GN15+'PADD4 mthly rpt'!GN15+'PADD5 mthly rpt'!GN15 -> 52533.59712 | GO15: ='PADD1 mthly rpt'!GO15+'PADD2 mthly rpt'!GO15+'PADD3 mthly rpt'!GO15+'PADD4 mthly rpt'!GO15+'PADD5 mthly rpt'!GO15 -> 52533.59712 | GP15: ='PADD1 mthly rpt'!GP15+'PADD2 mthly rpt'!GP15+'PADD3 mthly rpt'!GP15+'PADD4 mthly rpt'!GP15+'PADD5 mthly rpt'!GP15 -> 52533.59712 | GQ15: ='PADD1 mthly rpt'!GQ15+'PADD2 mthly rpt'!GQ15+'PADD3 mthly rpt'!GQ15+'PADD4 mthly rpt'!GQ15+'PADD5 mthly rpt'!GQ15 -> 52533.59712 | GR15: ='PADD1 mthly rpt'!GR15+'PADD2 mthly rpt'!GR15+'PADD3 mthly rpt'!GR15+'PADD4 mthly rpt'!GR15+'PADD5 mthly rpt'!GR15 -> 52533.59712 | GS15: ='PADD1 mthly rpt'!GS15+'PADD2 mthly rpt'!GS15+'PADD3 mthly rpt'!GS15+'PADD4 mthly rpt'!GS15+'PADD5 mthly rpt'!GS15 -> 52533.59712 | GT15: ='PADD1 mthly rpt'!GT15+'PADD2 mthly rpt'!GT15+'PADD3 mthly rpt'!GT15+'PADD4 mthly rpt'!GT15+'PADD5 mthly rpt'!GT15 -> 52533.59712 | GU15: ='PADD1 mthly rpt'!GU15+'PADD2 mthly rpt'!GU15+'PADD3 mthly rpt'!GU15+'PADD4 mthly rpt'!GU15+'PADD5 mthly rpt'!GU15 -> 52533.59712 | GV15: ='PADD1 mthly rpt'!GV15+'PADD2 mthly rpt'!GV15+'PADD3 mthly rpt'!GV15+'PADD4 mthly rpt'!GV15+'PADD5 mthly rpt'!GV15 -> 52533.59712 | GW15: ='PADD1 mthly rpt'!GW15+'PADD2 mthly rpt'!GW15+'PADD3 mthly rpt'!GW15+'PADD4 mthly rpt'!GW15+'PADD5 mthly rpt'!GW15 -> 52533.59712 | GX15: ='PADD1 mthly rpt'!GX15+'PADD2 mthly rpt'!GX15+'PADD3 mthly rpt'!GX15+'PADD4 mthly rpt'!GX15+'PADD5 mthly rpt'!GX15 -> 52278.80549 | GY15: ='PADD1 mthly rpt'!GY15+'PADD2 mthly rpt'!GY15+'PADD3 mthly rpt'!GY15+'PADD4 mthly rpt'!GY15+'PADD5 mthly rpt'!GY15 -> 52278.80549 | GZ15: ='PADD1 mthly rpt'!GZ15+'PADD2 mthly rpt'!GZ15+'PADD3 mthly rpt'!GZ15+'PADD4 mthly rpt'!GZ15+'PADD5 mthly rpt'!GZ15 -> 52278.80549 | HA15: ='PADD1 mthly rpt'!HA15+'PADD2 mthly rpt'!HA15+'PADD3 mthly rpt'!HA15+'PADD4 mthly rpt'!HA15+'PADD5 mthly rpt'!HA15 -> 52278.80549 | HB15: ='PADD1 mthly rpt'!HB15+'PADD2 mthly rpt'!HB15+'PADD3 mthly rpt'!HB15+'PADD4 mthly rpt'!HB15+'PADD5 mthly rpt'!HB15 -> 52278.80549 | HC15: ='PADD1 mthly rpt'!HC15+'PADD2 mthly rpt'!HC15+'PADD3 mthly rpt'!HC15+'PADD4 mthly rpt'!HC15+'PADD5 mthly rpt'!HC15 -> 52278.80549
A16: US DOMESTIC CONSUMPTION | B16: ='PADD1 mthly rpt'!B16+'PADD2 mthly rpt'!B16+'PADD3 mthly rpt'!B16+'PADD4 mthly rpt'!B16+'PADD5 mthly rpt'!B16 -> 1598241.785 | C16: ='PADD1 mthly rpt'!C16+'PADD2 mthly rpt'!C16+'PADD3 mthly rpt'!C16+'PADD4 mthly rpt'!C16+'PADD5 mthly rpt'!C16 -> 1489219.129 | D16: ='PADD1 mthly rpt'!D16+'PADD2 mthly rpt'!D16+'PADD3 mthly rpt'!D16+'PADD4 mthly rpt'!D16+'PADD5 mthly rpt'!D16 -> 1335201.757 | E16: ='PADD1 mthly rpt'!E16+'PADD2 mthly rpt'!E16+'PADD3 mthly rpt'!E16+'PADD4 mthly rpt'!E16+'PADD5 mthly rpt'!E16 -> 1051722.524 | F16: ='PADD1 mthly rpt'!F16+'PADD2 mthly rpt'!F16+'PADD3 mthly rpt'!F16+'PADD4 mthly rpt'!F16+'PADD5 mthly rpt'!F16 -> 1098824.72 | G16: ='PADD1 mthly rpt'!G16+'PADD2 mthly rpt'!G16+'PADD3 mthly rpt'!G16+'PADD4 mthly rpt'!G16+'PADD5 mthly rpt'!G16 -> 981337.4937 | H16: ='PADD1 mthly rpt'!H16+'PADD2 mthly rpt'!H16+'PADD3 mthly rpt'!H16+'PADD4 mthly rpt'!H16+'PADD5 mthly rpt'!H16 -> 987438.996 | I16: ='PADD1 mthly rpt'!I16+'PADD2 mthly rpt'!I16+'PADD3 mthly rpt'!I16+'PADD4 mthly rpt'!I16+'PADD5 mthly rpt'!I16 -> 1090555.899 | J16: ='PADD1 mthly rpt'!J16+'PADD2 mthly rpt'!J16+'PADD3 mthly rpt'!J16+'PADD4 mthly rpt'!J16+'PADD5 mthly rpt'!J16 -> 1132530.373 | K16: ='PADD1 mthly rpt'!K16+'PADD2 mthly rpt'!K16+'PADD3 mthly rpt'!K16+'PADD4 mthly rpt'!K16+'PADD5 mthly rpt'!K16 -> 1097292.091 | L16: ='PADD1 mthly rpt'!L16+'PADD2 mthly rpt'!L16+'PADD3 mthly rpt'!L16+'PADD4 mthly rpt'!L16+'PADD5 mthly rpt'!L16 -> 1265138.757 | M16: ='PADD1 mthly rpt'!M16+'PADD2 mthly rpt'!M16+'PADD3 mthly rpt'!M16+'PADD4 mthly rpt'!M16+'PADD5 mthly rpt'!M16 -> 1584010.725 | N16: ='PADD1 mthly rpt'!N16+'PADD2 mthly rpt'!N16+'PADD3 mthly rpt'!N16+'PADD4 mthly rpt'!N16+'PADD5 mthly rpt'!N16 -> 1332772.952 | O16: ='PADD1 mthly rpt'!O16+'PADD2 mthly rpt'!O16+'PADD3 mthly rpt'!O16+'PADD4 mthly rpt'!O16+'PADD5 mthly rpt'!O16 -> 1434218.583 | P16: ='PADD1 mthly rpt'!P16+'PADD2 mthly rpt'!P16+'PADD3 mthly rpt'!P16+'PADD4 mthly rpt'!P16+'PADD5 mthly rpt'!P16 -> 1315796.446 | Q16: ='PADD1 mthly rpt'!Q16+'PADD2 mthly rpt'!Q16+'PADD3 mthly rpt'!Q16+'PADD4 mthly rpt'!Q16+'PADD5 mthly rpt'!Q16 -> 1096325.62 | R16: ='PADD1 mthly rpt'!R16+'PADD2 mthly rpt'!R16+'PADD3 mthly rpt'!R16+'PADD4 mthly rpt'!R16+'PADD5 mthly rpt'!R16 -> 1133473.178 | S16: ='PADD1 mthly rpt'!S16+'PADD2 mthly rpt'!S16+'PADD3 mthly rpt'!S16+'PADD4 mthly rpt'!S16+'PADD5 mthly rpt'!S16 -> 1084097.983 | T16: ='PADD1 mthly rpt'!T16+'PADD2 mthly rpt'!T16+'PADD3 mthly rpt'!T16+'PADD4 mthly rpt'!T16+'PADD5 mthly rpt'!T16 -> 1047680.792 | U16: ='PADD1 mthly rpt'!U16+'PADD2 mthly rpt'!U16+'PADD3 mthly rpt'!U16+'PADD4 mthly rpt'!U16+'PADD5 mthly rpt'!U16 -> 1092483.248 | V16: ='PADD1 mthly rpt'!V16+'PADD2 mthly rpt'!V16+'PADD3 mthly rpt'!V16+'PADD4 mthly rpt'!V16+'PADD5 mthly rpt'!V16 -> 1151842.388 | W16: ='PADD1 mthly rpt'!W16+'PADD2 mthly rpt'!W16+'PADD3 mthly rpt'!W16+'PADD4 mthly rpt'!W16+'PADD5 mthly rpt'!W16 -> 1242395.644 | X16: ='PADD1 mthly rpt'!X16+'PADD2 mthly rpt'!X16+'PADD3 mthly rpt'!X16+'PADD4 mthly rpt'!X16+'PADD5 mthly rpt'!X16 -> 1287880.49 | Y16: ='PADD1 mthly rpt'!Y16+'PADD2 mthly rpt'!Y16+'PADD3 mthly rpt'!Y16+'PADD4 mthly rpt'!Y16+'PADD5 mthly rpt'!Y16 -> 1398547.402 | Z16: ='PADD1 mthly rpt'!Z16+'PADD2 mthly rpt'!Z16+'PADD3 mthly rpt'!Z16+'PADD4 mthly rpt'!Z16+'PADD5 mthly rpt'!Z16 -> 1631030.46 | AA16: ='PADD1 mthly rpt'!AA16+'PADD2 mthly rpt'!AA16+'PADD3 mthly rpt'!AA16+'PADD4 mthly rpt'!AA16+'PADD5 mthly rpt'!AA16 -> 1665559.546 | AB16: ='PADD1 mthly rpt'!AB16+'PADD2 mthly rpt'!AB16+'PADD3 mthly rpt'!AB16+'PADD4 mthly rpt'!AB16+'PADD5 mthly rpt'!AB16 -> 1281637.101 | AC16: ='PADD1 mthly rpt'!AC16+'PADD2 mthly rpt'!AC16+'PADD3 mthly rpt'!AC16+'PADD4 mthly rpt'!AC16+'PADD5 mthly rpt'!AC16 -> 1153156.822 | AD16: ='PADD1 mthly rpt'!AD16+'PADD2 mthly rpt'!AD16+'PADD3 mthly rpt'!AD16+'PADD4 mthly rpt'!AD16+'PADD5 mthly rpt'!AD16 -> 1092194.281 | AE16: ='PADD1 mthly rpt'!AE16+'PADD2 mthly rpt'!AE16+'PADD3 mthly rpt'!AE16+'PADD4 mthly rpt'!AE16+'PADD5 mthly rpt'!AE16 -> 1082964.566 | AF16: ='PADD1 mthly rpt'!AF16+'PADD2 mthly rpt'!AF16+'PADD3 mthly rpt'!AF16+'PADD4 mthly rpt'!AF16+'PADD5 mthly rpt'!AF16 -> 1139336.669 | AG16: ='PADD1 mthly rpt'!AG16+'PADD2 mthly rpt'!AG16+'PADD3 mthly rpt'!AG16+'PADD4 mthly rpt'!AG16+'PADD5 mthly rpt'!AG16 -> 1201003.733 | AH16: ='PADD1 mthly rpt'!AH16+'PADD2 mthly rpt'!AH16+'PADD3 mthly rpt'!AH16+'PADD4 mthly rpt'!AH16+'PADD5 mthly rpt'!AH16 -> 1264236.005 | AI16: ='PADD1 mthly rpt'!AI16+'PADD2 mthly rpt'!AI16+'PADD3 mthly rpt'!AI16+'PADD4 mthly rpt'!AI16+'PADD5 mthly rpt'!AI16 -> 1277916.603 | AJ16: ='PADD1 mthly rpt'!AJ16+'PADD2 mthly rpt'!AJ16+'PADD3 mthly rpt'!AJ16+'PADD4 mthly rpt'!AJ16+'PADD5 mthly rpt'!AJ16 -> 1383624.356 | AK16: ='PADD1 mthly rpt'!AK16+'PADD2 mthly rpt'!AK16+'PADD3 mthly rpt'!AK16+'PADD4 mthly rpt'!AK16+'PADD5 mthly rpt'!AK16 -> 1472633.721 | AL16: ='PADD1 mthly rpt'!AL16+'PADD2 mthly rpt'!AL16+'PADD3 mthly rpt'!AL16+'PADD4 mthly rpt'!AL16+'PADD5 mthly rpt'!AL16 -> 1486326.123 | AM16: ='PADD1 mthly rpt'!AM16+'PADD2 mthly rpt'!AM16+'PADD3 mthly rpt'!AM16+'PADD4 mthly rpt'!AM16+'PADD5 mthly rpt'!AM16 -> 1405715.651 | AN16: ='PADD1 mthly rpt'!AN16+'PADD2 mthly rpt'!AN16+'PADD3 mthly rpt'!AN16+'PADD4 mthly rpt'!AN16+'PADD5 mthly rpt'!AN16 -> 1244066.547 | AO16: ='PADD1 mthly rpt'!AO16+'PADD2 mthly rpt'!AO16+'PADD3 mthly rpt'!AO16+'PADD4 mthly rpt'!AO16+'PADD5 mthly rpt'!AO16 -> 1133351.244 | AP16: ='PADD1 mthly rpt'!AP16+'PADD2 mthly rpt'!AP16+'PADD3 mthly rpt'!AP16+'PADD4 mthly rpt'!AP16+'PADD5 mthly rpt'!AP16 -> 1017795.991 | AQ16: ='PADD1 mthly rpt'!AQ16+'PADD2 mthly rpt'!AQ16+'PADD3 mthly rpt'!AQ16+'PADD4 mthly rpt'!AQ16+'PADD5 mthly rpt'!AQ16 -> 1091636.061 | AR16: ='PADD1 mthly rpt'!AR16+'PADD2 mthly rpt'!AR16+'PADD3 mthly rpt'!AR16+'PADD4 mthly rpt'!AR16+'PADD5 mthly rpt'!AR16 -> 1080736.028 | AS16: ='PADD1 mthly rpt'!AS16+'PADD2 mthly rpt'!AS16+'PADD3 mthly rpt'!AS16+'PADD4 mthly rpt'!AS16+'PADD5 mthly rpt'!AS16 -> 1068994.669 | AT16: ='PADD1 mthly rpt'!AT16+'PADD2 mthly rpt'!AT16+'PADD3 mthly rpt'!AT16+'PADD4 mthly rpt'!AT16+'PADD5 mthly rpt'!AT16 -> 891713.053 | AU16: ='PADD1 mthly rpt'!AU16+'PADD2 mthly rpt'!AU16+'PADD3 mthly rpt'!AU16+'PADD4 mthly rpt'!AU16+'PADD5 mthly rpt'!AU16 -> 1122619.858 | AV16: ='PADD1 mthly rpt'!AV16+'PADD2 mthly rpt'!AV16+'PADD3 mthly rpt'!AV16+'PADD4 mthly rpt'!AV16+'PADD5 mthly rpt'!AV16 -> 1123349.712 | AW16: ='PADD1 mthly rpt'!AW16+'PADD2 mthly rpt'!AW16+'PADD3 mthly rpt'!AW16+'PADD4 mthly rpt'!AW16+'PADD5 mthly rpt'!AW16 -> 1134833.516 | AX16: ='PADD1 mthly rpt'!AX16+'PADD2 mthly rpt'!AX16+'PADD3 mthly rpt'!AX16+'PADD4 mthly rpt'!AX16+'PADD5 mthly rpt'!AX16 -> 1300035.41 | AY16: ='PADD1 mthly rpt'!AY16+'PADD2 mthly rpt'!AY16+'PADD3 mthly rpt'!AY16+'PADD4 mthly rpt'!AY16+'PADD5 mthly rpt'!AY16 -> 1164438.867 | AZ16: ='PADD1 mthly rpt'!AZ16+'PADD2 mthly rpt'!AZ16+'PADD3 mthly rpt'!AZ16+'PADD4 mthly rpt'!AZ16+'PADD5 mthly rpt'!AZ16 -> 1138413.614 | BA16: ='PADD1 mthly rpt'!BA16+'PADD2 mthly rpt'!BA16+'PADD3 mthly rpt'!BA16+'PADD4 mthly rpt'!BA16+'PADD5 mthly rpt'!BA16 -> 1001726.486 | BB16: ='PADD1 mthly rpt'!BB16+'PADD2 mthly rpt'!BB16+'PADD3 mthly rpt'!BB16+'PADD4 mthly rpt'!BB16+'PADD5 mthly rpt'!BB16 -> 937738.3772 | BC16: ='PADD1 mthly rpt'!BC16+'PADD2 mthly rpt'!BC16+'PADD3 mthly rpt'!BC16+'PADD4 mthly rpt'!BC16+'PADD5 mthly rpt'!BC16 -> 1002343.11 | BD16: ='PADD1 mthly rpt'!BD16+'PADD2 mthly rpt'!BD16+'PADD3 mthly rpt'!BD16+'PADD4 mthly rpt'!BD16+'PADD5 mthly rpt'!BD16 -> 1009232.444 | BE16: ='PADD1 mthly rpt'!BE16+'PADD2 mthly rpt'!BE16+'PADD3 mthly rpt'!BE16+'PADD4 mthly rpt'!BE16+'PADD5 mthly rpt'!BE16 -> 1112466.244 | BF16: ='PADD1 mthly rpt'!BF16+'PADD2 mthly rpt'!BF16+'PADD3 mthly rpt'!BF16+'PADD4 mthly rpt'!BF16+'PADD5 mthly rpt'!BF16 -> 1101932.316 | BG16: ='PADD1 mthly rpt'!BG16+'PADD2 mthly rpt'!BG16+'PADD3 mthly rpt'!BG16+'PADD4 mthly rpt'!BG16+'PADD5 mthly rpt'!BG16 -> 1234189.742 | BH16: ='PADD1 mthly rpt'!BH16+'PADD2 mthly rpt'!BH16+'PADD3 mthly rpt'!BH16+'PADD4 mthly rpt'!BH16+'PADD5 mthly rpt'!BH16 -> 1388107.683 | BI16: ='PADD1 mthly rpt'!BI16+'PADD2 mthly rpt'!BI16+'PADD3 mthly rpt'!BI16+'PADD4 mthly rpt'!BI16+'PADD5 mthly rpt'!BI16 -> 1438578.045 | BJ16: ='PADD1 mthly rpt'!BJ16+'PADD2 mthly rpt'!BJ16+'PADD3 mthly rpt'!BJ16+'PADD4 mthly rpt'!BJ16+'PADD5 mthly rpt'!BJ16 -> 1469643.634 | BK16: ='PADD1 mthly rpt'!BK16+'PADD2 mthly rpt'!BK16+'PADD3 mthly rpt'!BK16+'PADD4 mthly rpt'!BK16+'PADD5 mthly rpt'!BK16 -> 1414840.127 | BL16: ='PADD1 mthly rpt'!BL16+'PADD2 mthly rpt'!BL16+'PADD3 mthly rpt'!BL16+'PADD4 mthly rpt'!BL16+'PADD5 mthly rpt'!BL16 -> 1162600.755 | BM16: ='PADD1 mthly rpt'!BM16+'PADD2 mthly rpt'!BM16+'PADD3 mthly rpt'!BM16+'PADD4 mthly rpt'!BM16+'PADD5 mthly rpt'!BM16 -> 1005704.728 | BN16: ='PADD1 mthly rpt'!BN16+'PADD2 mthly rpt'!BN16+'PADD3 mthly rpt'!BN16+'PADD4 mthly rpt'!BN16+'PADD5 mthly rpt'!BN16 -> 972604.9137 | BO16: ='PADD1 mthly rpt'!BO16+'PADD2 mthly rpt'!BO16+'PADD3 mthly rpt'!BO16+'PADD4 mthly rpt'!BO16+'PADD5 mthly rpt'!BO16 -> 1023485.632 | BP16: ='PADD1 mthly rpt'!BP16+'PADD2 mthly rpt'!BP16+'PADD3 mthly rpt'!BP16+'PADD4 mthly rpt'!BP16+'PADD5 mthly rpt'!BP16 -> 1031593.681 | BQ16: ='PADD1 mthly rpt'!BQ16+'PADD2 mthly rpt'!BQ16+'PADD3 mthly rpt'!BQ16+'PADD4 mthly rpt'!BQ16+'PADD5 mthly rpt'!BQ16 -> 1060084.518 | BR16: ='PADD1 mthly rpt'!BR16+'PADD2 mthly rpt'!BR16+'PADD3 mthly rpt'!BR16+'PADD4 mthly rpt'!BR16+'PADD5 mthly rpt'!BR16 -> 1137393.024 | BS16: ='PADD1 mthly rpt'!BS16+'PADD2 mthly rpt'!BS16+'PADD3 mthly rpt'!BS16+'PADD4 mthly rpt'!BS16+'PADD5 mthly rpt'!BS16 -> 1126175.943 | BT16: ='PADD1 mthly rpt'!BT16+'PADD2 mthly rpt'!BT16+'PADD3 mthly rpt'!BT16+'PADD4 mthly rpt'!BT16+'PADD5 mthly rpt'!BT16 -> 1187492.505 | BU16: ='PADD1 mthly rpt'!BU16+'PADD2 mthly rpt'!BU16+'PADD3 mthly rpt'!BU16+'PADD4 mthly rpt'!BU16+'PADD5 mthly rpt'!BU16 -> 1540535.659 | BV16: ='PADD1 mthly rpt'!BV16+'PADD2 mthly rpt'!BV16+'PADD3 mthly rpt'!BV16+'PADD4 mthly rpt'!BV16+'PADD5 mthly rpt'!BV16 -> 1529162.112 | BW16: ='PADD1 mthly rpt'!BW16+'PADD2 mthly rpt'!BW16+'PADD3 mthly rpt'!BW16+'PADD4 mthly rpt'!BW16+'PADD5 mthly rpt'!BW16 -> 1475641.027 | BX16: ='PADD1 mthly rpt'!BX16+'PADD2 mthly rpt'!BX16+'PADD3 mthly rpt'!BX16+'PADD4 mthly rpt'!BX16+'PADD5 mthly rpt'!BX16 -> 1291071.018 | BY16: ='PADD1 mthly rpt'!BY16+'PADD2 mthly rpt'!BY16+'PADD3 mthly rpt'!BY16+'PADD4 mthly rpt'!BY16+'PADD5 mthly rpt'!BY16 -> 1089474.914 | BZ16: ='PADD1 mthly rpt'!BZ16+'PADD2 mthly rpt'!BZ16+'PADD3 mthly rpt'!BZ16+'PADD4 mthly rpt'!BZ16+'PADD5 mthly rpt'!BZ16 -> 1045632.501 | CA16: ='PADD1 mthly rpt'!CA16+'PADD2 mthly rpt'!CA16+'PADD3 mthly rpt'!CA16+'PADD4 mthly rpt'!CA16+'PADD5 mthly rpt'!CA16 -> 1051582.216 | CB16: ='PADD1 mthly rpt'!CB16+'PADD2 mthly rpt'!CB16+'PADD3 mthly rpt'!CB16+'PADD4 mthly rpt'!CB16+'PADD5 mthly rpt'!CB16 -> 983332.8382 | CC16: ='PADD1 mthly rpt'!CC16+'PADD2 mthly rpt'!CC16+'PADD3 mthly rpt'!CC16+'PADD4 mthly rpt'!CC16+'PADD5 mthly rpt'!CC16 -> 1024303.287 | CD16: ='PADD1 mthly rpt'!CD16+'PADD2 mthly rpt'!CD16+'PADD3 mthly rpt'!CD16+'PADD4 mthly rpt'!CD16+'PADD5 mthly rpt'!CD16 -> 1098494.33 | CE16: ='PADD1 mthly rpt'!CE16+'PADD2 mthly rpt'!CE16+'PADD3 mthly rpt'!CE16+'PADD4 mthly rpt'!CE16+'PADD5 mthly rpt'!CE16 -> 1131321.69 | CF16: ='PADD1 mthly rpt'!CF16+'PADD2 mthly rpt'!CF16+'PADD3 mthly rpt'!CF16+'PADD4 mthly rpt'!CF16+'PADD5 mthly rpt'!CF16 -> 1248837.293 | CG16: ='PADD1 mthly rpt'!CG16+'PADD2 mthly rpt'!CG16+'PADD3 mthly rpt'!CG16+'PADD4 mthly rpt'!CG16+'PADD5 mthly rpt'!CG16 -> 1338053.439 | CH16: ='PADD1 mthly rpt'!CH16+'PADD2 mthly rpt'!CH16+'PADD3 mthly rpt'!CH16+'PADD4 mthly rpt'!CH16+'PADD5 mthly rpt'!CH16 -> 1316260.113 | CI16: ='PADD1 mthly rpt'!CI16+'PADD2 mthly rpt'!CI16+'PADD3 mthly rpt'!CI16+'PADD4 mthly rpt'!CI16+'PADD5 mthly rpt'!CI16 -> 1320014.435 | CJ16: ='PADD1 mthly rpt'!CJ16+'PADD2 mthly rpt'!CJ16+'PADD3 mthly rpt'!CJ16+'PADD4 mthly rpt'!CJ16+'PADD5 mthly rpt'!CJ16 -> 1104402.071 | CK16: ='PADD1 mthly rpt'!CK16+'PADD2 mthly rpt'!CK16+'PADD3 mthly rpt'!CK16+'PADD4 mthly rpt'!CK16+'PADD5 mthly rpt'!CK16 -> 1006747.495 | CL16: ='PADD1 mthly rpt'!CL16+'PADD2 mthly rpt'!CL16+'PADD3 mthly rpt'!CL16+'PADD4 mthly rpt'!CL16+'PADD5 mthly rpt'!CL16 -> 1000393.461 | CM16: ='PADD1 mthly rpt'!CM16+'PADD2 mthly rpt'!CM16+'PADD3 mthly rpt'!CM16+'PADD4 mthly rpt'!CM16+'PADD5 mthly rpt'!CM16 -> 1033168.982 | CN16: ='PADD1 mthly rpt'!CN16+'PADD2 mthly rpt'!CN16+'PADD3 mthly rpt'!CN16+'PADD4 mthly rpt'!CN16+'PADD5 mthly rpt'!CN16 -> 1049765.323 | CO16: ='PADD1 mthly rpt'!CO16+'PADD2 mthly rpt'!CO16+'PADD3 mthly rpt'!CO16+'PADD4 mthly rpt'!CO16+'PADD5 mthly rpt'!CO16 -> 1082774.932 | CP16: ='PADD1 mthly rpt'!CP16+'PADD2 mthly rpt'!CP16+'PADD3 mthly rpt'!CP16+'PADD4 mthly rpt'!CP16+'PADD5 mthly rpt'!CP16 -> 1086087.196 | CQ16: ='PADD1 mthly rpt'!CQ16+'PADD2 mthly rpt'!CQ16+'PADD3 mthly rpt'!CQ16+'PADD4 mthly rpt'!CQ16+'PADD5 mthly rpt'!CQ16 -> 1136224.365 | CR16: ='PADD1 mthly rpt'!CR16+'PADD2 mthly rpt'!CR16+'PADD3 mthly rpt'!CR16+'PADD4 mthly rpt'!CR16+'PADD5 mthly rpt'!CR16 -> 1231623.991 | CS16: ='PADD1 mthly rpt'!CS16+'PADD2 mthly rpt'!CS16+'PADD3 mthly rpt'!CS16+'PADD4 mthly rpt'!CS16+'PADD5 mthly rpt'!CS16 -> 1402140.931 | CT16: ='PADD1 mthly rpt'!CT16+'PADD2 mthly rpt'!CT16+'PADD3 mthly rpt'!CT16+'PADD4 mthly rpt'!CT16+'PADD5 mthly rpt'!CT16 -> 1568283.899 | CU16: ='PADD1 mthly rpt'!CU16+'PADD2 mthly rpt'!CU16+'PADD3 mthly rpt'!CU16+'PADD4 mthly rpt'!CU16+'PADD5 mthly rpt'!CU16 -> 1439141.403 | CV16: ='PADD1 mthly rpt'!CV16+'PADD2 mthly rpt'!CV16+'PADD3 mthly rpt'!CV16+'PADD4 mthly rpt'!CV16+'PADD5 mthly rpt'!CV16 -> 1280546.47 | CW16: ='PADD1 mthly rpt'!CW16+'PADD2 mthly rpt'!CW16+'PADD3 mthly rpt'!CW16+'PADD4 mthly rpt'!CW16+'PADD5 mthly rpt'!CW16 -> 1080391.144 | CX16: ='PADD1 mthly rpt'!CX16+'PADD2 mthly rpt'!CX16+'PADD3 mthly rpt'!CX16+'PADD4 mthly rpt'!CX16+'PADD5 mthly rpt'!CX16 -> 1013377.906 | CY16: ='PADD1 mthly rpt'!CY16+'PADD2 mthly rpt'!CY16+'PADD3 mthly rpt'!CY16+'PADD4 mthly rpt'!CY16+'PADD5 mthly rpt'!CY16 -> 1045688.635 | CZ16: ='PADD1 mthly rpt'!CZ16+'PADD2 mthly rpt'!CZ16+'PADD3 mthly rpt'!CZ16+'PADD4 mthly rpt'!CZ16+'PADD5 mthly rpt'!CZ16 -> 1120499.848 | DA16: ='PADD1 mthly rpt'!DA16+'PADD2 mthly rpt'!DA16+'PADD3 mthly rpt'!DA16+'PADD4 mthly rpt'!DA16+'PADD5 mthly rpt'!DA16 -> 1087420.433 | DB16: ='PADD1 mthly rpt'!DB16+'PADD2 mthly rpt'!DB16+'PADD3 mthly rpt'!DB16+'PADD4 mthly rpt'!DB16+'PADD5 mthly rpt'!DB16 -> 1132280.089 | DC16: ='PADD1 mthly rpt'!DC16+'PADD2 mthly rpt'!DC16+'PADD3 mthly rpt'!DC16+'PADD4 mthly rpt'!DC16+'PADD5 mthly rpt'!DC16 -> 1291259.197 | DD16: ='PADD1 mthly rpt'!DD16+'PADD2 mthly rpt'!DD16+'PADD3 mthly rpt'!DD16+'PADD4 mthly rpt'!DD16+'PADD5 mthly rpt'!DD16 -> 1373559.276 | DE16: ='PADD1 mthly rpt'!DE16+'PADD2 mthly rpt'!DE16+'PADD3 mthly rpt'!DE16+'PADD4 mthly rpt'!DE16+'PADD5 mthly rpt'!DE16 -> 1438559.966 | DF16: ='PADD1 mthly rpt'!DF16+'PADD2 mthly rpt'!DF16+'PADD3 mthly rpt'!DF16+'PADD4 mthly rpt'!DF16+'PADD5 mthly rpt'!DF16 -> 1485553.939 | DG16: ='PADD1 mthly rpt'!DG16+'PADD2 mthly rpt'!DG16+'PADD3 mthly rpt'!DG16+'PADD4 mthly rpt'!DG16+'PADD5 mthly rpt'!DG16 -> 1404656.638 | DH16: ='PADD1 mthly rpt'!DH16+'PADD2 mthly rpt'!DH16+'PADD3 mthly rpt'!DH16+'PADD4 mthly rpt'!DH16+'PADD5 mthly rpt'!DH16 -> 1185829.287 | DI16: ='PADD1 mthly rpt'!DI16+'PADD2 mthly rpt'!DI16+'PADD3 mthly rpt'!DI16+'PADD4 mthly rpt'!DI16+'PADD5 mthly rpt'!DI16 -> 1026792.198 | DJ16: ='PADD1 mthly rpt'!DJ16+'PADD2 mthly rpt'!DJ16+'PADD3 mthly rpt'!DJ16+'PADD4 mthly rpt'!DJ16+'PADD5 mthly rpt'!DJ16 -> 976489.3042 | DK16: ='PADD1 mthly rpt'!DK16+'PADD2 mthly rpt'!DK16+'PADD3 mthly rpt'!DK16+'PADD4 mthly rpt'!DK16+'PADD5 mthly rpt'!DK16 -> 1004382.473 | DL16: ='PADD1 mthly rpt'!DL16+'PADD2 mthly rpt'!DL16+'PADD3 mthly rpt'!DL16+'PADD4 mthly rpt'!DL16+'PADD5 mthly rpt'!DL16 -> 996137.302 | DM16: ='PADD1 mthly rpt'!DM16+'PADD2 mthly rpt'!DM16+'PADD3 mthly rpt'!DM16+'PADD4 mthly rpt'!DM16+'PADD5 mthly rpt'!DM16 -> 1037762.16 | DN16: ='PADD1 mthly rpt'!DN16+'PADD2 mthly rpt'!DN16+'PADD3 mthly rpt'!DN16+'PADD4 mthly rpt'!DN16+'PADD5 mthly rpt'!DN16 -> 1081259.277 | DO16: ='PADD1 mthly rpt'!DO16+'PADD2 mthly rpt'!DO16+'PADD3 mthly rpt'!DO16+'PADD4 mthly rpt'!DO16+'PADD5 mthly rpt'!DO16 -> 1184954.033 | DP16: ='PADD1 mthly rpt'!DP16+'PADD2 mthly rpt'!DP16+'PADD3 mthly rpt'!DP16+'PADD4 mthly rpt'!DP16+'PADD5 mthly rpt'!DP16 -> 1285950.336 | DQ16: ='PADD1 mthly rpt'!DQ16+'PADD2 mthly rpt'!DQ16+'PADD3 mthly rpt'!DQ16+'PADD4 mthly rpt'!DQ16+'PADD5 mthly rpt'!DQ16 -> 1452040.202 | DR16: ='PADD1 mthly rpt'!DR16+'PADD2 mthly rpt'!DR16+'PADD3 mthly rpt'!DR16+'PADD4 mthly rpt'!DR16+'PADD5 mthly rpt'!DR16 -> 1473951.695 | DS16: ='PADD1 mthly rpt'!DS16+'PADD2 mthly rpt'!DS16+'PADD3 mthly rpt'!DS16+'PADD4 mthly rpt'!DS16+'PADD5 mthly rpt'!DS16 -> 1408773.315 | DT16: ='PADD1 mthly rpt'!DT16+'PADD2 mthly rpt'!DT16+'PADD3 mthly rpt'!DT16+'PADD4 mthly rpt'!DT16+'PADD5 mthly rpt'!DT16 -> 1232695.621 | DU16: ='PADD1 mthly rpt'!DU16+'PADD2 mthly rpt'!DU16+'PADD3 mthly rpt'!DU16+'PADD4 mthly rpt'!DU16+'PADD5 mthly rpt'!DU16 -> 1101747.191 | DV16: ='PADD1 mthly rpt'!DV16+'PADD2 mthly rpt'!DV16+'PADD3 mthly rpt'!DV16+'PADD4 mthly rpt'!DV16+'PADD5 mthly rpt'!DV16 -> 1066714.714 | DW16: ='PADD1 mthly rpt'!DW16+'PADD2 mthly rpt'!DW16+'PADD3 mthly rpt'!DW16+'PADD4 mthly rpt'!DW16+'PADD5 mthly rpt'!DW16 -> 1090410.942 | DX16: ='PADD1 mthly rpt'!DX16+'PADD2 mthly rpt'!DX16+'PADD3 mthly rpt'!DX16+'PADD4 mthly rpt'!DX16+'PADD5 mthly rpt'!DX16 -> 979611.1858 | DY16: ='PADD1 mthly rpt'!DY16+'PADD2 mthly rpt'!DY16+'PADD3 mthly rpt'!DY16+'PADD4 mthly rpt'!DY16+'PADD5 mthly rpt'!DY16 -> 1021478.487 | DZ16: ='PADD1 mthly rpt'!DZ16+'PADD2 mthly rpt'!DZ16+'PADD3 mthly rpt'!DZ16+'PADD4 mthly rpt'!DZ16+'PADD5 mthly rpt'!DZ16 -> 1041389.358 | EA16: ='PADD1 mthly rpt'!EA16+'PADD2 mthly rpt'!EA16+'PADD3 mthly rpt'!EA16+'PADD4 mthly rpt'!EA16+'PADD5 mthly rpt'!EA16 -> 1099437.898 | EB16: ='PADD1 mthly rpt'!EB16+'PADD2 mthly rpt'!EB16+'PADD3 mthly rpt'!EB16+'PADD4 mthly rpt'!EB16+'PADD5 mthly rpt'!EB16 -> 1189063.183 | EC16: ='PADD1 mthly rpt'!EC16+'PADD2 mthly rpt'!EC16+'PADD3 mthly rpt'!EC16+'PADD4 mthly rpt'!EC16+'PADD5 mthly rpt'!EC16 -> 1353768.85 | ED16: ='PADD1 mthly rpt'!ED16+'PADD2 mthly rpt'!ED16+'PADD3 mthly rpt'!ED16+'PADD4 mthly rpt'!ED16+'PADD5 mthly rpt'!ED16 -> 1422194.213 | EE16: ='PADD1 mthly rpt'!EE16+'PADD2 mthly rpt'!EE16+'PADD3 mthly rpt'!EE16+'PADD4 mthly rpt'!EE16+'PADD5 mthly rpt'!EE16 -> 1371161.567 | EF16: ='PADD1 mthly rpt'!EF16+'PADD2 mthly rpt'!EF16+'PADD3 mthly rpt'!EF16+'PADD4 mthly rpt'!EF16+'PADD5 mthly rpt'!EF16 -> 1131175.556 | EG16: ='PADD1 mthly rpt'!EG16+'PADD2 mthly rpt'!EG16+'PADD3 mthly rpt'!EG16+'PADD4 mthly rpt'!EG16+'PADD5 mthly rpt'!EG16 -> 974147.7889 | EH16: ='PADD1 mthly rpt'!EH16+'PADD2 mthly rpt'!EH16+'PADD3 mthly rpt'!EH16+'PADD4 mthly rpt'!EH16+'PADD5 mthly rpt'!EH16 -> 895338.1174 | EI16: ='PADD1 mthly rpt'!EI16+'PADD2 mthly rpt'!EI16+'PADD3 mthly rpt'!EI16+'PADD4 mthly rpt'!EI16+'PADD5 mthly rpt'!EI16 -> 904236.1542 | EJ16: ='PADD1 mthly rpt'!EJ16+'PADD2 mthly rpt'!EJ16+'PADD3 mthly rpt'!EJ16+'PADD4 mthly rpt'!EJ16+'PADD5 mthly rpt'!EJ16 -> 979805.7986 | EK16: ='PADD1 mthly rpt'!EK16+'PADD2 mthly rpt'!EK16+'PADD3 mthly rpt'!EK16+'PADD4 mthly rpt'!EK16+'PADD5 mthly rpt'!EK16 -> 1123362.998 | EL16: ='PADD1 mthly rpt'!EL16+'PADD2 mthly rpt'!EL16+'PADD3 mthly rpt'!EL16+'PADD4 mthly rpt'!EL16+'PADD5 mthly rpt'!EL16 -> 1129147.892 | EM16: ='PADD1 mthly rpt'!EM16+'PADD2 mthly rpt'!EM16+'PADD3 mthly rpt'!EM16+'PADD4 mthly rpt'!EM16+'PADD5 mthly rpt'!EM16 -> 1212287.907 | EN16: ='PADD1 mthly rpt'!EN16+'PADD2 mthly rpt'!EN16+'PADD3 mthly rpt'!EN16+'PADD4 mthly rpt'!EN16+'PADD5 mthly rpt'!EN16 -> 1270324.266 | EO16: ='PADD1 mthly rpt'!EO16+'PADD2 mthly rpt'!EO16+'PADD3 mthly rpt'!EO16+'PADD4 mthly rpt'!EO16+'PADD5 mthly rpt'!EO16 -> 1420713.125 | EP16: ='PADD1 mthly rpt'!EP16+'PADD2 mthly rpt'!EP16+'PADD3 mthly rpt'!EP16+'PADD4 mthly rpt'!EP16+'PADD5 mthly rpt'!EP16 -> 1471176.686 | EQ16: ='PADD1 mthly rpt'!EQ16+'PADD2 mthly rpt'!EQ16+'PADD3 mthly rpt'!EQ16+'PADD4 mthly rpt'!EQ16+'PADD5 mthly rpt'!EQ16 -> 1379738.419 | ER16: ='PADD1 mthly rpt'!ER16+'PADD2 mthly rpt'!ER16+'PADD3 mthly rpt'!ER16+'PADD4 mthly rpt'!ER16+'PADD5 mthly rpt'!ER16 -> 1270437.551 | ES16: ='PADD1 mthly rpt'!ES16+'PADD2 mthly rpt'!ES16+'PADD3 mthly rpt'!ES16+'PADD4 mthly rpt'!ES16+'PADD5 mthly rpt'!ES16 -> 1116692.696 | ET16: ='PADD1 mthly rpt'!ET16+'PADD2 mthly rpt'!ET16+'PADD3 mthly rpt'!ET16+'PADD4 mthly rpt'!ET16+'PADD5 mthly rpt'!ET16 -> 1027068.343 | EU16: ='PADD1 mthly rpt'!EU16+'PADD2 mthly rpt'!EU16+'PADD3 mthly rpt'!EU16+'PADD4 mthly rpt'!EU16+'PADD5 mthly rpt'!EU16 -> 1008770.158 | EV16: ='PADD1 mthly rpt'!EV16+'PADD2 mthly rpt'!EV16+'PADD3 mthly rpt'!EV16+'PADD4 mthly rpt'!EV16+'PADD5 mthly rpt'!EV16 -> 1010466.561 | EW16: ='PADD1 mthly rpt'!EW16+'PADD2 mthly rpt'!EW16+'PADD3 mthly rpt'!EW16+'PADD4 mthly rpt'!EW16+'PADD5 mthly rpt'!EW16 -> 1034551.117 | EX16: ='PADD1 mthly rpt'!EX16+'PADD2 mthly rpt'!EX16+'PADD3 mthly rpt'!EX16+'PADD4 mthly rpt'!EX16+'PADD5 mthly rpt'!EX16 -> 1024182.516 | EY16: ='PADD1 mthly rpt'!EY16+'PADD2 mthly rpt'!EY16+'PADD3 mthly rpt'!EY16+'PADD4 mthly rpt'!EY16+'PADD5 mthly rpt'!EY16 -> 1182053.657 | EZ16: ='PADD1 mthly rpt'!EZ16+'PADD2 mthly rpt'!EZ16+'PADD3 mthly rpt'!EZ16+'PADD4 mthly rpt'!EZ16+'PADD5 mthly rpt'!EZ16 -> 1270169.352 | FA16: ='PADD1 mthly rpt'!FA16+'PADD2 mthly rpt'!FA16+'PADD3 mthly rpt'!FA16+'PADD4 mthly rpt'!FA16+'PADD5 mthly rpt'!FA16 -> 1357347.08 | FB16: ='PADD1 mthly rpt'!FB16+'PADD2 mthly rpt'!FB16+'PADD3 mthly rpt'!FB16+'PADD4 mthly rpt'!FB16+'PADD5 mthly rpt'!FB16 -> 1532745.072 | FC16: ='PADD1 mthly rpt'!FC16+'PADD2 mthly rpt'!FC16+'PADD3 mthly rpt'!FC16+'PADD4 mthly rpt'!FC16+'PADD5 mthly rpt'!FC16 -> 1374782.181 | FD16: ='PADD1 mthly rpt'!FD16+'PADD2 mthly rpt'!FD16+'PADD3 mthly rpt'!FD16+'PADD4 mthly rpt'!FD16+'PADD5 mthly rpt'!FD16 -> 1217114.848 | FE16: ='PADD1 mthly rpt'!FE16+'PADD2 mthly rpt'!FE16+'PADD3 mthly rpt'!FE16+'PADD4 mthly rpt'!FE16+'PADD5 mthly rpt'!FE16 -> 1129026.374 | FF16: ='PADD1 mthly rpt'!FF16+'PADD2 mthly rpt'!FF16+'PADD3 mthly rpt'!FF16+'PADD4 mthly rpt'!FF16+'PADD5 mthly rpt'!FF16 -> 955738.2687 | FG16: ='PADD1 mthly rpt'!FG16+'PADD2 mthly rpt'!FG16+'PADD3 mthly rpt'!FG16+'PADD4 mthly rpt'!FG16+'PADD5 mthly rpt'!FG16 -> 1030506.302 | FH16: ='PADD1 mthly rpt'!FH16+'PADD2 mthly rpt'!FH16+'PADD3 mthly rpt'!FH16+'PADD4 mthly rpt'!FH16+'PADD5 mthly rpt'!FH16 -> 990521.4098 | FI16: ='PADD1 mthly rpt'!FI16+'PADD2 mthly rpt'!FI16+'PADD3 mthly rpt'!FI16+'PADD4 mthly rpt'!FI16+'PADD5 mthly rpt'!FI16 -> 1042138.656 | FJ16: ='PADD1 mthly rpt'!FJ16+'PADD2 mthly rpt'!FJ16+'PADD3 mthly rpt'!FJ16+'PADD4 mthly rpt'!FJ16+'PADD5 mthly rpt'!FJ16 -> 1078506.132 | FK16: ='PADD1 mthly rpt'!FK16+'PADD2 mthly rpt'!FK16+'PADD3 mthly rpt'!FK16+'PADD4 mthly rpt'!FK16+'PADD5 mthly rpt'!FK16 -> 1228066.772 | FL16: ='PADD1 mthly rpt'!FL16+'PADD2 mthly rpt'!FL16+'PADD3 mthly rpt'!FL16+'PADD4 mthly rpt'!FL16+'PADD5 mthly rpt'!FL16 -> 1294972.983 | FM16: ='PADD1 mthly rpt'!FM16+'PADD2 mthly rpt'!FM16+'PADD3 mthly rpt'!FM16+'PADD4 mthly rpt'!FM16+'PADD5 mthly rpt'!FM16 -> 1372798.728 | FN16: ='PADD1 mthly rpt'!FN16+'PADD2 mthly rpt'!FN16+'PADD3 mthly rpt'!FN16+'PADD4 mthly rpt'!FN16+'PADD5 mthly rpt'!FN16 -> 1452617.536 | FO16: ='PADD1 mthly rpt'!FO16+'PADD2 mthly rpt'!FO16+'PADD3 mthly rpt'!FO16+'PADD4 mthly rpt'!FO16+'PADD5 mthly rpt'!FO16 -> 1427247.404 | FP16: ='PADD1 mthly rpt'!FP16+'PADD2 mthly rpt'!FP16+'PADD3 mthly rpt'!FP16+'PADD4 mthly rpt'!FP16+'PADD5 mthly rpt'!FP16 -> 1195747.652 | FQ16: ='PADD1 mthly rpt'!FQ16+'PADD2 mthly rpt'!FQ16+'PADD3 mthly rpt'!FQ16+'PADD4 mthly rpt'!FQ16+'PADD5 mthly rpt'!FQ16 -> 982597.737 | FR16: ='PADD1 mthly rpt'!FR16+'PADD2 mthly rpt'!FR16+'PADD3 mthly rpt'!FR16+'PADD4 mthly rpt'!FR16+'PADD5 mthly rpt'!FR16 -> 944384.0011 | FS16: ='PADD1 mthly rpt'!FS16+'PADD2 mthly rpt'!FS16+'PADD3 mthly rpt'!FS16+'PADD4 mthly rpt'!FS16+'PADD5 mthly rpt'!FS16 -> 930222.6628 | FT16: ='PADD1 mthly rpt'!FT16+'PADD2 mthly rpt'!FT16+'PADD3 mthly rpt'!FT16+'PADD4 mthly rpt'!FT16+'PADD5 mthly rpt'!FT16 -> 935131.142 | FU16: ='PADD1 mthly rpt'!FU16+'PADD2 mthly rpt'!FU16+'PADD3 mthly rpt'!FU16+'PADD4 mthly rpt'!FU16+'PADD5 mthly rpt'!FU16 -> 1004638.502 | FV16: ='PADD1 mthly rpt'!FV16+'PADD2 mthly rpt'!FV16+'PADD3 mthly rpt'!FV16+'PADD4 mthly rpt'!FV16+'PADD5 mthly rpt'!FV16 -> 1012974.402 | FW16: ='PADD1 mthly rpt'!FW16+'PADD2 mthly rpt'!FW16+'PADD3 mthly rpt'!FW16+'PADD4 mthly rpt'!FW16+'PADD5 mthly rpt'!FW16 -> 1135837.788 | FX16: ='PADD1 mthly rpt'!FX16+'PADD2 mthly rpt'!FX16+'PADD3 mthly rpt'!FX16+'PADD4 mthly rpt'!FX16+'PADD5 mthly rpt'!FX16 -> 1189993.576 | FY16: ='PADD1 mthly rpt'!FY16+'PADD2 mthly rpt'!FY16+'PADD3 mthly rpt'!FY16+'PADD4 mthly rpt'!FY16+'PADD5 mthly rpt'!FY16 -> 1288412.26 | FZ16: ='PADD1 mthly rpt'!FZ16+'PADD2 mthly rpt'!FZ16+'PADD3 mthly rpt'!FZ16+'PADD4 mthly rpt'!FZ16+'PADD5 mthly rpt'!FZ16 -> 1313777.758 | GA16: ='PADD1 mthly rpt'!GA16+'PADD2 mthly rpt'!GA16+'PADD3 mthly rpt'!GA16+'PADD4 mthly rpt'!GA16+'PADD5 mthly rpt'!GA16 -> 1266926.793 | GB16: ='PADD1 mthly rpt'!GB16+'PADD2 mthly rpt'!GB16+'PADD3 mthly rpt'!GB16+'PADD4 mthly rpt'!GB16+'PADD5 mthly rpt'!GB16 -> 1095660.08 | GC16: ='PADD1 mthly rpt'!GC16+'PADD2 mthly rpt'!GC16+'PADD3 mthly rpt'!GC16+'PADD4 mthly rpt'!GC16+'PADD5 mthly rpt'!GC16 -> 965981.0895 | GD16: ='PADD1 mthly rpt'!GD16+'PADD2 mthly rpt'!GD16+'PADD3 mthly rpt'!GD16+'PADD4 mthly rpt'!GD16+'PADD5 mthly rpt'!GD16 -> 915388.3897 | GE16: ='PADD1 mthly rpt'!GE16+'PADD2 mthly rpt'!GE16+'PADD3 mthly rpt'!GE16+'PADD4 mthly rpt'!GE16+'PADD5 mthly rpt'!GE16 -> 903546.0466 | GF16: ='PADD1 mthly rpt'!GF16+'PADD2 mthly rpt'!GF16+'PADD3 mthly rpt'!GF16+'PADD4 mthly rpt'!GF16+'PADD5 mthly rpt'!GF16 -> 922987.1901 | GG16: ='PADD1 mthly rpt'!GG16+'PADD2 mthly rpt'!GG16+'PADD3 mthly rpt'!GG16+'PADD4 mthly rpt'!GG16+'PADD5 mthly rpt'!GG16 -> 968617.4419 | GH16: ='PADD1 mthly rpt'!GH16+'PADD2 mthly rpt'!GH16+'PADD3 mthly rpt'!GH16+'PADD4 mthly rpt'!GH16+'PADD5 mthly rpt'!GH16 -> 996401.9738 | GI16: ='PADD1 mthly rpt'!GI16+'PADD2 mthly rpt'!GI16+'PADD3 mthly rpt'!GI16+'PADD4 mthly rpt'!GI16+'PADD5 mthly rpt'!GI16 -> 1114558.238 | GJ16: ='PADD1 mthly rpt'!GJ16+'PADD2 mthly rpt'!GJ16+'PADD3 mthly rpt'!GJ16+'PADD4 mthly rpt'!GJ16+'PADD5 mthly rpt'!GJ16 -> 1258606.107 | GK16: ='PADD1 mthly rpt'!GK16+'PADD2 mthly rpt'!GK16+'PADD3 mthly rpt'!GK16+'PADD4 mthly rpt'!GK16+'PADD5 mthly rpt'!GK16 -> 1544888.854 | GL16: ='PADD1 mthly rpt'!GL16+'PADD2 mthly rpt'!GL16+'PADD3 mthly rpt'!GL16+'PADD4 mthly rpt'!GL16+'PADD5 mthly rpt'!GL16 -> 1593626.465 | GM16: ='PADD1 mthly rpt'!GM16+'PADD2 mthly rpt'!GM16+'PADD3 mthly rpt'!GM16+'PADD4 mthly rpt'!GM16+'PADD5 mthly rpt'!GM16 -> 1491816.409 | GN16: ='PADD1 mthly rpt'!GN16+'PADD2 mthly rpt'!GN16+'PADD3 mthly rpt'!GN16+'PADD4 mthly rpt'!GN16+'PADD5 mthly rpt'!GN16 -> 1249277.35 | GO16: ='PADD1 mthly rpt'!GO16+'PADD2 mthly rpt'!GO16+'PADD3 mthly rpt'!GO16+'PADD4 mthly rpt'!GO16+'PADD5 mthly rpt'!GO16 -> 1205180.613 | GP16: ='PADD1 mthly rpt'!GP16+'PADD2 mthly rpt'!GP16+'PADD3 mthly rpt'!GP16+'PADD4 mthly rpt'!GP16+'PADD5 mthly rpt'!GP16 -> 1072743.507 | GQ16: ='PADD1 mthly rpt'!GQ16+'PADD2 mthly rpt'!GQ16+'PADD3 mthly rpt'!GQ16+'PADD4 mthly rpt'!GQ16+'PADD5 mthly rpt'!GQ16 -> 983207.2797 | GR16: ='PADD1 mthly rpt'!GR16+'PADD2 mthly rpt'!GR16+'PADD3 mthly rpt'!GR16+'PADD4 mthly rpt'!GR16+'PADD5 mthly rpt'!GR16 -> 942349.1327 | GS16: ='PADD1 mthly rpt'!GS16+'PADD2 mthly rpt'!GS16+'PADD3 mthly rpt'!GS16+'PADD4 mthly rpt'!GS16+'PADD5 mthly rpt'!GS16 -> 1055705.907 | GT16: ='PADD1 mthly rpt'!GT16+'PADD2 mthly rpt'!GT16+'PADD3 mthly rpt'!GT16+'PADD4 mthly rpt'!GT16+'PADD5 mthly rpt'!GT16 -> 1093696.893 | GU16: ='PADD1 mthly rpt'!GU16+'PADD2 mthly rpt'!GU16+'PADD3 mthly rpt'!GU16+'PADD4 mthly rpt'!GU16+'PADD5 mthly rpt'!GU16 -> 1275136.089 | GV16: ='PADD1 mthly rpt'!GV16+'PADD2 mthly rpt'!GV16+'PADD3 mthly rpt'!GV16+'PADD4 mthly rpt'!GV16+'PADD5 mthly rpt'!GV16 -> 1407571.012 | GW16: ='PADD1 mthly rpt'!GW16+'PADD2 mthly rpt'!GW16+'PADD3 mthly rpt'!GW16+'PADD4 mthly rpt'!GW16+'PADD5 mthly rpt'!GW16 -> 1645250.945 | GX16: ='PADD1 mthly rpt'!GX16+'PADD2 mthly rpt'!GX16+'PADD3 mthly rpt'!GX16+'PADD4 mthly rpt'!GX16+'PADD5 mthly rpt'!GX16 -> 1736804.789 | GY16: ='PADD1 mthly rpt'!GY16+'PADD2 mthly rpt'!GY16+'PADD3 mthly rpt'!GY16+'PADD4 mthly rpt'!GY16+'PADD5 mthly rpt'!GY16 -> 1629147.255 | GZ16: ='PADD1 mthly rpt'!GZ16+'PADD2 mthly rpt'!GZ16+'PADD3 mthly rpt'!GZ16+'PADD4 mthly rpt'!GZ16+'PADD5 mthly rpt'!GZ16 -> 1425986.756 | HA16: ='PADD1 mthly rpt'!HA16+'PADD2 mthly rpt'!HA16+'PADD3 mthly rpt'!HA16+'PADD4 mthly rpt'!HA16+'PADD5 mthly rpt'!HA16 -> 1218957.718 | HB16: ='PADD1 mthly rpt'!HB16+'PADD2 mthly rpt'!HB16+'PADD3 mthly rpt'!HB16+'PADD4 mthly rpt'!HB16+'PADD5 mthly rpt'!HB16 -> 1066430.248 | HC16: ='PADD1 mthly rpt'!HC16+'PADD2 mthly rpt'!HC16+'PADD3 mthly rpt'!HC16+'PADD4 mthly rpt'!HC16+'PADD5 mthly rpt'!HC16 -> 1010402.984
